Workbook

Sheet 1.0 Gebruiksaanwijzing
B2: Project : | C2: WarmingUp
B3: Onderwerp : | C3: Gedetailleerde kostenberekening
B4: Fase : | C4: 1.0 Gebruiksaanwijzing Excel model
B6: Aquathermie is een interessante duurzame energiebron, maar het is voor veel partijen nog ingewikkeld om de kosten van een aquathermie systeem inzichtelijk te maken. Daarom is dit Excel model opgesteld door IF Technology B.V. en Techniplan Adviseurs B.V. Het bestaat uit een gedetailleerde kostenberekening voor verschillende varianten op basis van kengetallen, onderverdeeld over verschillende tabbladen. Het doel van deze berekeningen is om de verschillende varianten met elkaar te vergelijken om zo de invloed van geselecteerde parameters op de kosten aquathermie te bepalen. De opbouw van het model en de tabbladen wordt hieronder kort beschreven. Deel 1 van dit model is de gevoeligheidsanalyse voor het basisconcept en 30 varianten (totaal 31 varianten).
B7: DISCLAIMER: Deze Excel berekening bevat een aantal hypothetische casus die verder zijn uitgewerkt in het rapport "gedetailleerde kostenberekening aquathermie" voor het WarmingUp project. Het staat een ieder vrij de resultaten te gebruiken voor het eigen intern, niet-commercieel gebruik, maar is niet geschikt om (ontwerp)beslissingen op te baseren. Hoewel zorgvuldigheid is betracht door IF Technology en Techniplan (in samenwerking met de begeleidingscommissie) bij de ontwikkeling van de berekening, wordt deze aangeboden zonder garantie van welke aard dan ook. Het gebruik ervan is voor eigen rekening en risico. WarmingUP is in geen geval aansprakelijk voor schades ontstaan door gebruik van de kostenberekening.
B9: 1. Overzicht | D9: Link naar tabblad
B11: De kostenberekening bestaat uit een basisconcept en een aantal varianten, waarvan de waardes zijn vastgesteld in overleg met de begeleidingscommissie. Dit tabblad geeft een overzicht van het basisconcept en de varianten. Om de invloed van de verschillende parameters inzichtelijk te maken, varieert steeds 1 waarde terwijl de andere parameters gelijk blijven aan het basisconcept. Dit heeft geresulteerd in 28 verschillende varianten. | D11: 1.1 Overzicht
B13: 2. Varianten
B15: Dit tabblad laat in meer detail de 31 verschillende varianten zien, waarbij in lichtgroen de aangepaste parameter(s) gemarkeerd zijn. De andere parameters zijn gelijk aan het basisconcept. | D15: 1.2 Varianten
B17: 3. Energievraag - JBDK
B19: In dit tabblad wordt de vermogens- en energieverdeling in meer detail weergegeven voor alle varianten. De totale energievraag is gebaseerd op een jaarbelastingduurkromme (JBDK). Vervolgens wordt een onderscheid gemaakt tussen basislast (WKO en/of TEO) en pieklast (E-ketels of gas). Deze verdelingen vormen de basis voor het verder uitwerken van de kostenberekeningen. | D19: 1.3 Energievraag - JBDK
B21: 4. Kenmerken
B23: In dit tabblad worden de technische en financiële kengetallen gegeven en berekend voor alle varianten. De kengetallen zijn gesorteerd per onderdeel van de aquathermie installatie plus een financieel gedeelte. Er wordt daarnaast een onderscheid gemaakt tussen 3 types cellen: wit, oranje en geel. In witte cellen worden berekeningen uitgevoerd en deze dienen daarom niet aangepast te worden. Oranje en gele cellen zijn kengetallen, waarbij een verder onderscheid wordt gemaakt tussen onafhankelijke parameters (geel) en parameters die elkaar kunnen beïnvloeden (oranje). De referenties van deze kengetallen zijn aan de rechterkant genoteerd, waarbij in de eerste instantie gebruik is gemaakt van ervaringsgetallen van IF Technology en Techniplan. | D23: 1.4 Kenmerken
B25: 5. Kostenberekening
B27: Met behulp van de technische en financiële kengetallen wordt vervolgens een kostenberekening gemaakt voor alle varianten. De investeringskosten (CAPEX) en exploitatiekosten (OPEX) worden berekend voor ieder onderdeel van de aquathermie installatie. Deze worden daarna bij elkaar opgeteld, wat uiteindelijk resulteert in de prijs in euro per GJ, de eenvoudige terugverdientijd, de total cost of ownership (TCO) voor 30 jaar, en de CO2 uitstoot. | D27: 1.5 Kostenberekening
B29: 6. Resultaten
B31: De gevoeligheidsanalyse op basis van de resultaten uit de kostenberekening voor alle varianten worden hier weergegeven. De gevoeligheidsanalyse is gevisualiseerd met behulp van een tornadoplot. Doordat steeds 1 parameter is aangepast bij iedere variant wordt in deze grafiek de invloed van een bepaalde parameter op de totale kosten van een aquathermie systeem inzichtelijk gemaakt. | D31: 1.6 Resultaten

Sheet 1.1 Overzicht
B2: Project : | C2: WarmingUp
B3: Onderwerp : | C3: Gedetailleerde kostenberekening
B4: Fase : | C4: 1.1 Overzicht varianten en basisconcept
B25: Parameters | C25: Varianten | H25: Basisconcept
B26: Vermogen afnemer | C26: 20 | D26: 5 | E26: 1 | H26: Vermogen afnemer | I26: =D26 -> 5
B27: Vollasturen warmtenet | C27: 6000 | D27: 3500 | E27: 2000 | H27: Vollasturen warmteafzet | I27: =D27 -> 3500
B28: Vollasturen aquathermie systeem | C28: 2500 | D28: 3000 | E28: 2000 | H28: Vollasturen TEO systeem | I28: =D28 -> 3000
B29: Uitval door onderhoud of calamiteit | C29: 0 | D29: 500 | E29: 1000 | H29: Uitval door onderhoud of calamiteit | I29: =D29 -> 500
B30: Temperatuurtraject aquathermie systeem (deltaT) | C30: 5 | D30: 10 | E30: n.v.t. | H30: Temperatuurtraject TEO systeem (deltaT) | I30: =C30 -> 5
B31: Elektriciteitsprijs | C31: 68 | D31: 32 | E31: 170 | H31: Elektriciteitsprijs | I31: =C31 -> 68
B32: Vermogensaandeel piekvoorziening | C32: 0.7 | D32: 0.5 | E32: 0.3 | H32: Vermogensaandeel piekvoorziening | I32: =D32 -> 0.5
B33: Impact WKO | C33: met WKO | D33: zonder WKO | E33: n.v.t. | H33: Impact WKO | I33: =C33 -> met WKO
B34: WKO opslagcapaciteit | C34: 250 | D34: 90 | E34: 50 | H34: WKO opslagcapaciteit | I34: =D34 -> 90
B35: Diepte WKO bronnen | C35: 230 | D35: 150 | E35: 80 | H35: Diepte WKO bronnen | I35: =D35 -> 150
B36: Leidingwerk tussen aquathermie en TR | C36: 500 | D36: 2000 | E36: 500 m + gestuurde boring | H36: Leidingwerk tussen TEO en TR | I36: =C36 -> 500
B37: Leidingwerk tussen bronnen en TR | C37: 500 | D37: 2000 | E37: 500 m + gestuurde boring | H37: Leidingwerk tussen bronnen en TR | I37: =C37 -> 500
B38: Situatie onttrekking | C38: stedelijk | D38: landelijk | E38: n.v.t. | H38: Situatie onttrekking | I38: =C38 -> stedelijk
B39: Energiekosten (inflatie) | C39: 0.02 | D39: 0.03 | E39: 0.04 | H39: Energiekosten (inflatie) | I39: =D39 -> 0.03
B40: Rendementseis | C40: 0.08 | D40: 0.06 | E40: 0.04 | H40: Rendementseis | I40: =D40 -> 0.06
B41: Toepassing SDE++ subsidie | C41: ja | D41: nee | E41: n.v.t. | H41: Toepassing SDE++ subsidie | I41: =D41 -> nee
B42: Variant met TEA/TEO | C42: TEA | D42: TEO | E42: TEA (zonder WKO) | H42: Variant met TEA/TEO | I42: =D42 -> TEO
B43: Aanvoertemperatuur warmtenet | C43: 70 | D43: 40 | E43: ZLT | H43: Temperatuurtraject warmtenet | I43: =C43 -> 70

Sheet 1.2 Varianten
B2: Project : | C2: WarmingUp
B3: Onderwerp : | C3: Gedetailleerde kostenberekening
B4: Fase : | C4: 1.2 Varianten
B6: Variant | C6: Basis berekening | D6: 2 | E6: 3 | F6: 4 | G6: 5 | H6: 6 | I6: 7 | J6: 8 | K6: 9 | L6: 10 | M6: 11 | N6: 12 | O6: 13 | P6: 14 | Q6: 15 | R6: 16 | S6: 17 | T6: 18 | U6: 19 | V6: 20 | W6: 21 | X6: 22 | Y6: 23 | Z6: 24 | AA6: 25 | AB6: 26 | AC6: 27 | AD6: 28 | AE6: 29 | AF6: 30 | AG6: 31 | AH6: Opmerkingen
B8: Vermogen afnemer | C8: ='1.1 Overzicht'!$I$26 -> 5 | D8: ='1.1 Overzicht'!C26 -> 20 | E8: ='1.1 Overzicht'!E26 -> 1 | F8: ='1.1 Overzicht'!$I$26 -> 5 | G8: ='1.1 Overzicht'!$I$26 -> 5 | H8: ='1.1 Overzicht'!$I$26 -> 5 | I8: ='1.1 Overzicht'!$I$26 -> 5 | J8: ='1.1 Overzicht'!$I$26 -> 5 | K8: ='1.1 Overzicht'!$I$26 -> 5 | L8: ='1.1 Overzicht'!$I$26 -> 5 | M8: ='1.1 Overzicht'!$I$26 -> 5 | N8: ='1.1 Overzicht'!$I$26 -> 5 | O8: ='1.1 Overzicht'!$I$26 -> 5 | P8: ='1.1 Overzicht'!$I$26 -> 5 | Q8: ='1.1 Overzicht'!$I$26 -> 5 | R8: ='1.1 Overzicht'!$I$26 -> 5 | S8: ='1.1 Overzicht'!$I$26 -> 5 | T8: ='1.1 Overzicht'!$I$26 -> 5 | U8: ='1.1 Overzicht'!$I$26 -> 5 | V8: ='1.1 Overzicht'!$I$26 -> 5 | W8: ='1.1 Overzicht'!$I$26 -> 5 | X8: ='1.1 Overzicht'!$I$26 -> 5 | Y8: ='1.1 Overzicht'!$I$26 -> 5 | Z8: ='1.1 Overzicht'!$I$26 -> 5 | AA8: ='1.1 Overzicht'!$I$26 -> 5 | AB8: ='1.1 Overzicht'!$I$26 -> 5 | AC8: ='1.1 Overzicht'!$I$26 -> 5 | AD8: ='1.1 Overzicht'!$I$26 -> 5 | AE8: ='1.1 Overzicht'!$I$26 -> 5 | AF8: ='1.1 Overzicht'!$I$26 -> 5 | AG8: ='1.1 Overzicht'!$I$26 -> 5
B9: Vollasturen warmtenet | C9: ='1.1 Overzicht'!$I$27 -> 3500 | D9: ='1.1 Overzicht'!$I$27 -> 3500 | E9: ='1.1 Overzicht'!$I$27 -> 3500 | F9: ='1.1 Overzicht'!C27 -> 6000 | G9: ='1.1 Overzicht'!E27 -> 2000 | H9: ='1.1 Overzicht'!$I$27 -> 3500 | I9: ='1.1 Overzicht'!$I$27 -> 3500 | J9: ='1.1 Overzicht'!$I$27 -> 3500 | K9: ='1.1 Overzicht'!$I$27 -> 3500 | L9: ='1.1 Overzicht'!$I$27 -> 3500 | M9: ='1.1 Overzicht'!$I$27 -> 3500 | N9: ='1.1 Overzicht'!$I$27 -> 3500 | O9: ='1.1 Overzicht'!$I$27 -> 3500 | P9: ='1.1 Overzicht'!$I$27 -> 3500 | Q9: ='1.1 Overzicht'!$I$27 -> 3500 | R9: ='1.1 Overzicht'!$I$27 -> 3500 | S9: ='1.1 Overzicht'!$I$27 -> 3500 | T9: ='1.1 Overzicht'!$I$27 -> 3500 | U9: ='1.1 Overzicht'!$I$27 -> 3500 | V9: ='1.1 Overzicht'!$I$27 -> 3500 | W9: ='1.1 Overzicht'!$I$27 -> 3500 | X9: ='1.1 Overzicht'!$I$27 -> 3500 | Y9: ='1.1 Overzicht'!$I$27 -> 3500 | Z9: ='1.1 Overzicht'!$I$27 -> 3500 | AA9: ='1.1 Overzicht'!$I$27 -> 3500 | AB9: ='1.1 Overzicht'!$I$27 -> 3500 | AC9: ='1.1 Overzicht'!$I$27 -> 3500 | AD9: ='1.1 Overzicht'!$I$27 -> 3500 | AE9: ='1.1 Overzicht'!$I$27 -> 3500 | AF9: ='1.1 Overzicht'!$I$27 -> 3500 | AG9: ='1.1 Overzicht'!$I$27 -> 3500
B10: Vollasturen aquathermie systeem | C10: ='1.1 Overzicht'!$I$28 -> 3000 | D10: ='1.1 Overzicht'!$I$28 -> 3000 | E10: ='1.1 Overzicht'!$I$28 -> 3000 | F10: ='1.1 Overzicht'!$I$28 -> 3000 | G10: ='1.1 Overzicht'!$I$28 -> 3000 | H10: ='1.1 Overzicht'!C28 -> 2500 | I10: ='1.1 Overzicht'!E28 -> 2000 | J10: ='1.1 Overzicht'!$I$28 -> 3000 | K10: ='1.1 Overzicht'!$I$28 -> 3000 | L10: ='1.1 Overzicht'!$I$28 -> 3000 | M10: ='1.1 Overzicht'!$I$28 -> 3000 | N10: ='1.1 Overzicht'!$I$28 -> 3000 | O10: ='1.1 Overzicht'!$I$28 -> 3000 | P10: ='1.1 Overzicht'!$I$28 -> 3000 | Q10: ='1.1 Overzicht'!$I$28 -> 3000 | R10: ='1.1 Overzicht'!$I$28 -> 3000 | S10: ='1.1 Overzicht'!$I$28 -> 3000 | T10: ='1.1 Overzicht'!$I$28 -> 3000 | U10: ='1.1 Overzicht'!$I$28 -> 3000 | V10: ='1.1 Overzicht'!$I$28 -> 3000 | W10: ='1.1 Overzicht'!$I$28 -> 3000 | X10: ='1.1 Overzicht'!$I$28 -> 3000 | Y10: ='1.1 Overzicht'!$I$28 -> 3000 | Z10: ='1.1 Overzicht'!$I$28 -> 3000 | AA10: ='1.1 Overzicht'!$I$28 -> 3000 | AB10: ='1.1 Overzicht'!$I$28 -> 3000 | AC10: ='1.1 Overzicht'!$I$28 -> 3000 | AD10: ='1.1 Overzicht'!$I$28 -> 3000 | AE10: ='1.1 Overzicht'!$I$28 -> 3000 | AF10: 3500 | AG10: ='1.1 Overzicht'!$I$28 -> 3000
B11: Temperatuurtraject aquathermie systeem (deltaT) | C11: ='1.1 Overzicht'!$I$30 -> 5 | D11: ='1.1 Overzicht'!$I$30 -> 5 | E11: ='1.1 Overzicht'!$I$30 -> 5 | F11: ='1.1 Overzicht'!$I$30 -> 5 | G11: ='1.1 Overzicht'!$I$30 -> 5 | H11: ='1.1 Overzicht'!$I$30 -> 5 | I11: ='1.1 Overzicht'!$I$30 -> 5 | J11: ='1.1 Overzicht'!D30 -> 10 | K11: ='1.1 Overzicht'!$I$30 -> 5 | L11: ='1.1 Overzicht'!$I$30 -> 5 | M11: ='1.1 Overzicht'!$I$30 -> 5 | N11: ='1.1 Overzicht'!$I$30 -> 5 | O11: ='1.1 Overzicht'!$I$30 -> 5 | P11: ='1.1 Overzicht'!$I$30 -> 5 | Q11: ='1.1 Overzicht'!$I$30 -> 5 | R11: ='1.1 Overzicht'!$I$30 -> 5 | S11: ='1.1 Overzicht'!$I$30 -> 5 | T11: ='1.1 Overzicht'!$I$30 -> 5 | U11: ='1.1 Overzicht'!$I$30 -> 5 | V11: ='1.1 Overzicht'!$I$30 -> 5 | W11: ='1.1 Overzicht'!$I$30 -> 5 | X11: ='1.1 Overzicht'!$I$30 -> 5 | Y11: ='1.1 Overzicht'!$I$30 -> 5 | Z11: ='1.1 Overzicht'!$I$30 -> 5 | AA11: ='1.1 Overzicht'!$I$30 -> 5 | AB11: ='1.1 Overzicht'!$I$30 -> 5 | AC11: ='1.1 Overzicht'!$I$30 -> 5 | AD11: ='1.1 Overzicht'!$I$30 -> 5 | AE11: ='1.1 Overzicht'!$I$30 -> 5 | AF11: ='1.1 Overzicht'!$I$30 -> 5 | AG11: ='1.1 Overzicht'!$I$30 -> 5
B12: Elektriciteitsprijs | C12: ='1.1 Overzicht'!$I$31 -> 68 | D12: ='1.1 Overzicht'!$I$31 -> 68 | E12: ='1.1 Overzicht'!$I$31 -> 68 | F12: ='1.1 Overzicht'!$I$31 -> 68 | G12: ='1.1 Overzicht'!$I$31 -> 68 | H12: ='1.1 Overzicht'!$I$31 -> 68 | I12: ='1.1 Overzicht'!$I$31 -> 68 | J12: ='1.1 Overzicht'!$I$31 -> 68 | K12: ='1.1 Overzicht'!D31 -> 32 | L12: ='1.1 Overzicht'!$I$31 -> 68 | M12: ='1.1 Overzicht'!$I$31 -> 68 | N12: ='1.1 Overzicht'!$I$31 -> 68 | O12: ='1.1 Overzicht'!$I$31 -> 68 | P12: ='1.1 Overzicht'!$I$31 -> 68 | Q12: ='1.1 Overzicht'!$I$31 -> 68 | R12: ='1.1 Overzicht'!$I$31 -> 68 | S12: ='1.1 Overzicht'!$I$31 -> 68 | T12: ='1.1 Overzicht'!$I$31 -> 68 | U12: ='1.1 Overzicht'!$I$31 -> 68 | V12: ='1.1 Overzicht'!$I$31 -> 68 | W12: ='1.1 Overzicht'!$I$31 -> 68 | X12: ='1.1 Overzicht'!$I$31 -> 68 | Y12: ='1.1 Overzicht'!$I$31 -> 68 | Z12: ='1.1 Overzicht'!$I$31 -> 68 | AA12: ='1.1 Overzicht'!$I$31 -> 68 | AB12: ='1.1 Overzicht'!$I$31 -> 68 | AC12: ='1.1 Overzicht'!$I$31 -> 68 | AD12: ='1.1 Overzicht'!$I$31 -> 68 | AE12: ='1.1 Overzicht'!$I$31 -> 68 | AF12: ='1.1 Overzicht'!$I$31 -> 68 | AG12: ='1.1 Overzicht'!E31 -> 170
B13: Vermogensaandeel piekvoorziening | C13: ='1.1 Overzicht'!$I$32 -> 0.5 | D13: ='1.1 Overzicht'!$I$32 -> 0.5 | E13: ='1.1 Overzicht'!$I$32 -> 0.5 | F13: ='1.1 Overzicht'!$I$32 -> 0.5 | G13: ='1.1 Overzicht'!$I$32 -> 0.5 | H13: ='1.1 Overzicht'!$I$32 -> 0.5 | I13: ='1.1 Overzicht'!$I$32 -> 0.5 | J13: ='1.1 Overzicht'!$I$32 -> 0.5 | K13: ='1.1 Overzicht'!$I$32 -> 0.5 | L13: ='1.1 Overzicht'!C32 -> 0.7 | M13: ='1.1 Overzicht'!E32 -> 0.3 | N13: ='1.1 Overzicht'!$I$32 -> 0.5 | O13: ='1.1 Overzicht'!$I$32 -> 0.5 | P13: ='1.1 Overzicht'!$I$32 -> 0.5 | Q13: ='1.1 Overzicht'!$I$32 -> 0.5 | R13: ='1.1 Overzicht'!$I$32 -> 0.5 | S13: ='1.1 Overzicht'!$I$32 -> 0.5 | T13: ='1.1 Overzicht'!$I$32 -> 0.5 | U13: ='1.1 Overzicht'!$I$32 -> 0.5 | V13: ='1.1 Overzicht'!$I$32 -> 0.5 | W13: ='1.1 Overzicht'!$I$32 -> 0.5 | X13: ='1.1 Overzicht'!$I$32 -> 0.5 | Y13: ='1.1 Overzicht'!$I$32 -> 0.5 | Z13: ='1.1 Overzicht'!$I$32 -> 0.5 | AA13: ='1.1 Overzicht'!$I$32 -> 0.5 | AB13: ='1.1 Overzicht'!$I$32 -> 0.5 | AC13: ='1.1 Overzicht'!$I$32 -> 0.5 | AD13: ='1.1 Overzicht'!$I$32 -> 0.5 | AE13: ='1.1 Overzicht'!$I$32 -> 0.5 | AF13: 0 | AG13: ='1.1 Overzicht'!$I$32 -> 0.5
B14: Impact WKO | C14: ='1.1 Overzicht'!$I$33 -> met WKO | D14: ='1.1 Overzicht'!$I$33 -> met WKO | E14: ='1.1 Overzicht'!$I$33 -> met WKO | F14: ='1.1 Overzicht'!$I$33 -> met WKO | G14: ='1.1 Overzicht'!$I$33 -> met WKO | H14: ='1.1 Overzicht'!$I$33 -> met WKO | I14: ='1.1 Overzicht'!$I$33 -> met WKO | J14: ='1.1 Overzicht'!$I$33 -> met WKO | K14: ='1.1 Overzicht'!$I$33 -> met WKO | L14: ='1.1 Overzicht'!$I$33 -> met WKO | M14: ='1.1 Overzicht'!$I$33 -> met WKO | N14: zonder WKO | O14: ='1.1 Overzicht'!$I$33 -> met WKO | P14: ='1.1 Overzicht'!$I$33 -> met WKO | Q14: ='1.1 Overzicht'!$I$33 -> met WKO | R14: ='1.1 Overzicht'!$I$33 -> met WKO | S14: ='1.1 Overzicht'!$I$33 -> met WKO | T14: ='1.1 Overzicht'!$I$33 -> met WKO | U14: ='1.1 Overzicht'!$I$33 -> met WKO | V14: ='1.1 Overzicht'!$I$33 -> met WKO | W14: ='1.1 Overzicht'!$I$33 -> met WKO | X14: ='1.1 Overzicht'!$I$33 -> met WKO | Y14: ='1.1 Overzicht'!$I$33 -> met WKO | Z14: ='1.1 Overzicht'!$I$33 -> met WKO | AA14: ='1.1 Overzicht'!$I$33 -> met WKO | AB14: ='1.1 Overzicht'!$I$33 -> met WKO | AC14: ='1.1 Overzicht'!$I$33 -> met WKO | AD14: zonder WKO | AE14: ='1.1 Overzicht'!$I$33 -> met WKO | AF14: ='1.1 Overzicht'!$I$33 -> met WKO | AG14: ='1.1 Overzicht'!$I$33 -> met WKO
B15: WKO opslagcapaciteit per brondoublet | C15: ='1.1 Overzicht'!$I$34 -> 90 | D15: ='1.1 Overzicht'!$I$34 -> 90 | E15: ='1.1 Overzicht'!$I$34 -> 90 | F15: ='1.1 Overzicht'!$I$34 -> 90 | G15: ='1.1 Overzicht'!$I$34 -> 90 | H15: ='1.1 Overzicht'!$I$34 -> 90 | I15: ='1.1 Overzicht'!$I$34 -> 90 | J15: ='1.1 Overzicht'!$I$34 -> 90 | K15: ='1.1 Overzicht'!$I$34 -> 90 | L15: ='1.1 Overzicht'!$I$34 -> 90 | M15: ='1.1 Overzicht'!$I$34 -> 90 | N15: ='1.1 Overzicht'!$I$34 -> 90 | O15: ='1.1 Overzicht'!C34 -> 250 | P15: ='1.1 Overzicht'!E34 -> 50 | Q15: ='1.1 Overzicht'!$I$34 -> 90 | R15: ='1.1 Overzicht'!$I$34 -> 90 | S15: ='1.1 Overzicht'!$I$34 -> 90 | T15: ='1.1 Overzicht'!$I$34 -> 90 | U15: ='1.1 Overzicht'!$I$34 -> 90 | V15: ='1.1 Overzicht'!$I$34 -> 90 | W15: ='1.1 Overzicht'!$I$34 -> 90 | X15: ='1.1 Overzicht'!$I$34 -> 90 | Y15: ='1.1 Overzicht'!$I$34 -> 90 | Z15: ='1.1 Overzicht'!$I$34 -> 90 | AA15: ='1.1 Overzicht'!$I$34 -> 90 | AB15: ='1.1 Overzicht'!$I$34 -> 90 | AC15: ='1.1 Overzicht'!$I$34 -> 90 | AD15: ='1.1 Overzicht'!$I$34 -> 90 | AE15: ='1.1 Overzicht'!$I$34 -> 90 | AF15: ='1.1 Overzicht'!$I$34 -> 90 | AG15: ='1.1 Overzicht'!$I$34 -> 90
B16: Diepte WKO bronnen | C16: ='1.1 Overzicht'!$I$35 -> 150 | D16: ='1.1 Overzicht'!$I$35 -> 150 | E16: ='1.1 Overzicht'!$I$35 -> 150 | F16: ='1.1 Overzicht'!$I$35 -> 150 | G16: ='1.1 Overzicht'!$I$35 -> 150 | H16: ='1.1 Overzicht'!$I$35 -> 150 | I16: ='1.1 Overzicht'!$I$35 -> 150 | J16: ='1.1 Overzicht'!$I$35 -> 150 | K16: ='1.1 Overzicht'!$I$35 -> 150 | L16: ='1.1 Overzicht'!$I$35 -> 150 | M16: ='1.1 Overzicht'!$I$35 -> 150 | N16: ='1.1 Overzicht'!$I$35 -> 150 | O16: ='1.1 Overzicht'!$I$35 -> 150 | P16: ='1.1 Overzicht'!$I$35 -> 150 | Q16: ='1.1 Overzicht'!C35 -> 230 | R16: ='1.1 Overzicht'!E35 -> 80 | S16: ='1.1 Overzicht'!$I$35 -> 150 | T16: ='1.1 Overzicht'!$I$35 -> 150 | U16: ='1.1 Overzicht'!$I$35 -> 150 | V16: ='1.1 Overzicht'!$I$35 -> 150 | W16: ='1.1 Overzicht'!$I$35 -> 150 | X16: ='1.1 Overzicht'!$I$35 -> 150 | Y16: ='1.1 Overzicht'!$I$35 -> 150 | Z16: ='1.1 Overzicht'!$I$35 -> 150 | AA16: ='1.1 Overzicht'!$I$35 -> 150 | AB16: ='1.1 Overzicht'!$I$35 -> 150 | AC16: ='1.1 Overzicht'!$I$35 -> 150 | AD16: ='1.1 Overzicht'!$I$35 -> 150 | AE16: ='1.1 Overzicht'!$I$35 -> 150 | AF16: ='1.1 Overzicht'!$I$35 -> 150 | AG16: ='1.1 Overzicht'!$I$35 -> 150
B17: Leidingwerk tussen aquathermie en TR | C17: ='1.1 Overzicht'!$I$36 -> 500 | D17: ='1.1 Overzicht'!$I$36 -> 500 | E17: ='1.1 Overzicht'!$I$36 -> 500 | F17: ='1.1 Overzicht'!$I$36 -> 500 | G17: ='1.1 Overzicht'!$I$36 -> 500 | H17: ='1.1 Overzicht'!$I$36 -> 500 | I17: ='1.1 Overzicht'!$I$36 -> 500 | J17: ='1.1 Overzicht'!$I$36 -> 500 | K17: ='1.1 Overzicht'!$I$36 -> 500 | L17: ='1.1 Overzicht'!$I$36 -> 500 | M17: ='1.1 Overzicht'!$I$36 -> 500 | N17: ='1.1 Overzicht'!$I$36 -> 500 | O17: ='1.1 Overzicht'!$I$36 -> 500 | P17: ='1.1 Overzicht'!$I$36 -> 500 | Q17: ='1.1 Overzicht'!$I$36 -> 500 | R17: ='1.1 Overzicht'!$I$36 -> 500 | S17: ='1.1 Overzicht'!D36 -> 2000 | T17: ='1.1 Overzicht'!E36 -> 500 m + gestuurde boring | U17: ='1.1 Overzicht'!$I$36 -> 500 | V17: ='1.1 Overzicht'!$I$36 -> 500 | W17: ='1.1 Overzicht'!$I$36 -> 500 | X17: ='1.1 Overzicht'!$I$36 -> 500 | Y17: ='1.1 Overzicht'!$I$36 -> 500 | Z17: ='1.1 Overzicht'!$I$36 -> 500 | AA17: ='1.1 Overzicht'!$I$36 -> 500 | AB17: ='1.1 Overzicht'!$I$36 -> 500 | AC17: ='1.1 Overzicht'!$I$36 -> 500 | AD17: ='1.1 Overzicht'!$I$36 -> 500 | AE17: ='1.1 Overzicht'!$I$36 -> 500 | AF17: ='1.1 Overzicht'!$I$36 -> 500 | AG17: ='1.1 Overzicht'!$I$36 -> 500
B18: Leidingwerk tussen bronnen en TR | C18: ='1.1 Overzicht'!$I$37 -> 500 | D18: ='1.1 Overzicht'!$I$37 -> 500 | E18: ='1.1 Overzicht'!$I$37 -> 500 | F18: ='1.1 Overzicht'!$I$37 -> 500 | G18: ='1.1 Overzicht'!$I$37 -> 500 | H18: ='1.1 Overzicht'!$I$37 -> 500 | I18: ='1.1 Overzicht'!$I$37 -> 500 | J18: ='1.1 Overzicht'!$I$37 -> 500 | K18: ='1.1 Overzicht'!$I$37 -> 500 | L18: ='1.1 Overzicht'!$I$37 -> 500 | M18: ='1.1 Overzicht'!$I$37 -> 500 | N18: ='1.1 Overzicht'!$I$37 -> 500 | O18: ='1.1 Overzicht'!$I$37 -> 500 | P18: ='1.1 Overzicht'!$I$37 -> 500 | Q18: ='1.1 Overzicht'!$I$37 -> 500 | R18: ='1.1 Overzicht'!$I$37 -> 500 | S18: ='1.1 Overzicht'!$I$37 -> 500 | T18: ='1.1 Overzicht'!$I$37 -> 500 | U18: ='1.1 Overzicht'!D37 -> 2000 | V18: ='1.1 Overzicht'!E37 -> 500 m + gestuurde boring | W18: ='1.1 Overzicht'!$I$37 -> 500 | X18: ='1.1 Overzicht'!$I$37 -> 500 | Y18: ='1.1 Overzicht'!$I$37 -> 500 | Z18: ='1.1 Overzicht'!$I$37 -> 500 | AA18: ='1.1 Overzicht'!$I$37 -> 500 | AB18: ='1.1 Overzicht'!$I$37 -> 500 | AC18: ='1.1 Overzicht'!$I$37 -> 500 | AD18: ='1.1 Overzicht'!$I$37 -> 500 | AE18: ='1.1 Overzicht'!$I$37 -> 500 | AF18: ='1.1 Overzicht'!$I$37 -> 500 | AG18: ='1.1 Overzicht'!$I$37 -> 500
B19: Situatie onttrekking | C19: ='1.1 Overzicht'!$I$38 -> stedelijk | D19: ='1.1 Overzicht'!$I$38 -> stedelijk | E19: ='1.1 Overzicht'!$I$38 -> stedelijk | F19: ='1.1 Overzicht'!$I$38 -> stedelijk | G19: ='1.1 Overzicht'!$I$38 -> stedelijk | H19: ='1.1 Overzicht'!$I$38 -> stedelijk | I19: ='1.1 Overzicht'!$I$38 -> stedelijk | J19: ='1.1 Overzicht'!$I$38 -> stedelijk | K19: ='1.1 Overzicht'!$I$38 -> stedelijk | L19: ='1.1 Overzicht'!$I$38 -> stedelijk | M19: ='1.1 Overzicht'!$I$38 -> stedelijk | N19: =$C$19 -> stedelijk | O19: ='1.1 Overzicht'!$I$38 -> stedelijk | P19: ='1.1 Overzicht'!$I$38 -> stedelijk | Q19: ='1.1 Overzicht'!$I$38 -> stedelijk | R19: ='1.1 Overzicht'!$I$38 -> stedelijk | S19: ='1.1 Overzicht'!$I$38 -> stedelijk | T19: ='1.1 Overzicht'!$I$38 -> stedelijk | U19: ='1.1 Overzicht'!$I$38 -> stedelijk | V19: ='1.1 Overzicht'!$I$38 -> stedelijk | W19: ='1.1 Overzicht'!$D$38 -> landelijk | X19: =$C$19 -> stedelijk | Y19: =$C$19 -> stedelijk | Z19: stedelijk | AA19: stedelijk | AB19: stedelijk | AC19: stedelijk | AD19: stedelijk | AE19: stedelijk | AF19: stedelijk | AG19: ='1.1 Overzicht'!$I$38 -> stedelijk
B20: Energiekosten (inflatie) | C20: ='1.1 Overzicht'!$I$39 -> 0.03 | D20: ='1.1 Overzicht'!$I$39 -> 0.03 | E20: ='1.1 Overzicht'!$I$39 -> 0.03 | F20: ='1.1 Overzicht'!$I$39 -> 0.03 | G20: ='1.1 Overzicht'!$I$39 -> 0.03 | H20: ='1.1 Overzicht'!$I$39 -> 0.03 | I20: ='1.1 Overzicht'!$I$39 -> 0.03 | J20: ='1.1 Overzicht'!$I$39 -> 0.03 | K20: ='1.1 Overzicht'!$I$39 -> 0.03 | L20: ='1.1 Overzicht'!$I$39 -> 0.03 | M20: ='1.1 Overzicht'!$I$39 -> 0.03 | N20: ='1.1 Overzicht'!$I$39 -> 0.03 | O20: ='1.1 Overzicht'!$I$39 -> 0.03 | P20: ='1.1 Overzicht'!$I$39 -> 0.03 | Q20: ='1.1 Overzicht'!$I$39 -> 0.03 | R20: ='1.1 Overzicht'!$I$39 -> 0.03 | S20: ='1.1 Overzicht'!$I$39 -> 0.03 | T20: ='1.1 Overzicht'!$I$39 -> 0.03 | U20: ='1.1 Overzicht'!$I$39 -> 0.03 | V20: ='1.1 Overzicht'!$I$39 -> 0.03 | W20: ='1.1 Overzicht'!$I$39 -> 0.03 | X20: ='1.1 Overzicht'!E39 -> 0.04 | Y20: ='1.1 Overzicht'!C39 -> 0.02 | Z20: ='1.1 Overzicht'!$I$39 -> 0.03 | AA20: ='1.1 Overzicht'!$I$39 -> 0.03 | AB20: ='1.1 Overzicht'!$I$39 -> 0.03 | AC20: ='1.1 Overzicht'!$I$39 -> 0.03 | AD20: ='1.1 Overzicht'!$I$39 -> 0.03 | AE20: ='1.1 Overzicht'!$I$39 -> 0.03 | AF20: ='1.1 Overzicht'!$I$39 -> 0.03 | AG20: ='1.1 Overzicht'!$I$39 -> 0.03
B21: Rendementseis | C21: ='1.1 Overzicht'!$I$40 -> 0.06 | D21: ='1.1 Overzicht'!$I$40 -> 0.06 | E21: ='1.1 Overzicht'!$I$40 -> 0.06 | F21: ='1.1 Overzicht'!$I$40 -> 0.06 | G21: ='1.1 Overzicht'!$I$40 -> 0.06 | H21: ='1.1 Overzicht'!$I$40 -> 0.06 | I21: ='1.1 Overzicht'!$I$40 -> 0.06 | J21: ='1.1 Overzicht'!$I$40 -> 0.06 | K21: ='1.1 Overzicht'!$I$40 -> 0.06 | L21: ='1.1 Overzicht'!$I$40 -> 0.06 | M21: ='1.1 Overzicht'!$I$40 -> 0.06 | N21: ='1.1 Overzicht'!$I$40 -> 0.06 | O21: ='1.1 Overzicht'!$I$40 -> 0.06 | P21: ='1.1 Overzicht'!$I$40 -> 0.06 | Q21: ='1.1 Overzicht'!$I$40 -> 0.06 | R21: ='1.1 Overzicht'!$I$40 -> 0.06 | S21: ='1.1 Overzicht'!$I$40 -> 0.06 | T21: ='1.1 Overzicht'!$I$40 -> 0.06 | U21: ='1.1 Overzicht'!$I$40 -> 0.06 | V21: ='1.1 Overzicht'!$I$40 -> 0.06 | W21: ='1.1 Overzicht'!$I$40 -> 0.06 | X21: ='1.1 Overzicht'!$I$40 -> 0.06 | Y21: ='1.1 Overzicht'!$I$40 -> 0.06 | Z21: ='1.1 Overzicht'!C40 -> 0.08 | AA21: ='1.1 Overzicht'!E40 -> 0.04 | AB21: ='1.1 Overzicht'!$I$40 -> 0.06 | AC21: ='1.1 Overzicht'!$I$40 -> 0.06 | AD21: ='1.1 Overzicht'!$I$40 -> 0.06 | AE21: ='1.1 Overzicht'!$I$40 -> 0.06 | AF21: ='1.1 Overzicht'!$I$40 -> 0.06 | AG21: ='1.1 Overzicht'!$I$40 -> 0.06
B22: Toepassing SDE++ subsidie | C22: ='1.1 Overzicht'!$I$41 -> nee | D22: ='1.1 Overzicht'!$I$41 -> nee | E22: ='1.1 Overzicht'!$I$41 -> nee | F22: ='1.1 Overzicht'!$I$41 -> nee | G22: ='1.1 Overzicht'!$I$41 -> nee | H22: ='1.1 Overzicht'!$I$41 -> nee | I22: ='1.1 Overzicht'!$I$41 -> nee | J22: ='1.1 Overzicht'!$I$41 -> nee | K22: ='1.1 Overzicht'!$I$41 -> nee | L22: ='1.1 Overzicht'!$I$41 -> nee | M22: ='1.1 Overzicht'!$I$41 -> nee | N22: ='1.1 Overzicht'!$I$41 -> nee | O22: ='1.1 Overzicht'!$I$41 -> nee | P22: ='1.1 Overzicht'!$I$41 -> nee | Q22: ='1.1 Overzicht'!$I$41 -> nee | R22: ='1.1 Overzicht'!$I$41 -> nee | S22: ='1.1 Overzicht'!$I$41 -> nee | T22: ='1.1 Overzicht'!$I$41 -> nee | U22: ='1.1 Overzicht'!$I$41 -> nee | V22: ='1.1 Overzicht'!$I$41 -> nee | W22: ='1.1 Overzicht'!$I$41 -> nee | X22: ='1.1 Overzicht'!$I$41 -> nee | Y22: ='1.1 Overzicht'!$I$41 -> nee | Z22: ='1.1 Overzicht'!$I$41 -> nee | AA22: ='1.1 Overzicht'!$I$41 -> nee | AB22: ='1.1 Overzicht'!C41 -> ja | AC22: ='1.1 Overzicht'!$I$41 -> nee | AD22: ='1.1 Overzicht'!$I$41 -> nee | AE22: ='1.1 Overzicht'!$I$41 -> nee | AF22: Nee | AG22: ='1.1 Overzicht'!$I$41 -> nee
B23: Variant met TEA/TEO | C23: TEO | D23: TEO | E23: TEO | F23: TEO | G23: TEO | H23: TEO | I23: TEO | J23: TEO | K23: TEO | L23: TEO | M23: TEO | N23: TEO | O23: TEO | P23: TEO | Q23: TEO | R23: TEO | S23: TEO | T23: TEO | U23: TEO | V23: TEO | W23: TEO | X23: TEO | Y23: TEO | Z23: TEO | AA23: TEO | AB23: TEO | AC23: TEA | AD23: TEA | AE23: TEO | AF23: TEO | AG23: TEO
B24: Aanvoertemperatuur warmtenet | C24: 70 | D24: 70 | E24: 70 | F24: 70 | G24: 70 | H24: 70 | I24: 70 | J24: 70 | K24: 70 | L24: 70 | M24: 70 | N24: 70 | O24: 70 | P24: 70 | Q24: 70 | R24: 70 | S24: 70 | T24: 70 | U24: 70 | V24: 70 | W24: 70 | X24: 70 | Y24: 70 | Z24: 70 | AA24: 70 | AB24: 70 | AC24: 70 | AD24: 70 | AE24: ='1.1 Overzicht'!D43 -> 40 | AF24: ='1.1 Overzicht'!E43 -> ZLT | AG24: 70

Sheet 1.3 Energievraag - JBDK
B2: Project : | C2: WarmingUp
B3: Onderwerp : | C3: Gedetailleerde kostenberekening
B4: Fase : | C4: 1.3a Energievraag - JBDK
B6: Input JBDK | C6: Basis berekening | D6: 2 | E6: 3 | F6: 4 | G6: 5 | H6: 6 | I6: 7 | J6: 8 | K6: 9 | L6: 10 | M6: 11 | N6: 12 | O6: 13 | P6: 14 | Q6: 15 | R6: 16 | S6: 17 | T6: 18 | U6: 19 | V6: 20 | W6: 21 | X6: 22 | Y6: 23 | Z6: 24 | AA6: 25 | AB6: 26 | AC6: 27 | AD6: 28 | AE6: 29 | AF6: 30 | AG6: 31 | AH6: Referentie | AI6: Opmerkingen
B8: Vermogen - totaal | C8: ='1.2 Varianten'!C8 -> 5 | D8: ='1.2 Varianten'!D8 -> 20 | E8: ='1.2 Varianten'!E8 -> 1 | F8: ='1.2 Varianten'!F8 -> 5 | G8: ='1.2 Varianten'!G8 -> 5 | H8: ='1.2 Varianten'!H8 -> 5 | I8: ='1.2 Varianten'!I8 -> 5 | J8: ='1.2 Varianten'!J8 -> 5 | K8: ='1.2 Varianten'!K8 -> 5 | L8: ='1.2 Varianten'!L8 -> 5 | M8: ='1.2 Varianten'!M8 -> 5 | N8: ='1.2 Varianten'!N8 -> 5 | O8: ='1.2 Varianten'!O8 -> 5 | P8: ='1.2 Varianten'!P8 -> 5 | Q8: ='1.2 Varianten'!Q8 -> 5 | R8: ='1.2 Varianten'!R8 -> 5 | S8: ='1.2 Varianten'!S8 -> 5 | T8: ='1.2 Varianten'!T8 -> 5 | U8: ='1.2 Varianten'!U8 -> 5 | V8: ='1.2 Varianten'!V8 -> 5 | W8: ='1.2 Varianten'!W8 -> 5 | X8: ='1.2 Varianten'!X8 -> 5 | Y8: ='1.2 Varianten'!Y8 -> 5 | Z8: ='1.2 Varianten'!Z8 -> 5 | AA8: ='1.2 Varianten'!AA8 -> 5 | AB8: ='1.2 Varianten'!AB8 -> 5 | AC8: ='1.2 Varianten'!AC8 -> 5 | AD8: ='1.2 Varianten'!AD8 -> 5 | AE8: ='1.2 Varianten'!AE8 -> 5 | AF8: ='1.2 Varianten'!AF8 -> 5 | AG8: ='1.2 Varianten'!AG8 -> 5
B9: Vermogen - duurzaam systeem | C9: =C8*C10 -> 2.5 | D9: =D8*D10 -> 10 | E9: 0.5 | F9: 2.5 | G9: 2.5 | H9: 2.5 | I9: 2.5 | J9: 2.5 | K9: 2.5 | L9: =L8*L10 -> 1.5 | M9: 3.5 | N9: =N8*N10 -> 2.5 | O9: 2.5 | P9: 2.5 | Q9: 2.5 | R9: 2.5 | S9: 2.5 | T9: 2.5 | U9: 2.5 | V9: 2.5 | W9: 2.5 | X9: 2.5 | Y9: 2.5 | Z9: 2.5 | AA9: 2.5 | AB9: 2.5 | AC9: 2.5 | AD9: =AD8*AD10 -> 2.5 | AE9: 2.5 | AF9: =AF8*AF10 -> 5 | AG9: =AG8*AG10 -> 2.5
B10: Vermogensaandeel duurzaam systeem | C10: =1-C12 -> 0.5 | D10: =1-D12 -> 0.5 | E10: 0.5 | F10: 0.5 | G10: 0.5 | H10: 0.5 | I10: 0.5 | J10: 0.5 | K10: 0.5 | L10: 0.3 | M10: 0.7 | N10: =1-N12 -> 0.5 | O10: 0.5 | P10: 0.5 | Q10: 0.5 | R10: 0.5 | S10: 0.5 | T10: 0.5 | U10: 0.5 | V10: 0.5 | W10: 0.5 | X10: 0.5 | Y10: 0.5 | Z10: 0.5 | AA10: 0.5 | AB10: 0.5 | AC10: 0.5 | AD10: =1-AD12 -> 0.5 | AE10: 0.5 | AF10: =1-AF12 -> 1 | AG10: =1-AG12 -> 0.5 | AH10: Kengetallen Techniplan / IF Technology
B11: Vermogen - piekvoorziening | C11: =C8*C12 -> 2.5 | D11: =D8*D12 -> 10 | E11: 0.5 | F11: 2.5 | G11: 2.5 | H11: 2.5 | I11: 2.5 | J11: 2.5 | K11: 2.5 | L11: 3.5 | M11: 1.5 | N11: =N8*N12 -> 2.5 | O11: 2.5 | P11: 2.5 | Q11: 2.5 | R11: 2.5 | S11: 2.5 | T11: 2.5 | U11: 2.5 | V11: 2.5 | W11: 2.5 | X11: 2.5 | Y11: 2.5 | Z11: 2.5 | AA11: 2.5 | AB11: 2.5 | AC11: 2.5 | AD11: =AD8*AD12 -> 2.5 | AE11: 2.5 | AF11: =AF8*AF12 -> 0 | AG11: =AG8*AG12 -> 2.5
B12: ='1.2 Varianten'!B13 -> Vermogensaandeel piekvoorziening | C12: ='1.2 Varianten'!C13 -> 0.5 | D12: ='1.2 Varianten'!D13 -> 0.5 | E12: ='1.2 Varianten'!E13 -> 0.5 | F12: ='1.2 Varianten'!F13 -> 0.5 | G12: ='1.2 Varianten'!G13 -> 0.5 | H12: ='1.2 Varianten'!H13 -> 0.5 | I12: ='1.2 Varianten'!I13 -> 0.5 | J12: ='1.2 Varianten'!J13 -> 0.5 | K12: ='1.2 Varianten'!K13 -> 0.5 | L12: ='1.2 Varianten'!L13 -> 0.7 | M12: ='1.2 Varianten'!M13 -> 0.3 | N12: ='1.2 Varianten'!N13 -> 0.5 | O12: ='1.2 Varianten'!O13 -> 0.5 | P12: ='1.2 Varianten'!P13 -> 0.5 | Q12: ='1.2 Varianten'!Q13 -> 0.5 | R12: ='1.2 Varianten'!R13 -> 0.5 | S12: ='1.2 Varianten'!S13 -> 0.5 | T12: ='1.2 Varianten'!T13 -> 0.5 | U12: ='1.2 Varianten'!U13 -> 0.5 | V12: ='1.2 Varianten'!V13 -> 0.5 | W12: ='1.2 Varianten'!W13 -> 0.5 | X12: ='1.2 Varianten'!X13 -> 0.5 | Y12: ='1.2 Varianten'!Y13 -> 0.5 | Z12: ='1.2 Varianten'!Z13 -> 0.5 | AA12: ='1.2 Varianten'!AA13 -> 0.5 | AB12: ='1.2 Varianten'!AB13 -> 0.5 | AC12: ='1.2 Varianten'!AC13 -> 0.5 | AD12: ='1.2 Varianten'!AD13 -> 0.5 | AE12: ='1.2 Varianten'!AE13 -> 0.5 | AF12: ='1.2 Varianten'!AF13 -> 0 | AG12: ='1.2 Varianten'!AG13 -> 0.5
B14: Warmtevraag - totaal | C14: 63 | D14: 252 | E14: 12.6 | F14: 108 | G14: 36 | H14: 63 | I14: 63 | J14: 63 | K14: 63 | L14: 63 | M14: 63 | N14: 63 | O14: 63 | P14: 63 | Q14: 63 | R14: 63 | S14: 63 | T14: 63 | U14: 63 | V14: 63 | W14: 63 | X14: 63 | Y14: 63 | Z14: 63 | AA14: 63 | AB14: 63 | AC14: 63 | AD14: 63 | AE14: 63 | AF14: 63 | AG14: 63 | AH14: JBDK Techniplan / IF Technology
B15: Warmtevraag - duurzaam systeem | C15: 59.3712 | D15: 237.4848 | E15: 11.87424 | F15: 104.76 | G15: 32.4 | H15: 59.3712 | I15: 59.3712 | J15: 59.3712 | K15: 59.3712 | L15: 44.1 | M15: 61.11 | N15: 59.3712 | O15: 59.3712 | P15: 59.3712 | Q15: 59.3712 | R15: 59.3712 | S15: 59.3712 | T15: 59.3712 | U15: 59.3712 | V15: 59.3712 | W15: 59.3712 | X15: 59.3712 | Y15: 59.3712 | Z15: 59.3712 | AA15: 59.3712 | AB15: 59.3712 | AC15: 59.3712 | AD15: 59.3712 | AE15: 59.3712 | AF15: 63 | AG15: 59.3712
B16: Aandeel duurzaam systeem | C16: 0.9424 | D16: 0.9424 | E16: 0.9424 | F16: 0.97 | G16: 0.9 | H16: 0.9424 | I16: 0.9424 | J16: 0.9424 | K16: 0.9424 | L16: 0.7 | M16: 0.97 | N16: 0.9424 | O16: 0.9424 | P16: 0.9424 | Q16: 0.9424 | R16: 0.9424 | S16: 0.9424 | T16: 0.9424 | U16: 0.9424 | V16: 0.9424 | W16: 0.9424 | X16: 0.9424 | Y16: 0.9424 | Z16: 0.9424 | AA16: 0.9424 | AB16: 0.9424 | AC16: 0.9424 | AD16: 0.9424 | AE16: 0.9424 | AF16: 1 | AG16: 0.9424 | AH16: Kengetallen Techniplan / IF Technology
B17: Aandeel aquathermie direct naar warmtenet | C17: 0.0854 | D17: 0.0854 | E17: 0.0854 | F17: 0.0854 | G17: 0.0854 | H17: 0.0854 | I17: 0.0854 | J17: 0.0854 | K17: 0.0854 | L17: 0.0854 | M17: 0.0854 | N17: 0.9424 | O17: 0.0854 | P17: 0.0854 | Q17: 0.0854 | R17: 0.0854 | S17: 0.0854 | T17: 0.0854 | U17: 0.0854 | V17: 0.0854 | W17: 0.0854 | X17: 0.0854 | Y17: 0.0854 | Z17: 0.0854 | AA17: 0.0854 | AB17: 0.0854 | AC17: 0.0854 | AD17: 0.9424 | AE17: 0.0854 | AF17: 0.0854 | AG17: 0.0854 | AH17: Kengetallen Techniplan / IF Technology
B18: Aandeel WKO warmtelevering | C18: 0.857 | D18: 0.857 | E18: 0.857 | F18: 0.8846 | G18: 0.8146 | H18: 0.857 | I18: 0.857 | J18: 0.857 | K18: 0.857 | L18: 0.6146 | M18: 0.857 | N18: 0 | O18: 0.857 | P18: 0.857 | Q18: 0.857 | R18: 0.857 | S18: 0.857 | T18: 0.857 | U18: 0.857 | V18: 0.857 | W18: 0.857 | X18: 0.857 | Y18: 0.857 | Z18: 0.857 | AA18: 0.857 | AB18: 0.857 | AC18: 0.857 | AD18: 0 | AE18: 0.857 | AF18: 0.9146 | AG18: 0.857 | AH18: Kengetallen Techniplan / IF Technology
B19: Warmtevraag - piekvoorziening | C19: =C14-C15 -> 3.6288 | D19: =D14-D15 -> 14.5152 | E19: 0.72576 | F19: =F14-F15 -> 3.24 | G19: 3.6 | H19: 3.6288 | I19: =I14-I15 -> 3.6288 | J19: 3.6288 | K19: 3.6288 | L19: 18.9 | M19: 1.89 | N19: 3.6288 | O19: 3.6288 | P19: 3.6288 | Q19: 3.6288 | R19: 3.6288 | S19: 3.6288 | T19: 3.6288 | U19: 3.6288 | V19: 3.6288 | W19: 3.6288 | X19: 3.6288 | Y19: 3.6288 | Z19: 3.6288 | AA19: 3.6288 | AB19: 3.6288 | AC19: 3.6288 | AD19: 3.6288 | AE19: 3.6288 | AF19: 0 | AG19: =AG14-AG15 -> 3.6288
B21: Vollasturen warmtenet | C21: ='1.2 Varianten'!C9 -> 3500 | D21: ='1.2 Varianten'!D9 -> 3500 | E21: ='1.2 Varianten'!E9 -> 3500 | F21: ='1.2 Varianten'!F9 -> 6000 | G21: ='1.2 Varianten'!G9 -> 2000 | H21: ='1.2 Varianten'!H9 -> 3500 | I21: ='1.2 Varianten'!I9 -> 3500 | J21: ='1.2 Varianten'!J9 -> 3500 | K21: ='1.2 Varianten'!K9 -> 3500 | L21: ='1.2 Varianten'!L9 -> 3500 | M21: ='1.2 Varianten'!M9 -> 3500 | N21: ='1.2 Varianten'!N9 -> 3500 | O21: ='1.2 Varianten'!O9 -> 3500 | P21: ='1.2 Varianten'!P9 -> 3500 | Q21: ='1.2 Varianten'!Q9 -> 3500 | R21: ='1.2 Varianten'!R9 -> 3500 | S21: ='1.2 Varianten'!S9 -> 3500 | T21: ='1.2 Varianten'!T9 -> 3500 | U21: ='1.2 Varianten'!U9 -> 3500 | V21: ='1.2 Varianten'!V9 -> 3500 | W21: ='1.2 Varianten'!W9 -> 3500 | X21: ='1.2 Varianten'!X9 -> 3500 | Y21: ='1.2 Varianten'!Y9 -> 3500 | Z21: ='1.2 Varianten'!Z9 -> 3500 | AA21: ='1.2 Varianten'!AA9 -> 3500 | AB21: ='1.2 Varianten'!AB9 -> 3500 | AC21: ='1.2 Varianten'!AC9 -> 3500 | AD21: ='1.2 Varianten'!AD9 -> 3500 | AE21: ='1.2 Varianten'!AE9 -> 3500 | AF21: ='1.2 Varianten'!AF9 -> 3500 | AG21: ='1.2 Varianten'!AG9 -> 3500
B22: Vollasturen piekvoorziening | C22: =C19/C11/0.0036 -> 403.2 | D22: =D19/D11/0.0036 -> 403.2 | E22: 403.2 | F22: =F19/F11/0.0036 -> 360 | G22: =IFERROR(G19/G11/0.0036,0) -> 400 | H22: 403.2 | I22: 403.2 | J22: 403.2 | K22: 403.2 | L22: 1500 | M22: 350 | N22: =N19/N11/0.0036 -> 403.2 | O22: 403.2 | P22: 403.2 | Q22: 403.2 | R22: 403.2 | S22: 403.2 | T22: 403.2 | U22: 403.2 | V22: 403.2 | W22: 403.2 | X22: 403.2 | Y22: 403.2 | Z22: 403.2 | AA22: 403.2 | AB22: 403.2 | AC22: 403.2 | AD22: =AD19/AD11/0.0036 -> 403.2 | AE22: 403.2 | AF22: 0 | AG22: =AG19/AG11/0.0036 -> 403.2
B24: Vollasturen warmteafzet | C24: ='1.2 Varianten'!C10 -> 3000 | D24: ='1.2 Varianten'!D10 -> 3000 | E24: ='1.2 Varianten'!E10 -> 3000 | F24: ='1.2 Varianten'!F10 -> 3000 | G24: ='1.2 Varianten'!G10 -> 3000 | H24: ='1.2 Varianten'!H10 -> 2500 | I24: ='1.2 Varianten'!I10 -> 2000 | J24: ='1.2 Varianten'!J10 -> 3000 | K24: ='1.2 Varianten'!K10 -> 3000 | L24: ='1.2 Varianten'!L10 -> 3000 | M24: ='1.2 Varianten'!M10 -> 3000 | N24: ='1.2 Varianten'!N10 -> 3000 | O24: ='1.2 Varianten'!O10 -> 3000 | P24: ='1.2 Varianten'!P10 -> 3000 | Q24: ='1.2 Varianten'!Q10 -> 3000 | R24: ='1.2 Varianten'!R10 -> 3000 | S24: ='1.2 Varianten'!S10 -> 3000 | T24: ='1.2 Varianten'!T10 -> 3000 | U24: ='1.2 Varianten'!U10 -> 3000 | V24: ='1.2 Varianten'!V10 -> 3000 | W24: ='1.2 Varianten'!W10 -> 3000 | X24: ='1.2 Varianten'!X10 -> 3000 | Y24: ='1.2 Varianten'!Y10 -> 3000 | Z24: ='1.2 Varianten'!Z10 -> 3000 | AA24: ='1.2 Varianten'!AA10 -> 3000 | AB24: ='1.2 Varianten'!AB10 -> 3000 | AC24: ='1.2 Varianten'!AC10 -> 3000 | AD24: ='1.2 Varianten'!AD10 -> 3000 | AE24: ='1.2 Varianten'!AE10 -> 3000 | AF24: ='1.2 Varianten'!AF10 -> 3500 | AG24: ='1.2 Varianten'!AG10 -> 3000
B25: Temperatuurtraject aquathermie systeem (deltaT) | C25: ='1.2 Varianten'!C11 -> 5 | D25: ='1.2 Varianten'!D11 -> 5 | E25: ='1.2 Varianten'!E11 -> 5 | F25: ='1.2 Varianten'!F11 -> 5 | G25: ='1.2 Varianten'!G11 -> 5 | H25: ='1.2 Varianten'!H11 -> 5 | I25: ='1.2 Varianten'!I11 -> 5 | J25: ='1.2 Varianten'!J11 -> 10 | K25: ='1.2 Varianten'!K11 -> 5 | L25: ='1.2 Varianten'!L11 -> 5 | M25: ='1.2 Varianten'!M11 -> 5 | N25: ='1.2 Varianten'!N11 -> 5 | O25: ='1.2 Varianten'!O11 -> 5 | P25: ='1.2 Varianten'!P11 -> 5 | Q25: ='1.2 Varianten'!Q11 -> 5 | R25: ='1.2 Varianten'!R11 -> 5 | S25: ='1.2 Varianten'!S11 -> 5 | T25: ='1.2 Varianten'!T11 -> 5 | U25: ='1.2 Varianten'!U11 -> 5 | V25: ='1.2 Varianten'!V11 -> 5 | W25: ='1.2 Varianten'!W11 -> 5 | X25: ='1.2 Varianten'!X11 -> 5 | Y25: ='1.2 Varianten'!Y11 -> 5 | Z25: ='1.2 Varianten'!Z11 -> 5 | AA25: ='1.2 Varianten'!AA11 -> 5 | AB25: ='1.2 Varianten'!AB11 -> 5 | AC25: ='1.2 Varianten'!AC11 -> 5 | AD25: ='1.2 Varianten'!AD11 -> 5 | AE25: ='1.2 Varianten'!AE11 -> 5 | AF25: ='1.2 Varianten'!AF11 -> 5 | AG25: ='1.2 Varianten'!AG11 -> 5
B26: ='1.2 Varianten'!B12 -> Elektriciteitsprijs | C26: ='1.2 Varianten'!C12 -> 68 | D26: ='1.2 Varianten'!D12 -> 68 | E26: ='1.2 Varianten'!E12 -> 68 | F26: ='1.2 Varianten'!F12 -> 68 | G26: ='1.2 Varianten'!G12 -> 68 | H26: ='1.2 Varianten'!H12 -> 68 | I26: ='1.2 Varianten'!I12 -> 68 | J26: ='1.2 Varianten'!J12 -> 68 | K26: ='1.2 Varianten'!K12 -> 32 | L26: ='1.2 Varianten'!L12 -> 68 | M26: ='1.2 Varianten'!M12 -> 68 | N26: ='1.2 Varianten'!N12 -> 68 | O26: ='1.2 Varianten'!O12 -> 68 | P26: ='1.2 Varianten'!P12 -> 68 | Q26: ='1.2 Varianten'!Q12 -> 68 | R26: ='1.2 Varianten'!R12 -> 68 | S26: ='1.2 Varianten'!S12 -> 68 | T26: ='1.2 Varianten'!T12 -> 68 | U26: ='1.2 Varianten'!U12 -> 68 | V26: ='1.2 Varianten'!V12 -> 68 | W26: ='1.2 Varianten'!W12 -> 68 | X26: ='1.2 Varianten'!X12 -> 68 | Y26: ='1.2 Varianten'!Y12 -> 68 | Z26: ='1.2 Varianten'!Z12 -> 68 | AA26: ='1.2 Varianten'!AA12 -> 68 | AB26: ='1.2 Varianten'!AB12 -> 68 | AC26: ='1.2 Varianten'!AC12 -> 68 | AD26: ='1.2 Varianten'!AD12 -> 68 | AE26: ='1.2 Varianten'!AE12 -> 68 | AF26: ='1.2 Varianten'!AF12 -> 68 | AG26: ='1.2 Varianten'!AG12 -> 170
B27: ='1.2 Varianten'!B14 -> Impact WKO | C27: ='1.2 Varianten'!C14 -> met WKO | D27: ='1.2 Varianten'!D14 -> met WKO | E27: ='1.2 Varianten'!E14 -> met WKO | F27: ='1.2 Varianten'!F14 -> met WKO | G27: ='1.2 Varianten'!G14 -> met WKO | H27: ='1.2 Varianten'!H14 -> met WKO | I27: ='1.2 Varianten'!I14 -> met WKO | J27: ='1.2 Varianten'!J14 -> met WKO | K27: ='1.2 Varianten'!K14 -> met WKO | L27: ='1.2 Varianten'!L14 -> met WKO | M27: ='1.2 Varianten'!M14 -> met WKO | N27: ='1.2 Varianten'!N14 -> zonder WKO | O27: ='1.2 Varianten'!O14 -> met WKO | P27: ='1.2 Varianten'!P14 -> met WKO | Q27: ='1.2 Varianten'!Q14 -> met WKO | R27: ='1.2 Varianten'!R14 -> met WKO | S27: ='1.2 Varianten'!S14 -> met WKO | T27: ='1.2 Varianten'!T14 -> met WKO | U27: ='1.2 Varianten'!U14 -> met WKO | V27: ='1.2 Varianten'!V14 -> met WKO | W27: ='1.2 Varianten'!W14 -> met WKO | X27: ='1.2 Varianten'!X14 -> met WKO | Y27: ='1.2 Varianten'!Y14 -> met WKO | Z27: ='1.2 Varianten'!Z14 -> met WKO | AA27: ='1.2 Varianten'!AA14 -> met WKO | AB27: ='1.2 Varianten'!AB14 -> met WKO | AC27: ='1.2 Varianten'!AC14 -> met WKO | AD27: ='1.2 Varianten'!AD14 -> zonder WKO | AE27: ='1.2 Varianten'!AE14 -> met WKO | AF27: ='1.2 Varianten'!AF14 -> met WKO | AG27: ='1.2 Varianten'!AG14 -> met WKO
B29: Output JBDK | C29: Basis berekening | D29: 2 | E29: 3 | F29: 4 | G29: 5 | H29: 6 | I29: 7 | J29: 8 | K29: 9 | L29: 10 | M29: 11 | N29: 12 | O29: 13 | P29: 14 | Q29: 15 | R29: 16 | S29: 17 | T29: 18 | U29: 19 | V29: 20 | W29: 21 | X29: 22 | Y29: 23 | Z29: 24 | AA29: 25 | AB29: 26 | AC29: 27 | AD29: 28 | AE29: 28 | AF29: 29 | AG29: 30
B31: Vermogen - totaal | C31: =C8 -> 5 | D31: =D8 -> 20 | E31: 1 | F31: 5 | G31: =G8 -> 5 | H31: 5 | I31: 5 | J31: 5 | K31: 5 | L31: 5 | M31: 5 | N31: =N8 -> 5 | O31: 5 | P31: 5 | Q31: 5 | R31: 5 | S31: 5 | T31: 5 | U31: 5 | V31: 5 | W31: 5 | X31: 5 | Y31: 5 | Z31: 5 | AA31: 5 | AB31: 5 | AC31: 5 | AD31: =AD8 -> 5 | AE31: 5 | AF31: =AF8 -> 5 | AG31: 5
B32: Vermogen - duurzaam systeem | C32: =C8*(1-C12) -> 2.5 | D32: =D8*(1-D12) -> 10 | E32: 0.5 | F32: 2.5 | G32: 2.5 | H32: 2.5 | I32: 2.5 | J32: 2.5 | K32: 2.5 | L32: 1.5 | M32: 3.5 | N32: =N8*(1-N12) -> 2.5 | O32: 2.5 | P32: 2.5 | Q32: 2.5 | R32: 2.5 | S32: 2.5 | T32: 2.5 | U32: 2.5 | V32: 2.5 | W32: 2.5 | X32: 2.5 | Y32: 2.5 | Z32: 2.5 | AA32: 2.5 | AB32: 2.5 | AC32: 2.5 | AD32: =AD8*(1-AD12) -> 2.5 | AE32: 2.5 | AF32: =AF8*(1-AF12) -> 5 | AG32: 2.5
B33: Vermogen - pieklast | C33: =C8*(C12) -> 2.5 | D33: =D8*(D12) -> 10 | E33: 0.5 | F33: 2.5 | G33: 2.5 | H33: 2.5 | I33: 2.5 | J33: 2.5 | K33: 2.5 | L33: 3.5 | M33: 1.5 | N33: =N8*(N12) -> 2.5 | O33: 2.5 | P33: 2.5 | Q33: 2.5 | R33: 2.5 | S33: 2.5 | T33: 2.5 | U33: 2.5 | V33: 2.5 | W33: 2.5 | X33: 2.5 | Y33: 2.5 | Z33: 2.5 | AA33: 2.5 | AB33: 2.5 | AC33: 2.5 | AD33: =AD8*(AD12) -> 2.5 | AE33: 2.5 | AF33: =AF8*(AF12) -> 0 | AG33: 2.5
B36: Warmtevraag - totaal | C36: =C14 -> 63 | D36: =D14 -> 252 | E36: 12.6 | F36: 108 | G36: 36 | H36: 63 | I36: 63 | J36: 63 | K36: 63 | L36: 63 | M36: 63 | N36: 63 | O36: 63 | P36: 63 | Q36: 63 | R36: 63 | S36: 63 | T36: 63 | U36: 63 | V36: 63 | W36: 63 | X36: 63 | Y36: 63 | Z36: 63 | AA36: 63 | AB36: 63 | AC36: 63 | AD36: =AD14 -> 63 | AE36: 63 | AF36: =AF14 -> 63 | AG36: 63
B37: Warmtevraag - duurzaam systeem | C37: =C15 -> 59.3712 | D37: =D15 -> 237.4848 | E37: 11.87424 | F37: 104.76 | G37: 32.4 | H37: 59.3712 | I37: 59.3712 | J37: 59.3712 | K37: 59.3712 | L37: 44.1 | M37: 61.11 | N37: 59.3712 | O37: 59.3712 | P37: 59.3712 | Q37: 59.3712 | R37: 59.3712 | S37: 59.3712 | T37: 59.3712 | U37: 59.3712 | V37: 59.3712 | W37: 59.3712 | X37: 59.3712 | Y37: 59.3712 | Z37: 59.3712 | AA37: 59.3712 | AB37: 59.3712 | AC37: 59.3712 | AD37: =AD15 -> 59.3712 | AE37: 59.3712 | AF37: =AF15 -> 63 | AG37: 59.3712
B38: Warmtevraag - aquathermie | C38: =C14*C17 -> 5.3802 | D38: =D14*D17 -> 21.5208 | E38: 1.07604 | F38: 9.2232 | G38: 3.0744 | H38: 5.3802 | I38: 5.3802 | J38: 5.3802 | K38: 5.3802 | L38: 5.3802 | M38: 5.3802 | N38: 59.3712 | O38: 5.3802 | P38: 5.3802 | Q38: 5.3802 | R38: 5.3802 | S38: 5.3802 | T38: 5.3802 | U38: 5.3802 | V38: 5.3802 | W38: 5.3802 | X38: 5.3802 | Y38: 5.3802 | Z38: 5.3802 | AA38: 5.3802 | AB38: 5.3802 | AC38: 5.3802 | AD38: =AD14*AD17 -> 59.3712 | AE38: 5.3802 | AF38: =AF14*AF17 -> 5.3802 | AG38: 5.3802
B39: Warmtevraag - WKO | C39: =C14*(C18)*IF(C27="met WKO",1,0) -> 53.991 | D39: =D14*(D18)*IF(D27="met WKO",1,0) -> 215.964 | E39: 10.7982 | F39: 95.5368 | G39: 29.3256 | H39: 53.991 | I39: 53.991 | J39: 53.991 | K39: 53.991 | L39: 38.7198 | M39: 53.991 | N39: 0 | O39: 53.991 | P39: 53.991 | Q39: 53.991 | R39: 53.991 | S39: 53.991 | T39: 53.991 | U39: 53.991 | V39: 53.991 | W39: 53.991 | X39: 53.991 | Y39: 53.991 | Z39: 53.991 | AA39: 53.991 | AB39: 53.991 | AC39: 53.991 | AD39: =AD14*(AD18)*IF(AD27="met WKO",1,0) -> 0 | AE39: 53.991 | AF39: =AF14*(AF18)*IF(AF27="met WKO",1,0) -> 57.6198 | AG39: 53.991
B40: Warmtevraag - pieklast | C40: =C36-C37 -> 3.6288 | D40: =D36-D37 -> 14.5152 | E40: 0.72576 | F40: 3.24 | G40: 3.6 | H40: 3.6288 | I40: 3.6288 | J40: 3.6288 | K40: 3.6288 | L40: 18.9 | M40: 1.89 | N40: 3.6288 | O40: 3.6288 | P40: 3.6288 | Q40: 3.6288 | R40: 3.6288 | S40: 3.6288 | T40: 3.6288 | U40: 3.6288 | V40: 3.6288 | W40: 3.6288 | X40: 3.6288 | Y40: 3.6288 | Z40: 3.6288 | AA40: 3.6288 | AB40: 3.6288 | AC40: 3.6288 | AD40: =AD36-AD37 -> 3.6288 | AE40: 3.6288 | AF40: =AF36-AF37 -> 0 | AG40: 3.6288

Sheet 1.4 Kenmerken
B2: Project : | C2: WarmingUp
B3: Onderwerp : | C3: Gedetailleerde kostenberekening
B4: Fase : | C4: 1.4 Technische en financiele kenmerken
B6: Varianten | C6: Basis berekening | D6: 2 | E6: 3 | F6: 4 | G6: 5 | H6: 6 | I6: 7 | J6: 8 | K6: 9 | L6: 10 | M6: 11 | N6: 12 | O6: 13 | P6: 14 | Q6: 15 | R6: 16 | S6: 17 | T6: 18 | U6: 19 | V6: 20 | W6: 21 | X6: 22 | Y6: 23 | Z6: 24 | AA6: 25 | AB6: 26 | AC6: 27 | AD6: 28 | AE6: 29 | AF6: 30 | AG6: 31 | AH6: Referenties
B8: ='1.2 Varianten'!B8 -> Vermogen afnemer | C8: ='1.2 Varianten'!C8 -> 5 | D8: ='1.2 Varianten'!D8 -> 20 | E8: ='1.2 Varianten'!E8 -> 1 | F8: ='1.2 Varianten'!F8 -> 5 | G8: ='1.2 Varianten'!G8 -> 5 | H8: ='1.2 Varianten'!H8 -> 5 | I8: ='1.2 Varianten'!I8 -> 5 | J8: ='1.2 Varianten'!J8 -> 5 | K8: ='1.2 Varianten'!K8 -> 5 | L8: ='1.2 Varianten'!L8 -> 5 | M8: ='1.2 Varianten'!M8 -> 5 | N8: ='1.2 Varianten'!N8 -> 5 | O8: ='1.2 Varianten'!O8 -> 5 | P8: ='1.2 Varianten'!P8 -> 5 | Q8: ='1.2 Varianten'!Q8 -> 5 | R8: ='1.2 Varianten'!R8 -> 5 | S8: ='1.2 Varianten'!S8 -> 5 | T8: ='1.2 Varianten'!T8 -> 5 | U8: ='1.2 Varianten'!U8 -> 5 | V8: ='1.2 Varianten'!V8 -> 5 | W8: ='1.2 Varianten'!W8 -> 5 | X8: ='1.2 Varianten'!X8 -> 5 | Y8: ='1.2 Varianten'!Y8 -> 5 | Z8: ='1.2 Varianten'!Z8 -> 5 | AA8: ='1.2 Varianten'!AA8 -> 5 | AB8: ='1.2 Varianten'!AB8 -> 5 | AC8: ='1.2 Varianten'!AC8 -> 5 | AD8: ='1.2 Varianten'!AD8 -> 5 | AE8: ='1.2 Varianten'!AE8 -> 5 | AF8: ='1.2 Varianten'!AF8 -> 5 | AG8: ='1.2 Varianten'!AG8 -> 5
B9: ='1.2 Varianten'!B9 -> Vollasturen warmtenet | C9: ='1.2 Varianten'!C9 -> 3500 | D9: ='1.2 Varianten'!D9 -> 3500 | E9: ='1.2 Varianten'!E9 -> 3500 | F9: ='1.2 Varianten'!F9 -> 6000 | G9: ='1.2 Varianten'!G9 -> 2000 | H9: ='1.2 Varianten'!H9 -> 3500 | I9: ='1.2 Varianten'!I9 -> 3500 | J9: ='1.2 Varianten'!J9 -> 3500 | K9: ='1.2 Varianten'!K9 -> 3500 | L9: ='1.2 Varianten'!L9 -> 3500 | M9: ='1.2 Varianten'!M9 -> 3500 | N9: ='1.2 Varianten'!N9 -> 3500 | O9: ='1.2 Varianten'!O9 -> 3500 | P9: ='1.2 Varianten'!P9 -> 3500 | Q9: ='1.2 Varianten'!Q9 -> 3500 | R9: ='1.2 Varianten'!R9 -> 3500 | S9: ='1.2 Varianten'!S9 -> 3500 | T9: ='1.2 Varianten'!T9 -> 3500 | U9: ='1.2 Varianten'!U9 -> 3500 | V9: ='1.2 Varianten'!V9 -> 3500 | W9: ='1.2 Varianten'!W9 -> 3500 | X9: ='1.2 Varianten'!X9 -> 3500 | Y9: ='1.2 Varianten'!Y9 -> 3500 | Z9: ='1.2 Varianten'!Z9 -> 3500 | AA9: ='1.2 Varianten'!AA9 -> 3500 | AB9: ='1.2 Varianten'!AB9 -> 3500 | AC9: ='1.2 Varianten'!AC9 -> 3500 | AD9: ='1.2 Varianten'!AD9 -> 3500 | AE9: ='1.2 Varianten'!AE9 -> 3500 | AF9: ='1.2 Varianten'!AF9 -> 3500 | AG9: ='1.2 Varianten'!AG9 -> 3500
B10: ='1.2 Varianten'!B10 -> Vollasturen aquathermie systeem | C10: ='1.2 Varianten'!C10 -> 3000 | D10: ='1.2 Varianten'!D10 -> 3000 | E10: ='1.2 Varianten'!E10 -> 3000 | F10: ='1.2 Varianten'!F10 -> 3000 | G10: ='1.2 Varianten'!G10 -> 3000 | H10: ='1.2 Varianten'!H10 -> 2500 | I10: ='1.2 Varianten'!I10 -> 2000 | J10: ='1.2 Varianten'!J10 -> 3000 | K10: ='1.2 Varianten'!K10 -> 3000 | L10: ='1.2 Varianten'!L10 -> 3000 | M10: ='1.2 Varianten'!M10 -> 3000 | N10: ='1.2 Varianten'!N10 -> 3000 | O10: ='1.2 Varianten'!O10 -> 3000 | P10: ='1.2 Varianten'!P10 -> 3000 | Q10: ='1.2 Varianten'!Q10 -> 3000 | R10: ='1.2 Varianten'!R10 -> 3000 | S10: ='1.2 Varianten'!S10 -> 3000 | T10: ='1.2 Varianten'!T10 -> 3000 | U10: ='1.2 Varianten'!U10 -> 3000 | V10: ='1.2 Varianten'!V10 -> 3000 | W10: ='1.2 Varianten'!W10 -> 3000 | X10: ='1.2 Varianten'!X10 -> 3000 | Y10: ='1.2 Varianten'!Y10 -> 3000 | Z10: ='1.2 Varianten'!Z10 -> 3000 | AA10: ='1.2 Varianten'!AA10 -> 3000 | AB10: ='1.2 Varianten'!AB10 -> 3000 | AC10: ='1.2 Varianten'!AC10 -> 3000 | AD10: ='1.2 Varianten'!AD10 -> 3000 | AE10: ='1.2 Varianten'!AE10 -> 3000 | AF10: ='1.2 Varianten'!AF10 -> 3500 | AG10: ='1.2 Varianten'!AG10 -> 3000
B11: ='1.2 Varianten'!B11 -> Temperatuurtraject aquathermie systeem (deltaT) | C11: ='1.2 Varianten'!C11 -> 5 | D11: ='1.2 Varianten'!D11 -> 5 | E11: ='1.2 Varianten'!E11 -> 5 | F11: ='1.2 Varianten'!F11 -> 5 | G11: ='1.2 Varianten'!G11 -> 5 | H11: ='1.2 Varianten'!H11 -> 5 | I11: ='1.2 Varianten'!I11 -> 5 | J11: ='1.2 Varianten'!J11 -> 10 | K11: ='1.2 Varianten'!K11 -> 5 | L11: ='1.2 Varianten'!L11 -> 5 | M11: ='1.2 Varianten'!M11 -> 5 | N11: ='1.2 Varianten'!N11 -> 5 | O11: ='1.2 Varianten'!O11 -> 5 | P11: ='1.2 Varianten'!P11 -> 5 | Q11: ='1.2 Varianten'!Q11 -> 5 | R11: ='1.2 Varianten'!R11 -> 5 | S11: ='1.2 Varianten'!S11 -> 5 | T11: ='1.2 Varianten'!T11 -> 5 | U11: ='1.2 Varianten'!U11 -> 5 | V11: ='1.2 Varianten'!V11 -> 5 | W11: ='1.2 Varianten'!W11 -> 5 | X11: ='1.2 Varianten'!X11 -> 5 | Y11: ='1.2 Varianten'!Y11 -> 5 | Z11: ='1.2 Varianten'!Z11 -> 5 | AA11: ='1.2 Varianten'!AA11 -> 5 | AB11: ='1.2 Varianten'!AB11 -> 5 | AC11: ='1.2 Varianten'!AC11 -> 5 | AD11: ='1.2 Varianten'!AD11 -> 5 | AE11: ='1.2 Varianten'!AE11 -> 5 | AF11: ='1.2 Varianten'!AF11 -> 5 | AG11: ='1.2 Varianten'!AG11 -> 5
B12: ='1.2 Varianten'!B12 -> Elektriciteitsprijs | C12: ='1.2 Varianten'!C12 -> 68 | D12: ='1.2 Varianten'!D12 -> 68 | E12: ='1.2 Varianten'!E12 -> 68 | F12: ='1.2 Varianten'!F12 -> 68 | G12: ='1.2 Varianten'!G12 -> 68 | H12: ='1.2 Varianten'!H12 -> 68 | I12: ='1.2 Varianten'!I12 -> 68 | J12: ='1.2 Varianten'!J12 -> 68 | K12: ='1.2 Varianten'!K12 -> 32 | L12: ='1.2 Varianten'!L12 -> 68 | M12: ='1.2 Varianten'!M12 -> 68 | N12: ='1.2 Varianten'!N12 -> 68 | O12: ='1.2 Varianten'!O12 -> 68 | P12: ='1.2 Varianten'!P12 -> 68 | Q12: ='1.2 Varianten'!Q12 -> 68 | R12: ='1.2 Varianten'!R12 -> 68 | S12: ='1.2 Varianten'!S12 -> 68 | T12: ='1.2 Varianten'!T12 -> 68 | U12: ='1.2 Varianten'!U12 -> 68 | V12: ='1.2 Varianten'!V12 -> 68 | W12: ='1.2 Varianten'!W12 -> 68 | X12: ='1.2 Varianten'!X12 -> 68 | Y12: ='1.2 Varianten'!Y12 -> 68 | Z12: ='1.2 Varianten'!Z12 -> 68 | AA12: ='1.2 Varianten'!AA12 -> 68 | AB12: ='1.2 Varianten'!AB12 -> 68 | AC12: ='1.2 Varianten'!AC12 -> 68 | AD12: ='1.2 Varianten'!AD12 -> 68 | AE12: ='1.2 Varianten'!AE12 -> 68 | AF12: ='1.2 Varianten'!AF12 -> 68 | AG12: ='1.2 Varianten'!AG12 -> 170
B13: ='1.2 Varianten'!B13 -> Vermogensaandeel piekvoorziening | C13: ='1.2 Varianten'!C13 -> 0.5 | D13: ='1.2 Varianten'!D13 -> 0.5 | E13: ='1.2 Varianten'!E13 -> 0.5 | F13: ='1.2 Varianten'!F13 -> 0.5 | G13: ='1.2 Varianten'!G13 -> 0.5 | H13: ='1.2 Varianten'!H13 -> 0.5 | I13: ='1.2 Varianten'!I13 -> 0.5 | J13: ='1.2 Varianten'!J13 -> 0.5 | K13: ='1.2 Varianten'!K13 -> 0.5 | L13: ='1.2 Varianten'!L13 -> 0.7 | M13: ='1.2 Varianten'!M13 -> 0.3 | N13: ='1.2 Varianten'!N13 -> 0.5 | O13: ='1.2 Varianten'!O13 -> 0.5 | P13: ='1.2 Varianten'!P13 -> 0.5 | Q13: ='1.2 Varianten'!Q13 -> 0.5 | R13: ='1.2 Varianten'!R13 -> 0.5 | S13: ='1.2 Varianten'!S13 -> 0.5 | T13: ='1.2 Varianten'!T13 -> 0.5 | U13: ='1.2 Varianten'!U13 -> 0.5 | V13: ='1.2 Varianten'!V13 -> 0.5 | W13: ='1.2 Varianten'!W13 -> 0.5 | X13: ='1.2 Varianten'!X13 -> 0.5 | Y13: ='1.2 Varianten'!Y13 -> 0.5 | Z13: ='1.2 Varianten'!Z13 -> 0.5 | AA13: ='1.2 Varianten'!AA13 -> 0.5 | AB13: ='1.2 Varianten'!AB13 -> 0.5 | AC13: ='1.2 Varianten'!AC13 -> 0.5 | AD13: ='1.2 Varianten'!AD13 -> 0.5 | AE13: ='1.2 Varianten'!AE13 -> 0.5 | AF13: ='1.2 Varianten'!AF13 -> 0 | AG13: ='1.2 Varianten'!AG13 -> 0.5
B14: ='1.2 Varianten'!B14 -> Impact WKO | C14: ='1.2 Varianten'!C14 -> met WKO | D14: ='1.2 Varianten'!D14 -> met WKO | E14: ='1.2 Varianten'!E14 -> met WKO | F14: ='1.2 Varianten'!F14 -> met WKO | G14: ='1.2 Varianten'!G14 -> met WKO | H14: ='1.2 Varianten'!H14 -> met WKO | I14: ='1.2 Varianten'!I14 -> met WKO | J14: ='1.2 Varianten'!J14 -> met WKO | K14: ='1.2 Varianten'!K14 -> met WKO | L14: ='1.2 Varianten'!L14 -> met WKO | M14: ='1.2 Varianten'!M14 -> met WKO | N14: ='1.2 Varianten'!N14 -> zonder WKO | O14: ='1.2 Varianten'!O14 -> met WKO | P14: ='1.2 Varianten'!P14 -> met WKO | Q14: ='1.2 Varianten'!Q14 -> met WKO | R14: ='1.2 Varianten'!R14 -> met WKO | S14: ='1.2 Varianten'!S14 -> met WKO | T14: ='1.2 Varianten'!T14 -> met WKO | U14: ='1.2 Varianten'!U14 -> met WKO | V14: ='1.2 Varianten'!V14 -> met WKO | W14: ='1.2 Varianten'!W14 -> met WKO | X14: ='1.2 Varianten'!X14 -> met WKO | Y14: ='1.2 Varianten'!Y14 -> met WKO | Z14: ='1.2 Varianten'!Z14 -> met WKO | AA14: ='1.2 Varianten'!AA14 -> met WKO | AB14: ='1.2 Varianten'!AB14 -> met WKO | AC14: ='1.2 Varianten'!AC14 -> met WKO | AD14: ='1.2 Varianten'!AD14 -> zonder WKO | AE14: ='1.2 Varianten'!AE14 -> met WKO | AF14: ='1.2 Varianten'!AF14 -> met WKO | AG14: ='1.2 Varianten'!AG14 -> met WKO
B15: ='1.2 Varianten'!B15 -> WKO opslagcapaciteit per brondoublet | C15: ='1.2 Varianten'!C15 -> 90 | D15: ='1.2 Varianten'!D15 -> 90 | E15: ='1.2 Varianten'!E15 -> 90 | F15: ='1.2 Varianten'!F15 -> 90 | G15: ='1.2 Varianten'!G15 -> 90 | H15: ='1.2 Varianten'!H15 -> 90 | I15: ='1.2 Varianten'!I15 -> 90 | J15: ='1.2 Varianten'!J15 -> 90 | K15: ='1.2 Varianten'!K15 -> 90 | L15: ='1.2 Varianten'!L15 -> 90 | M15: ='1.2 Varianten'!M15 -> 90 | N15: ='1.2 Varianten'!N15 -> 90 | O15: ='1.2 Varianten'!O15 -> 250 | P15: ='1.2 Varianten'!P15 -> 50 | Q15: ='1.2 Varianten'!Q15 -> 90 | R15: ='1.2 Varianten'!R15 -> 90 | S15: ='1.2 Varianten'!S15 -> 90 | T15: ='1.2 Varianten'!T15 -> 90 | U15: ='1.2 Varianten'!U15 -> 90 | V15: ='1.2 Varianten'!V15 -> 90 | W15: ='1.2 Varianten'!W15 -> 90 | X15: ='1.2 Varianten'!X15 -> 90 | Y15: ='1.2 Varianten'!Y15 -> 90 | Z15: ='1.2 Varianten'!Z15 -> 90 | AA15: ='1.2 Varianten'!AA15 -> 90 | AB15: ='1.2 Varianten'!AB15 -> 90 | AC15: ='1.2 Varianten'!AC15 -> 90 | AD15: ='1.2 Varianten'!AD15 -> 90 | AE15: ='1.2 Varianten'!AE15 -> 90 | AF15: ='1.2 Varianten'!AF15 -> 90 | AG15: ='1.2 Varianten'!AG15 -> 90
B16: ='1.2 Varianten'!B16 -> Diepte WKO bronnen | C16: ='1.2 Varianten'!C16 -> 150 | D16: ='1.2 Varianten'!D16 -> 150 | E16: ='1.2 Varianten'!E16 -> 150 | F16: ='1.2 Varianten'!F16 -> 150 | G16: ='1.2 Varianten'!G16 -> 150 | H16: ='1.2 Varianten'!H16 -> 150 | I16: ='1.2 Varianten'!I16 -> 150 | J16: ='1.2 Varianten'!J16 -> 150 | K16: ='1.2 Varianten'!K16 -> 150 | L16: ='1.2 Varianten'!L16 -> 150 | M16: ='1.2 Varianten'!M16 -> 150 | N16: ='1.2 Varianten'!N16 -> 150 | O16: ='1.2 Varianten'!O16 -> 150 | P16: ='1.2 Varianten'!P16 -> 150 | Q16: ='1.2 Varianten'!Q16 -> 230 | R16: ='1.2 Varianten'!R16 -> 80 | S16: ='1.2 Varianten'!S16 -> 150 | T16: ='1.2 Varianten'!T16 -> 150 | U16: ='1.2 Varianten'!U16 -> 150 | V16: ='1.2 Varianten'!V16 -> 150 | W16: ='1.2 Varianten'!W16 -> 150 | X16: ='1.2 Varianten'!X16 -> 150 | Y16: ='1.2 Varianten'!Y16 -> 150 | Z16: ='1.2 Varianten'!Z16 -> 150 | AA16: ='1.2 Varianten'!AA16 -> 150 | AB16: ='1.2 Varianten'!AB16 -> 150 | AC16: ='1.2 Varianten'!AC16 -> 150 | AD16: ='1.2 Varianten'!AD16 -> 150 | AE16: ='1.2 Varianten'!AE16 -> 150 | AF16: ='1.2 Varianten'!AF16 -> 150 | AG16: ='1.2 Varianten'!AG16 -> 150
B17: ='1.2 Varianten'!B17 -> Leidingwerk tussen aquathermie en TR | C17: ='1.2 Varianten'!C17 -> 500 | D17: ='1.2 Varianten'!D17 -> 500 | E17: ='1.2 Varianten'!E17 -> 500 | F17: ='1.2 Varianten'!F17 -> 500 | G17: ='1.2 Varianten'!G17 -> 500 | H17: ='1.2 Varianten'!H17 -> 500 | I17: ='1.2 Varianten'!I17 -> 500 | J17: ='1.2 Varianten'!J17 -> 500 | K17: ='1.2 Varianten'!K17 -> 500 | L17: ='1.2 Varianten'!L17 -> 500 | M17: ='1.2 Varianten'!M17 -> 500 | N17: ='1.2 Varianten'!N17 -> 500 | O17: ='1.2 Varianten'!O17 -> 500 | P17: ='1.2 Varianten'!P17 -> 500 | Q17: ='1.2 Varianten'!Q17 -> 500 | R17: ='1.2 Varianten'!R17 -> 500 | S17: ='1.2 Varianten'!S17 -> 2000 | T17: ='1.2 Varianten'!T17 -> 500 m + gestuurde boring | U17: ='1.2 Varianten'!U17 -> 500 | V17: ='1.2 Varianten'!V17 -> 500 | W17: ='1.2 Varianten'!W17 -> 500 | X17: ='1.2 Varianten'!X17 -> 500 | Y17: ='1.2 Varianten'!Y17 -> 500 | Z17: ='1.2 Varianten'!Z17 -> 500 | AA17: ='1.2 Varianten'!AA17 -> 500 | AB17: ='1.2 Varianten'!AB17 -> 500 | AC17: ='1.2 Varianten'!AC17 -> 500 | AD17: ='1.2 Varianten'!AD17 -> 500 | AE17: ='1.2 Varianten'!AE17 -> 500 | AF17: ='1.2 Varianten'!AF17 -> 500 | AG17: ='1.2 Varianten'!AG17 -> 500
B18: ='1.2 Varianten'!B18 -> Leidingwerk tussen bronnen en TR | C18: ='1.2 Varianten'!C18 -> 500 | D18: ='1.2 Varianten'!D18 -> 500 | E18: ='1.2 Varianten'!E18 -> 500 | F18: ='1.2 Varianten'!F18 -> 500 | G18: ='1.2 Varianten'!G18 -> 500 | H18: ='1.2 Varianten'!H18 -> 500 | I18: ='1.2 Varianten'!I18 -> 500 | J18: ='1.2 Varianten'!J18 -> 500 | K18: ='1.2 Varianten'!K18 -> 500 | L18: ='1.2 Varianten'!L18 -> 500 | M18: ='1.2 Varianten'!M18 -> 500 | N18: ='1.2 Varianten'!N18 -> 500 | O18: ='1.2 Varianten'!O18 -> 500 | P18: ='1.2 Varianten'!P18 -> 500 | Q18: ='1.2 Varianten'!Q18 -> 500 | R18: ='1.2 Varianten'!R18 -> 500 | S18: ='1.2 Varianten'!S18 -> 500 | T18: ='1.2 Varianten'!T18 -> 500 | U18: ='1.2 Varianten'!U18 -> 2000 | V18: ='1.2 Varianten'!V18 -> 500 m + gestuurde boring | W18: ='1.2 Varianten'!W18 -> 500 | X18: ='1.2 Varianten'!X18 -> 500 | Y18: ='1.2 Varianten'!Y18 -> 500 | Z18: ='1.2 Varianten'!Z18 -> 500 | AA18: ='1.2 Varianten'!AA18 -> 500 | AB18: ='1.2 Varianten'!AB18 -> 500 | AC18: ='1.2 Varianten'!AC18 -> 500 | AD18: ='1.2 Varianten'!AD18 -> 500 | AE18: ='1.2 Varianten'!AE18 -> 500 | AF18: ='1.2 Varianten'!AF18 -> 500 | AG18: ='1.2 Varianten'!AG18 -> 500
B19: ='1.2 Varianten'!B19 -> Situatie onttrekking | C19: ='1.2 Varianten'!C19 -> stedelijk | D19: ='1.2 Varianten'!D19 -> stedelijk | E19: ='1.2 Varianten'!E19 -> stedelijk | F19: ='1.2 Varianten'!F19 -> stedelijk | G19: ='1.2 Varianten'!G19 -> stedelijk | H19: ='1.2 Varianten'!H19 -> stedelijk | I19: ='1.2 Varianten'!I19 -> stedelijk | J19: ='1.2 Varianten'!J19 -> stedelijk | K19: ='1.2 Varianten'!K19 -> stedelijk | L19: ='1.2 Varianten'!L19 -> stedelijk | M19: ='1.2 Varianten'!M19 -> stedelijk | N19: ='1.2 Varianten'!N19 -> stedelijk | O19: ='1.2 Varianten'!O19 -> stedelijk | P19: ='1.2 Varianten'!P19 -> stedelijk | Q19: ='1.2 Varianten'!Q19 -> stedelijk | R19: ='1.2 Varianten'!R19 -> stedelijk | S19: ='1.2 Varianten'!S19 -> stedelijk | T19: ='1.2 Varianten'!T19 -> stedelijk | U19: ='1.2 Varianten'!U19 -> stedelijk | V19: ='1.2 Varianten'!V19 -> stedelijk | W19: ='1.2 Varianten'!W19 -> landelijk | X19: ='1.2 Varianten'!X19 -> stedelijk | Y19: ='1.2 Varianten'!Y19 -> stedelijk | Z19: ='1.2 Varianten'!Z19 -> stedelijk | AA19: ='1.2 Varianten'!AA19 -> stedelijk | AB19: ='1.2 Varianten'!AB19 -> stedelijk | AC19: ='1.2 Varianten'!AC19 -> stedelijk | AD19: ='1.2 Varianten'!AD19 -> stedelijk | AE19: ='1.2 Varianten'!AE19 -> stedelijk | AF19: ='1.2 Varianten'!AF19 -> stedelijk | AG19: ='1.2 Varianten'!AG19 -> stedelijk
B20: ='1.2 Varianten'!B20 -> Energiekosten (inflatie) | C20: ='1.2 Varianten'!C20 -> 0.03 | D20: ='1.2 Varianten'!D20 -> 0.03 | E20: ='1.2 Varianten'!E20 -> 0.03 | F20: ='1.2 Varianten'!F20 -> 0.03 | G20: ='1.2 Varianten'!G20 -> 0.03 | H20: ='1.2 Varianten'!H20 -> 0.03 | I20: ='1.2 Varianten'!I20 -> 0.03 | J20: ='1.2 Varianten'!J20 -> 0.03 | K20: ='1.2 Varianten'!K20 -> 0.03 | L20: ='1.2 Varianten'!L20 -> 0.03 | M20: ='1.2 Varianten'!M20 -> 0.03 | N20: ='1.2 Varianten'!N20 -> 0.03 | O20: ='1.2 Varianten'!O20 -> 0.03 | P20: ='1.2 Varianten'!P20 -> 0.03 | Q20: ='1.2 Varianten'!Q20 -> 0.03 | R20: ='1.2 Varianten'!R20 -> 0.03 | S20: ='1.2 Varianten'!S20 -> 0.03 | T20: ='1.2 Varianten'!T20 -> 0.03 | U20: ='1.2 Varianten'!U20 -> 0.03 | V20: ='1.2 Varianten'!V20 -> 0.03 | W20: ='1.2 Varianten'!W20 -> 0.03 | X20: ='1.2 Varianten'!X20 -> 0.04 | Y20: ='1.2 Varianten'!Y20 -> 0.02 | Z20: ='1.2 Varianten'!Z20 -> 0.03 | AA20: ='1.2 Varianten'!AA20 -> 0.03 | AB20: ='1.2 Varianten'!AB20 -> 0.03 | AC20: ='1.2 Varianten'!AC20 -> 0.03 | AD20: ='1.2 Varianten'!AD20 -> 0.03 | AE20: ='1.2 Varianten'!AE20 -> 0.03 | AF20: ='1.2 Varianten'!AF20 -> 0.03 | AG20: ='1.2 Varianten'!AG20 -> 0.03
B21: ='1.2 Varianten'!B21 -> Rendementseis | C21: ='1.2 Varianten'!C21 -> 0.06 | D21: ='1.2 Varianten'!D21 -> 0.06 | E21: ='1.2 Varianten'!E21 -> 0.06 | F21: ='1.2 Varianten'!F21 -> 0.06 | G21: ='1.2 Varianten'!G21 -> 0.06 | H21: ='1.2 Varianten'!H21 -> 0.06 | I21: ='1.2 Varianten'!I21 -> 0.06 | J21: ='1.2 Varianten'!J21 -> 0.06 | K21: ='1.2 Varianten'!K21 -> 0.06 | L21: ='1.2 Varianten'!L21 -> 0.06 | M21: ='1.2 Varianten'!M21 -> 0.06 | N21: ='1.2 Varianten'!N21 -> 0.06 | O21: ='1.2 Varianten'!O21 -> 0.06 | P21: ='1.2 Varianten'!P21 -> 0.06 | Q21: ='1.2 Varianten'!Q21 -> 0.06 | R21: ='1.2 Varianten'!R21 -> 0.06 | S21: ='1.2 Varianten'!S21 -> 0.06 | T21: ='1.2 Varianten'!T21 -> 0.06 | U21: ='1.2 Varianten'!U21 -> 0.06 | V21: ='1.2 Varianten'!V21 -> 0.06 | W21: ='1.2 Varianten'!W21 -> 0.06 | X21: ='1.2 Varianten'!X21 -> 0.06 | Y21: ='1.2 Varianten'!Y21 -> 0.06 | Z21: ='1.2 Varianten'!Z21 -> 0.08 | AA21: ='1.2 Varianten'!AA21 -> 0.04 | AB21: ='1.2 Varianten'!AB21 -> 0.06 | AC21: ='1.2 Varianten'!AC21 -> 0.06 | AD21: ='1.2 Varianten'!AD21 -> 0.06 | AE21: ='1.2 Varianten'!AE21 -> 0.06 | AF21: ='1.2 Varianten'!AF21 -> 0.06 | AG21: ='1.2 Varianten'!AG21 -> 0.06
B22: ='1.2 Varianten'!B22 -> Toepassing SDE++ subsidie | C22: ='1.2 Varianten'!C22 -> nee | D22: ='1.2 Varianten'!D22 -> nee | E22: ='1.2 Varianten'!E22 -> nee | F22: ='1.2 Varianten'!F22 -> nee | G22: ='1.2 Varianten'!G22 -> nee | H22: ='1.2 Varianten'!H22 -> nee | I22: ='1.2 Varianten'!I22 -> nee | J22: ='1.2 Varianten'!J22 -> nee | K22: ='1.2 Varianten'!K22 -> nee | L22: ='1.2 Varianten'!L22 -> nee | M22: ='1.2 Varianten'!M22 -> nee | N22: ja | O22: ='1.2 Varianten'!O22 -> nee | P22: ='1.2 Varianten'!P22 -> nee | Q22: ='1.2 Varianten'!Q22 -> nee | R22: ='1.2 Varianten'!R22 -> nee | S22: ='1.2 Varianten'!S22 -> nee | T22: ='1.2 Varianten'!T22 -> nee | U22: ='1.2 Varianten'!U22 -> nee | V22: ='1.2 Varianten'!V22 -> nee | W22: ='1.2 Varianten'!W22 -> nee | X22: ='1.2 Varianten'!X22 -> nee | Y22: ='1.2 Varianten'!Y22 -> nee | Z22: ='1.2 Varianten'!Z22 -> nee | AA22: ='1.2 Varianten'!AA22 -> nee | AB22: ='1.2 Varianten'!AB22 -> ja | AC22: ='1.2 Varianten'!AC22 -> nee | AD22: ='1.2 Varianten'!AD22 -> nee | AE22: ='1.2 Varianten'!AE22 -> nee | AF22: ='1.2 Varianten'!AF22 -> Nee | AG22: ='1.2 Varianten'!AG22 -> nee
B23: ='1.2 Varianten'!B23 -> Variant met TEA/TEO | C23: ='1.2 Varianten'!C23 -> TEO | D23: ='1.2 Varianten'!D23 -> TEO | E23: ='1.2 Varianten'!E23 -> TEO | F23: ='1.2 Varianten'!F23 -> TEO | G23: ='1.2 Varianten'!G23 -> TEO | H23: ='1.2 Varianten'!H23 -> TEO | I23: ='1.2 Varianten'!I23 -> TEO | J23: ='1.2 Varianten'!J23 -> TEO | K23: ='1.2 Varianten'!K23 -> TEO | L23: ='1.2 Varianten'!L23 -> TEO | M23: ='1.2 Varianten'!M23 -> TEO | N23: ='1.2 Varianten'!N23 -> TEO | O23: ='1.2 Varianten'!O23 -> TEO | P23: ='1.2 Varianten'!P23 -> TEO | Q23: ='1.2 Varianten'!Q23 -> TEO | R23: ='1.2 Varianten'!R23 -> TEO | S23: ='1.2 Varianten'!S23 -> TEO | T23: ='1.2 Varianten'!T23 -> TEO | U23: ='1.2 Varianten'!U23 -> TEO | V23: ='1.2 Varianten'!V23 -> TEO | W23: ='1.2 Varianten'!W23 -> TEO | X23: ='1.2 Varianten'!X23 -> TEO | Y23: ='1.2 Varianten'!Y23 -> TEO | Z23: ='1.2 Varianten'!Z23 -> TEO | AA23: ='1.2 Varianten'!AA23 -> TEO | AB23: ='1.2 Varianten'!AB23 -> TEO | AC23: ='1.2 Varianten'!AC23 -> TEA | AD23: ='1.2 Varianten'!AD23 -> TEA | AE23: ='1.2 Varianten'!AE23 -> TEO | AF23: ='1.2 Varianten'!AF23 -> TEO | AG23: ='1.2 Varianten'!AG23 -> TEO
B24: ='1.2 Varianten'!B24 -> Aanvoertemperatuur warmtenet | C24: ='1.2 Varianten'!C24 -> 70 | D24: ='1.2 Varianten'!D24 -> 70 | E24: ='1.2 Varianten'!E24 -> 70 | F24: ='1.2 Varianten'!F24 -> 70 | G24: ='1.2 Varianten'!G24 -> 70 | H24: ='1.2 Varianten'!H24 -> 70 | I24: ='1.2 Varianten'!I24 -> 70 | J24: ='1.2 Varianten'!J24 -> 70 | K24: ='1.2 Varianten'!K24 -> 70 | L24: ='1.2 Varianten'!L24 -> 70 | M24: ='1.2 Varianten'!M24 -> 70 | N24: ='1.2 Varianten'!N24 -> 70 | O24: ='1.2 Varianten'!O24 -> 70 | P24: ='1.2 Varianten'!P24 -> 70 | Q24: ='1.2 Varianten'!Q24 -> 70 | R24: ='1.2 Varianten'!R24 -> 70 | S24: ='1.2 Varianten'!S24 -> 70 | T24: ='1.2 Varianten'!T24 -> 70 | U24: ='1.2 Varianten'!U24 -> 70 | V24: ='1.2 Varianten'!V24 -> 70 | W24: ='1.2 Varianten'!W24 -> 70 | X24: ='1.2 Varianten'!X24 -> 70 | Y24: ='1.2 Varianten'!Y24 -> 70 | Z24: ='1.2 Varianten'!Z24 -> 70 | AA24: ='1.2 Varianten'!AA24 -> 70 | AB24: ='1.2 Varianten'!AB24 -> 70 | AC24: ='1.2 Varianten'!AC24 -> 70 | AD24: ='1.2 Varianten'!AD24 -> 70 | AE24: ='1.2 Varianten'!AE24 -> 40 | AF24: ='1.2 Varianten'!AF24 -> ZLT | AG24: ='1.2 Varianten'!AG24 -> 70
B26: Output JBDK | C26: Basis berekening | D26: 2 | E26: 3 | F26: 4 | G26: 5 | H26: 6 | I26: 7 | J26: 8 | K26: 9 | L26: 10 | M26: 11 | N26: 12 | O26: 13 | P26: 14 | Q26: 15 | R26: 16 | S26: 17 | T26: 18 | U26: 19 | V26: 20 | W26: 21 | X26: 22 | Y26: 23 | Z26: 24 | AA26: 25 | AB26: 26 | AC26: 27 | AD26: 28 | AE26: 29 | AF26: 30 | AG26: 31 | AH26: Referenties
B28: Vermogen - totaal | C28: ='1.3 Energievraag - JBDK'!C31 -> 5 | D28: ='1.3 Energievraag - JBDK'!D31 -> 20 | E28: ='1.3 Energievraag - JBDK'!E31 -> 1 | F28: ='1.3 Energievraag - JBDK'!F31 -> 5 | G28: ='1.3 Energievraag - JBDK'!G31 -> 5 | H28: ='1.3 Energievraag - JBDK'!H31 -> 5 | I28: ='1.3 Energievraag - JBDK'!I31 -> 5 | J28: ='1.3 Energievraag - JBDK'!J31 -> 5 | K28: ='1.3 Energievraag - JBDK'!K31 -> 5 | L28: ='1.3 Energievraag - JBDK'!L31 -> 5 | M28: ='1.3 Energievraag - JBDK'!M31 -> 5 | N28: ='1.3 Energievraag - JBDK'!N31 -> 5 | O28: ='1.3 Energievraag - JBDK'!O31 -> 5 | P28: ='1.3 Energievraag - JBDK'!P31 -> 5 | Q28: ='1.3 Energievraag - JBDK'!Q31 -> 5 | R28: ='1.3 Energievraag - JBDK'!R31 -> 5 | S28: ='1.3 Energievraag - JBDK'!S31 -> 5 | T28: ='1.3 Energievraag - JBDK'!T31 -> 5 | U28: ='1.3 Energievraag - JBDK'!U31 -> 5 | V28: ='1.3 Energievraag - JBDK'!V31 -> 5 | W28: ='1.3 Energievraag - JBDK'!W31 -> 5 | X28: ='1.3 Energievraag - JBDK'!X31 -> 5 | Y28: ='1.3 Energievraag - JBDK'!Y31 -> 5 | Z28: ='1.3 Energievraag - JBDK'!Z31 -> 5 | AA28: ='1.3 Energievraag - JBDK'!AA31 -> 5 | AB28: ='1.3 Energievraag - JBDK'!AB31 -> 5 | AC28: ='1.3 Energievraag - JBDK'!AC31 -> 5 | AD28: ='1.3 Energievraag - JBDK'!AD31 -> 5 | AE28: ='1.3 Energievraag - JBDK'!AE31 -> 5 | AF28: ='1.3 Energievraag - JBDK'!AF31 -> 5 | AG28: ='1.3 Energievraag - JBDK'!AG31 -> 5
B29: Vermogen - duurzaam systeem | C29: ='1.3 Energievraag - JBDK'!C32 -> 2.5 | D29: ='1.3 Energievraag - JBDK'!D32 -> 10 | E29: ='1.3 Energievraag - JBDK'!E32 -> 0.5 | F29: ='1.3 Energievraag - JBDK'!F32 -> 2.5 | G29: ='1.3 Energievraag - JBDK'!G32 -> 2.5 | H29: ='1.3 Energievraag - JBDK'!H32 -> 2.5 | I29: ='1.3 Energievraag - JBDK'!I32 -> 2.5 | J29: ='1.3 Energievraag - JBDK'!J32 -> 2.5 | K29: ='1.3 Energievraag - JBDK'!K32 -> 2.5 | L29: ='1.3 Energievraag - JBDK'!L32 -> 1.5 | M29: ='1.3 Energievraag - JBDK'!M32 -> 3.5 | N29: ='1.3 Energievraag - JBDK'!N32 -> 2.5 | O29: ='1.3 Energievraag - JBDK'!O32 -> 2.5 | P29: ='1.3 Energievraag - JBDK'!P32 -> 2.5 | Q29: ='1.3 Energievraag - JBDK'!Q32 -> 2.5 | R29: ='1.3 Energievraag - JBDK'!R32 -> 2.5 | S29: ='1.3 Energievraag - JBDK'!S32 -> 2.5 | T29: ='1.3 Energievraag - JBDK'!T32 -> 2.5 | U29: ='1.3 Energievraag - JBDK'!U32 -> 2.5 | V29: ='1.3 Energievraag - JBDK'!V32 -> 2.5 | W29: ='1.3 Energievraag - JBDK'!W32 -> 2.5 | X29: ='1.3 Energievraag - JBDK'!X32 -> 2.5 | Y29: ='1.3 Energievraag - JBDK'!Y32 -> 2.5 | Z29: ='1.3 Energievraag - JBDK'!Z32 -> 2.5 | AA29: ='1.3 Energievraag - JBDK'!AA32 -> 2.5 | AB29: ='1.3 Energievraag - JBDK'!AB32 -> 2.5 | AC29: ='1.3 Energievraag - JBDK'!AC32 -> 2.5 | AD29: ='1.3 Energievraag - JBDK'!AD32 -> 2.5 | AE29: ='1.3 Energievraag - JBDK'!AE32 -> 2.5 | AF29: ='1.3 Energievraag - JBDK'!AF32 -> 5 | AG29: ='1.3 Energievraag - JBDK'!AG32 -> 2.5
B30: Vermogen - pieklast | C30: ='1.3 Energievraag - JBDK'!C33 -> 2.5 | D30: ='1.3 Energievraag - JBDK'!D33 -> 10 | E30: ='1.3 Energievraag - JBDK'!E33 -> 0.5 | F30: ='1.3 Energievraag - JBDK'!F33 -> 2.5 | G30: ='1.3 Energievraag - JBDK'!G33 -> 2.5 | H30: ='1.3 Energievraag - JBDK'!H33 -> 2.5 | I30: ='1.3 Energievraag - JBDK'!I33 -> 2.5 | J30: ='1.3 Energievraag - JBDK'!J33 -> 2.5 | K30: ='1.3 Energievraag - JBDK'!K33 -> 2.5 | L30: ='1.3 Energievraag - JBDK'!L33 -> 3.5 | M30: ='1.3 Energievraag - JBDK'!M33 -> 1.5 | N30: ='1.3 Energievraag - JBDK'!N33 -> 2.5 | O30: ='1.3 Energievraag - JBDK'!O33 -> 2.5 | P30: ='1.3 Energievraag - JBDK'!P33 -> 2.5 | Q30: ='1.3 Energievraag - JBDK'!Q33 -> 2.5 | R30: ='1.3 Energievraag - JBDK'!R33 -> 2.5 | S30: ='1.3 Energievraag - JBDK'!S33 -> 2.5 | T30: ='1.3 Energievraag - JBDK'!T33 -> 2.5 | U30: ='1.3 Energievraag - JBDK'!U33 -> 2.5 | V30: ='1.3 Energievraag - JBDK'!V33 -> 2.5 | W30: ='1.3 Energievraag - JBDK'!W33 -> 2.5 | X30: ='1.3 Energievraag - JBDK'!X33 -> 2.5 | Y30: ='1.3 Energievraag - JBDK'!Y33 -> 2.5 | Z30: ='1.3 Energievraag - JBDK'!Z33 -> 2.5 | AA30: ='1.3 Energievraag - JBDK'!AA33 -> 2.5 | AB30: ='1.3 Energievraag - JBDK'!AB33 -> 2.5 | AC30: ='1.3 Energievraag - JBDK'!AC33 -> 2.5 | AD30: ='1.3 Energievraag - JBDK'!AD33 -> 2.5 | AE30: ='1.3 Energievraag - JBDK'!AE33 -> 2.5 | AF30: ='1.3 Energievraag - JBDK'!AF33 -> 0 | AG30: ='1.3 Energievraag - JBDK'!AG33 -> 2.5
B32: Warmtevraag - totaal | C32: ='1.3 Energievraag - JBDK'!C14 -> 63 | D32: ='1.3 Energievraag - JBDK'!D14 -> 252 | E32: ='1.3 Energievraag - JBDK'!E14 -> 12.6 | F32: ='1.3 Energievraag - JBDK'!F14 -> 108 | G32: ='1.3 Energievraag - JBDK'!G14 -> 36 | H32: ='1.3 Energievraag - JBDK'!H14 -> 63 | I32: ='1.3 Energievraag - JBDK'!I14 -> 63 | J32: ='1.3 Energievraag - JBDK'!J14 -> 63 | K32: ='1.3 Energievraag - JBDK'!K14 -> 63 | L32: ='1.3 Energievraag - JBDK'!L14 -> 63 | M32: ='1.3 Energievraag - JBDK'!M14 -> 63 | N32: ='1.3 Energievraag - JBDK'!N14 -> 63 | O32: ='1.3 Energievraag - JBDK'!O14 -> 63 | P32: ='1.3 Energievraag - JBDK'!P14 -> 63 | Q32: ='1.3 Energievraag - JBDK'!Q14 -> 63 | R32: ='1.3 Energievraag - JBDK'!R14 -> 63 | S32: ='1.3 Energievraag - JBDK'!S14 -> 63 | T32: ='1.3 Energievraag - JBDK'!T14 -> 63 | U32: ='1.3 Energievraag - JBDK'!U14 -> 63 | V32: ='1.3 Energievraag - JBDK'!V14 -> 63 | W32: ='1.3 Energievraag - JBDK'!W14 -> 63 | X32: ='1.3 Energievraag - JBDK'!X14 -> 63 | Y32: ='1.3 Energievraag - JBDK'!Y14 -> 63 | Z32: ='1.3 Energievraag - JBDK'!Z14 -> 63 | AA32: ='1.3 Energievraag - JBDK'!AA14 -> 63 | AB32: ='1.3 Energievraag - JBDK'!AB14 -> 63 | AC32: ='1.3 Energievraag - JBDK'!AC14 -> 63 | AD32: ='1.3 Energievraag - JBDK'!AD14 -> 63 | AE32: ='1.3 Energievraag - JBDK'!AE14 -> 63 | AF32: ='1.3 Energievraag - JBDK'!AF14 -> 63 | AG32: ='1.3 Energievraag - JBDK'!AG14 -> 63
B33: Warmtevraag - duurzaam systeem | C33: ='1.3 Energievraag - JBDK'!C15 -> 59.3712 | D33: ='1.3 Energievraag - JBDK'!D15 -> 237.4848 | E33: ='1.3 Energievraag - JBDK'!E15 -> 11.87424 | F33: ='1.3 Energievraag - JBDK'!F15 -> 104.76 | G33: ='1.3 Energievraag - JBDK'!G15 -> 32.4 | H33: ='1.3 Energievraag - JBDK'!H15 -> 59.3712 | I33: ='1.3 Energievraag - JBDK'!I15 -> 59.3712 | J33: ='1.3 Energievraag - JBDK'!J15 -> 59.3712 | K33: ='1.3 Energievraag - JBDK'!K15 -> 59.3712 | L33: ='1.3 Energievraag - JBDK'!L15 -> 44.1 | M33: ='1.3 Energievraag - JBDK'!M15 -> 61.11 | N33: ='1.3 Energievraag - JBDK'!N15 -> 59.3712 | O33: ='1.3 Energievraag - JBDK'!O15 -> 59.3712 | P33: ='1.3 Energievraag - JBDK'!P15 -> 59.3712 | Q33: ='1.3 Energievraag - JBDK'!Q15 -> 59.3712 | R33: ='1.3 Energievraag - JBDK'!R15 -> 59.3712 | S33: ='1.3 Energievraag - JBDK'!S15 -> 59.3712 | T33: ='1.3 Energievraag - JBDK'!T15 -> 59.3712 | U33: ='1.3 Energievraag - JBDK'!U15 -> 59.3712 | V33: ='1.3 Energievraag - JBDK'!V15 -> 59.3712 | W33: ='1.3 Energievraag - JBDK'!W15 -> 59.3712 | X33: ='1.3 Energievraag - JBDK'!X15 -> 59.3712 | Y33: ='1.3 Energievraag - JBDK'!Y15 -> 59.3712 | Z33: ='1.3 Energievraag - JBDK'!Z15 -> 59.3712 | AA33: ='1.3 Energievraag - JBDK'!AA15 -> 59.3712 | AB33: ='1.3 Energievraag - JBDK'!AB15 -> 59.3712 | AC33: ='1.3 Energievraag - JBDK'!AC15 -> 59.3712 | AD33: ='1.3 Energievraag - JBDK'!AD15 -> 59.3712 | AE33: ='1.3 Energievraag - JBDK'!AE15 -> 59.3712 | AF33: ='1.3 Energievraag - JBDK'!AF15 -> 63 | AG33: ='1.3 Energievraag - JBDK'!AG15 -> 59.3712
B34: Warmtelevering - aquathermie direct | C34: ='1.3 Energievraag - JBDK'!C38 -> 5.3802 | D34: ='1.3 Energievraag - JBDK'!D38 -> 21.5208 | E34: ='1.3 Energievraag - JBDK'!E38 -> 1.07604 | F34: ='1.3 Energievraag - JBDK'!F38 -> 9.2232 | G34: ='1.3 Energievraag - JBDK'!G38 -> 3.0744 | H34: ='1.3 Energievraag - JBDK'!H38 -> 5.3802 | I34: ='1.3 Energievraag - JBDK'!I38 -> 5.3802 | J34: ='1.3 Energievraag - JBDK'!J38 -> 5.3802 | K34: ='1.3 Energievraag - JBDK'!K38 -> 5.3802 | L34: ='1.3 Energievraag - JBDK'!L38 -> 5.3802 | M34: ='1.3 Energievraag - JBDK'!M38 -> 5.3802 | N34: ='1.3 Energievraag - JBDK'!N38 -> 59.3712 | O34: ='1.3 Energievraag - JBDK'!O38 -> 5.3802 | P34: ='1.3 Energievraag - JBDK'!P38 -> 5.3802 | Q34: ='1.3 Energievraag - JBDK'!Q38 -> 5.3802 | R34: ='1.3 Energievraag - JBDK'!R38 -> 5.3802 | S34: ='1.3 Energievraag - JBDK'!S38 -> 5.3802 | T34: ='1.3 Energievraag - JBDK'!T38 -> 5.3802 | U34: ='1.3 Energievraag - JBDK'!U38 -> 5.3802 | V34: ='1.3 Energievraag - JBDK'!V38 -> 5.3802 | W34: ='1.3 Energievraag - JBDK'!W38 -> 5.3802 | X34: ='1.3 Energievraag - JBDK'!X38 -> 5.3802 | Y34: ='1.3 Energievraag - JBDK'!Y38 -> 5.3802 | Z34: ='1.3 Energievraag - JBDK'!Z38 -> 5.3802 | AA34: ='1.3 Energievraag - JBDK'!AA38 -> 5.3802 | AB34: ='1.3 Energievraag - JBDK'!AB38 -> 5.3802 | AC34: ='1.3 Energievraag - JBDK'!AC38 -> 5.3802 | AD34: ='1.3 Energievraag - JBDK'!AD38 -> 59.3712 | AE34: ='1.3 Energievraag - JBDK'!AE38 -> 5.3802 | AF34: ='1.3 Energievraag - JBDK'!AF38 -> 5.3802 | AG34: ='1.3 Energievraag - JBDK'!AG38 -> 5.3802
B35: Warmtelevering - WKO | C35: ='1.3 Energievraag - JBDK'!C39 -> 53.991 | D35: ='1.3 Energievraag - JBDK'!D39 -> 215.964 | E35: ='1.3 Energievraag - JBDK'!E39 -> 10.7982 | F35: ='1.3 Energievraag - JBDK'!F39 -> 95.5368 | G35: ='1.3 Energievraag - JBDK'!G39 -> 29.3256 | H35: ='1.3 Energievraag - JBDK'!H39 -> 53.991 | I35: ='1.3 Energievraag - JBDK'!I39 -> 53.991 | J35: ='1.3 Energievraag - JBDK'!J39 -> 53.991 | K35: ='1.3 Energievraag - JBDK'!K39 -> 53.991 | L35: ='1.3 Energievraag - JBDK'!L39 -> 38.7198 | M35: ='1.3 Energievraag - JBDK'!M39 -> 53.991 | N35: ='1.3 Energievraag - JBDK'!N39 -> 0 | O35: ='1.3 Energievraag - JBDK'!O39 -> 53.991 | P35: ='1.3 Energievraag - JBDK'!P39 -> 53.991 | Q35: ='1.3 Energievraag - JBDK'!Q39 -> 53.991 | R35: ='1.3 Energievraag - JBDK'!R39 -> 53.991 | S35: ='1.3 Energievraag - JBDK'!S39 -> 53.991 | T35: ='1.3 Energievraag - JBDK'!T39 -> 53.991 | U35: ='1.3 Energievraag - JBDK'!U39 -> 53.991 | V35: ='1.3 Energievraag - JBDK'!V39 -> 53.991 | W35: ='1.3 Energievraag - JBDK'!W39 -> 53.991 | X35: ='1.3 Energievraag - JBDK'!X39 -> 53.991 | Y35: ='1.3 Energievraag - JBDK'!Y39 -> 53.991 | Z35: ='1.3 Energievraag - JBDK'!Z39 -> 53.991 | AA35: ='1.3 Energievraag - JBDK'!AA39 -> 53.991 | AB35: ='1.3 Energievraag - JBDK'!AB39 -> 53.991 | AC35: ='1.3 Energievraag - JBDK'!AC39 -> 53.991 | AD35: ='1.3 Energievraag - JBDK'!AD39 -> 0 | AE35: ='1.3 Energievraag - JBDK'!AE39 -> 53.991 | AF35: ='1.3 Energievraag - JBDK'!AF39 -> 57.6198 | AG35: ='1.3 Energievraag - JBDK'!AG39 -> 53.991
B36: Warmtevraag - pieklast | C36: ='1.3 Energievraag - JBDK'!C40 -> 3.6288 | D36: ='1.3 Energievraag - JBDK'!D40 -> 14.5152 | E36: ='1.3 Energievraag - JBDK'!E40 -> 0.72576 | F36: ='1.3 Energievraag - JBDK'!F40 -> 3.24 | G36: ='1.3 Energievraag - JBDK'!G40 -> 3.6 | H36: ='1.3 Energievraag - JBDK'!H40 -> 3.6288 | I36: ='1.3 Energievraag - JBDK'!I40 -> 3.6288 | J36: ='1.3 Energievraag - JBDK'!J40 -> 3.6288 | K36: ='1.3 Energievraag - JBDK'!K40 -> 3.6288 | L36: ='1.3 Energievraag - JBDK'!L40 -> 18.9 | M36: ='1.3 Energievraag - JBDK'!M40 -> 1.89 | N36: ='1.3 Energievraag - JBDK'!N40 -> 3.6288 | O36: ='1.3 Energievraag - JBDK'!O40 -> 3.6288 | P36: ='1.3 Energievraag - JBDK'!P40 -> 3.6288 | Q36: ='1.3 Energievraag - JBDK'!Q40 -> 3.6288 | R36: ='1.3 Energievraag - JBDK'!R40 -> 3.6288 | S36: ='1.3 Energievraag - JBDK'!S40 -> 3.6288 | T36: ='1.3 Energievraag - JBDK'!T40 -> 3.6288 | U36: ='1.3 Energievraag - JBDK'!U40 -> 3.6288 | V36: ='1.3 Energievraag - JBDK'!V40 -> 3.6288 | W36: ='1.3 Energievraag - JBDK'!W40 -> 3.6288 | X36: ='1.3 Energievraag - JBDK'!X40 -> 3.6288 | Y36: ='1.3 Energievraag - JBDK'!Y40 -> 3.6288 | Z36: ='1.3 Energievraag - JBDK'!Z40 -> 3.6288 | AA36: ='1.3 Energievraag - JBDK'!AA40 -> 3.6288 | AB36: ='1.3 Energievraag - JBDK'!AB40 -> 3.6288 | AC36: ='1.3 Energievraag - JBDK'!AC40 -> 3.6288 | AD36: ='1.3 Energievraag - JBDK'!AD40 -> 3.6288 | AE36: ='1.3 Energievraag - JBDK'!AE40 -> 3.6288 | AF36: ='1.3 Energievraag - JBDK'!AF40 -> 0 | AG36: ='1.3 Energievraag - JBDK'!AG40 -> 3.6288
B38: TECHNISCHE KENMERKEN | C38: Basis berekening | D38: 2 | E38: 3 | F38: 4 | G38: 5 | H38: 6 | I38: 7 | J38: 8 | K38: 9 | L38: 10 | M38: 11 | N38: 12 | O38: 13 | P38: 14 | Q38: 15 | R38: 16 | S38: 17 | T38: 18 | U38: 19 | V38: 20 | W38: 21 | X38: 22 | Y38: 23 | Z38: 24 | AA38: 25 | AB38: 26 | AC38: 27 | AD38: 28 | AE38: 29 | AF38: 30 | AG38: 31 | AH38: Referenties
B40: Oppervlakte techniekruimte Energiecentrale | C40: 400 | D40: 1500 | E40: 150 | F40: =$C$40 -> 400 | G40: 400 | H40: 400 | I40: 400 | J40: 400 | K40: 400 | L40: 350 | M40: 600 | N40: 350 | O40: =$C$40 -> 400 | P40: 400 | Q40: 400 | R40: 400 | S40: 400 | T40: 400 | U40: 400 | V40: 400 | W40: 400 | X40: 400 | Y40: 400 | Z40: 400 | AA40: 400 | AB40: 400 | AC40: 400 | AD40: 400 | AE40: 400 | AF40: 50 | AG40: 400 | AH40: Kengetallen Techniplan / IF Technology
B42: WP in energiecentrale
B43: vollasturen energiecentrale | C43: =C9 -> 3500 | D43: ='1.3 Energievraag - JBDK'!D21 -> 3500 | E43: ='1.3 Energievraag - JBDK'!E21 -> 3500 | F43: ='1.3 Energievraag - JBDK'!F21 -> 6000 | G43: ='1.3 Energievraag - JBDK'!G21 -> 2000 | H43: ='1.3 Energievraag - JBDK'!H21 -> 3500 | I43: ='1.3 Energievraag - JBDK'!I21 -> 3500 | J43: ='1.3 Energievraag - JBDK'!J21 -> 3500 | K43: ='1.3 Energievraag - JBDK'!K21 -> 3500 | L43: ='1.3 Energievraag - JBDK'!L21 -> 3500 | M43: ='1.3 Energievraag - JBDK'!M21 -> 3500 | N43: ='1.3 Energievraag - JBDK'!N21 -> 3500 | O43: ='1.3 Energievraag - JBDK'!O21 -> 3500 | P43: ='1.3 Energievraag - JBDK'!P21 -> 3500 | Q43: ='1.3 Energievraag - JBDK'!Q21 -> 3500 | R43: ='1.3 Energievraag - JBDK'!R21 -> 3500 | S43: ='1.3 Energievraag - JBDK'!S21 -> 3500 | T43: ='1.3 Energievraag - JBDK'!T21 -> 3500 | U43: ='1.3 Energievraag - JBDK'!U21 -> 3500 | V43: ='1.3 Energievraag - JBDK'!V21 -> 3500 | W43: ='1.3 Energievraag - JBDK'!W21 -> 3500 | X43: ='1.3 Energievraag - JBDK'!X21 -> 3500 | Y43: ='1.3 Energievraag - JBDK'!Y21 -> 3500 | Z43: ='1.3 Energievraag - JBDK'!Z21 -> 3500 | AA43: ='1.3 Energievraag - JBDK'!AA21 -> 3500 | AB43: ='1.3 Energievraag - JBDK'!AB21 -> 3500 | AC43: ='1.3 Energievraag - JBDK'!AC21 -> 3500 | AD43: ='1.3 Energievraag - JBDK'!AD21 -> 3500 | AE43: ='1.3 Energievraag - JBDK'!AE21 -> 3500 | AF43: ='1.3 Energievraag - JBDK'!AF21 -> 3500 | AG43: =AG9 -> 3500
B44: (S)COP (WP) | C44: 3 | D44: 3 | E44: 3 | F44: 3 | G44: 3 | H44: 3 | I44: 3 | J44: 3 | K44: 3 | L44: 3 | M44: 3 | N44: 3 | O44: 3 | P44: 3 | Q44: 3 | R44: 3 | S44: 3 | T44: 3 | U44: 3 | V44: 3 | W44: 3 | X44: 3 | Y44: 3 | Z44: 3 | AA44: 3 | AB44: 3 | AC44: 3 | AD44: 3 | AE44: 5 | AF44: 100000000000000 | AG44: 3 | AH44: Kengetallen Techniplan / IF Technology
B45: Oppervlakte techniekruimte WP-centrale | C45: =C40*(1-C13)/(3/4) -> 266.6666667 | D45: =D40*(1-D13)/(3/4) -> 1000 | E45: 100 | F45: 266.6666667 | G45: 266.6666667 | H45: 266.6666667 | I45: 266.6666667 | J45: 266.6666667 | K45: 266.6666667 | L45: 140 | M45: 560 | N45: 233.3333333 | O45: 266.6666667 | P45: 266.6666667 | Q45: 266.6666667 | R45: 266.6666667 | S45: 266.6666667 | T45: 266.6666667 | U45: 266.6666667 | V45: 266.6666667 | W45: 266.6666667 | X45: 266.6666667 | Y45: 266.6666667 | Z45: 266.6666667 | AA45: 266.6666667 | AB45: 266.6666667 | AC45: 266.6666667 | AD45: =AD40*(1-AD13)/(3/4) -> 266.6666667 | AE45: 266.6666667 | AF45: =AF40*(1-AF13)/(3/4) -> 66.66666667 | AG45: =AG40*(1-AG13)/(3/4) -> 266.6666667 | AH45: Kengetallen Techniplan / IF Technology
B46: Totale energie condensor WP | C46: =C33 -> 59.3712 | D46: =D33 -> 237.4848 | E46: 11.87424 | F46: 104.76 | G46: 32.4 | H46: 59.3712 | I46: 59.3712 | J46: 59.3712 | K46: 59.3712 | L46: 44.1 | M46: 61.11 | N46: 59.3712 | O46: 59.3712 | P46: 59.3712 | Q46: 59.3712 | R46: 59.3712 | S46: 59.3712 | T46: 59.3712 | U46: 59.3712 | V46: 59.3712 | W46: 59.3712 | X46: 59.3712 | Y46: 59.3712 | Z46: 59.3712 | AA46: 59.3712 | AB46: 59.3712 | AC46: 59.3712 | AD46: =AD33 -> 59.3712 | AE46: 59.3712 | AF46: =AF33 -> 63 | AG46: =AG33 -> 59.3712
B47: Elektraverbruik WP-centrale | C47: =C33/C44 -> 19.7904 | D47: =D33/D44 -> 79.1616 | E47: =E33/E44 -> 3.95808 | F47: =F33/F44 -> 34.92 | G47: 10.8 | H47: 19.7904 | I47: 19.7904 | J47: 19.7904 | K47: 19.7904 | L47: =L33/L44 -> 14.7 | M47: 20.37 | N47: =N33/N44 -> 19.7904 | O47: 19.7904 | P47: 19.7904 | Q47: 19.7904 | R47: 19.7904 | S47: 19.7904 | T47: 19.7904 | U47: 19.7904 | V47: 19.7904 | W47: 19.7904 | X47: 19.7904 | Y47: 19.7904 | Z47: 19.7904 | AA47: 19.7904 | AB47: 19.7904 | AC47: 19.7904 | AD47: =AD33/AD44 -> 19.7904 | AE47: 11.87424 | AF47: =AF33/AF44 -> 6.3e-13 | AG47: =AG33/AG44 -> 19.7904
B48: Vermogen elektrisch warmtepomp | C48: =(C13*C8/C44)*1000 -> 833.3333333 | D48: =(D13*D8/D44)*1000 -> 3333.333333 | E48: =(E13*E8/E44)*1000 -> 166.6666667 | F48: =(F13*F8/F44)*1000 -> 833.3333333 | G48: 833.3333333 | H48: 833.3333333 | I48: 833.3333333 | J48: 833.3333333 | K48: 833.3333333 | L48: 1166.666667 | M48: 500 | N48: 833.3333333 | O48: 833.3333333 | P48: 833.3333333 | Q48: 833.3333333 | R48: 833.3333333 | S48: 833.3333333 | T48: 833.3333333 | U48: 833.3333333 | V48: 833.3333333 | W48: 833.3333333 | X48: 833.3333333 | Y48: 833.3333333 | Z48: 833.3333333 | AA48: 833.3333333 | AB48: 833.3333333 | AC48: 833.3333333 | AD48: =(AD13*AD8/AD44)*1000 -> 833.3333333 | AE48: 500 | AF48: =(AF13*AF8/AF44)*1000 -> 0 | AG48: =(AG13*AG8/AG44)*1000 -> 833.3333333
B51: Aquathermie
B52: vermogen aquathermie | C52: =(C33*((C44-1)/C44)/C10)/0.0036 -> 3.664888889 | D52: =(D33*((D44-1)/D44)/D10)/0.0036 -> 14.65955556 | E52: 0.7329777778 | F52: 6.466666667 | G52: 2 | H52: 4.397866667 | I52: 5.497333333 | J52: 3.664888889 | K52: 3.664888889 | L52: 2.722222222 | M52: 3.772222222 | N52: =(N33*((N44-1)/N44)/N10)/0.0036 -> 3.664888889 | O52: 3.664888889 | P52: 3.664888889 | Q52: 3.664888889 | R52: 3.664888889 | S52: 3.664888889 | T52: 3.664888889 | U52: 3.664888889 | V52: 3.664888889 | W52: 3.664888889 | X52: 3.664888889 | Y52: 3.664888889 | Z52: 3.664888889 | AA52: 3.664888889 | AB52: 3.664888889 | AC52: 3.664888889 | AD52: =(AD33*((AD44-1)/AD44)/AD10)/0.0036 -> 3.664888889 | AE52: 4.397866667 | AF52: =(AF33*((AF44-1)/AF44)/AF10)/0.0036 -> 5 | AG52: =(AG33*((AG44-1)/AG44)/AG10)/0.0036 -> 3.664888889
B53: temperatuurverschil | C53: =C11 -> 5 | D53: 5 | E53: 5 | F53: 5 | G53: 5 | H53: 5 | I53: 5 | J53: 10 | K53: 5 | L53: 5 | M53: 5 | N53: 5 | O53: 5 | P53: 5 | Q53: 5 | R53: 5 | S53: 5 | T53: 5 | U53: 5 | V53: 5 | W53: 5 | X53: 5 | Y53: 5 | Z53: 5 | AA53: 5 | AB53: 5 | AC53: 5 | AD53: =AD11 -> 5 | AE53: 5 | AF53: =AF11 -> 5 | AG53: 5 | AH53: Kengetallen Techniplan / IF Technology
B54: volumestroom | C54: =C52*1000/(4.2*C53) -> 174.5185185 | D54: =D52*1000/(4.2*D53) -> 698.0740741 | E54: =E52*1000/(4.2*E53) -> 34.9037037 | F54: 307.9365079 | G54: 95.23809524 | H54: 209.4222222 | I54: 261.7777778 | J54: 87.25925926 | K54: 174.5185185 | L54: 129.6296296 | M54: 179.6296296 | N54: 174.5185185 | O54: 174.5185185 | P54: 174.5185185 | Q54: 174.5185185 | R54: 174.5185185 | S54: 174.5185185 | T54: 174.5185185 | U54: 174.5185185 | V54: 174.5185185 | W54: 174.5185185 | X54: 174.5185185 | Y54: 174.5185185 | Z54: 174.5185185 | AA54: 174.5185185 | AB54: 174.5185185 | AC54: 174.5185185 | AD54: =AD52*1000/(4.2*AD53) -> 174.5185185 | AE54: =AE52*1000/(4.2*AE53) -> 209.4222222 | AF54: =AF52*1000/(4.2*AF53) -> 238.0952381 | AG54: =AG52*1000/(4.2*AG53) -> 174.5185185
B55: Benodigde capaciteit aquathermie | C55: =C54*3.6 -> 628.2666667 | D55: 2513.066667 | E55: 125.6533333 | F55: 1108.571429 | G55: 342.8571429 | H55: 753.92 | I55: 942.4 | J55: 314.1333333 | K55: 628.2666667 | L55: 466.6666667 | M55: 646.6666667 | N55: 628.2666667 | O55: 628.2666667 | P55: 628.2666667 | Q55: 628.2666667 | R55: 628.2666667 | S55: 628.2666667 | T55: 628.2666667 | U55: 628.2666667 | V55: 628.2666667 | W55: 628.2666667 | X55: 628.2666667 | Y55: 628.2666667 | Z55: 628.2666667 | AA55: 628.2666667 | AB55: 628.2666667 | AC55: 628.2666667 | AD55: =AD54*3.6 -> 628.2666667 | AE55: =AE54*3.6 -> 753.92 | AF55: =AF54*3.6 -> 857.1428571 | AG55: =AG54*3.6 -> 628.2666667
B57: Energie bron aquathermie ontladen | C57: =C$46*((C$44-1)/C$44) -> 39.5808 | D57: 158.3232 | E57: 7.91616 | F57: 69.84 | G57: 21.6 | H57: 39.5808 | I57: 39.5808 | J57: 39.5808 | K57: 39.5808 | L57: 29.4 | M57: 40.74 | N57: 39.5808 | O57: 39.5808 | P57: 39.5808 | Q57: 39.5808 | R57: 39.5808 | S57: 39.5808 | T57: 39.5808 | U57: 39.5808 | V57: 39.5808 | W57: 39.5808 | X57: 39.5808 | Y57: 39.5808 | Z57: 39.5808 | AA57: 39.5808 | AB57: 39.5808 | AC57: 39.5808 | AD57: 39.5808 | AE57: =AE$46*((AE$44-1)/AE$44) -> 47.49696 | AF57: 63 | AG57: 39.5808
B58: COPaquathermie-systeem | C58: 50 | D58: 50 | E58: 50 | F58: 50 | G58: 50 | H58: 50 | I58: 50 | J58: 50 | K58: 50 | L58: 50 | M58: 50 | N58: 50 | O58: 50 | P58: 50 | Q58: 50 | R58: 50 | S58: 50 | T58: 50 | U58: 50 | V58: 50 | W58: 50 | X58: 50 | Y58: 50 | Z58: 50 | AA58: 50 | AB58: 50 | AC58: 50 | AD58: 50 | AE58: 50 | AF58: 50 | AG58: 50 | AH58: Kengetallen Techniplan / IF Technology
B59: Elektraverbruik aquathermie | C59: =(C57*2)/C58 -> 1.583232 | D59: 6.332928 | E59: 0.3166464 | F59: 2.7936 | G59: 0.864 | H59: 1.583232 | I59: 1.583232 | J59: 1.583232 | K59: 1.583232 | L59: 1.176 | M59: 1.6296 | N59: 1.583232 | O59: 1.583232 | P59: 1.583232 | Q59: 1.583232 | R59: 1.583232 | S59: 1.583232 | T59: 1.583232 | U59: 1.583232 | V59: 1.583232 | W59: 1.583232 | X59: 1.583232 | Y59: 1.583232 | Z59: 1.583232 | AA59: 1.583232 | AB59: 1.583232 | AC59: 1.583232 | AD59: =(AD57*2)/AD58 -> 1.583232 | AE59: 1.8998784 | AF59: =(AF57*2)/AF58 -> 2.52 | AG59: 1.583232
B61: WKO
B62: Diepte aquifer | C62: =C16 -> 150 | D62: 150 | E62: 150 | F62: 150 | G62: 150 | H62: 150 | I62: 150 | J62: 150 | K62: 150 | L62: 150 | M62: 150 | O62: =O16 -> 150 | P62: 150 | Q62: 230 | R62: 80 | S62: 150 | T62: 150 | U62: 150 | V62: 150 | W62: 150 | X62: 150 | Y62: 150 | Z62: 150 | AA62: 150 | AB62: 150 | AC62: 150 | AE62: 150 | AF62: =AF16 -> 150 | AG62: 150
B63: vermogen verdamper | C63: =(1-C13)*C8*((C44-1)/C44) -> 1.666666667 | D63: 6.666666667 | E63: 0.3333333333 | F63: 1.666666667 | G63: 1.666666667 | H63: 1.666666667 | I63: 1.666666667 | J63: 1.666666667 | K63: 1.666666667 | L63: 1 | M63: 2.333333333 | O63: =(1-O13)*O8*((O44-1)/O44) -> 1.666666667 | P63: 1.666666667 | Q63: 1.666666667 | R63: 1.666666667 | S63: 1.666666667 | T63: 1.666666667 | U63: 1.666666667 | V63: 1.666666667 | W63: 1.666666667 | X63: 1.666666667 | Y63: 1.666666667 | Z63: 1.666666667 | AA63: 1.666666667 | AB63: 1.666666667 | AC63: 1.666666667 | AE63: 2 | AF63: =(1-AF13)*AF8*((AF44-1)/AF44) -> 5 | AG63: =(1-AG13)*AG8*((AG44-1)/AG44) -> 1.666666667
B64: temperatuurverschil | C64: =C87 -> 6 | D64: 6 | E64: 6 | F64: 6 | G64: 6 | H64: 6 | I64: 6 | J64: 6 | K64: 6 | L64: 6 | M64: 6 | O64: =O87 -> 6 | P64: 6 | Q64: 6 | R64: 6 | S64: 6 | T64: 6 | U64: 6 | V64: 6 | W64: 6 | X64: 6 | Y64: 6 | Z64: 6 | AA64: 6 | AB64: 6 | AC64: 6 | AE64: 6 | AF64: =AF87 -> 6 | AG64: 6 | AH64: Kengetallen Techniplan / IF Technology
B65: volumestroom | C65: =C63*1000/(4.2*C64) -> 66.13756614 | D65: =D63*1000/(4.2*D64) -> 264.5502646 | E65: 13.22751323 | F65: 66.13756614 | G65: 66.13756614 | H65: 66.13756614 | I65: 66.13756614 | J65: 66.13756614 | K65: 66.13756614 | L65: =L63*1000/(4.2*L64) -> 39.68253968 | M65: 92.59259259 | O65: 66.13756614 | P65: 66.13756614 | Q65: 66.13756614 | R65: 66.13756614 | S65: 66.13756614 | T65: 66.13756614 | U65: 66.13756614 | V65: 66.13756614 | W65: 66.13756614 | X65: 66.13756614 | Y65: 66.13756614 | Z65: 66.13756614 | AA65: 66.13756614 | AB65: 66.13756614 | AC65: 66.13756614 | AE65: 79.36507937 | AF65: =AF63*1000/(4.2*AF64) -> 198.4126984 | AG65: =AG63*1000/(4.2*AG64) -> 66.13756614
B66: Benodigde capaciteit | C66: =C65*3.6 -> 238.0952381 | D66: =D65*3.6 -> 952.3809524 | E66: 47.61904762 | F66: =F65*3.6 -> 238.0952381 | G66: 238.0952381 | H66: 238.0952381 | I66: 238.0952381 | J66: 238.0952381 | K66: 238.0952381 | L66: =L65*3.6 -> 142.8571429 | M66: =M65*3.6 -> 333.3333333 | O66: 238.0952381 | P66: 238.0952381 | Q66: 238.0952381 | R66: 238.0952381 | S66: 238.0952381 | T66: 238.0952381 | U66: 238.0952381 | V66: 238.0952381 | W66: 238.0952381 | X66: 238.0952381 | Y66: 238.0952381 | Z66: 238.0952381 | AA66: 238.0952381 | AB66: 238.0952381 | AC66: 238.0952381 | AE66: 285.7142857 | AF66: =AF65*3.6 -> 714.2857143 | AG66: =AG65*3.6 -> 238.0952381
B67: Maximale capaciteit per doublet | C67: =C15 -> 90 | D67: 90 | E67: 90 | F67: 90 | G67: 90 | H67: 90 | I67: 90 | J67: 90 | K67: 90 | L67: 90 | M67: 90 | O67: =O15 -> 250 | P67: 50 | Q67: 90 | R67: 90 | S67: 90 | T67: 90 | U67: 90 | V67: 90 | W67: 90 | X67: 90 | Y67: 90 | Z67: 90 | AA67: 90 | AB67: 90 | AC67: 90 | AE67: 90 | AF67: =AF15 -> 90 | AG67: 90
B68: Aantal doubletten | C68: =ROUNDUP(C66/C67,0) -> 3 | D68: =ROUNDUP(D66/D67,0) -> 11 | E68: =ROUNDUP(E66/E67,0) -> 1 | F68: 3 | G68: 3 | H68: =ROUNDUP(H66/H67,0) -> 3 | I68: 3 | J68: 3 | K68: 3 | L68: 2 | M68: 4 | O68: 1 | P68: 5 | Q68: 3 | R68: 3 | S68: 3 | T68: 3 | U68: 3 | V68: 3 | W68: 3 | X68: 3 | Y68: 3 | Z68: 3 | AA68: 3 | AB68: 3 | AC68: 3 | AE68: 4 | AF68: =ROUNDUP(AF66/AF67,0) -> 8 | AG68: =ROUNDUP(AG66/AG67,0) -> 3
B70: Energie bron WKO ontladen | C70: =C$46*((C$44-1)/C$44) -> 39.5808 | D70: 158.3232 | E70: 7.91616 | F70: 69.84 | G70: 21.6 | H70: 39.5808 | I70: 39.5808 | J70: 39.5808 | K70: 39.5808 | L70: 29.4 | M70: 40.74 | O70: 39.5808 | P70: 39.5808 | Q70: 39.5808 | R70: 39.5808 | S70: 39.5808 | T70: 39.5808 | U70: 39.5808 | V70: 39.5808 | W70: 39.5808 | X70: 39.5808 | Y70: 39.5808 | Z70: 39.5808 | AA70: 39.5808 | AB70: 39.5808 | AC70: 39.5808 | AE70: 47.49696 | AF70: 63 | AG70: 39.5808
B71: COP WKO-systeem | C71: 40 | D71: 40 | E71: 40 | F71: 40 | G71: 40 | H71: 40 | I71: 40 | J71: 40 | K71: 40 | L71: 40 | M71: 40 | O71: 40 | P71: 40 | Q71: 40 | R71: 40 | S71: 40 | T71: 40 | U71: 40 | V71: 40 | W71: 40 | X71: 40 | Y71: 40 | Z71: 40 | AA71: 40 | AB71: 40 | AC71: 40 | AE71: 40 | AF71: 40 | AG71: 40 | AH71: Kengetallen Techniplan / IF Technology
B72: Elektraverbruik WKO | C72: =(C70*2)/C71 -> 1.97904 | D72: 7.91616 | E72: 0.395808 | F72: 3.492 | G72: 1.08 | H72: 1.97904 | I72: 1.97904 | J72: 1.97904 | K72: 1.97904 | L72: 1.47 | M72: 2.037 | O72: 1.97904 | P72: 1.97904 | Q72: 1.97904 | R72: 1.97904 | S72: 1.97904 | T72: 1.97904 | U72: 1.97904 | V72: 1.97904 | W72: 1.97904 | X72: 1.97904 | Y72: 1.97904 | Z72: 1.97904 | AA72: 1.97904 | AB72: 1.97904 | AC72: 1.97904 | AE72: 2.374848 | AF72: =(AF70*2)/AF71 -> 3.15 | AG72: 1.97904
B74: Leidingtrace aquathermie + WKO
B75: vermogen verdamper (GKW) | C75: =(C33*((C44-1)/C44)/C10)/0.0036 -> 3.664888889 | D75: =(D33*((D44-1)/D44)/D10)/0.0036 -> 14.65955556 | E75: =(E33*((E44-1)/E44)/E10)/0.0036 -> 0.7329777778 | F75: 6.466666667 | G75: 2 | H75: 4.397866667 | I75: 5.497333333 | J75: 3.664888889 | K75: 3.664888889 | L75: 2.722222222 | M75: 3.772222222 | N75: 3.664888889 | O75: 3.664888889 | P75: 3.664888889 | Q75: 3.664888889 | R75: 3.664888889 | S75: 3.664888889 | T75: 3.664888889 | U75: 3.664888889 | V75: 3.664888889 | W75: 3.664888889 | X75: 3.664888889 | Y75: 3.664888889 | Z75: 3.664888889 | AA75: 3.664888889 | AB75: 3.664888889 | AC75: 3.664888889 | AD75: =(AD33*((AD44-1)/AD44)/AD10)/0.0036 -> 3.664888889 | AE75: 4.397866667 | AF75: =(AF33*((AF44-1)/AF44)/AF10)/0.0036 -> 5 | AG75: =(AG33*((AG44-1)/AG44)/AG10)/0.0036 -> 3.664888889
B76: temperatuurverschil (GKW) | C76: =C11 -> 5 | D76: 5 | E76: 5 | F76: 5 | G76: 5 | H76: 5 | I76: 5 | J76: 10 | K76: 5 | L76: 5 | M76: 5 | N76: 5 | O76: 5 | P76: 5 | Q76: 5 | R76: 5 | S76: 5 | T76: 5 | U76: 5 | V76: 5 | W76: 5 | X76: 5 | Y76: 5 | Z76: 5 | AA76: 5 | AB76: 5 | AC76: 5 | AD76: =AD11 -> 5 | AE76: 5 | AF76: =AF11 -> 5 | AG76: 5 | AH76: Kengetallen Techniplan / IF Technology
B77: volumestroom (GKW) | C77: =C75*1000/(4.2*C76) -> 174.5185185 | D77: =D75*1000/(4.2*D76) -> 698.0740741 | E77: 34.9037037 | F77: 307.9365079 | G77: 95.23809524 | H77: =H75*1000/(4.2*H76) -> 209.4222222 | I77: 261.7777778 | J77: 87.25925926 | K77: 174.5185185 | L77: =L75*1000/(4.2*L76) -> 129.6296296 | M77: 179.6296296 | N77: =N75*1000/(4.2*N76) -> 174.5185185 | O77: 174.5185185 | P77: 174.5185185 | Q77: 174.5185185 | R77: 174.5185185 | S77: 174.5185185 | T77: 174.5185185 | U77: 174.5185185 | V77: 174.5185185 | W77: 174.5185185 | X77: 174.5185185 | Y77: 174.5185185 | Z77: 174.5185185 | AA77: 174.5185185 | AB77: 174.5185185 | AC77: 174.5185185 | AD77: =AD75*1000/(4.2*AD76) -> 174.5185185 | AE77: 209.4222222 | AF77: =AF75*1000/(4.2*AF76) -> 238.0952381 | AG77: =AG75*1000/(4.2*AG76) -> 174.5185185
B78: leidingdiameter (GKW) | C78: DN400 | D78: DN400 | E78: DN125 | F78: DN500 | G78: DN250 | H78: DN300 | I78: DN400 | J78: DN250 | K78: DN400 | L78: DN300 | M78: DN400 | N78: DN400 | O78: DN400 | P78: DN400 | Q78: DN400 | R78: DN400 | S78: DN400 | T78: DN400 | U78: DN400 | V78: DN400 | W78: DN400 | X78: DN400 | Y78: DN400 | Z78: DN400 | AA78: DN400 | AB78: DN400 | AC78: DN400 | AD78: DN400 | AE78: DN400 | AF78: DN500 | AG78: DN400 | AH78: Kengetallen Techniplan / IF Technology
B79: leidingweerstand (GKW) | C79: 121 | D79: 121 | E79: 147 | F79: 95 | G79: 115 | H79: 113 | I79: 121 | J79: 115 | K79: 121 | L79: 113 | M79: 121 | N79: 121 | O79: 121 | P79: 121 | Q79: 121 | R79: 121 | S79: 121 | T79: 121 | U79: 121 | V79: 121 | W79: 121 | X79: 121 | Y79: 121 | Z79: 121 | AA79: 121 | AB79: 121 | AC79: 121 | AD79: 121 | AE79: 121 | AF79: 95 | AG79: 121 | AH79: Kengetallen Techniplan / IF Technology
B80: Leidingwerk tussen TEO en TR (GKW) | C80: =IF(C17="500 m + gestuurde boring",$C$17/1000,C17/1000) -> 0.5 | D80: 0.5 | E80: 0.5 | F80: 0.5 | G80: 0.5 | H80: 0.5 | I80: 0.5 | J80: 0.5 | K80: 0.5 | L80: 0.5 | M80: 0.5 | N80: 0.5 | O80: 0.5 | P80: 0.5 | Q80: 0.5 | R80: 0.5 | S80: 2 | T80: 0.5 | U80: 0.5 | V80: 0.5 | W80: 0.5 | X80: 0.5 | Y80: 0.5 | Z80: 0.5 | AA80: 0.5 | AB80: 0.5 | AC80: 0.5 | AD80: =IF(AD17="500 m + gestuurde boring",$C$17/1000,AD17/1000) -> 0.5 | AE80: 0.5 | AF80: =IF(AF17="500 m + gestuurde boring",$C$17/1000,AF17/1000) -> 0.5 | AG80: 0.5
B81: totale weerstand (GKW) | C81: =C80*2*C79*1.1 -> 133.1 | D81: =D80*2*D79*1.1 -> 133.1 | E81: 161.7 | F81: 104.5 | G81: 126.5 | H81: 124.3 | I81: 133.1 | J81: 126.5 | K81: 133.1 | L81: =L80*2*L79*1.1 -> 124.3 | M81: 133.1 | N81: =N80*2*N79*1.1 -> 133.1 | O81: 133.1 | P81: 133.1 | Q81: =Q80*2*Q79*1.1 -> 133.1 | R81: 133.1 | S81: 532.4 | T81: 133.1 | U81: 133.1 | V81: 133.1 | W81: 133.1 | X81: 133.1 | Y81: 133.1 | Z81: 133.1 | AA81: 133.1 | AB81: 133.1 | AC81: 133.1 | AD81: =AD80*2*AD79*1.1 -> 133.1 | AE81: 133.1 | AF81: =AF80*2*AF79*1.1 -> 104.5 | AG81: =AG80*2*AG79*1.1 -> 133.1
B82: pomprendement totaal (GKW) | C82: 0.75 | D82: 0.75 | E82: 0.75 | F82: 0.75 | G82: 0.75 | H82: 0.75 | I82: 0.75 | J82: 0.75 | K82: 0.75 | L82: 0.75 | M82: 0.75 | N82: 0.75 | O82: 0.75 | P82: 0.75 | Q82: 0.75 | R82: 0.75 | S82: 0.75 | T82: 0.75 | U82: 0.75 | V82: 0.75 | W82: 0.75 | X82: 0.75 | Y82: 0.75 | Z82: 0.75 | AA82: 0.75 | AB82: 0.75 | AC82: 0.75 | AD82: 0.75 | AE82: 0.75 | AF82: 0.75 | AG82: 0.75 | AH82: Kengetallen Techniplan / IF Technology
B83: pompvermogen (GKW) | C83: =(C81*C77/1000)/C82 -> 30.97121975 | D83: =(D81*D77/1000)/D82 -> 123.884879 | E83: 7.525238519 | F83: 42.90582011 | G83: 16.06349206 | H83: 34.70824296 | I83: 46.45682963 | J83: 14.7177284 | K83: 30.97121975 | L83: =(L81*L77/1000)/L82 -> 21.48395062 | M83: 31.8782716 | N83: =(N81*N77/1000)/N82 -> 30.97121975 | O83: 30.97121975 | P83: 30.97121975 | Q83: 30.97121975 | R83: 30.97121975 | S83: 123.884879 | T83: 30.97121975 | U83: 30.97121975 | V83: 30.97121975 | W83: 30.97121975 | X83: 30.97121975 | Y83: 30.97121975 | Z83: 30.97121975 | AA83: 30.97121975 | AB83: 30.97121975 | AC83: 30.97121975 | AD83: =(AD81*AD77/1000)/AD82 -> 30.97121975 | AE83: 37.1654637 | AF83: =(AF81*AF77/1000)/AF82 -> 33.17460317 | AG83: =(AG81*AG77/1000)/AG82 -> 30.97121975
B84: COP distributiepomp | C84: 55 | D84: 55 | E84: 55 | F84: 55 | G84: 55 | H84: 55 | I84: 55 | J84: 55 | K84: 55 | L84: 55 | M84: 55 | N84: 55 | O84: 55 | P84: 55 | Q84: 55 | R84: 55 | S84: 55 | T84: 55 | U84: 55 | V84: 55 | W84: 55 | X84: 55 | Y84: 55 | Z84: 55 | AA84: 55 | AB84: 55 | AC84: 55 | AD84: 55 | AE84: 55 | AF84: 55 | AG84: 55 | AH84: Kengetallen Techniplan / IF Technology
B86: vermogen verdamper (WKO) | C86: =C29*((C44-1)/C44) -> 1.666666667 | D86: 6.666666667 | E86: 0.3333333333 | F86: 1.666666667 | G86: 1.666666667 | H86: 1.666666667 | I86: 1.666666667 | J86: 1.666666667 | K86: 1.666666667 | L86: 1 | M86: 2.333333333 | O86: =O29*((O44-1)/O44) -> 1.666666667 | P86: 1.666666667 | Q86: 1.666666667 | R86: 1.666666667 | S86: 1.666666667 | T86: 1.666666667 | U86: 1.666666667 | V86: 1.666666667 | W86: 1.666666667 | X86: 1.666666667 | Y86: 1.666666667 | Z86: 1.666666667 | AA86: 1.666666667 | AB86: 1.666666667 | AC86: 1.666666667 | AE86: 2 | AF86: =AF29*((AF44-1)/AF44) -> 5 | AG86: 1.666666667
B87: temperatuurverschil (WKO) | C87: 6 | D87: 6 | E87: 6 | F87: 6 | G87: 6 | H87: 6 | I87: 6 | J87: 6 | K87: 6 | L87: 6 | M87: 6 | O87: 6 | P87: 6 | Q87: 6 | R87: 6 | S87: 6 | T87: 6 | U87: 6 | V87: 6 | W87: 6 | X87: 6 | Y87: 6 | Z87: 6 | AA87: 6 | AB87: 6 | AC87: 6 | AE87: 6 | AF87: 6 | AG87: 6 | AH87: Kengetallen Techniplan / IF Technology
B88: vermogen laden WKO | C88: =C52 -> 3.664888889 | D88: 14.65955556 | E88: 0.7329777778 | F88: 6.466666667 | G88: 2 | H88: 4.397866667 | I88: 5.497333333 | J88: 3.664888889 | K88: 3.664888889 | L88: 2.722222222 | M88: 3.772222222 | O88: =O52 -> 3.664888889 | P88: 3.664888889 | Q88: 3.664888889 | R88: 3.664888889 | S88: 3.664888889 | T88: 3.664888889 | U88: 3.664888889 | V88: 3.664888889 | W88: 3.664888889 | X88: 3.664888889 | Y88: 3.664888889 | Z88: 3.664888889 | AA88: 3.664888889 | AB88: 3.664888889 | AC88: 3.664888889 | AE88: 4.397866667 | AF88: =AF52 -> 5 | AG88: 3.664888889
B89: temperatuurverschil laden (WKO) | C89: 10 | D89: 10 | E89: 10 | F89: 10 | G89: 10 | H89: 10 | I89: 10 | J89: 10 | K89: 10 | L89: 10 | M89: 10 | O89: 10 | P89: 10 | Q89: 10 | R89: 10 | S89: 10 | T89: 10 | U89: 10 | V89: 10 | W89: 10 | X89: 10 | Y89: 10 | Z89: 10 | AA89: 10 | AB89: 10 | AC89: 10 | AE89: 10 | AF89: 10 | AG89: 10
B90: volumestroom laden (WKO) | C90: =MAX(C86*1000/(4.2*C87),C88*1000/(4.2*C89)) -> 87.25925926 | D90: =MAX(D86*1000/(4.2*D87),D88*1000/(4.2*D89)) -> 349.037037 | E90: 17.45185185 | F90: 153.968254 | G90: 66.13756614 | H90: 104.7111111 | I90: 130.8888889 | J90: =MAX(J86*1000/(4.2*J87),J88*1000/(4.2*J89)) -> 87.25925926 | K90: =MAX(K86*1000/(4.2*K87),K88*1000/(4.2*K89)) -> 87.25925926 | L90: =MAX(L86*1000/(4.2*L87),L88*1000/(4.2*L89)) -> 64.81481481 | M90: =MAX(M86*1000/(4.2*M87),M88*1000/(4.2*M89)) -> 92.59259259 | O90: =MAX(O86*1000/(4.2*O87),O88*1000/(4.2*O89)) -> 87.25925926 | P90: =MAX(P86*1000/(4.2*P87),P88*1000/(4.2*P89)) -> 87.25925926 | Q90: =MAX(Q86*1000/(4.2*Q87),Q88*1000/(4.2*Q89)) -> 87.25925926 | R90: =MAX(R86*1000/(4.2*R87),R88*1000/(4.2*R89)) -> 87.25925926 | S90: =MAX(S86*1000/(4.2*S87),S88*1000/(4.2*S89)) -> 87.25925926 | T90: =MAX(T86*1000/(4.2*T87),T88*1000/(4.2*T89)) -> 87.25925926 | U90: 87.25925926 | V90: =MAX(V86*1000/(4.2*V87),V88*1000/(4.2*V89)) -> 87.25925926 | W90: =MAX(W86*1000/(4.2*W87),W88*1000/(4.2*W89)) -> 87.25925926 | X90: =MAX(X86*1000/(4.2*X87),X88*1000/(4.2*X89)) -> 87.25925926 | Y90: =MAX(Y86*1000/(4.2*Y87),Y88*1000/(4.2*Y89)) -> 87.25925926 | Z90: =MAX(Z86*1000/(4.2*Z87),Z88*1000/(4.2*Z89)) -> 87.25925926 | AA90: 87.25925926 | AB90: =MAX(AB86*1000/(4.2*AB87),AB88*1000/(4.2*AB89)) -> 87.25925926 | AC90: =MAX(AC86*1000/(4.2*AC87),AC88*1000/(4.2*AC89)) -> 87.25925926 | AE90: =MAX(AE86*1000/(4.2*AE87),AE88*1000/(4.2*AE89)) -> 104.7111111 | AF90: 198.4126984 | AG90: =MAX(AG86*1000/(4.2*AG87),AG88*1000/(4.2*AG89)) -> 87.25925926
B91: leidingdiameter (WKO) | C91: DN250 | D91: DN400 | E91: DN125 | F91: DN300 | G91: DN200 | H91: DN200 | I91: DN250 | J91: DN250 | K91: DN250 | L91: DN200 | M91: DN250 | O91: DN250 | P91: DN250 | Q91: DN250 | R91: DN250 | S91: DN250 | T91: DN250 | U91: DN250 | V91: DN250 | W91: DN250 | X91: DN250 | Y91: DN250 | Z91: DN250 | AA91: DN250 | AB91: DN250 | AC91: DN250 | AE91: DN250 | AF91: DN300 | AG91: DN250 | AH91: Kengetallen Techniplan / IF Technology
B92: leidingweerstand (WKO) | C92: 115 | D92: 121 | E92: 147 | F92: 113 | G92: 120.5 | H92: 120.5 | I92: 115 | J92: 115 | K92: 115 | L92: 120.5 | M92: 115 | O92: 115 | P92: 115 | Q92: 115 | R92: 115 | S92: 115 | T92: 115 | U92: 115 | V92: 115 | W92: 115 | X92: 115 | Y92: 115 | Z92: 115 | AA92: 115 | AB92: 115 | AC92: 115 | AE92: 115 | AF92: 113 | AG92: 115 | AH92: Kengetallen Techniplan / IF Technology
B93: Leidingwerk tussen bronnen en TR (WKO) | C93: =IF(C18="500 m + gestuurde boring",$C$18/1000,C18/1000) -> 0.5 | D93: 0.5 | E93: 0.5 | F93: 0.5 | G93: 0.5 | H93: 0.5 | I93: 0.5 | J93: 0.5 | K93: 0.5 | L93: 0.5 | M93: 0.5 | O93: =IF(O18="500 m + gestuurde boring",$C$18/1000,O18/1000) -> 0.5 | P93: 0.5 | Q93: 0.5 | R93: 0.5 | S93: 0.5 | T93: 0.5 | U93: 2 | V93: 0.5 | W93: 0.5 | X93: 0.5 | Y93: 0.5 | Z93: 0.5 | AA93: 0.5 | AB93: 0.5 | AC93: 0.5 | AE93: 0.5 | AF93: =IF(AF18="500 m + gestuurde boring",$C$18/1000,AF18/1000) -> 0.5 | AG93: 0.5
B94: totale weerstand (WKO) | C94: =C93*2*C92*1.1 -> 126.5 | D94: =D93*2*D92*1.1 -> 133.1 | E94: 161.7 | F94: 124.3 | G94: 132.55 | H94: 132.55 | I94: 126.5 | J94: 126.5 | K94: 126.5 | L94: =L93*2*L92*1.1 -> 132.55 | M94: 126.5 | O94: 126.5 | P94: 126.5 | Q94: 126.5 | R94: 126.5 | S94: 126.5 | T94: 126.5 | U94: 506 | V94: 126.5 | W94: 126.5 | X94: 126.5 | Y94: 126.5 | Z94: 126.5 | AA94: 126.5 | AB94: 126.5 | AC94: 126.5 | AE94: 126.5 | AF94: =AF93*2*AF92*1.1 -> 124.3 | AG94: =AG93*2*AG92*1.1 -> 126.5
B95: pomprendement totaal (WKO) | C95: 0.75 | D95: 0.75 | E95: 0.75 | F95: 0.75 | G95: 0.75 | H95: 0.75 | I95: 0.75 | J95: 0.75 | K95: 0.75 | L95: 0.75 | M95: 0.75 | O95: 0.75 | P95: 0.75 | Q95: 0.75 | R95: 0.75 | S95: 0.75 | T95: 0.75 | U95: 0.75 | V95: 0.75 | W95: 0.75 | X95: 0.75 | Y95: 0.75 | Z95: 0.75 | AA95: 0.75 | AB95: 0.75 | AC95: 0.75 | AE95: 0.75 | AF95: 0.75 | AG95: 0.75 | AH95: Kengetallen Techniplan / IF Technology
B96: pompvermogen (WKO) | C96: =(C94*C90/1000)/C95 -> 14.7177284 | D96: 61.94243951 | E96: 3.762619259 | F96: 25.51767196 | G96: 11.68871252 | H96: 18.5059437 | I96: 22.07659259 | J96: 14.7177284 | K96: 14.7177284 | L96: 11.45493827 | M96: 15.61728395 | O96: =(O94*O90/1000)/O95 -> 14.7177284 | P96: 14.7177284 | Q96: 14.7177284 | R96: 14.7177284 | S96: 14.7177284 | T96: 14.7177284 | U96: 58.87091358 | V96: 14.7177284 | W96: 14.7177284 | X96: 14.7177284 | Y96: 14.7177284 | Z96: 14.7177284 | AA96: 14.7177284 | AB96: 14.7177284 | AC96: 14.7177284 | AE96: 17.66127407 | AF96: =(AF94*AF90/1000)/AF95 -> 32.88359788 | AG96: 14.7177284
B97: COP distributiepomp | C97: 55 | D97: 55 | E97: 55 | F97: 55 | G97: 55 | H97: 55 | I97: 55 | J97: 55 | K97: 55 | L97: 55 | M97: 55 | O97: 55 | P97: 55 | Q97: 55 | R97: 55 | S97: 55 | T97: 55 | U97: 55 | V97: 55 | W97: 55 | X97: 55 | Y97: 55 | Z97: 55 | AA97: 55 | AB97: 55 | AC97: 55 | AE97: 55 | AF97: 55 | AG97: 55 | AH97: Kengetallen Techniplan / IF Technology
B99: E-/gas-ketels
B100: E-/gas-ketel vermogen | C100: =C8*C13 -> 2.5 | D100: 10 | E100: 0.5 | F100: 2.5 | G100: 2.5 | H100: 2.5 | I100: 2.5 | J100: 2.5 | K100: 2.5 | L100: 3.5 | M100: 1.5 | N100: 2.5 | O100: 2.5 | P100: 2.5 | Q100: 2.5 | R100: 2.5 | S100: 2.5 | T100: 2.5 | U100: 2.5 | V100: 2.5 | W100: 2.5 | X100: 2.5 | Y100: 2.5 | Z100: 2.5 | AA100: 2.5 | AB100: 2.5 | AC100: 2.5 | AD100: 2.5 | AE100: 2.5 | AF100: 0 | AG100: =AG8*AG13 -> 2.5
B101: Totale energie E-/gas-ketels | C101: =C36 -> 3.6288 | D101: 14.5152 | E101: 0.72576 | F101: 3.24 | G101: 3.6 | H101: 3.6288 | I101: 3.6288 | J101: 3.6288 | K101: 3.6288 | L101: 18.9 | M101: 1.89 | N101: 3.6288 | O101: 3.6288 | P101: 3.6288 | Q101: 3.6288 | R101: 3.6288 | S101: 3.6288 | T101: 3.6288 | U101: 3.6288 | V101: 3.6288 | W101: 3.6288 | X101: 3.6288 | Y101: 3.6288 | Z101: 3.6288 | AA101: 3.6288 | AB101: 3.6288 | AC101: 3.6288 | AD101: 3.6288 | AE101: 3.6288 | AF101: 0 | AG101: =AG36 -> 3.6288
B102: COP | C102: 1 | D102: 1 | E102: 1 | F102: 1 | G102: 1 | H102: 1 | I102: 1 | J102: 1 | K102: 1 | L102: 1 | M102: 1 | N102: 1 | O102: 1 | P102: 1 | Q102: 1 | R102: 1 | S102: 1 | T102: 1 | U102: 1 | V102: 1 | W102: 1 | X102: 1 | Y102: 1 | Z102: 1 | AA102: 1 | AB102: 1 | AC102: 1 | AD102: 1 | AE102: 1 | AF102: 1 | AG102: 1 | AH102: Kengetallen Techniplan / IF Technology
B103: Oppervlakte techniekruimte E-ketels | C103: =C40-C45 -> 133.3333333 | D103: 500 | E103: 50 | F103: 133.3333333 | G103: 133.3333333 | H103: 133.3333333 | I103: 133.3333333 | J103: 133.3333333 | K103: 133.3333333 | L103: 210 | M103: 40 | N103: 116.6666667 | O103: 133.3333333 | P103: 133.3333333 | Q103: 133.3333333 | R103: 133.3333333 | S103: 133.3333333 | T103: 133.3333333 | U103: 133.3333333 | V103: 133.3333333 | W103: 133.3333333 | X103: 133.3333333 | Y103: 133.3333333 | Z103: 133.3333333 | AA103: 133.3333333 | AB103: 133.3333333 | AC103: 133.3333333 | AD103: 133.3333333 | AE103: 133.3333333 | AF103: -16.66666667 | AG103: =AG40-AG45 -> 133.3333333
B104: Elektra-/gasverbruik ketels | C104: =IFERROR(C101/C102,0) -> 3.6288 | D104: =IFERROR(D101/D102,0) -> 14.5152 | E104: 0.72576 | F104: 3.24 | G104: 3.6 | H104: 3.6288 | I104: =IFERROR(I101/I102,0) -> 3.6288 | J104: 3.6288 | K104: 3.6288 | L104: 18.9 | M104: 1.89 | N104: =IFERROR(N101/N102,0) -> 3.6288 | O104: 3.6288 | P104: 3.6288 | Q104: 3.6288 | R104: 3.6288 | S104: 3.6288 | T104: 3.6288 | U104: 3.6288 | V104: 3.6288 | W104: 3.6288 | X104: 3.6288 | Y104: 3.6288 | Z104: 3.6288 | AA104: 3.6288 | AB104: 3.6288 | AC104: 3.6288 | AD104: =IFERROR(AD101/AD102,0) -> 3.6288 | AE104: 3.6288 | AF104: =IFERROR(AF101/AF102,0) -> 0 | AG104: =IFERROR(AG101/AG102,0) -> 3.6288
B107: BASISKOSTEN/INKOMSTEN | C107: Basis berekening | D107: 2 | E107: 3 | F107: 4 | G107: 5 | H107: 6 | I107: 7 | J107: 8 | K107: 9 | L107: 10 | M107: 11 | N107: 12 | O107: 13 | P107: 14 | Q107: 15 | R107: 16 | S107: 17 | T107: 18 | U107: 19 | V107: 20 | W107: 21 | X107: 22 | Y107: 23 | Z107: 24 | AA107: 25 | AB107: 26 | AC107: 27 | AD107: 28 | AE107: 29 | AF107: 30 | AG107: 31 | AH107: Referenties
C108: DN400 | D108: DN400 | E108: DN125 | F108: DN500 | G108: DN250 | H108: DN300 | I108: DN400 | J108: DN250 | K108: DN400 | L108: DN300 | M108: DN400 | N108: DN400 | O108: DN400 | P108: DN400 | Q108: DN400 | R108: DN400 | S108: DN400 | T108: DN400 | U108: DN400 | V108: DN400 | W108: DN400 | X108: DN400 | Y108: DN400 | Z108: DN400 | AA108: DN400 | AB108: DN400 | AC108: DN400 | AD108: DN400 | AE108: DN400 | AF108: =F108 -> DN500 | AG108: DN400
B109: Kostenkentallen | C109: DN250 | D109: DN400 | E109: DN125 | F109: DN300 | G109: DN200 | H109: DN200 | I109: DN250 | J109: DN250 | K109: DN250 | L109: DN200 | M109: DN250 | O109: DN250 | P109: DN250 | Q109: DN250 | R109: DN250 | S109: DN250 | T109: DN250 | U109: DN250 | V109: DN250 | W109: DN250 | X109: DN250 | Y109: DN250 | Z109: DN250 | AA109: DN250 | AB109: DN250 | AC109: DN250 | AD109: DN250 | AE109: DN250 | AF109: =F109 -> DN300 | AG109: DN250
B110: grondkosten leidingwerk (GKW) | C110: 150 | D110: 150 | E110: 100 | F110: 200 | G110: 150 | H110: 150 | I110: 150 | J110: 150 | K110: 150 | L110: 150 | M110: 150 | N110: 150 | O110: 150 | P110: 150 | Q110: 150 | R110: 150 | S110: 150 | T110: 0 | U110: 150 | V110: 0 | W110: 150 | X110: 150 | Y110: 150 | Z110: 150 | AA110: 150 | AB110: 150 | AC110: 150 | AD110: 150 | AE110: 150 | AF110: =F110 -> 200 | AG110: 150 | AH110: Kengetallen Techniplan / IF Technology
B111: grondkosten leidingwerk (WKO) | C111: 150 | D111: 150 | E111: 100 | F111: 150 | G111: 100 | H111: 100 | I111: 150 | J111: 150 | K111: 150 | L111: 100 | M111: 150 | N111: 0 | O111: 150 | P111: 150 | Q111: 150 | R111: 150 | S111: 150 | T111: 0 | U111: 150 | V111: 0 | W111: 150 | X111: 150 | Y111: 150 | Z111: 150 | AA111: 150 | AB111: 150 | AC111: 150 | AD111: 150 | AE111: 150 | AF111: =F111 -> 150 | AG111: 150 | AH111: Kengetallen Techniplan / IF Technology
B112: grondkosten innamepunt (WKO) | C112: 1000 | D112: 1000 | E112: 1000 | F112: 1000 | G112: 1000 | H112: 1000 | I112: 1000 | J112: 1000 | K112: 1000 | L112: 1000 | M112: 1000 | N112: 1000 | O112: 1000 | P112: 1000 | Q112: 1000 | R112: 1000 | S112: 1000 | T112: 1000 | U112: 1000 | V112: 1000 | W112: 1000 | X112: 1000 | Y112: 1000 | Z112: 1000 | AA112: 1000 | AB112: 1000 | AC112: 1000 | AD112: 1000 | AE112: 1000 | AF112: 1000 | AG112: 1000 | AH112: Kengetallen Techniplan / IF Technology
B113: bouwkosten leidingwerk (GKW) | C113: 550 | D113: 550 | E113: 150 | F113: 650 | G113: 250 | H113: 350 | I113: 550 | J113: 250 | K113: 550 | L113: 350 | M113: 550 | N113: 550 | O113: 550 | P113: 550 | Q113: 550 | R113: 550 | S113: 550 | T113: =550 * 60% -> 330 | U113: 550 | V113: =550 * 60% -> 330 | W113: =550 * 70% -> 385 | X113: 550 | Y113: 550 | Z113: 550 | AA113: 550 | AB113: 550 | AC113: 550 | AD113: 550 | AE113: 550 | AF113: 650 | AG113: 550 | AH113: Kengetallen Techniplan / IF Technology
B114: bouwkosten leidingwerk (WKO) | C114: 250 | D114: 550 | E114: 150 | F114: 350 | G114: 200 | H114: 200 | I114: 250 | J114: 250 | K114: 250 | L114: 200 | M114: 250 | N114: 0 | O114: 250 | P114: 250 | Q114: 250 | R114: 250 | S114: 250 | T114: =250 * 60% -> 150 | U114: 250 | V114: =250 * 60% -> 150 | W114: =250 * 70% -> 175 | X114: 250 | Y114: 250 | Z114: 250 | AA114: 250 | AB114: 250 | AC114: 250 | AD114: 250 | AE114: 250 | AF114: 350 | AG114: 250 | AH114: Kengetallen Techniplan / IF Technology
B116: Capaciteitsprijs aquathermie-systeem | C116: 730 | D116: 640 | E116: 1380 | F116: 665 | G116: 860 | H116: 760 | I116: 700 | J116: 885 | K116: 730 | L116: 780 | M116: 720 | N116: 990 | O116: 730 | P116: 730 | Q116: 730 | R116: 730 | S116: 730 | T116: 730 | U116: 730 | V116: 730 | W116: 730 | X116: 730 | Y116: 730 | Z116: 730 | AA116: 730 | AB116: 730 | AC116: 730 | AD116: 730 | AE116: 700 | AF116: =(F116+I116)/2 -> 682.5 | AG116: 730 | AH116: Kengetallen Techniplan / IF Technology
B118: Capaciteitsprijs warmtepomp | C118: 500 | D118: 500 | E118: 500 | F118: 500 | G118: 500 | H118: 500 | I118: 500 | J118: 500 | K118: 500 | L118: 500 | M118: 500 | N118: 500 | O118: 500 | P118: 500 | Q118: 500 | R118: 500 | S118: 500 | T118: 500 | U118: 500 | V118: 500 | W118: 500 | X118: 500 | Y118: 500 | Z118: 500 | AA118: 500 | AB118: 500 | AC118: 500 | AD118: 500 | AE118: 350 | AF118: 0 | AG118: 500 | AH118: Input warmtebedrijven
B119: Kosten WKO | C119: 3141.59 | D119: 2887.26 | E119: 4839.62 | F119: 3141.59 | G119: 3141.59 | H119: 3141.59 | I119: 3141.59 | J119: 3141.59 | K119: 3141.59 | L119: 3407.54 | M119: 3009.1 | N119: 2574.19 | O119: 1363.4 | P119: 4567.65 | Q119: 3620.58 | R119: 2742.01 | S119: 3141.59 | T119: 3141.59 | U119: 3141.59 | V119: 3141.59 | W119: 3141.59 | X119: 3141.59 | Y119: 3141.59 | Z119: 3141.59 | AA119: 3141.59 | AB119: 3141.59 | AC119: 3141.59 | AD119: 3141.59 | AE119: 3141.59 | AF119: 3141.59 | AG119: 3141.59 | AH119: Kengetallen Techniplan / IF Technology
B120: Capaciteitsprijs E-/gasketels | C120: 50 | D120: 50 | E120: 50 | F120: 50 | G120: 50 | H120: 50 | I120: 50 | J120: 50 | K120: 50 | L120: 50 | M120: 50 | N120: 50 | O120: 50 | P120: 50 | Q120: 50 | R120: 50 | S120: 50 | T120: 50 | U120: 50 | V120: 50 | W120: 50 | X120: 50 | Y120: 50 | Z120: 50 | AA120: 50 | AB120: 50 | AC120: 50 | AD120: 50 | AE120: 50 | AF120: 0 | AG120: 50 | AH120: Input warmtebedrijven
B121: Capaciteitsprijs bouwkundig | C121: 1100 | D121: 1100 | E121: 1100 | F121: 1100 | G121: 1100 | H121: 1100 | I121: 1100 | J121: 1100 | K121: 1100 | L121: 1100 | M121: 1100 | N121: 1100 | O121: 1100 | P121: 1100 | Q121: 1100 | R121: 1100 | S121: 1100 | T121: 1100 | U121: 1100 | V121: 1100 | W121: 1100 | X121: 1100 | Y121: 1100 | Z121: 1100 | AA121: 1100 | AB121: 1100 | AC121: 1100 | AD121: 1100 | AE121: 1100 | AF121: 1100 | AG121: 1100 | AH121: Kengetallen Techniplan / IF Technology
B122: Capaciteitsprijs elektra | C122: 110 | D122: 110 | E122: 110 | F122: 110 | G122: 110 | H122: 110 | I122: 110 | J122: 110 | K122: 110 | L122: 110 | M122: 110 | N122: 110 | O122: 110 | P122: 110 | Q122: 110 | R122: 110 | S122: 110 | T122: 110 | U122: 110 | V122: 110 | W122: 110 | X122: 110 | Y122: 110 | Z122: 110 | AA122: 110 | AB122: 110 | AC122: 110 | AD122: 110 | AE122: 110 | AF122: 110 | AG122: 110 | AH122: Kengetallen Techniplan / IF Technology
B123: Overig elektra | C123: 700 | D123: 700 | E123: 700 | F123: 700 | G123: 700 | H123: 700 | I123: 700 | J123: 700 | K123: 700 | L123: 700 | M123: 700 | N123: 700 | O123: 700 | P123: 700 | Q123: 700 | R123: 700 | S123: 700 | T123: 700 | U123: 700 | V123: 700 | W123: 700 | X123: 700 | Y123: 700 | Z123: 700 | AA123: 700 | AB123: 700 | AC123: 700 | AD123: 700 | AE123: 700 | AF123: 700 | AG123: 700 | AH123: Kengetallen Techniplan / IF Technology
B124: Vastrecht elektriciteit | C124: 50 | D124: 50 | E124: 50 | F124: 50 | G124: 50 | H124: 50 | I124: 50 | J124: 50 | K124: 50 | L124: 50 | M124: 50 | N124: 50 | O124: 50 | P124: 50 | Q124: 50 | R124: 50 | S124: 50 | T124: 50 | U124: 50 | V124: 50 | W124: 50 | X124: 50 | Y124: 50 | Z124: 50 | AA124: 50 | AB124: 50 | AC124: 50 | AD124: 50 | AE124: 50 | AF124: 50 | AG124: 50 | AH124: Kengetallen Techniplan / IF Technology
B125: Variabel verbruik elektriciteit | C125: 62 | D125: 62 | E125: 62 | F125: 62 | G125: 62 | H125: 62 | I125: 62 | J125: 62 | K125: 32 | L125: 62 | M125: 62 | N125: 62 | O125: 62 | P125: 62 | Q125: 62 | R125: 62 | S125: 62 | T125: 62 | U125: 62 | V125: 62 | W125: 62 | X125: =W125 * 119% -> 73.78 | Y125: =W125 * 85% -> 52.7 | Z125: 62 | AA125: 62 | AB125: 62 | AC125: 62 | AD125: 62 | AE125: 62 | AF125: 62 | AG125: 170 | AH125: Kengetallen Techniplan / IF Technology
C126: =C125/0.0036 -> 17222.22222 | D126: =D125/0.0036 -> 17222.22222 | E126: 17222.22222 | F126: 17222.22222 | G126: 17222.22222 | H126: 17222.22222 | I126: 17222.22222 | J126: 17222.22222 | K126: 8888.888889 | L126: 17222.22222 | M126: 17222.22222 | N126: 17222.22222 | O126: 17222.22222 | P126: 17222.22222 | Q126: 17222.22222 | R126: 17222.22222 | S126: 17222.22222 | T126: 17222.22222 | U126: 17222.22222 | V126: 17222.22222 | W126: 17222.22222 | X126: 20494.44444 | Y126: 14638.88889 | Z126: 17222.22222 | AA126: 17222.22222 | AB126: 17222.22222 | AC126: 17222.22222 | AD126: 17222.22222 | AE126: 17222.22222 | AF126: 17222.22222 | AG126: 47222.22222
B127: Energiebelasting | C127: 12.13 | D127: 12.13 | E127: 12.13 | F127: 12.13 | G127: 12.13 | H127: 12.13 | I127: 12.13 | J127: 12.13 | K127: 12.13 | L127: 12.13 | M127: 12.13 | N127: 12.13 | O127: 12.13 | P127: 12.13 | Q127: 12.13 | R127: 12.13 | S127: 12.13 | T127: 12.13 | U127: 12.13 | V127: 12.13 | W127: 12.13 | X127: 12.13 | Y127: 12.13 | Z127: 12.13 | AA127: 12.13 | AB127: 12.13 | AC127: 12.13 | AD127: 12.13 | AE127: 12.13 | AF127: 12.13 | AG127: 12.13 | AH127: Kengetallen Techniplan / IF Technology
B128: ODE | C128: 23.03 | D128: 23.03 | E128: 23.03 | F128: 23.03 | G128: 23.03 | H128: 23.03 | I128: 23.03 | J128: 23.03 | K128: 23.03 | L128: 23.03 | M128: 23.03 | N128: 23.03 | O128: 23.03 | P128: 23.03 | Q128: 23.03 | R128: 23.03 | S128: 23.03 | T128: 23.03 | U128: 23.03 | V128: 23.03 | W128: 23.03 | X128: 23.03 | Y128: 23.03 | Z128: 23.03 | AA128: 23.03 | AB128: 23.03 | AC128: 23.03 | AD128: 23.03 | AE128: 23.03 | AF128: 23.03 | AG128: 23.03 | AH128: Kengetallen Techniplan / IF Technology
B129: Samengevoegd variabel energietarief | C129: =C125+C127+C128 -> 97.16 | D129: =D125+D127+D128 -> 97.16 | E129: 97.16 | F129: 97.16 | G129: 97.16 | H129: 97.16 | I129: 97.16 | J129: 97.16 | K129: 67.16 | L129: 97.16 | M129: 97.16 | N129: 97.16 | O129: 97.16 | P129: 97.16 | Q129: 97.16 | R129: 97.16 | S129: 97.16 | T129: 97.16 | U129: 97.16 | V129: 97.16 | W129: 97.16 | X129: 108.94 | Y129: 87.86 | Z129: 97.16 | AA129: 97.16 | AB129: 97.16 | AC129: 97.16 | AD129: 97.16 | AE129: 97.16 | AF129: 97.16 | AG129: 205.16
B130: Vastrecht gas | C130: n.v.t. | D130: n.v.t. | E130: n.v.t. | F130: n.v.t. | G130: n.v.t. | H130: n.v.t. | I130: n.v.t. | J130: n.v.t. | K130: n.v.t. | L130: n.v.t. | M130: n.v.t. | N130: n.v.t. | O130: n.v.t. | P130: n.v.t. | Q130: n.v.t. | R130: n.v.t. | S130: n.v.t. | T130: n.v.t. | U130: n.v.t. | V130: n.v.t. | W130: n.v.t. | X130: n.v.t. | Y130: n.v.t. | Z130: n.v.t. | AA130: n.v.t. | AB130: n.v.t. | AC130: n.v.t. | AD130: n.v.t. | AE130: n.v.t. | AF130: n.v.t. | AG130: n.v.t.
B131: Variabel gas | C131: n.v.t. | D131: n.v.t. | E131: n.v.t. | F131: n.v.t. | G131: n.v.t. | H131: n.v.t. | I131: n.v.t. | J131: n.v.t. | K131: n.v.t. | L131: n.v.t. | M131: n.v.t. | N131: n.v.t. | O131: n.v.t. | P131: n.v.t. | Q131: n.v.t. | R131: n.v.t. | S131: n.v.t. | T131: n.v.t. | U131: n.v.t. | V131: n.v.t. | W131: n.v.t. | X131: n.v.t. | Y131: n.v.t. | Z131: n.v.t. | AA131: n.v.t. | AB131: n.v.t. | AC131: n.v.t. | AD131: n.v.t. | AE131: n.v.t. | AF131: n.v.t. | AG131: n.v.t.
C132: =IFERROR(C131/0.0036,"n.v.t.") -> n.v.t. | D132: n.v.t. | E132: n.v.t. | F132: n.v.t. | G132: n.v.t. | H132: n.v.t. | I132: n.v.t. | J132: n.v.t. | K132: n.v.t. | L132: n.v.t. | M132: n.v.t. | N132: n.v.t. | O132: n.v.t. | P132: n.v.t. | Q132: n.v.t. | R132: n.v.t. | S132: n.v.t. | T132: n.v.t. | U132: n.v.t. | V132: n.v.t. | W132: n.v.t. | X132: n.v.t. | Y132: n.v.t. | Z132: n.v.t. | AA132: n.v.t. | AB132: n.v.t. | AC132: n.v.t. | AD132: =IFERROR(AD131/0.0036,"n.v.t.") -> n.v.t. | AE132: n.v.t. | AF132: =IFERROR(AF131/0.0036,"n.v.t.") -> n.v.t. | AG132: n.v.t.
B133: Algemene uitvoeringskosten incl. winst & risico | C133: 0.15 | D133: 0.15 | E133: 0.15 | F133: 0.15 | G133: 0.15 | H133: 0.15 | I133: 0.15 | J133: 0.15 | K133: 0.15 | L133: 0.15 | M133: 0.15 | N133: 0.15 | O133: 0.15 | P133: 0.15 | Q133: 0.15 | R133: 0.15 | S133: 0.15 | T133: 0.15 | U133: 0.15 | V133: 0.15 | W133: 0.15 | X133: 0.15 | Y133: 0.15 | Z133: 0.17 | AA133: 0.12 | AB133: 0.15 | AC133: 0.15 | AD133: 0.15 | AE133: 0.15 | AF133: 0.15 | AG133: 0.15 | AH133: Kengetallen Techniplan / IF Technology
B134: Grondkosten + Bouwkosten onvoorzien | C134: 0.1 | D134: 0.1 | E134: 0.1 | F134: 0.1 | G134: 0.1 | H134: 0.1 | I134: 0.1 | J134: 0.1 | K134: 0.1 | L134: 0.1 | M134: 0.1 | N134: 0.1 | O134: 0.1 | P134: 0.1 | Q134: 0.1 | R134: 0.1 | S134: 0.1 | T134: 0.1 | U134: 0.1 | V134: 0.1 | W134: 0.1 | X134: 0.1 | Y134: 0.1 | Z134: 0.1 | AA134: 0.1 | AB134: 0.1 | AC134: 0.1 | AD134: 0.1 | AE134: 0.1 | AF134: 0.1 | AG134: 0.1 | AH134: Kengetallen Techniplan / IF Technology
B135: Projectbegeleiding door opdrachtgever | C135: 0.05 | D135: 0.05 | E135: 0.05 | F135: 0.05 | G135: 0.05 | H135: 0.05 | I135: 0.05 | J135: 0.05 | K135: 0.05 | L135: 0.05 | M135: 0.05 | N135: 0.05 | O135: 0.05 | P135: 0.05 | Q135: 0.05 | R135: 0.05 | S135: 0.05 | T135: 0.05 | U135: 0.05 | V135: 0.05 | W135: 0.05 | X135: 0.05 | Y135: 0.05 | Z135: 0.05 | AA135: 0.05 | AB135: 0.05 | AC135: 0.05 | AD135: 0.05 | AE135: 0.05 | AF135: 0.05 | AG135: 0.05 | AH135: Kengetallen Techniplan / IF Technology
B136: Honoraria planontwikkeling | C136: 0.02 | D136: 0.02 | E136: 0.02 | F136: 0.02 | G136: 0.02 | H136: 0.02 | I136: 0.02 | J136: 0.02 | K136: 0.02 | L136: 0.02 | M136: 0.02 | N136: 0.02 | O136: 0.02 | P136: 0.02 | Q136: 0.02 | R136: 0.02 | S136: 0.02 | T136: 0.02 | U136: 0.02 | V136: 0.02 | W136: 0.02 | X136: 0.02 | Y136: 0.02 | Z136: 0.02 | AA136: 0.02 | AB136: 0.02 | AC136: 0.02 | AD136: 0.02 | AE136: 0.02 | AF136: 0.02 | AG136: 0.02 | AH136: Kengetallen Techniplan / IF Technology
B137: Aansluitkosten Nuts
B138: Verzekeringen | C138: 0.02 | D138: 0.02 | E138: 0.02 | F138: 0.02 | G138: 0.02 | H138: 0.02 | I138: 0.02 | J138: 0.02 | K138: 0.02 | L138: 0.02 | M138: 0.02 | N138: 0.02 | O138: 0.02 | P138: 0.02 | Q138: 0.02 | R138: 0.02 | S138: 0.02 | T138: 0.02 | U138: 0.02 | V138: 0.02 | W138: 0.02 | X138: 0.02 | Y138: 0.02 | Z138: 0.02 | AA138: 0.02 | AB138: 0.02 | AC138: 0.02 | AD138: 0.02 | AE138: 0.02 | AF138: 0.02 | AG138: 0.02 | AH138: Kengetallen Techniplan / IF Technology
B139: Vergunningen & heffingen | C139: 0.01 | D139: 0.01 | E139: 0.01 | F139: 0.01 | G139: 0.01 | H139: 0.01 | I139: 0.01 | J139: 0.01 | K139: 0.01 | L139: 0.01 | M139: 0.01 | N139: 0.01 | O139: 0.01 | P139: 0.01 | Q139: 0.01 | R139: 0.01 | S139: 0.01 | T139: 0.01 | U139: 0.01 | V139: 0.01 | W139: 0.01 | X139: 0.01 | Y139: 0.01 | Z139: 0.01 | AA139: 0.01 | AB139: 0.01 | AC139: 0.01 | AD139: 0.01 | AE139: 0.01 | AF139: 0.01 | AG139: 0.01 | AH139: Kengetallen Techniplan / IF Technology
B140: Afsluitkosten | C140: 0.002 | D140: 0.002 | E140: 0.002 | F140: 0.002 | G140: 0.002 | H140: 0.002 | I140: 0.002 | J140: 0.002 | K140: 0.002 | L140: 0.002 | M140: 0.002 | N140: 0.002 | O140: 0.002 | P140: 0.002 | Q140: 0.002 | R140: 0.002 | S140: 0.002 | T140: 0.002 | U140: 0.002 | V140: 0.002 | W140: 0.002 | X140: 0.002 | Y140: 0.002 | Z140: 0.002 | AA140: 0.002 | AB140: 0.002 | AC140: 0.002 | AD140: 0.002 | AE140: 0.002 | AF140: 0.002 | AG140: 0.002 | AH140: Kengetallen Techniplan / IF Technology
B141: Rente OPEX/CAPEX | C141: 0.02 | D141: 0.02 | E141: 0.02 | F141: 0.02 | G141: 0.02 | H141: 0.02 | I141: 0.02 | J141: 0.02 | K141: 0.02 | L141: 0.02 | M141: 0.02 | N141: 0.02 | O141: 0.02 | P141: 0.02 | Q141: 0.02 | R141: 0.02 | S141: 0.02 | T141: 0.02 | U141: 0.02 | V141: 0.02 | W141: 0.02 | X141: 0.02 | Y141: 0.02 | Z141: 0.02 | AA141: 0.02 | AB141: 0.02 | AC141: 0.02 | AD141: 0.02 | AE141: 0.02 | AF141: 0.02 | AG141: 0.02 | AH141: Kengetallen Techniplan / IF Technology
B142: Leen periode | C142: 30 | D142: 30 | E142: 30 | F142: 30 | G142: 30 | H142: 30 | I142: 30 | J142: 30 | K142: 30 | L142: 30 | M142: 30 | N142: 30 | O142: 30 | P142: 30 | Q142: 30 | R142: 30 | S142: 30 | T142: 30 | U142: 30 | V142: 30 | W142: 30 | X142: 30 | Y142: 30 | Z142: 30 | AA142: 30 | AB142: 30 | AC142: 30 | AD142: 30 | AE142: 30 | AF142: 30 | AG142: 30 | AH142: Kengetallen Techniplan / IF Technology
B143: Aandeel vreemd vermogen | C143: 0.7 | D143: 0.7 | E143: 0.7 | F143: 0.7 | G143: 0.7 | H143: 0.7 | I143: 0.7 | J143: 0.7 | K143: 0.7 | L143: 0.7 | M143: 0.7 | N143: 0.7 | O143: 0.7 | P143: 0.7 | Q143: 0.7 | R143: 0.7 | S143: 0.7 | T143: 0.7 | U143: 0.7 | V143: 0.7 | W143: 0.7 | X143: 0.7 | Y143: 0.7 | Z143: 0.7 | AA143: 0.7 | AB143: 0.7 | AC143: 0.7 | AD143: 0.7 | AE143: 0.7 | AF143: 0.7 | AG143: 0.7 | AH143: Kengetallen Techniplan / IF Technology
B144: Preventief onderhoud | C144: 0.015 | D144: 0.015 | E144: 0.015 | F144: 0.015 | G144: 0.015 | H144: 0.015 | I144: 0.015 | J144: 0.015 | K144: 0.015 | L144: 0.015 | M144: 0.015 | N144: 0.015 | O144: 0.015 | P144: 0.015 | Q144: 0.015 | R144: 0.015 | S144: 0.015 | T144: 0.015 | U144: 0.015 | V144: 0.015 | W144: 0.015 | X144: 0.015 | Y144: 0.015 | Z144: 0.015 | AA144: 0.015 | AB144: 0.015 | AC144: 0.015 | AD144: 0.015 | AE144: 0.015 | AF144: 0.015 | AG144: 0.015 | AH144: Kengetallen Techniplan / IF Technology
B145: Vervanging | C145: 0.01 | D145: 0.01 | E145: 0.01 | F145: 0.01 | G145: 0.01 | H145: 0.01 | I145: 0.01 | J145: 0.01 | K145: 0.01 | L145: 0.01 | M145: 0.01 | N145: 0.01 | O145: 0.01 | P145: 0.01 | Q145: 0.01 | R145: 0.01 | S145: 0.01 | T145: 0.01 | U145: 0.01 | V145: 0.01 | W145: 0.01 | X145: 0.01 | Y145: 0.01 | Z145: 0.01 | AA145: 0.01 | AB145: 0.01 | AC145: 0.01 | AD145: 0.01 | AE145: 0.01 | AF145: 0.01 | AG145: 0.01 | AH145: Kengetallen Techniplan / IF Technology
B146: Beheerkosten | C146: 0.005 | D146: 0.005 | E146: 0.005 | F146: 0.005 | G146: 0.005 | H146: 0.005 | I146: 0.005 | J146: 0.005 | K146: 0.005 | L146: 0.005 | M146: 0.005 | N146: 0.005 | O146: 0.005 | P146: 0.005 | Q146: 0.005 | R146: 0.005 | S146: 0.005 | T146: 0.005 | U146: 0.005 | V146: 0.005 | W146: 0.005 | X146: 0.005 | Y146: 0.005 | Z146: 0.005 | AA146: 0.005 | AB146: 0.005 | AC146: 0.005 | AD146: 0.005 | AE146: 0.005 | AF146: 0.005 | AG146: 0.005 | AH146: Kengetallen Techniplan / IF Technology
B147: Verzekering | C147: 0.002 | D147: 0.002 | E147: 0.002 | F147: 0.002 | G147: 0.002 | H147: 0.002 | I147: 0.002 | J147: 0.002 | K147: 0.002 | L147: 0.002 | M147: 0.002 | N147: 0.002 | O147: 0.002 | P147: 0.002 | Q147: 0.002 | R147: 0.002 | S147: 0.002 | T147: 0.002 | U147: 0.002 | V147: 0.002 | W147: 0.002 | X147: 0.002 | Y147: 0.002 | Z147: 0.002 | AA147: 0.002 | AB147: 0.002 | AC147: 0.002 | AD147: 0.002 | AE147: 0.002 | AF147: 0.002 | AG147: 0.002 | AH147: Kengetallen Techniplan / IF Technology
B151: Inkomsten
B152: GJ tarief warmte
B153: Vastrecht warmte
B154: GJ tarief koude
B155: Vastrecht koude
B156: Variabel verkoop warmte | C156: 12 | D156: 12 | E156: 12 | F156: 12 | G156: 12 | H156: 12 | I156: 12 | J156: 12 | K156: 12 | L156: 12 | M156: 12 | N156: 12 | O156: 12 | P156: 12 | Q156: 12 | R156: 12 | S156: 12 | T156: 12 | U156: 12 | V156: 12 | W156: 12 | X156: 12 | Y156: 12 | Z156: 12 | AA156: 12 | AB156: 12 | AC156: 12 | AD156: 12 | AE156: 12 | AF156: 12 | AG156: 12 | AH156: Kengetallen Techniplan / IF Technology
B157: SDE++ | C157: =IF(C22="ja",(0.1157-0.029)*1000,0) -> 0 | D157: 0 | E157: 0 | F157: 0 | G157: =IF(G22="ja",(0.0918-0.029)*1000,0) -> 0 | H157: 0 | I157: 0 | J157: 0 | K157: 0 | L157: 0 | M157: 0 | N157: 86.7 | O157: 0 | P157: 0 | Q157: 0 | R157: 0 | S157: 0 | T157: 0 | U157: 0 | V157: 0 | W157: 0 | X157: 0 | Y157: 0 | Z157: 0 | AA157: 0 | AB157: 86.7 | AC157: 0 | AD157: 0 | AE157: 0 | AF157: 0 | AG157: =IF(AG22="ja",(0.1157-0.029)*1000,0) -> 0 | AH157: Kengetallen Techniplan / IF Technology
C158: =C157/3.6 -> 0 | D158: =D157/3.6 -> 0 | E158: 0 | F158: 0 | G158: 0 | H158: 0 | I158: 0 | J158: 0 | K158: 0 | L158: 0 | M158: 0 | N158: 24.08333333 | O158: 0 | P158: 0 | Q158: 0 | R158: 0 | S158: 0 | T158: 0 | U158: 0 | V158: 0 | W158: 0 | X158: 0 | Y158: 0 | Z158: 0 | AA158: 0 | AB158: 24.08333333 | AC158: 0 | AD158: =AD157/3.6 -> 0 | AE158: 0 | AF158: =AF157/3.6 -> 0 | AG158: =AG157/3.6 -> 0 | AH158: Kengetallen Techniplan / IF Technology
B160: CO2 uitstoot
B161: Emissiecoefficient (elektra) | C161: 83.1 | D161: 83.1 | E161: 83.1 | F161: 83.1 | G161: 83.1 | H161: 83.1 | I161: 83.1 | J161: 83.1 | K161: 83.1 | L161: 83.1 | M161: 83.1 | N161: 83.1 | O161: 83.1 | P161: 83.1 | Q161: 83.1 | R161: 83.1 | S161: 83.1 | T161: 83.1 | U161: 83.1 | V161: 83.1 | W161: 83.1 | X161: 83.1 | Y161: 83.1 | Z161: 83.1 | AA161: 83.1 | AB161: 83.1 | AC161: 83.1 | AD161: 83.1 | AE161: 83.1 | AF161: 83.1 | AG161: 83.1 | AH161: KEV 2021
B162: Emissiecoefficient (gas) | C162: 1.788 | D162: 1.788 | E162: 1.788 | F162: 1.788 | G162: 1.788 | H162: 1.788 | I162: 1.788 | J162: 1.788 | K162: 1.788 | L162: 1.788 | M162: 1.788 | N162: 1.788 | O162: 1.788 | P162: 1.788 | Q162: 1.788 | R162: 1.788 | S162: 1.788 | T162: 1.788 | U162: 1.788 | V162: 1.788 | W162: 1.788 | X162: 1.788 | Y162: 1.788 | Z162: 1.788 | AA162: 1.788 | AB162: 1.788 | AC162: 1.788 | AD162: 1.788 | AE162: 1.788 | AF162: 1.788 | AG162: 1.788 | AH162: CO2emissiefactoren.nl

Sheet 1.5 Kostenberekening
B2: Project : | C2: WarmingUp
B3: Onderwerp : | C3: Gedetailleerde kostenberekening
B4: Fase : | C4: 1.5 Kostenberekening
B6: Varianten | C6: Basis berekening | D6: ='1.4 Kenmerken'!D6 -> 2 | E6: ='1.4 Kenmerken'!E6 -> 3 | F6: ='1.4 Kenmerken'!F6 -> 4 | G6: ='1.4 Kenmerken'!G6 -> 5 | H6: ='1.4 Kenmerken'!H6 -> 6 | I6: ='1.4 Kenmerken'!I6 -> 7 | J6: ='1.4 Kenmerken'!J6 -> 8 | K6: ='1.4 Kenmerken'!K6 -> 9 | L6: ='1.4 Kenmerken'!L6 -> 10 | M6: ='1.4 Kenmerken'!M6 -> 11 | N6: ='1.4 Kenmerken'!N6 -> 12 | O6: ='1.4 Kenmerken'!O6 -> 13 | P6: ='1.4 Kenmerken'!P6 -> 14 | Q6: ='1.4 Kenmerken'!Q6 -> 15 | R6: ='1.4 Kenmerken'!R6 -> 16 | S6: ='1.4 Kenmerken'!S6 -> 17 | T6: ='1.4 Kenmerken'!T6 -> 18 | U6: ='1.4 Kenmerken'!U6 -> 19 | V6: ='1.4 Kenmerken'!V6 -> 20 | W6: ='1.4 Kenmerken'!W6 -> 21 | X6: ='1.4 Kenmerken'!X6 -> 22 | Y6: ='1.4 Kenmerken'!Y6 -> 23 | Z6: ='1.4 Kenmerken'!Z6 -> 24 | AA6: ='1.4 Kenmerken'!AA6 -> 25 | AB6: ='1.4 Kenmerken'!AB6 -> 26 | AC6: ='1.4 Kenmerken'!AC6 -> 27 | AD6: ='1.4 Kenmerken'!AD6 -> 28 | AE6: ='1.4 Kenmerken'!AE6 -> 29 | AF6: ='1.4 Kenmerken'!AF6 -> 30 | AG6: ='1.4 Kenmerken'!AG6 -> 31
B8: ='1.2 Varianten'!B8 -> Vermogen afnemer | C8: ='1.2 Varianten'!C8 -> 5 | D8: ='1.2 Varianten'!D8 -> 20 | E8: ='1.2 Varianten'!E8 -> 1 | F8: ='1.2 Varianten'!F8 -> 5 | G8: ='1.2 Varianten'!G8 -> 5 | H8: ='1.2 Varianten'!H8 -> 5 | I8: ='1.2 Varianten'!I8 -> 5 | J8: ='1.2 Varianten'!J8 -> 5 | K8: ='1.2 Varianten'!K8 -> 5 | L8: ='1.2 Varianten'!L8 -> 5 | M8: ='1.2 Varianten'!M8 -> 5 | N8: ='1.2 Varianten'!N8 -> 5 | O8: ='1.2 Varianten'!O8 -> 5 | P8: ='1.2 Varianten'!P8 -> 5 | Q8: ='1.2 Varianten'!Q8 -> 5 | R8: ='1.2 Varianten'!R8 -> 5 | S8: ='1.2 Varianten'!S8 -> 5 | T8: ='1.2 Varianten'!T8 -> 5 | U8: ='1.2 Varianten'!U8 -> 5 | V8: ='1.2 Varianten'!V8 -> 5 | W8: ='1.2 Varianten'!W8 -> 5 | X8: ='1.2 Varianten'!X8 -> 5 | Y8: ='1.2 Varianten'!Y8 -> 5 | Z8: ='1.2 Varianten'!Z8 -> 5 | AA8: ='1.2 Varianten'!AA8 -> 5 | AB8: ='1.2 Varianten'!AB8 -> 5 | AC8: ='1.2 Varianten'!AC8 -> 5 | AD8: ='1.2 Varianten'!AD8 -> 5 | AE8: ='1.2 Varianten'!AE8 -> 5 | AF8: ='1.2 Varianten'!AF8 -> 5 | AG8: ='1.2 Varianten'!AG8 -> 5
B9: ='1.2 Varianten'!B9 -> Vollasturen warmtenet | C9: ='1.2 Varianten'!C9 -> 3500 | D9: ='1.2 Varianten'!D9 -> 3500 | E9: ='1.2 Varianten'!E9 -> 3500 | F9: ='1.2 Varianten'!F9 -> 6000 | G9: ='1.2 Varianten'!G9 -> 2000 | H9: ='1.2 Varianten'!H9 -> 3500 | I9: ='1.2 Varianten'!I9 -> 3500 | J9: ='1.2 Varianten'!J9 -> 3500 | K9: ='1.2 Varianten'!K9 -> 3500 | L9: ='1.2 Varianten'!L9 -> 3500 | M9: ='1.2 Varianten'!M9 -> 3500 | N9: ='1.2 Varianten'!N9 -> 3500 | O9: ='1.2 Varianten'!O9 -> 3500 | P9: ='1.2 Varianten'!P9 -> 3500 | Q9: ='1.2 Varianten'!Q9 -> 3500 | R9: ='1.2 Varianten'!R9 -> 3500 | S9: ='1.2 Varianten'!S9 -> 3500 | T9: ='1.2 Varianten'!T9 -> 3500 | U9: ='1.2 Varianten'!U9 -> 3500 | V9: ='1.2 Varianten'!V9 -> 3500 | W9: ='1.2 Varianten'!W9 -> 3500 | X9: ='1.2 Varianten'!X9 -> 3500 | Y9: ='1.2 Varianten'!Y9 -> 3500 | Z9: ='1.2 Varianten'!Z9 -> 3500 | AA9: ='1.2 Varianten'!AA9 -> 3500 | AB9: ='1.2 Varianten'!AB9 -> 3500 | AC9: ='1.2 Varianten'!AC9 -> 3500 | AD9: ='1.2 Varianten'!AD9 -> 3500 | AE9: ='1.2 Varianten'!AE9 -> 3500 | AF9: ='1.2 Varianten'!AF9 -> 3500 | AG9: ='1.2 Varianten'!AG9 -> 3500
B10: ='1.2 Varianten'!B10 -> Vollasturen aquathermie systeem | C10: ='1.2 Varianten'!C10 -> 3000 | D10: ='1.2 Varianten'!D10 -> 3000 | E10: ='1.2 Varianten'!E10 -> 3000 | F10: ='1.2 Varianten'!F10 -> 3000 | G10: ='1.2 Varianten'!G10 -> 3000 | H10: ='1.2 Varianten'!H10 -> 2500 | I10: ='1.2 Varianten'!I10 -> 2000 | J10: ='1.2 Varianten'!J10 -> 3000 | K10: ='1.2 Varianten'!K10 -> 3000 | L10: ='1.2 Varianten'!L10 -> 3000 | M10: ='1.2 Varianten'!M10 -> 3000 | N10: ='1.2 Varianten'!N10 -> 3000 | O10: ='1.2 Varianten'!O10 -> 3000 | P10: ='1.2 Varianten'!P10 -> 3000 | Q10: ='1.2 Varianten'!Q10 -> 3000 | R10: ='1.2 Varianten'!R10 -> 3000 | S10: ='1.2 Varianten'!S10 -> 3000 | T10: ='1.2 Varianten'!T10 -> 3000 | U10: ='1.2 Varianten'!U10 -> 3000 | V10: ='1.2 Varianten'!V10 -> 3000 | W10: ='1.2 Varianten'!W10 -> 3000 | X10: ='1.2 Varianten'!X10 -> 3000 | Y10: ='1.2 Varianten'!Y10 -> 3000 | Z10: ='1.2 Varianten'!Z10 -> 3000 | AA10: ='1.2 Varianten'!AA10 -> 3000 | AB10: ='1.2 Varianten'!AB10 -> 3000 | AC10: ='1.2 Varianten'!AC10 -> 3000 | AD10: ='1.2 Varianten'!AD10 -> 3000 | AE10: ='1.2 Varianten'!AE10 -> 3000 | AF10: ='1.2 Varianten'!AF10 -> 3500 | AG10: ='1.2 Varianten'!AG10 -> 3000
B11: ='1.2 Varianten'!B11 -> Temperatuurtraject aquathermie systeem (deltaT) | C11: ='1.2 Varianten'!C11 -> 5 | D11: ='1.2 Varianten'!D11 -> 5 | E11: ='1.2 Varianten'!E11 -> 5 | F11: ='1.2 Varianten'!F11 -> 5 | G11: ='1.2 Varianten'!G11 -> 5 | H11: ='1.2 Varianten'!H11 -> 5 | I11: ='1.2 Varianten'!I11 -> 5 | J11: ='1.2 Varianten'!J11 -> 10 | K11: ='1.2 Varianten'!K11 -> 5 | L11: ='1.2 Varianten'!L11 -> 5 | M11: ='1.2 Varianten'!M11 -> 5 | N11: ='1.2 Varianten'!N11 -> 5 | O11: ='1.2 Varianten'!O11 -> 5 | P11: ='1.2 Varianten'!P11 -> 5 | Q11: ='1.2 Varianten'!Q11 -> 5 | R11: ='1.2 Varianten'!R11 -> 5 | S11: ='1.2 Varianten'!S11 -> 5 | T11: ='1.2 Varianten'!T11 -> 5 | U11: ='1.2 Varianten'!U11 -> 5 | V11: ='1.2 Varianten'!V11 -> 5 | W11: ='1.2 Varianten'!W11 -> 5 | X11: ='1.2 Varianten'!X11 -> 5 | Y11: ='1.2 Varianten'!Y11 -> 5 | Z11: ='1.2 Varianten'!Z11 -> 5 | AA11: ='1.2 Varianten'!AA11 -> 5 | AB11: ='1.2 Varianten'!AB11 -> 5 | AC11: ='1.2 Varianten'!AC11 -> 5 | AD11: ='1.2 Varianten'!AD11 -> 5 | AE11: ='1.2 Varianten'!AE11 -> 5 | AF11: ='1.2 Varianten'!AF11 -> 5 | AG11: ='1.2 Varianten'!AG11 -> 5
B12: ='1.2 Varianten'!B12 -> Elektriciteitsprijs | C12: ='1.2 Varianten'!C12 -> 68 | D12: ='1.2 Varianten'!D12 -> 68 | E12: ='1.2 Varianten'!E12 -> 68 | F12: ='1.2 Varianten'!F12 -> 68 | G12: ='1.2 Varianten'!G12 -> 68 | H12: ='1.2 Varianten'!H12 -> 68 | I12: ='1.2 Varianten'!I12 -> 68 | J12: ='1.2 Varianten'!J12 -> 68 | K12: ='1.2 Varianten'!K12 -> 32 | L12: ='1.2 Varianten'!L12 -> 68 | M12: ='1.2 Varianten'!M12 -> 68 | N12: ='1.2 Varianten'!N12 -> 68 | O12: ='1.2 Varianten'!O12 -> 68 | P12: ='1.2 Varianten'!P12 -> 68 | Q12: ='1.2 Varianten'!Q12 -> 68 | R12: ='1.2 Varianten'!R12 -> 68 | S12: ='1.2 Varianten'!S12 -> 68 | T12: ='1.2 Varianten'!T12 -> 68 | U12: ='1.2 Varianten'!U12 -> 68 | V12: ='1.2 Varianten'!V12 -> 68 | W12: ='1.2 Varianten'!W12 -> 68 | X12: ='1.2 Varianten'!X12 -> 68 | Y12: ='1.2 Varianten'!Y12 -> 68 | Z12: ='1.2 Varianten'!Z12 -> 68 | AA12: ='1.2 Varianten'!AA12 -> 68 | AB12: ='1.2 Varianten'!AB12 -> 68 | AC12: ='1.2 Varianten'!AC12 -> 68 | AD12: ='1.2 Varianten'!AD12 -> 68 | AE12: ='1.2 Varianten'!AE12 -> 68 | AF12: ='1.2 Varianten'!AF12 -> 68 | AG12: ='1.2 Varianten'!AG12 -> 170
B13: ='1.2 Varianten'!B13 -> Vermogensaandeel piekvoorziening | C13: ='1.2 Varianten'!C13 -> 0.5 | D13: ='1.2 Varianten'!D13 -> 0.5 | E13: ='1.2 Varianten'!E13 -> 0.5 | F13: ='1.2 Varianten'!F13 -> 0.5 | G13: ='1.2 Varianten'!G13 -> 0.5 | H13: ='1.2 Varianten'!H13 -> 0.5 | I13: ='1.2 Varianten'!I13 -> 0.5 | J13: ='1.2 Varianten'!J13 -> 0.5 | K13: ='1.2 Varianten'!K13 -> 0.5 | L13: ='1.2 Varianten'!L13 -> 0.7 | M13: ='1.2 Varianten'!M13 -> 0.3 | N13: ='1.2 Varianten'!N13 -> 0.5 | O13: ='1.2 Varianten'!O13 -> 0.5 | P13: ='1.2 Varianten'!P13 -> 0.5 | Q13: ='1.2 Varianten'!Q13 -> 0.5 | R13: ='1.2 Varianten'!R13 -> 0.5 | S13: ='1.2 Varianten'!S13 -> 0.5 | T13: ='1.2 Varianten'!T13 -> 0.5 | U13: ='1.2 Varianten'!U13 -> 0.5 | V13: ='1.2 Varianten'!V13 -> 0.5 | W13: ='1.2 Varianten'!W13 -> 0.5 | X13: ='1.2 Varianten'!X13 -> 0.5 | Y13: ='1.2 Varianten'!Y13 -> 0.5 | Z13: ='1.2 Varianten'!Z13 -> 0.5 | AA13: ='1.2 Varianten'!AA13 -> 0.5 | AB13: ='1.2 Varianten'!AB13 -> 0.5 | AC13: ='1.2 Varianten'!AC13 -> 0.5 | AD13: ='1.2 Varianten'!AD13 -> 0.5 | AE13: ='1.2 Varianten'!AE13 -> 0.5 | AF13: ='1.2 Varianten'!AF13 -> 0 | AG13: ='1.2 Varianten'!AG13 -> 0.5
B14: ='1.2 Varianten'!B14 -> Impact WKO | C14: ='1.2 Varianten'!C14 -> met WKO | D14: ='1.2 Varianten'!D14 -> met WKO | E14: ='1.2 Varianten'!E14 -> met WKO | F14: ='1.2 Varianten'!F14 -> met WKO | G14: ='1.2 Varianten'!G14 -> met WKO | H14: ='1.2 Varianten'!H14 -> met WKO | I14: ='1.2 Varianten'!I14 -> met WKO | J14: ='1.2 Varianten'!J14 -> met WKO | K14: ='1.2 Varianten'!K14 -> met WKO | L14: ='1.2 Varianten'!L14 -> met WKO | M14: ='1.2 Varianten'!M14 -> met WKO | N14: ='1.2 Varianten'!N14 -> zonder WKO | O14: ='1.2 Varianten'!O14 -> met WKO | P14: ='1.2 Varianten'!P14 -> met WKO | Q14: ='1.2 Varianten'!Q14 -> met WKO | R14: ='1.2 Varianten'!R14 -> met WKO | S14: ='1.2 Varianten'!S14 -> met WKO | T14: ='1.2 Varianten'!T14 -> met WKO | U14: ='1.2 Varianten'!U14 -> met WKO | V14: ='1.2 Varianten'!V14 -> met WKO | W14: ='1.2 Varianten'!W14 -> met WKO | X14: ='1.2 Varianten'!X14 -> met WKO | Y14: ='1.2 Varianten'!Y14 -> met WKO | Z14: ='1.2 Varianten'!Z14 -> met WKO | AA14: ='1.2 Varianten'!AA14 -> met WKO | AB14: ='1.2 Varianten'!AB14 -> met WKO | AC14: ='1.2 Varianten'!AC14 -> met WKO | AD14: ='1.2 Varianten'!AD14 -> zonder WKO | AE14: ='1.2 Varianten'!AE14 -> met WKO | AF14: ='1.2 Varianten'!AF14 -> met WKO | AG14: ='1.2 Varianten'!AG14 -> met WKO
B15: ='1.2 Varianten'!B15 -> WKO opslagcapaciteit per brondoublet | C15: ='1.2 Varianten'!C15 -> 90 | D15: ='1.2 Varianten'!D15 -> 90 | E15: ='1.2 Varianten'!E15 -> 90 | F15: ='1.2 Varianten'!F15 -> 90 | G15: ='1.2 Varianten'!G15 -> 90 | H15: ='1.2 Varianten'!H15 -> 90 | I15: ='1.2 Varianten'!I15 -> 90 | J15: ='1.2 Varianten'!J15 -> 90 | K15: ='1.2 Varianten'!K15 -> 90 | L15: ='1.2 Varianten'!L15 -> 90 | M15: ='1.2 Varianten'!M15 -> 90 | N15: ='1.2 Varianten'!N15 -> 90 | O15: ='1.2 Varianten'!O15 -> 250 | P15: ='1.2 Varianten'!P15 -> 50 | Q15: ='1.2 Varianten'!Q15 -> 90 | R15: ='1.2 Varianten'!R15 -> 90 | S15: ='1.2 Varianten'!S15 -> 90 | T15: ='1.2 Varianten'!T15 -> 90 | U15: ='1.2 Varianten'!U15 -> 90 | V15: ='1.2 Varianten'!V15 -> 90 | W15: ='1.2 Varianten'!W15 -> 90 | X15: ='1.2 Varianten'!X15 -> 90 | Y15: ='1.2 Varianten'!Y15 -> 90 | Z15: ='1.2 Varianten'!Z15 -> 90 | AA15: ='1.2 Varianten'!AA15 -> 90 | AB15: ='1.2 Varianten'!AB15 -> 90 | AC15: ='1.2 Varianten'!AC15 -> 90 | AD15: ='1.2 Varianten'!AD15 -> 90 | AE15: ='1.2 Varianten'!AE15 -> 90 | AF15: ='1.2 Varianten'!AF15 -> 90 | AG15: ='1.2 Varianten'!AG15 -> 90
B16: ='1.2 Varianten'!B16 -> Diepte WKO bronnen | C16: ='1.2 Varianten'!C16 -> 150 | D16: ='1.2 Varianten'!D16 -> 150 | E16: ='1.2 Varianten'!E16 -> 150 | F16: ='1.2 Varianten'!F16 -> 150 | G16: ='1.2 Varianten'!G16 -> 150 | H16: ='1.2 Varianten'!H16 -> 150 | I16: ='1.2 Varianten'!I16 -> 150 | J16: ='1.2 Varianten'!J16 -> 150 | K16: ='1.2 Varianten'!K16 -> 150 | L16: ='1.2 Varianten'!L16 -> 150 | M16: ='1.2 Varianten'!M16 -> 150 | N16: ='1.2 Varianten'!N16 -> 150 | O16: ='1.2 Varianten'!O16 -> 150 | P16: ='1.2 Varianten'!P16 -> 150 | Q16: ='1.2 Varianten'!Q16 -> 230 | R16: ='1.2 Varianten'!R16 -> 80 | S16: ='1.2 Varianten'!S16 -> 150 | T16: ='1.2 Varianten'!T16 -> 150 | U16: ='1.2 Varianten'!U16 -> 150 | V16: ='1.2 Varianten'!V16 -> 150 | W16: ='1.2 Varianten'!W16 -> 150 | X16: ='1.2 Varianten'!X16 -> 150 | Y16: ='1.2 Varianten'!Y16 -> 150 | Z16: ='1.2 Varianten'!Z16 -> 150 | AA16: ='1.2 Varianten'!AA16 -> 150 | AB16: ='1.1 Overzicht'!$I$35 -> 150 | AC16: ='1.1 Overzicht'!$I$35 -> 150 | AD16: ='1.1 Overzicht'!$I$35 -> 150 | AE16: ='1.1 Overzicht'!$I$35 -> 150 | AF16: ='1.1 Overzicht'!$I$35 -> 150 | AG16: ='1.2 Varianten'!AG16 -> 150
B17: ='1.2 Varianten'!B17 -> Leidingwerk tussen aquathermie en TR | C17: ='1.2 Varianten'!C17 -> 500 | D17: ='1.2 Varianten'!D17 -> 500 | E17: ='1.2 Varianten'!E17 -> 500 | F17: ='1.2 Varianten'!F17 -> 500 | G17: ='1.2 Varianten'!G17 -> 500 | H17: ='1.2 Varianten'!H17 -> 500 | I17: ='1.2 Varianten'!I17 -> 500 | J17: ='1.2 Varianten'!J17 -> 500 | K17: ='1.2 Varianten'!K17 -> 500 | L17: ='1.2 Varianten'!L17 -> 500 | M17: ='1.2 Varianten'!M17 -> 500 | N17: ='1.2 Varianten'!N17 -> 500 | O17: ='1.2 Varianten'!O17 -> 500 | P17: ='1.2 Varianten'!P17 -> 500 | Q17: ='1.2 Varianten'!Q17 -> 500 | R17: ='1.2 Varianten'!R17 -> 500 | S17: ='1.2 Varianten'!S17 -> 2000 | T17: ='1.2 Varianten'!T17 -> 500 m + gestuurde boring | U17: ='1.2 Varianten'!U17 -> 500 | V17: ='1.2 Varianten'!V17 -> 500 | W17: ='1.2 Varianten'!W17 -> 500 | X17: ='1.2 Varianten'!X17 -> 500 | Y17: ='1.2 Varianten'!Y17 -> 500 | Z17: ='1.2 Varianten'!Z17 -> 500 | AA17: ='1.2 Varianten'!AA17 -> 500 | AB17: ='1.2 Varianten'!AB17 -> 500 | AC17: ='1.2 Varianten'!AC17 -> 500 | AD17: ='1.2 Varianten'!AD17 -> 500 | AE17: ='1.2 Varianten'!AE17 -> 500 | AF17: ='1.2 Varianten'!AF17 -> 500 | AG17: ='1.2 Varianten'!AG17 -> 500
B18: ='1.2 Varianten'!B18 -> Leidingwerk tussen bronnen en TR | C18: ='1.2 Varianten'!C18 -> 500 | D18: ='1.2 Varianten'!D18 -> 500 | E18: ='1.2 Varianten'!E18 -> 500 | F18: ='1.2 Varianten'!F18 -> 500 | G18: ='1.2 Varianten'!G18 -> 500 | H18: ='1.2 Varianten'!H18 -> 500 | I18: ='1.2 Varianten'!I18 -> 500 | J18: ='1.2 Varianten'!J18 -> 500 | K18: ='1.2 Varianten'!K18 -> 500 | L18: ='1.2 Varianten'!L18 -> 500 | M18: ='1.2 Varianten'!M18 -> 500 | N18: ='1.2 Varianten'!N18 -> 500 | O18: ='1.2 Varianten'!O18 -> 500 | P18: ='1.2 Varianten'!P18 -> 500 | Q18: ='1.2 Varianten'!Q18 -> 500 | R18: ='1.2 Varianten'!R18 -> 500 | S18: ='1.2 Varianten'!S18 -> 500 | T18: ='1.2 Varianten'!T18 -> 500 | U18: ='1.2 Varianten'!U18 -> 2000 | V18: ='1.2 Varianten'!V18 -> 500 m + gestuurde boring | W18: ='1.2 Varianten'!W18 -> 500 | X18: ='1.2 Varianten'!X18 -> 500 | Y18: ='1.2 Varianten'!Y18 -> 500 | Z18: ='1.2 Varianten'!Z18 -> 500 | AA18: ='1.2 Varianten'!AA18 -> 500 | AB18: ='1.2 Varianten'!AB18 -> 500 | AC18: ='1.2 Varianten'!AC18 -> 500 | AD18: ='1.2 Varianten'!AD18 -> 500 | AE18: ='1.2 Varianten'!AE18 -> 500 | AF18: ='1.2 Varianten'!AF18 -> 500 | AG18: ='1.2 Varianten'!AG18 -> 500
B19: ='1.2 Varianten'!B19 -> Situatie onttrekking | C19: ='1.2 Varianten'!C19 -> stedelijk | D19: ='1.2 Varianten'!D19 -> stedelijk | E19: ='1.2 Varianten'!E19 -> stedelijk | F19: ='1.2 Varianten'!F19 -> stedelijk | G19: ='1.2 Varianten'!G19 -> stedelijk | H19: ='1.2 Varianten'!H19 -> stedelijk | I19: ='1.2 Varianten'!I19 -> stedelijk | J19: ='1.2 Varianten'!J19 -> stedelijk | K19: ='1.2 Varianten'!K19 -> stedelijk | L19: ='1.2 Varianten'!L19 -> stedelijk | M19: ='1.2 Varianten'!M19 -> stedelijk | N19: ='1.2 Varianten'!N19 -> stedelijk | O19: ='1.2 Varianten'!O19 -> stedelijk | P19: ='1.2 Varianten'!P19 -> stedelijk | Q19: ='1.2 Varianten'!Q19 -> stedelijk | R19: ='1.2 Varianten'!R19 -> stedelijk | S19: ='1.2 Varianten'!S19 -> stedelijk | T19: ='1.2 Varianten'!T19 -> stedelijk | U19: ='1.2 Varianten'!U19 -> stedelijk | V19: ='1.2 Varianten'!V19 -> stedelijk | W19: ='1.2 Varianten'!W19 -> landelijk | X19: ='1.2 Varianten'!X19 -> stedelijk | Y19: ='1.2 Varianten'!Y19 -> stedelijk | Z19: ='1.2 Varianten'!Z19 -> stedelijk | AA19: ='1.2 Varianten'!AA19 -> stedelijk | AB19: ='1.2 Varianten'!AB19 -> stedelijk | AC19: ='1.2 Varianten'!AC19 -> stedelijk | AD19: ='1.2 Varianten'!AD19 -> stedelijk | AE19: ='1.2 Varianten'!AE19 -> stedelijk | AF19: ='1.2 Varianten'!AF19 -> stedelijk | AG19: ='1.2 Varianten'!AG19 -> stedelijk
B20: ='1.2 Varianten'!B20 -> Energiekosten (inflatie) | C20: ='1.2 Varianten'!C20 -> 0.03 | D20: ='1.2 Varianten'!D20 -> 0.03 | E20: ='1.2 Varianten'!E20 -> 0.03 | F20: ='1.2 Varianten'!F20 -> 0.03 | G20: ='1.2 Varianten'!G20 -> 0.03 | H20: ='1.2 Varianten'!H20 -> 0.03 | I20: ='1.2 Varianten'!I20 -> 0.03 | J20: ='1.2 Varianten'!J20 -> 0.03 | K20: ='1.2 Varianten'!K20 -> 0.03 | L20: ='1.2 Varianten'!L20 -> 0.03 | M20: ='1.2 Varianten'!M20 -> 0.03 | N20: ='1.2 Varianten'!N20 -> 0.03 | O20: ='1.2 Varianten'!O20 -> 0.03 | P20: ='1.2 Varianten'!P20 -> 0.03 | Q20: ='1.2 Varianten'!Q20 -> 0.03 | R20: ='1.2 Varianten'!R20 -> 0.03 | S20: ='1.2 Varianten'!S20 -> 0.03 | T20: ='1.2 Varianten'!T20 -> 0.03 | U20: ='1.2 Varianten'!U20 -> 0.03 | V20: ='1.2 Varianten'!V20 -> 0.03 | W20: ='1.2 Varianten'!W20 -> 0.03 | X20: ='1.2 Varianten'!X20 -> 0.04 | Y20: ='1.2 Varianten'!Y20 -> 0.02 | Z20: ='1.2 Varianten'!Z20 -> 0.03 | AA20: ='1.2 Varianten'!AA20 -> 0.03 | AB20: ='1.2 Varianten'!AB20 -> 0.03 | AC20: ='1.2 Varianten'!AC20 -> 0.03 | AD20: ='1.2 Varianten'!AD20 -> 0.03 | AE20: ='1.2 Varianten'!AE20 -> 0.03 | AF20: ='1.2 Varianten'!AF20 -> 0.03 | AG20: ='1.2 Varianten'!AG20 -> 0.03
B21: ='1.2 Varianten'!B21 -> Rendementseis | C21: ='1.2 Varianten'!C21 -> 0.06 | D21: ='1.2 Varianten'!D21 -> 0.06 | E21: ='1.2 Varianten'!E21 -> 0.06 | F21: ='1.2 Varianten'!F21 -> 0.06 | G21: ='1.2 Varianten'!G21 -> 0.06 | H21: ='1.2 Varianten'!H21 -> 0.06 | I21: ='1.2 Varianten'!I21 -> 0.06 | J21: ='1.2 Varianten'!J21 -> 0.06 | K21: ='1.2 Varianten'!K21 -> 0.06 | L21: ='1.2 Varianten'!L21 -> 0.06 | M21: ='1.2 Varianten'!M21 -> 0.06 | N21: ='1.2 Varianten'!N21 -> 0.06 | O21: ='1.2 Varianten'!O21 -> 0.06 | P21: ='1.2 Varianten'!P21 -> 0.06 | Q21: ='1.2 Varianten'!Q21 -> 0.06 | R21: ='1.2 Varianten'!R21 -> 0.06 | S21: ='1.2 Varianten'!S21 -> 0.06 | T21: ='1.2 Varianten'!T21 -> 0.06 | U21: ='1.2 Varianten'!U21 -> 0.06 | V21: ='1.2 Varianten'!V21 -> 0.06 | W21: ='1.2 Varianten'!W21 -> 0.06 | X21: ='1.2 Varianten'!X21 -> 0.06 | Y21: ='1.2 Varianten'!Y21 -> 0.06 | Z21: ='1.2 Varianten'!Z21 -> 0.08 | AA21: ='1.2 Varianten'!AA21 -> 0.04 | AB21: ='1.2 Varianten'!AB21 -> 0.06 | AC21: ='1.2 Varianten'!AC21 -> 0.06 | AD21: ='1.2 Varianten'!AD21 -> 0.06 | AE21: ='1.2 Varianten'!AE21 -> 0.06 | AF21: ='1.2 Varianten'!AF21 -> 0.06 | AG21: ='1.2 Varianten'!AG21 -> 0.06
B22: ='1.2 Varianten'!B22 -> Toepassing SDE++ subsidie | C22: ='1.2 Varianten'!C22 -> nee | D22: ='1.2 Varianten'!D22 -> nee | E22: ='1.2 Varianten'!E22 -> nee | F22: ='1.2 Varianten'!F22 -> nee | G22: ='1.2 Varianten'!G22 -> nee | H22: ='1.2 Varianten'!H22 -> nee | I22: ='1.2 Varianten'!I22 -> nee | J22: ='1.2 Varianten'!J22 -> nee | K22: ='1.2 Varianten'!K22 -> nee | L22: ='1.2 Varianten'!L22 -> nee | M22: ='1.2 Varianten'!M22 -> nee | N22: ='1.2 Varianten'!N22 -> nee | O22: ='1.2 Varianten'!O22 -> nee | P22: ='1.2 Varianten'!P22 -> nee | Q22: ='1.2 Varianten'!Q22 -> nee | R22: ='1.2 Varianten'!R22 -> nee | S22: ='1.2 Varianten'!S22 -> nee | T22: ='1.2 Varianten'!T22 -> nee | U22: ='1.2 Varianten'!U22 -> nee | V22: ='1.2 Varianten'!V22 -> nee | W22: ='1.2 Varianten'!W22 -> nee | X22: ='1.2 Varianten'!X22 -> nee | Y22: ='1.2 Varianten'!Y22 -> nee | Z22: ='1.2 Varianten'!Z22 -> nee | AA22: ='1.2 Varianten'!AA22 -> nee | AB22: ='1.2 Varianten'!AB22 -> ja | AC22: ='1.2 Varianten'!AC22 -> nee | AD22: ='1.2 Varianten'!AD22 -> nee | AE22: ='1.2 Varianten'!AE22 -> nee | AF22: ='1.2 Varianten'!AF22 -> Nee | AG22: ='1.2 Varianten'!AG22 -> nee
B23: ='1.2 Varianten'!B23 -> Variant met TEA/TEO | C23: ='1.2 Varianten'!C23 -> TEO | D23: ='1.2 Varianten'!D23 -> TEO | E23: ='1.2 Varianten'!E23 -> TEO | F23: ='1.2 Varianten'!F23 -> TEO | G23: ='1.2 Varianten'!G23 -> TEO | H23: ='1.2 Varianten'!H23 -> TEO | I23: ='1.2 Varianten'!I23 -> TEO | J23: ='1.2 Varianten'!J23 -> TEO | K23: ='1.2 Varianten'!K23 -> TEO | L23: ='1.2 Varianten'!L23 -> TEO | M23: ='1.2 Varianten'!M23 -> TEO | N23: ='1.2 Varianten'!N23 -> TEO | O23: ='1.2 Varianten'!O23 -> TEO | P23: ='1.2 Varianten'!P23 -> TEO | Q23: ='1.2 Varianten'!Q23 -> TEO | R23: ='1.2 Varianten'!R23 -> TEO | S23: ='1.2 Varianten'!S23 -> TEO | T23: ='1.2 Varianten'!T23 -> TEO | U23: ='1.2 Varianten'!U23 -> TEO | V23: ='1.2 Varianten'!V23 -> TEO | W23: ='1.2 Varianten'!W23 -> TEO | X23: ='1.2 Varianten'!X23 -> TEO | Y23: ='1.2 Varianten'!Y23 -> TEO | Z23: ='1.2 Varianten'!Z23 -> TEO | AA23: ='1.2 Varianten'!AA23 -> TEO | AB23: ='1.2 Varianten'!AB23 -> TEO | AC23: ='1.2 Varianten'!AC23 -> TEA | AD23: ='1.2 Varianten'!AD23 -> TEA | AE23: ='1.2 Varianten'!AE23 -> TEO | AF23: ='1.2 Varianten'!AF23 -> TEO | AG23: ='1.2 Varianten'!AG23 -> TEO
B24: ='1.2 Varianten'!B24 -> Aanvoertemperatuur warmtenet | C24: ='1.2 Varianten'!C24 -> 70 | D24: ='1.2 Varianten'!D24 -> 70 | E24: ='1.2 Varianten'!E24 -> 70 | F24: ='1.2 Varianten'!F24 -> 70 | G24: ='1.2 Varianten'!G24 -> 70 | H24: ='1.2 Varianten'!H24 -> 70 | I24: ='1.2 Varianten'!I24 -> 70 | J24: ='1.2 Varianten'!J24 -> 70 | K24: ='1.2 Varianten'!K24 -> 70 | L24: ='1.2 Varianten'!L24 -> 70 | M24: ='1.2 Varianten'!M24 -> 70 | N24: ='1.2 Varianten'!N24 -> 70 | O24: ='1.2 Varianten'!O24 -> 70 | P24: ='1.2 Varianten'!P24 -> 70 | Q24: ='1.2 Varianten'!Q24 -> 70 | R24: ='1.2 Varianten'!R24 -> 70 | S24: ='1.2 Varianten'!S24 -> 70 | T24: ='1.2 Varianten'!T24 -> 70 | U24: ='1.2 Varianten'!U24 -> 70 | V24: ='1.2 Varianten'!V24 -> 70 | W24: ='1.2 Varianten'!W24 -> 70 | X24: ='1.2 Varianten'!X24 -> 70 | Y24: ='1.2 Varianten'!Y24 -> 70 | Z24: ='1.2 Varianten'!Z24 -> 70 | AA24: ='1.2 Varianten'!AA24 -> 70 | AB24: ='1.2 Varianten'!AB24 -> 70 | AC24: ='1.2 Varianten'!AC24 -> 70 | AD24: ='1.2 Varianten'!AD24 -> 70 | AE24: ='1.2 Varianten'!AE24 -> 40 | AF24: ='1.2 Varianten'!AF24 -> ZLT | AG24: ='1.2 Varianten'!AG24 -> 70
B26: CAPEX | C26: Basis berekening | D26: 2 | E26: 3 | F26: 4 | G26: 5 | H26: 6 | I26: 7 | J26: 8 | K26: 9 | L26: 10 | M26: 11 | N26: 12 | O26: 13 | P26: 14 | Q26: 15 | R26: 16 | S26: 17 | T26: 18 | U26: 19 | V26: 20 | W26: 21 | X26: 22 | Y26: 23 | Z26: 24 | AA26: 25 | AB26: 26 | AC26: 27 | AD26: 28 | AE26: 29 | AF26: 30 | AG26: 31
B28: Leidingtrace TEO
B29: grondkosten leidingtrace (TEO) | C29: ='1.4 Kenmerken'!C110*'1.4 Kenmerken'!C80*1000*2 -> 150000 | D29: ='1.4 Kenmerken'!D110*'1.4 Kenmerken'!D80*1000*2 -> 150000 | E29: ='1.4 Kenmerken'!E110*'1.4 Kenmerken'!E80*1000*2 -> 100000 | F29: ='1.4 Kenmerken'!F110*'1.4 Kenmerken'!F80*1000*2 -> 200000 | G29: ='1.4 Kenmerken'!G110*'1.4 Kenmerken'!G80*1000*2 -> 150000 | H29: ='1.4 Kenmerken'!H110*'1.4 Kenmerken'!H80*1000*2 -> 150000 | I29: ='1.4 Kenmerken'!I110*'1.4 Kenmerken'!I80*1000*2 -> 150000 | J29: ='1.4 Kenmerken'!J110*'1.4 Kenmerken'!J80*1000*2 -> 150000 | K29: ='1.4 Kenmerken'!K110*'1.4 Kenmerken'!K80*1000*2 -> 150000 | L29: ='1.4 Kenmerken'!L110*'1.4 Kenmerken'!L80*1000*2 -> 150000 | M29: ='1.4 Kenmerken'!M110*'1.4 Kenmerken'!M80*1000*2 -> 150000 | N29: ='1.4 Kenmerken'!N110*'1.4 Kenmerken'!N80*1000*2 -> 150000 | O29: ='1.4 Kenmerken'!O110*'1.4 Kenmerken'!O80*1000*2 -> 150000 | P29: ='1.4 Kenmerken'!P110*'1.4 Kenmerken'!P80*1000*2 -> 150000 | Q29: ='1.4 Kenmerken'!Q110*'1.4 Kenmerken'!Q80*1000*2 -> 150000 | R29: ='1.4 Kenmerken'!R110*'1.4 Kenmerken'!R80*1000*2 -> 150000 | S29: ='1.4 Kenmerken'!S110*'1.4 Kenmerken'!S80*1000*2 -> 600000 | T29: ='1.4 Kenmerken'!T110*'1.4 Kenmerken'!T80*1000*2 -> 0 | U29: ='1.4 Kenmerken'!U110*'1.4 Kenmerken'!U80*1000*2 -> 150000 | V29: ='1.4 Kenmerken'!V110*'1.4 Kenmerken'!V80*1000*2 -> 0 | W29: ='1.4 Kenmerken'!W110*'1.4 Kenmerken'!W80*1000*2 -> 150000 | X29: ='1.4 Kenmerken'!X110*'1.4 Kenmerken'!X80*1000*2 -> 150000 | Y29: ='1.4 Kenmerken'!Y110*'1.4 Kenmerken'!Y80*1000*2 -> 150000 | Z29: ='1.4 Kenmerken'!Z110*'1.4 Kenmerken'!Z80*1000*2 -> 150000 | AA29: ='1.4 Kenmerken'!AA110*'1.4 Kenmerken'!AA80*1000*2 -> 150000 | AB29: ='1.4 Kenmerken'!AB110*'1.4 Kenmerken'!AB80*1000*2 -> 150000 | AC29: ='1.4 Kenmerken'!AC110*'1.4 Kenmerken'!AC80*1000*2 -> 150000 | AD29: ='1.4 Kenmerken'!AD110*'1.4 Kenmerken'!AD80*1000*2 -> 150000 | AE29: ='1.4 Kenmerken'!AE110*'1.4 Kenmerken'!AE80*1000*2 -> 150000 | AF29: ='1.4 Kenmerken'!AF110*'1.4 Kenmerken'!AF80*1000*2 -> 200000 | AG29: ='1.4 Kenmerken'!AG110*'1.4 Kenmerken'!AG80*1000*2 -> 150000
B30: grondkosten innamepunt (TEO) | C30: ='1.4 Kenmerken'!C75*'1.4 Kenmerken'!C112 -> 3664.888889 | D30: ='1.4 Kenmerken'!D75*'1.4 Kenmerken'!D112 -> 14659.55556 | E30: ='1.4 Kenmerken'!E75*'1.4 Kenmerken'!E112 -> 732.9777778 | F30: ='1.4 Kenmerken'!F75*'1.4 Kenmerken'!F112 -> 6466.666667 | G30: ='1.4 Kenmerken'!G75*'1.4 Kenmerken'!G112 -> 2000 | H30: ='1.4 Kenmerken'!H75*'1.4 Kenmerken'!H112 -> 4397.866667 | I30: ='1.4 Kenmerken'!I75*'1.4 Kenmerken'!I112 -> 5497.333333 | J30: ='1.4 Kenmerken'!J75*'1.4 Kenmerken'!J112 -> 3664.888889 | K30: ='1.4 Kenmerken'!K75*'1.4 Kenmerken'!K112 -> 3664.888889 | L30: ='1.4 Kenmerken'!L75*'1.4 Kenmerken'!L112 -> 2722.222222 | M30: ='1.4 Kenmerken'!M75*'1.4 Kenmerken'!M112 -> 3772.222222 | N30: ='1.4 Kenmerken'!N75*'1.4 Kenmerken'!N112 -> 3664.888889 | O30: ='1.4 Kenmerken'!O75*'1.4 Kenmerken'!O112 -> 3664.888889 | P30: ='1.4 Kenmerken'!P75*'1.4 Kenmerken'!P112 -> 3664.888889 | Q30: ='1.4 Kenmerken'!Q75*'1.4 Kenmerken'!Q112 -> 3664.888889 | R30: ='1.4 Kenmerken'!R75*'1.4 Kenmerken'!R112 -> 3664.888889 | S30: ='1.4 Kenmerken'!S75*'1.4 Kenmerken'!S112 -> 3664.888889 | T30: ='1.4 Kenmerken'!T75*'1.4 Kenmerken'!T112 -> 3664.888889 | U30: ='1.4 Kenmerken'!U75*'1.4 Kenmerken'!U112 -> 3664.888889 | V30: ='1.4 Kenmerken'!V75*'1.4 Kenmerken'!V112 -> 3664.888889 | W30: ='1.4 Kenmerken'!W75*'1.4 Kenmerken'!W112 -> 3664.888889 | X30: ='1.4 Kenmerken'!X75*'1.4 Kenmerken'!X112 -> 3664.888889 | Y30: ='1.4 Kenmerken'!Y75*'1.4 Kenmerken'!Y112 -> 3664.888889 | Z30: ='1.4 Kenmerken'!Z75*'1.4 Kenmerken'!Z112 -> 3664.888889 | AA30: ='1.4 Kenmerken'!AA75*'1.4 Kenmerken'!AA112 -> 3664.888889 | AB30: ='1.4 Kenmerken'!AB75*'1.4 Kenmerken'!AB112 -> 3664.888889 | AC30: ='1.4 Kenmerken'!AC75*'1.4 Kenmerken'!AC112 -> 3664.888889 | AD30: ='1.4 Kenmerken'!AD75*'1.4 Kenmerken'!AD112 -> 3664.888889 | AE30: ='1.4 Kenmerken'!AE75*'1.4 Kenmerken'!AE112 -> 4397.866667 | AF30: ='1.4 Kenmerken'!AF75*'1.4 Kenmerken'!AF112 -> 5000 | AG30: ='1.4 Kenmerken'!AG75*'1.4 Kenmerken'!AG112 -> 3664.888889
B31: Grondkosten | C31: =ROUND(C29+C30,-4) -> 150000 | D31: =ROUND(D29+D30,-4) -> 160000 | E31: 100000 | F31: 210000 | G31: 150000 | H31: 150000 | I31: 160000 | J31: 150000 | K31: 150000 | L31: 150000 | M31: 150000 | N31: 150000 | O31: 150000 | P31: 150000 | Q31: 150000 | R31: 150000 | S31: 600000 | T31: 0 | U31: 150000 | V31: 0 | W31: 150000 | X31: 150000 | Y31: 150000 | Z31: 150000 | AA31: 150000 | AB31: =ROUND(AB29+AB30,-4) -> 150000 | AC31: =ROUND(AC29+AC30,-4) -> 150000 | AD31: 150000 | AE31: 150000 | AF31: =ROUND(AF29+AF30,-4) -> 210000 | AG31: =ROUND(AG29+AG30,-4) -> 150000
B32: bouwkosten leidingtrace (GKW) | C32: ='1.4 Kenmerken'!C113*'1.4 Kenmerken'!C80*1000*2 -> 550000 | D32: ='1.4 Kenmerken'!D113*'1.4 Kenmerken'!D80*1000*2 -> 550000 | E32: ='1.4 Kenmerken'!E113*'1.4 Kenmerken'!E80*1000*2 -> 150000 | F32: ='1.4 Kenmerken'!F113*'1.4 Kenmerken'!F80*1000*2 -> 650000 | G32: ='1.4 Kenmerken'!G113*'1.4 Kenmerken'!G80*1000*2 -> 250000 | H32: ='1.4 Kenmerken'!H113*'1.4 Kenmerken'!H80*1000*2 -> 350000 | I32: ='1.4 Kenmerken'!I113*'1.4 Kenmerken'!I80*1000*2 -> 550000 | J32: ='1.4 Kenmerken'!J113*'1.4 Kenmerken'!J80*1000*2 -> 250000 | K32: ='1.4 Kenmerken'!K113*'1.4 Kenmerken'!K80*1000*2 -> 550000 | L32: ='1.4 Kenmerken'!L113*'1.4 Kenmerken'!L80*1000*2 -> 350000 | M32: ='1.4 Kenmerken'!M113*'1.4 Kenmerken'!M80*1000*2 -> 550000 | N32: ='1.4 Kenmerken'!N113*'1.4 Kenmerken'!N80*1000*2 -> 550000 | O32: ='1.4 Kenmerken'!O113*'1.4 Kenmerken'!O80*1000*2 -> 550000 | P32: ='1.4 Kenmerken'!P113*'1.4 Kenmerken'!P80*1000*2 -> 550000 | Q32: ='1.4 Kenmerken'!Q113*'1.4 Kenmerken'!Q80*1000*2 -> 550000 | R32: ='1.4 Kenmerken'!R113*'1.4 Kenmerken'!R80*1000*2 -> 550000 | S32: ='1.4 Kenmerken'!S113*'1.4 Kenmerken'!S80*1000*2 -> 2200000 | T32: ='1.4 Kenmerken'!T113*'1.4 Kenmerken'!T80*1000*2 -> 330000 | U32: ='1.4 Kenmerken'!U113*'1.4 Kenmerken'!U80*1000*2 -> 550000 | V32: ='1.4 Kenmerken'!V113*'1.4 Kenmerken'!V80*1000*2 -> 330000 | W32: ='1.4 Kenmerken'!W113*'1.4 Kenmerken'!W80*1000*2 -> 385000 | X32: ='1.4 Kenmerken'!X113*'1.4 Kenmerken'!X80*1000*2 -> 550000 | Y32: ='1.4 Kenmerken'!Y113*'1.4 Kenmerken'!Y80*1000*2 -> 550000 | Z32: ='1.4 Kenmerken'!Z113*'1.4 Kenmerken'!Z80*1000*2 -> 550000 | AA32: ='1.4 Kenmerken'!AA113*'1.4 Kenmerken'!AA80*1000*2 -> 550000 | AB32: ='1.4 Kenmerken'!AB113*'1.4 Kenmerken'!AB80*1000*2 -> 550000 | AC32: ='1.4 Kenmerken'!AC113*'1.4 Kenmerken'!AC80*1000*2 -> 550000 | AD32: ='1.4 Kenmerken'!AD113*'1.4 Kenmerken'!AD80*1000*2 -> 550000 | AE32: ='1.4 Kenmerken'!AE113*'1.4 Kenmerken'!AE80*1000*2 -> 550000 | AF32: ='1.4 Kenmerken'!AF113*'1.4 Kenmerken'!AF80*1000*2 -> 650000 | AG32: ='1.4 Kenmerken'!AG113*'1.4 Kenmerken'!AG80*1000*2 -> 550000
B33: bouwkosten innamepunt (GKW) | C33: ='1.4 Kenmerken'!C75*2000 -> 7329.777778 | D33: ='1.4 Kenmerken'!D75*2000 -> 29319.11111 | E33: ='1.4 Kenmerken'!E75*2000 -> 1465.955556 | F33: ='1.4 Kenmerken'!F75*2000 -> 12933.33333 | G33: ='1.4 Kenmerken'!G75*2000 -> 4000 | H33: ='1.4 Kenmerken'!H75*2000 -> 8795.733333 | I33: ='1.4 Kenmerken'!I75*2000 -> 10994.66667 | J33: ='1.4 Kenmerken'!J75*2000 -> 7329.777778 | K33: ='1.4 Kenmerken'!K75*2000 -> 7329.777778 | L33: ='1.4 Kenmerken'!L75*2000 -> 5444.444444 | M33: ='1.4 Kenmerken'!M75*2000 -> 7544.444444 | N33: ='1.4 Kenmerken'!N75*2000 -> 7329.777778 | O33: ='1.4 Kenmerken'!O75*2000 -> 7329.777778 | P33: ='1.4 Kenmerken'!P75*2000 -> 7329.777778 | Q33: ='1.4 Kenmerken'!Q75*2000 -> 7329.777778 | R33: ='1.4 Kenmerken'!R75*2000 -> 7329.777778 | S33: ='1.4 Kenmerken'!S75*2000 -> 7329.777778 | T33: ='1.4 Kenmerken'!T75*2000 -> 7329.777778 | U33: ='1.4 Kenmerken'!U75*2000 -> 7329.777778 | V33: ='1.4 Kenmerken'!V75*2000 -> 7329.777778 | W33: ='1.4 Kenmerken'!W75*2000 -> 7329.777778 | X33: ='1.4 Kenmerken'!X75*2000 -> 7329.777778 | Y33: ='1.4 Kenmerken'!Y75*2000 -> 7329.777778 | Z33: ='1.4 Kenmerken'!Z75*2000 -> 7329.777778 | AA33: ='1.4 Kenmerken'!AA75*2000 -> 7329.777778 | AB33: ='1.4 Kenmerken'!AB75*2000 -> 7329.777778 | AC33: ='1.4 Kenmerken'!AC75*2000 -> 7329.777778 | AD33: ='1.4 Kenmerken'!AD75*2000 -> 7329.777778 | AE33: ='1.4 Kenmerken'!AE75*2000 -> 8795.733333 | AF33: ='1.4 Kenmerken'!AF75*2000 -> 10000 | AG33: ='1.4 Kenmerken'!AG75*2000 -> 7329.777778
B34: bouwkosten pompinstallatie (GKW) | C34: =ROUND('1.4 Kenmerken'!C83*500,-3) -> 15000 | D34: =ROUND('1.4 Kenmerken'!D83*500,-3) -> 62000 | E34: =ROUND('1.4 Kenmerken'!E83*500,-3) -> 4000 | F34: =ROUND('1.4 Kenmerken'!F83*500,-3) -> 21000 | G34: =ROUND('1.4 Kenmerken'!G83*500,-3) -> 8000 | H34: =ROUND('1.4 Kenmerken'!H83*500,-3) -> 17000 | I34: =ROUND('1.4 Kenmerken'!I83*500,-3) -> 23000 | J34: =ROUND('1.4 Kenmerken'!J83*500,-3) -> 7000 | K34: =ROUND('1.4 Kenmerken'!K83*500,-3) -> 15000 | L34: =ROUND('1.4 Kenmerken'!L83*500,-3) -> 11000 | M34: =ROUND('1.4 Kenmerken'!M83*500,-3) -> 16000 | N34: =ROUND('1.4 Kenmerken'!N83*500,-3) -> 15000 | O34: =ROUND('1.4 Kenmerken'!O83*500,-3) -> 15000 | P34: =ROUND('1.4 Kenmerken'!P83*500,-3) -> 15000 | Q34: =ROUND('1.4 Kenmerken'!Q83*500,-3) -> 15000 | R34: =ROUND('1.4 Kenmerken'!R83*500,-3) -> 15000 | S34: =ROUND('1.4 Kenmerken'!S83*500,-3) -> 62000 | T34: =ROUND('1.4 Kenmerken'!T83*500,-3) -> 15000 | U34: =ROUND('1.4 Kenmerken'!U83*500,-3) -> 15000 | V34: =ROUND('1.4 Kenmerken'!V83*500,-3) -> 15000 | W34: =ROUND('1.4 Kenmerken'!W83*500,-3) -> 15000 | X34: =ROUND('1.4 Kenmerken'!X83*500,-3) -> 15000 | Y34: =ROUND('1.4 Kenmerken'!Y83*500,-3) -> 15000 | Z34: =ROUND('1.4 Kenmerken'!Z83*500,-3) -> 15000 | AA34: =ROUND('1.4 Kenmerken'!AA83*500,-3) -> 15000 | AB34: =ROUND('1.4 Kenmerken'!AB83*500,-3) -> 15000 | AC34: =ROUND('1.4 Kenmerken'!AC83*500,-3) -> 15000 | AD34: =ROUND('1.4 Kenmerken'!AD83*500,-3) -> 15000 | AE34: =ROUND('1.4 Kenmerken'!AE83*500,-3) -> 19000 | AF34: =ROUND('1.4 Kenmerken'!AF83*500,-3) -> 17000 | AG34: =ROUND('1.4 Kenmerken'!AG83*500,-3) -> 15000
B35: bouwkosten | C35: =ROUND(C32+C33+C34,-4) -> 570000 | D35: =ROUND(D32+D33+D34,-4) -> 640000 | E35: 160000 | F35: 680000 | G35: 260000 | H35: 380000 | I35: 580000 | J35: 260000 | K35: 570000 | L35: 370000 | M35: 570000 | N35: 570000 | O35: 570000 | P35: 570000 | Q35: 570000 | R35: 570000 | S35: 2270000 | T35: 350000 | U35: 570000 | V35: 350000 | W35: 410000 | X35: 570000 | Y35: 570000 | Z35: 570000 | AA35: 570000 | AB35: =ROUND(AB32+AB33+AB34,-4) -> 570000 | AC35: =ROUND(AC32+AC33+AC34,-4) -> 570000 | AD35: 570000 | AE35: 580000 | AF35: =ROUND(AF32+AF33+AF34,-4) -> 680000 | AG35: =ROUND(AG32+AG33+AG34,-4) -> 570000
B36: Algemene uitvoeringskosten incl. winst & risico | C36: =ROUND((C35)*'1.4 Kenmerken'!C133,-4) -> 90000 | D36: =ROUND((D35)*'1.4 Kenmerken'!D133,-4) -> 100000 | E36: =ROUND((E35)*'1.4 Kenmerken'!E133,-4) -> 20000 | F36: =ROUND((F35)*'1.4 Kenmerken'!F133,-4) -> 100000 | G36: =ROUND((G35)*'1.4 Kenmerken'!G133,-4) -> 40000 | H36: =ROUND((H35)*'1.4 Kenmerken'!H133,-4) -> 60000 | I36: =ROUND((I35)*'1.4 Kenmerken'!I133,-4) -> 90000 | J36: =ROUND((J35)*'1.4 Kenmerken'!J133,-4) -> 40000 | K36: =ROUND((K35)*'1.4 Kenmerken'!K133,-4) -> 90000 | L36: =ROUND((L35)*'1.4 Kenmerken'!L133,-4) -> 60000 | M36: =ROUND((M35)*'1.4 Kenmerken'!M133,-4) -> 90000 | N36: =ROUND((N35)*'1.4 Kenmerken'!N133,-4) -> 90000 | O36: =ROUND((O35)*'1.4 Kenmerken'!O133,-4) -> 90000 | P36: =ROUND((P35)*'1.4 Kenmerken'!P133,-4) -> 90000 | Q36: =ROUND((Q35)*'1.4 Kenmerken'!Q133,-4) -> 90000 | R36: =ROUND((R35)*'1.4 Kenmerken'!R133,-4) -> 90000 | S36: =ROUND((S35)*'1.4 Kenmerken'!S133,-4) -> 340000 | T36: =ROUND((T35)*'1.4 Kenmerken'!T133,-4) -> 50000 | U36: =ROUND((U35)*'1.4 Kenmerken'!U133,-4) -> 90000 | V36: =ROUND((V35)*'1.4 Kenmerken'!V133,-4) -> 50000 | W36: =ROUND((W35)*'1.4 Kenmerken'!W133,-4) -> 60000 | X36: =ROUND((X35)*'1.4 Kenmerken'!X133,-4) -> 90000 | Y36: =ROUND((Y35)*'1.4 Kenmerken'!Y133,-4) -> 90000 | Z36: =ROUND((Z35)*'1.4 Kenmerken'!Z133,-4) -> 100000 | AA36: =ROUND((AA35)*'1.4 Kenmerken'!AA133,-4) -> 70000 | AB36: =ROUND((AB35)*'1.4 Kenmerken'!AB133,-4) -> 90000 | AC36: =ROUND((AC35)*'1.4 Kenmerken'!AC133,-4) -> 90000 | AD36: =ROUND((AD35)*'1.4 Kenmerken'!AD133,-4) -> 90000 | AE36: =ROUND((AE35)*'1.4 Kenmerken'!AE133,-4) -> 90000 | AF36: =ROUND((AF35)*'1.4 Kenmerken'!AF133,-4) -> 100000 | AG36: =ROUND((AG35)*'1.4 Kenmerken'!AG133,-4) -> 90000
B37: onvoorzien | C37: =ROUND(SUM(C35:C36,C31)*'1.4 Kenmerken'!C134,-4) -> 80000 | D37: =ROUND(SUM(D35:D36,D31)*'1.4 Kenmerken'!D134,-4) -> 90000 | E37: =ROUND(SUM(E35:E36,E31)*'1.4 Kenmerken'!E134,-4) -> 30000 | F37: =ROUND(SUM(F35:F36,F31)*'1.4 Kenmerken'!F134,-4) -> 100000 | G37: =ROUND(SUM(G35:G36,G31)*'1.4 Kenmerken'!G134,-4) -> 50000 | H37: =ROUND(SUM(H35:H36,H31)*'1.4 Kenmerken'!H134,-4) -> 60000 | I37: =ROUND(SUM(I35:I36,I31)*'1.4 Kenmerken'!I134,-4) -> 80000 | J37: =ROUND(SUM(J35:J36,J31)*'1.4 Kenmerken'!J134,-4) -> 50000 | K37: =ROUND(SUM(K35:K36,K31)*'1.4 Kenmerken'!K134,-4) -> 80000 | L37: =ROUND(SUM(L35:L36,L31)*'1.4 Kenmerken'!L134,-4) -> 60000 | M37: =ROUND(SUM(M35:M36,M31)*'1.4 Kenmerken'!M134,-4) -> 80000 | N37: =ROUND(SUM(N35:N36,N31)*'1.4 Kenmerken'!N134,-4) -> 80000 | O37: =ROUND(SUM(O35:O36,O31)*'1.4 Kenmerken'!O134,-4) -> 80000 | P37: =ROUND(SUM(P35:P36,P31)*'1.4 Kenmerken'!P134,-4) -> 80000 | Q37: =ROUND(SUM(Q35:Q36,Q31)*'1.4 Kenmerken'!Q134,-4) -> 80000 | R37: =ROUND(SUM(R35:R36,R31)*'1.4 Kenmerken'!R134,-4) -> 80000 | S37: =ROUND(SUM(S35:S36,S31)*'1.4 Kenmerken'!S134,-4) -> 320000 | T37: =ROUND(SUM(T35:T36,T31)*'1.4 Kenmerken'!T134,-4) -> 40000 | U37: =ROUND(SUM(U35:U36,U31)*'1.4 Kenmerken'!U134,-4) -> 80000 | V37: =ROUND(SUM(V35:V36,V31)*'1.4 Kenmerken'!V134,-4) -> 40000 | W37: =ROUND(SUM(W35:W36,W31)*'1.4 Kenmerken'!W134,-4) -> 60000 | X37: =ROUND(SUM(X35:X36,X31)*'1.4 Kenmerken'!X134,-4) -> 80000 | Y37: =ROUND(SUM(Y35:Y36,Y31)*'1.4 Kenmerken'!Y134,-4) -> 80000 | Z37: =ROUND(SUM(Z35:Z36,Z31)*'1.4 Kenmerken'!Z134,-4) -> 80000 | AA37: =ROUND(SUM(AA35:AA36,AA31)*'1.4 Kenmerken'!AA134,-4) -> 80000 | AB37: =ROUND(SUM(AB35:AB36,AB31)*'1.4 Kenmerken'!AB134,-4) -> 80000 | AC37: =ROUND(SUM(AC35:AC36,AC31)*'1.4 Kenmerken'!AC134,-4) -> 80000 | AD37: =ROUND(SUM(AD35:AD36,AD31)*'1.4 Kenmerken'!AD134,-4) -> 80000 | AE37: =ROUND(SUM(AE35:AE36,AE31)*'1.4 Kenmerken'!AE134,-4) -> 80000 | AF37: =ROUND(SUM(AF35:AF36,AF31)*'1.4 Kenmerken'!AF134,-4) -> 100000 | AG37: =ROUND(SUM(AG35:AG36,AG31)*'1.4 Kenmerken'!AG134,-4) -> 80000
B38: bijkomende kosten | C38: =ROUND((SUM(C35:C37,C31)*SUM('1.4 Kenmerken'!C135:C139))+(('1.4 Kenmerken'!C83)/0.85*110),-4) -> 90000 | D38: =ROUND((SUM(D35:D37,D31)*SUM('1.4 Kenmerken'!D135:D139))+(('1.4 Kenmerken'!D83+'1.4 Kenmerken'!D96)/0.85*110),-4) -> 120000 | E38: =ROUND((SUM(E35:E37,E31)*SUM('1.4 Kenmerken'!E135:E139))+(('1.4 Kenmerken'!E83+'1.4 Kenmerken'!E96)/0.85*110),-4) -> 30000 | F38: =ROUND((SUM(F35:F37,F31)*SUM('1.4 Kenmerken'!F135:F139))+(('1.4 Kenmerken'!F83+'1.4 Kenmerken'!F96)/0.85*110),-4) -> 120000 | G38: =ROUND((SUM(G35:G37,G31)*SUM('1.4 Kenmerken'!G135:G139))+(('1.4 Kenmerken'!G83+'1.4 Kenmerken'!G96)/0.85*110),-4) -> 50000 | H38: =ROUND((SUM(H35:H37,H31)*SUM('1.4 Kenmerken'!H135:H139))+(('1.4 Kenmerken'!H83+'1.4 Kenmerken'!H96)/0.85*110),-4) -> 70000 | I38: =ROUND((SUM(I35:I37,I31)*SUM('1.4 Kenmerken'!I135:I139))+(('1.4 Kenmerken'!I83+'1.4 Kenmerken'!I96)/0.85*110),-4) -> 100000 | J38: =ROUND((SUM(J35:J37,J31)*SUM('1.4 Kenmerken'!J135:J139))+(('1.4 Kenmerken'!J83+'1.4 Kenmerken'!J96)/0.85*110),-4) -> 50000 | K38: =ROUND((SUM(K35:K37,K31)*SUM('1.4 Kenmerken'!K135:K139))+(('1.4 Kenmerken'!K83+'1.4 Kenmerken'!K96)/0.85*110),-4) -> 90000 | L38: =ROUND((SUM(L35:L37,L31)*SUM('1.4 Kenmerken'!L135:L139))+(('1.4 Kenmerken'!L83+'1.4 Kenmerken'!L96)/0.85*110),-4) -> 70000 | M38: =ROUND((SUM(M35:M37,M31)*SUM('1.4 Kenmerken'!M135:M139))+(('1.4 Kenmerken'!M83+'1.4 Kenmerken'!M96)/0.85*110),-4) -> 100000 | N38: =ROUND((SUM(N35:N37,N31)*SUM('1.4 Kenmerken'!N135:N139))+(('1.4 Kenmerken'!N83+'1.4 Kenmerken'!N96)/0.85*110),-4) -> 90000 | O38: =ROUND((SUM(O35:O37,O31)*SUM('1.4 Kenmerken'!O135:O139))+(('1.4 Kenmerken'!O83+'1.4 Kenmerken'!O96)/0.85*110),-4) -> 90000 | P38: =ROUND((SUM(P35:P37,P31)*SUM('1.4 Kenmerken'!P135:P139))+(('1.4 Kenmerken'!P83+'1.4 Kenmerken'!P96)/0.85*110),-4) -> 90000 | Q38: =ROUND((SUM(Q35:Q37,Q31)*SUM('1.4 Kenmerken'!Q135:Q139))+(('1.4 Kenmerken'!Q83+'1.4 Kenmerken'!Q96)/0.85*110),-4) -> 90000 | R38: =ROUND((SUM(R35:R37,R31)*SUM('1.4 Kenmerken'!R135:R139))+(('1.4 Kenmerken'!R83+'1.4 Kenmerken'!R96)/0.85*110),-4) -> 90000 | S38: =ROUND((SUM(S35:S37,S31)*SUM('1.4 Kenmerken'!S135:S139))+(('1.4 Kenmerken'!S83+'1.4 Kenmerken'!S96)/0.85*110),-4) -> 370000 | T38: =ROUND((SUM(T35:T37,T31)*SUM('1.4 Kenmerken'!T135:T139))+(('1.4 Kenmerken'!T83+'1.4 Kenmerken'!T96)/0.85*110),-4) -> 50000 | U38: =ROUND((SUM(U35:U37,U31)*SUM('1.4 Kenmerken'!U135:U139))+(('1.4 Kenmerken'!U83+'1.4 Kenmerken'!U96)/0.85*110),-4) -> 100000 | V38: =ROUND((SUM(V35:V37,V31)*SUM('1.4 Kenmerken'!V135:V139))+(('1.4 Kenmerken'!V83+'1.4 Kenmerken'!V96)/0.85*110),-4) -> 50000 | W38: =ROUND((SUM(W35:W37,W31)*SUM('1.4 Kenmerken'!W135:W139))+(('1.4 Kenmerken'!W83+'1.4 Kenmerken'!W96)/0.85*110),-4) -> 70000 | X38: =ROUND((SUM(X35:X37,X31)*SUM('1.4 Kenmerken'!X135:X139))+(('1.4 Kenmerken'!X83+'1.4 Kenmerken'!X96)/0.85*110),-4) -> 90000 | Y38: =ROUND((SUM(Y35:Y37,Y31)*SUM('1.4 Kenmerken'!Y135:Y139))+(('1.4 Kenmerken'!Y83+'1.4 Kenmerken'!Y96)/0.85*110),-4) -> 90000 | Z38: =ROUND((SUM(Z35:Z37,Z31)*SUM('1.4 Kenmerken'!Z135:Z139))+(('1.4 Kenmerken'!Z83+'1.4 Kenmerken'!Z96)/0.85*110),-4) -> 100000 | AA38: =ROUND((SUM(AA35:AA37,AA31)*SUM('1.4 Kenmerken'!AA135:AA139))+(('1.4 Kenmerken'!AA83+'1.4 Kenmerken'!AA96)/0.85*110),-4) -> 90000 | AB38: =ROUND((SUM(AB35:AB37,AB31)*SUM('1.4 Kenmerken'!AB135:AB139))+(('1.4 Kenmerken'!AB83+'1.4 Kenmerken'!AB96)/0.85*110),-4) -> 90000 | AC38: =ROUND((SUM(AC35:AC37,AC31)*SUM('1.4 Kenmerken'!AC135:AC139))+(('1.4 Kenmerken'!AC83+'1.4 Kenmerken'!AC96)/0.85*110),-4) -> 90000 | AD38: =ROUND((SUM(AD35:AD37,AD31)*SUM('1.4 Kenmerken'!AD135:AD139))+(('1.4 Kenmerken'!AD83+'1.4 Kenmerken'!AD96)/0.85*110),-4) -> 90000 | AE38: =ROUND((SUM(AE35:AE37,AE31)*SUM('1.4 Kenmerken'!AE135:AE139))+(('1.4 Kenmerken'!AE83+'1.4 Kenmerken'!AE96)/0.85*110),-4) -> 100000 | AF38: =ROUND((SUM(AF35:AF37,AF31)*SUM('1.4 Kenmerken'!AF135:AF139))+(('1.4 Kenmerken'!AF83+'1.4 Kenmerken'!AF96)/0.85*110),-4) -> 120000 | AG38: =ROUND((SUM(AG35:AG37,AG31)*SUM('1.4 Kenmerken'!AG135:AG139))+(('1.4 Kenmerken'!AG83)/0.85*110),-4) -> 90000
B39: financiering | C39: =ROUND(SUM(C35:C38,C31)*SUM('1.4 Kenmerken'!C140:C141),-4) -> 20000 | D39: =ROUND(SUM(D35:D38,D31)*SUM('1.4 Kenmerken'!D140:D141),-4) -> 20000 | E39: =ROUND(SUM(E35:E38,E31)*SUM('1.4 Kenmerken'!E140:E141),-4) -> 10000 | F39: =ROUND(SUM(F35:F38,F31)*SUM('1.4 Kenmerken'!F140:F141),-4) -> 30000 | G39: =ROUND(SUM(G35:G38,G31)*SUM('1.4 Kenmerken'!G140:G141),-4) -> 10000 | H39: =ROUND(SUM(H35:H38,H31)*SUM('1.4 Kenmerken'!H140:H141),-4) -> 20000 | I39: =ROUND(SUM(I35:I38,I31)*SUM('1.4 Kenmerken'!I140:I141),-4) -> 20000 | J39: =ROUND(SUM(J35:J38,J31)*SUM('1.4 Kenmerken'!J140:J141),-4) -> 10000 | K39: =ROUND(SUM(K35:K38,K31)*SUM('1.4 Kenmerken'!K140:K141),-4) -> 20000 | L39: =ROUND(SUM(L35:L38,L31)*SUM('1.4 Kenmerken'!L140:L141),-4) -> 20000 | M39: =ROUND(SUM(M35:M38,M31)*SUM('1.4 Kenmerken'!M140:M141),-4) -> 20000 | N39: =ROUND(SUM(N35:N38,N31)*SUM('1.4 Kenmerken'!N140:N141),-4) -> 20000 | O39: =ROUND(SUM(O35:O38,O31)*SUM('1.4 Kenmerken'!O140:O141),-4) -> 20000 | P39: =ROUND(SUM(P35:P38,P31)*SUM('1.4 Kenmerken'!P140:P141),-4) -> 20000 | Q39: =ROUND(SUM(Q35:Q38,Q31)*SUM('1.4 Kenmerken'!Q140:Q141),-4) -> 20000 | R39: =ROUND(SUM(R35:R38,R31)*SUM('1.4 Kenmerken'!R140:R141),-4) -> 20000 | S39: =ROUND(SUM(S35:S38,S31)*SUM('1.4 Kenmerken'!S140:S141),-4) -> 90000 | T39: =ROUND(SUM(T35:T38,T31)*SUM('1.4 Kenmerken'!T140:T141),-4) -> 10000 | U39: =ROUND(SUM(U35:U38,U31)*SUM('1.4 Kenmerken'!U140:U141),-4) -> 20000 | V39: =ROUND(SUM(V35:V38,V31)*SUM('1.4 Kenmerken'!V140:V141),-4) -> 10000 | W39: =ROUND(SUM(W35:W38,W31)*SUM('1.4 Kenmerken'!W140:W141),-4) -> 20000 | X39: =ROUND(SUM(X35:X38,X31)*SUM('1.4 Kenmerken'!X140:X141),-4) -> 20000 | Y39: =ROUND(SUM(Y35:Y38,Y31)*SUM('1.4 Kenmerken'!Y140:Y141),-4) -> 20000 | Z39: =ROUND(SUM(Z35:Z38,Z31)*SUM('1.4 Kenmerken'!Z140:Z141),-4) -> 20000 | AA39: =ROUND(SUM(AA35:AA38,AA31)*SUM('1.4 Kenmerken'!AA140:AA141),-4) -> 20000 | AB39: =ROUND(SUM(AB35:AB38,AB31)*SUM('1.4 Kenmerken'!AB140:AB141),-4) -> 20000 | AC39: =ROUND(SUM(AC35:AC38,AC31)*SUM('1.4 Kenmerken'!AC140:AC141),-4) -> 20000 | AD39: =ROUND(SUM(AD35:AD38,AD31)*SUM('1.4 Kenmerken'!AD140:AD141),-4) -> 20000 | AE39: =ROUND(SUM(AE35:AE38,AE31)*SUM('1.4 Kenmerken'!AE140:AE141),-4) -> 20000 | AF39: =ROUND(SUM(AF35:AF38,AF31)*SUM('1.4 Kenmerken'!AF140:AF141),-4) -> 30000 | AG39: =ROUND(SUM(AG35:AG38,AG31)*SUM('1.4 Kenmerken'!AG140:AG141),-4) -> 20000
B40: CAPEX Leidingtrace TEO | C40: =ROUND((SUM(C35:C39,C31)),-5) -> 1000000 | D40: 1100000 | E40: 400000 | F40: =ROUND((SUM(F35:F39,F31)),-5) -> 1200000 | G40: 600000 | H40: 700000 | I40: 1000000 | J40: 600000 | K40: 1000000 | L40: 700000 | M40: 1000000 | N40: 1000000 | O40: 1000000 | P40: 1000000 | Q40: 1000000 | R40: 1000000 | S40: 4000000 | T40: 500000 | U40: 1000000 | V40: 500000 | W40: 800000 | X40: 1000000 | Y40: 1000000 | Z40: 1000000 | AA40: 1000000 | AB40: =ROUND((SUM(AB35:AB39,AB31)),-5) -> 1000000 | AC40: =ROUND((SUM(AC35:AC39,AC31)),-5) -> 1000000 | AD40: 1000000 | AE40: 1000000 | AF40: =ROUND((SUM(AF35:AF39,AF31)),-5) -> 1200000 | AG40: 1000000
C41: =C40/('1.4 Kenmerken'!C8*1000) -> 200 | D41: =D40/('1.4 Kenmerken'!D8*1000) -> 55 | E41: =E40/('1.4 Kenmerken'!E8*1000) -> 400 | F41: =F40/('1.4 Kenmerken'!F8*1000) -> 240 | G41: =G40/('1.4 Kenmerken'!G8*1000) -> 120 | H41: =H40/('1.4 Kenmerken'!H8*1000) -> 140 | I41: =I40/('1.4 Kenmerken'!I8*1000) -> 200 | J41: =J40/('1.4 Kenmerken'!J8*1000) -> 120 | K41: =K40/('1.4 Kenmerken'!K8*1000) -> 200 | L41: =L40/('1.4 Kenmerken'!L8*1000) -> 140 | M41: =M40/('1.4 Kenmerken'!M8*1000) -> 200 | N41: =N40/('1.4 Kenmerken'!N8*1000) -> 200 | O41: =O40/('1.4 Kenmerken'!O8*1000) -> 200 | P41: =P40/('1.4 Kenmerken'!P8*1000) -> 200 | Q41: =Q40/('1.4 Kenmerken'!Q8*1000) -> 200 | R41: =R40/('1.4 Kenmerken'!R8*1000) -> 200 | S41: =S40/('1.4 Kenmerken'!S8*1000) -> 800 | T41: =T40/('1.4 Kenmerken'!T8*1000) -> 100 | U41: =U40/('1.4 Kenmerken'!U8*1000) -> 200 | V41: =V40/('1.4 Kenmerken'!V8*1000) -> 100 | W41: =W40/('1.4 Kenmerken'!W8*1000) -> 160 | X41: =X40/('1.4 Kenmerken'!X8*1000) -> 200 | Y41: =Y40/('1.4 Kenmerken'!Y8*1000) -> 200 | Z41: =Z40/('1.4 Kenmerken'!Z8*1000) -> 200 | AA41: =AA40/('1.4 Kenmerken'!AA8*1000) -> 200 | AB41: =AB40/('1.4 Kenmerken'!AB8*1000) -> 200 | AC41: =AC40/('1.4 Kenmerken'!AC8*1000) -> 200 | AD41: =AD40/('1.4 Kenmerken'!AD8*1000) -> 200 | AE41: =AE40/('1.4 Kenmerken'!AE8*1000) -> 200 | AF41: =AF40/('1.4 Kenmerken'!AF8*1000) -> 240 | AG41: =AG40/('1.4 Kenmerken'!AG8*1000) -> 200
B43: Afschrijvingstermijn | C43: 30 | D43: 30 | E43: 30 | F43: 30 | G43: 30 | H43: 30 | I43: 30 | J43: 30 | K43: 30 | L43: 30 | M43: 30 | N43: 30 | O43: 30 | P43: 30 | Q43: 30 | R43: 30 | S43: 30 | T43: 30 | U43: 30 | V43: 30 | W43: 30 | X43: 30 | Y43: 30 | Z43: 30 | AA43: 30 | AB43: 30 | AC43: 30 | AD43: 30 | AE43: 30 | AF43: 30 | AG43: 30
B44: Afschrijfkosten gemiddeld | C44: =(C40-C39)/C43 -> 32666.66667 | D44: =(D40-D39)/D43 -> 36000 | E44: 13000 | F44: 39000 | G44: 19666.66667 | H44: 22666.66667 | I44: 32666.66667 | J44: 19666.66667 | K44: 32666.66667 | L44: =(L40-L39)/L43 -> 22666.66667 | M44: 32666.66667 | N44: =(N40-N39)/N43 -> 32666.66667 | O44: =(O40-O39)/O43 -> 32666.66667 | P44: 32666.66667 | Q44: 32666.66667 | R44: 32666.66667 | S44: 130333.3333 | T44: 16333.33333 | U44: 32666.66667 | V44: 16333.33333 | W44: 26000 | X44: 32666.66667 | Y44: 32666.66667 | Z44: 32666.66667 | AA44: 32666.66667 | AB44: =(AB40-AB39)/AB43 -> 32666.66667 | AC44: =(AC40-AC39)/AC43 -> 32666.66667 | AD44: 32666.66667 | AE44: 32666.66667 | AF44: =(AF40-AF39)/AF43 -> 39000 | AG44: =(AG40-AG39)/AG43 -> 32666.66667
B46: Leidingtrace WKO
B47: grondkosten leidingtrace (GKW) | C47: ='1.4 Kenmerken'!C110*'1.4 Kenmerken'!C93*1000*2 -> 150000 | D47: ='1.4 Kenmerken'!D110*'1.4 Kenmerken'!D93*1000*2 -> 150000 | E47: ='1.4 Kenmerken'!E110*'1.4 Kenmerken'!E93*1000*2 -> 100000 | F47: ='1.4 Kenmerken'!F110*'1.4 Kenmerken'!F93*1000*2 -> 200000 | G47: ='1.4 Kenmerken'!G110*'1.4 Kenmerken'!G93*1000*2 -> 150000 | H47: ='1.4 Kenmerken'!H110*'1.4 Kenmerken'!H93*1000*2 -> 150000 | I47: ='1.4 Kenmerken'!I110*'1.4 Kenmerken'!I93*1000*2 -> 150000 | J47: ='1.4 Kenmerken'!J110*'1.4 Kenmerken'!J93*1000*2 -> 150000 | K47: ='1.4 Kenmerken'!K110*'1.4 Kenmerken'!K93*1000*2 -> 150000 | L47: ='1.4 Kenmerken'!L110*'1.4 Kenmerken'!L93*1000*2 -> 150000 | M47: ='1.4 Kenmerken'!M110*'1.4 Kenmerken'!M93*1000*2 -> 150000 | N47: ='1.4 Kenmerken'!N110*'1.4 Kenmerken'!N93*1000*2 -> 0 | O47: ='1.4 Kenmerken'!O110*'1.4 Kenmerken'!O93*1000*2 -> 150000 | P47: ='1.4 Kenmerken'!P110*'1.4 Kenmerken'!P93*1000*2 -> 150000 | Q47: ='1.4 Kenmerken'!Q110*'1.4 Kenmerken'!Q93*1000*2 -> 150000 | R47: ='1.4 Kenmerken'!R110*'1.4 Kenmerken'!R93*1000*2 -> 150000 | S47: ='1.4 Kenmerken'!S110*'1.4 Kenmerken'!S93*1000*2 -> 150000 | T47: ='1.4 Kenmerken'!T110*'1.4 Kenmerken'!T93*1000*2 -> 0 | U47: ='1.4 Kenmerken'!U110*'1.4 Kenmerken'!U93*1000*2 -> 600000 | V47: ='1.4 Kenmerken'!V110*'1.4 Kenmerken'!V93*1000*2 -> 0 | W47: ='1.4 Kenmerken'!W110*'1.4 Kenmerken'!W93*1000*2 -> 150000 | X47: ='1.4 Kenmerken'!X110*'1.4 Kenmerken'!X93*1000*2 -> 150000 | Y47: ='1.4 Kenmerken'!Y110*'1.4 Kenmerken'!Y93*1000*2 -> 150000 | Z47: ='1.4 Kenmerken'!Z110*'1.4 Kenmerken'!Z93*1000*2 -> 150000 | AA47: ='1.4 Kenmerken'!AA110*'1.4 Kenmerken'!AA93*1000*2 -> 150000 | AB47: ='1.4 Kenmerken'!AB110*'1.4 Kenmerken'!AB93*1000*2 -> 150000 | AC47: ='1.4 Kenmerken'!AC110*'1.4 Kenmerken'!AC93*1000*2 -> 150000 | AD47: ='1.4 Kenmerken'!AD110*'1.4 Kenmerken'!AD93*1000*2 -> 0 | AE47: ='1.4 Kenmerken'!AE110*'1.4 Kenmerken'!AE93*1000*2 -> 150000 | AF47: ='1.4 Kenmerken'!AF110*'1.4 Kenmerken'!AF93*1000*2 -> 200000 | AG47: ='1.4 Kenmerken'!AG110*'1.4 Kenmerken'!AG93*1000*2 -> 150000
B48: grondkosten innamepunt (GKW) | C48: ='1.4 Kenmerken'!C86*1000 -> 1666.666667 | D48: ='1.4 Kenmerken'!D86*1000 -> 6666.666667 | E48: ='1.4 Kenmerken'!E86*1000 -> 333.3333333 | F48: ='1.4 Kenmerken'!F86*1000 -> 1666.666667 | G48: ='1.4 Kenmerken'!G86*1000 -> 1666.666667 | H48: ='1.4 Kenmerken'!H86*1000 -> 1666.666667 | I48: ='1.4 Kenmerken'!I86*1000 -> 1666.666667 | J48: ='1.4 Kenmerken'!J86*1000 -> 1666.666667 | K48: ='1.4 Kenmerken'!K86*1000 -> 1666.666667 | L48: ='1.4 Kenmerken'!L86*1000 -> 1000 | M48: ='1.4 Kenmerken'!M86*1000 -> 2333.333333 | N48: ='1.4 Kenmerken'!N86*1000 -> 0 | O48: ='1.4 Kenmerken'!O86*1000 -> 1666.666667 | P48: ='1.4 Kenmerken'!P86*1000 -> 1666.666667 | Q48: ='1.4 Kenmerken'!Q86*1000 -> 1666.666667 | R48: ='1.4 Kenmerken'!R86*1000 -> 1666.666667 | S48: ='1.4 Kenmerken'!S86*1000 -> 1666.666667 | T48: ='1.4 Kenmerken'!T86*1000 -> 1666.666667 | U48: ='1.4 Kenmerken'!U86*1000 -> 1666.666667 | V48: ='1.4 Kenmerken'!V86*1000 -> 1666.666667 | W48: ='1.4 Kenmerken'!W86*1000 -> 1666.666667 | X48: ='1.4 Kenmerken'!X86*1000 -> 1666.666667 | Y48: ='1.4 Kenmerken'!Y86*1000 -> 1666.666667 | Z48: ='1.4 Kenmerken'!Z86*1000 -> 1666.666667 | AA48: ='1.4 Kenmerken'!AA86*1000 -> 1666.666667 | AB48: ='1.4 Kenmerken'!AB86*1000 -> 1666.666667 | AC48: ='1.4 Kenmerken'!AC86*1000 -> 1666.666667 | AD48: ='1.4 Kenmerken'!AD86*1000 -> 0 | AE48: ='1.4 Kenmerken'!AE86*1000 -> 2000 | AF48: ='1.4 Kenmerken'!AF86*1000 -> 5000 | AG48: ='1.4 Kenmerken'!AG86*1000 -> 1666.666667
B49: Grondkosten | C49: =ROUND(C47+C48,-4) -> 150000 | D49: 160000 | E49: 100000 | F49: 200000 | G49: 150000 | H49: 150000 | I49: 150000 | J49: 150000 | K49: 150000 | L49: 150000 | M49: 150000 | N49: =ROUND(N47+N48,-4) -> 0 | O49: 150000 | P49: 150000 | Q49: 150000 | R49: 150000 | S49: 150000 | T49: 0 | U49: 600000 | V49: 0 | W49: 150000 | X49: 150000 | Y49: 150000 | Z49: 150000 | AA49: 150000 | AB49: =ROUND(AB47+AB48,-4) -> 150000 | AC49: =ROUND(AC47+AC48,-4) -> 150000 | AD49: 0 | AE49: 150000 | AF49: =ROUND(AF47+AF48,-4) -> 210000 | AG49: 150000
B50: bouwkosten leidingtrace (GKW) | C50: ='1.4 Kenmerken'!C113*'1.4 Kenmerken'!C93*1000*2 -> 550000 | D50: ='1.4 Kenmerken'!D113*'1.4 Kenmerken'!D93*1000*2 -> 550000 | E50: ='1.4 Kenmerken'!E113*'1.4 Kenmerken'!E93*1000*2 -> 150000 | F50: ='1.4 Kenmerken'!F113*'1.4 Kenmerken'!F93*1000*2 -> 650000 | G50: ='1.4 Kenmerken'!G113*'1.4 Kenmerken'!G93*1000*2 -> 250000 | H50: ='1.4 Kenmerken'!H113*'1.4 Kenmerken'!H93*1000*2 -> 350000 | I50: ='1.4 Kenmerken'!I113*'1.4 Kenmerken'!I93*1000*2 -> 550000 | J50: ='1.4 Kenmerken'!J113*'1.4 Kenmerken'!J93*1000*2 -> 250000 | K50: ='1.4 Kenmerken'!K113*'1.4 Kenmerken'!K93*1000*2 -> 550000 | L50: ='1.4 Kenmerken'!L113*'1.4 Kenmerken'!L93*1000*2 -> 350000 | M50: ='1.4 Kenmerken'!M113*'1.4 Kenmerken'!M93*1000*2 -> 550000 | N50: ='1.4 Kenmerken'!N113*'1.4 Kenmerken'!N93*1000*2 -> 0 | O50: ='1.4 Kenmerken'!O113*'1.4 Kenmerken'!O93*1000*2 -> 550000 | P50: ='1.4 Kenmerken'!P113*'1.4 Kenmerken'!P93*1000*2 -> 550000 | Q50: ='1.4 Kenmerken'!Q113*'1.4 Kenmerken'!Q93*1000*2 -> 550000 | R50: ='1.4 Kenmerken'!R113*'1.4 Kenmerken'!R93*1000*2 -> 550000 | S50: ='1.4 Kenmerken'!S113*'1.4 Kenmerken'!S93*1000*2 -> 550000 | T50: ='1.4 Kenmerken'!T113*'1.4 Kenmerken'!T93*1000*2 -> 330000 | U50: ='1.4 Kenmerken'!U113*'1.4 Kenmerken'!U93*1000*2 -> 2200000 | V50: ='1.4 Kenmerken'!V113*'1.4 Kenmerken'!V93*1000*2 -> 330000 | W50: ='1.4 Kenmerken'!W113*'1.4 Kenmerken'!W93*1000*2 -> 385000 | X50: ='1.4 Kenmerken'!X113*'1.4 Kenmerken'!X93*1000*2 -> 550000 | Y50: ='1.4 Kenmerken'!Y113*'1.4 Kenmerken'!Y93*1000*2 -> 550000 | Z50: ='1.4 Kenmerken'!Z113*'1.4 Kenmerken'!Z93*1000*2 -> 550000 | AA50: ='1.4 Kenmerken'!AA113*'1.4 Kenmerken'!AA93*1000*2 -> 550000 | AB50: ='1.4 Kenmerken'!AB113*'1.4 Kenmerken'!AB93*1000*2 -> 550000 | AC50: ='1.4 Kenmerken'!AC113*'1.4 Kenmerken'!AC93*1000*2 -> 550000 | AD50: ='1.4 Kenmerken'!AD113*'1.4 Kenmerken'!AD93*1000*2 -> 0 | AE50: ='1.4 Kenmerken'!AE113*'1.4 Kenmerken'!AE93*1000*2 -> 550000 | AF50: ='1.4 Kenmerken'!AF113*'1.4 Kenmerken'!AF93*1000*2 -> 650000 | AG50: ='1.4 Kenmerken'!AG113*'1.4 Kenmerken'!AG93*1000*2 -> 550000
B51: bouwkosten innamepunt (GKW) | C51: ='1.4 Kenmerken'!C86*2000 -> 3333.333333 | D51: ='1.4 Kenmerken'!D86*2000 -> 13333.33333 | E51: ='1.4 Kenmerken'!E86*2000 -> 666.6666667 | F51: ='1.4 Kenmerken'!F86*2000 -> 3333.333333 | G51: ='1.4 Kenmerken'!G86*2000 -> 3333.333333 | H51: ='1.4 Kenmerken'!H86*2000 -> 3333.333333 | I51: ='1.4 Kenmerken'!I86*2000 -> 3333.333333 | J51: ='1.4 Kenmerken'!J86*2000 -> 3333.333333 | K51: ='1.4 Kenmerken'!K86*2000 -> 3333.333333 | L51: ='1.4 Kenmerken'!L86*2000 -> 2000 | M51: ='1.4 Kenmerken'!M86*2000 -> 4666.666667 | N51: ='1.4 Kenmerken'!N86*2000 -> 0 | O51: ='1.4 Kenmerken'!O86*2000 -> 3333.333333 | P51: ='1.4 Kenmerken'!P86*2000 -> 3333.333333 | Q51: ='1.4 Kenmerken'!Q86*2000 -> 3333.333333 | R51: ='1.4 Kenmerken'!R86*2000 -> 3333.333333 | S51: ='1.4 Kenmerken'!S86*2000 -> 3333.333333 | T51: ='1.4 Kenmerken'!T86*2000 -> 3333.333333 | U51: ='1.4 Kenmerken'!U86*2000 -> 3333.333333 | V51: ='1.4 Kenmerken'!V86*2000 -> 3333.333333 | W51: ='1.4 Kenmerken'!W86*2000 -> 3333.333333 | X51: ='1.4 Kenmerken'!X86*2000 -> 3333.333333 | Y51: ='1.4 Kenmerken'!Y86*2000 -> 3333.333333 | Z51: ='1.4 Kenmerken'!Z86*2000 -> 3333.333333 | AA51: ='1.4 Kenmerken'!AA86*2000 -> 3333.333333 | AB51: ='1.4 Kenmerken'!AB86*2000 -> 3333.333333 | AC51: ='1.4 Kenmerken'!AC86*2000 -> 3333.333333 | AD51: ='1.4 Kenmerken'!AD86*2000 -> 0 | AE51: ='1.4 Kenmerken'!AE86*2000 -> 4000 | AF51: ='1.4 Kenmerken'!AF86*2000 -> 10000 | AG51: ='1.4 Kenmerken'!AG86*2000 -> 3333.333333
B52: bouwkosten pompinstallatie (GKW) | C52: =ROUND('1.4 Kenmerken'!C96*500,-3) -> 7000 | D52: =ROUND('1.4 Kenmerken'!D96*500,-3) -> 31000 | E52: =ROUND('1.4 Kenmerken'!E96*500,-3) -> 2000 | F52: =ROUND('1.4 Kenmerken'!F96*500,-3) -> 13000 | G52: =ROUND('1.4 Kenmerken'!G96*500,-3) -> 6000 | H52: =ROUND('1.4 Kenmerken'!H96*500,-3) -> 9000 | I52: =ROUND('1.4 Kenmerken'!I96*500,-3) -> 11000 | J52: =ROUND('1.4 Kenmerken'!J96*500,-3) -> 7000 | K52: =ROUND('1.4 Kenmerken'!K96*500,-3) -> 7000 | L52: =ROUND('1.4 Kenmerken'!L96*500,-3) -> 6000 | M52: =ROUND('1.4 Kenmerken'!M96*500,-3) -> 8000 | N52: =ROUND('1.4 Kenmerken'!N96*500,-3) -> 0 | O52: =ROUND('1.4 Kenmerken'!O96*500,-3) -> 7000 | P52: =ROUND('1.4 Kenmerken'!P96*500,-3) -> 7000 | Q52: =ROUND('1.4 Kenmerken'!Q96*500,-3) -> 7000 | R52: =ROUND('1.4 Kenmerken'!R96*500,-3) -> 7000 | S52: =ROUND('1.4 Kenmerken'!S96*500,-3) -> 7000 | T52: =ROUND('1.4 Kenmerken'!T96*500,-3) -> 7000 | U52: =ROUND('1.4 Kenmerken'!U96*500,-3) -> 29000 | V52: =ROUND('1.4 Kenmerken'!V96*500,-3) -> 7000 | W52: =ROUND('1.4 Kenmerken'!W96*500,-3) -> 7000 | X52: =ROUND('1.4 Kenmerken'!X96*500,-3) -> 7000 | Y52: =ROUND('1.4 Kenmerken'!Y96*500,-3) -> 7000 | Z52: =ROUND('1.4 Kenmerken'!Z96*500,-3) -> 7000 | AA52: =ROUND('1.4 Kenmerken'!AA96*500,-3) -> 7000 | AB52: =ROUND('1.4 Kenmerken'!AB96*500,-3) -> 7000 | AC52: =ROUND('1.4 Kenmerken'!AC96*500,-3) -> 7000 | AD52: =ROUND('1.4 Kenmerken'!AD96*500,-3) -> 0 | AE52: =ROUND('1.4 Kenmerken'!AE96*500,-3) -> 9000 | AF52: =ROUND('1.4 Kenmerken'!AF96*500,-3) -> 16000 | AG52: =ROUND('1.4 Kenmerken'!AG96*500,-3) -> 7000
B53: bouwkosten | C53: =ROUND(C50+C51+C52,-4) -> 560000 | D53: 590000 | E53: 150000 | F53: 670000 | G53: 260000 | H53: 360000 | I53: 560000 | J53: 260000 | K53: 560000 | L53: 360000 | M53: 560000 | N53: 0 | O53: 560000 | P53: 560000 | Q53: 560000 | R53: 560000 | S53: 560000 | T53: 340000 | U53: 2230000 | V53: 340000 | W53: 400000 | X53: 560000 | Y53: 560000 | Z53: 560000 | AA53: 560000 | AB53: =ROUND(AB50+AB51+AB52,-4) -> 560000 | AC53: =ROUND(AC50+AC51+AC52,-4) -> 560000 | AD53: 0 | AE53: 560000 | AF53: =ROUND(AF50+AF51+AF52,-4) -> 680000 | AG53: 560000
B54: Algemene uitvoeringskosten incl. winst & risico | C54: =ROUND((C53)*'1.4 Kenmerken'!C133,-4) -> 80000 | D54: =ROUND((D53)*'1.4 Kenmerken'!D133,-4) -> 90000 | E54: =ROUND((E53)*'1.4 Kenmerken'!E133,-4) -> 20000 | F54: =ROUND((F53)*'1.4 Kenmerken'!F133,-4) -> 100000 | G54: =ROUND((G53)*'1.4 Kenmerken'!G133,-4) -> 40000 | H54: =ROUND((H53)*'1.4 Kenmerken'!H133,-4) -> 50000 | I54: =ROUND((I53)*'1.4 Kenmerken'!I133,-4) -> 80000 | J54: =ROUND((J53)*'1.4 Kenmerken'!J133,-4) -> 40000 | K54: =ROUND((K53)*'1.4 Kenmerken'!K133,-4) -> 80000 | L54: =ROUND((L53)*'1.4 Kenmerken'!L133,-4) -> 50000 | M54: =ROUND((M53)*'1.4 Kenmerken'!M133,-4) -> 80000 | N54: =ROUND((N53)*'1.4 Kenmerken'!N133,-4) -> 0 | O54: =ROUND((O53)*'1.4 Kenmerken'!O133,-4) -> 80000 | P54: =ROUND((P53)*'1.4 Kenmerken'!P133,-4) -> 80000 | Q54: =ROUND((Q53)*'1.4 Kenmerken'!Q133,-4) -> 80000 | R54: =ROUND((R53)*'1.4 Kenmerken'!R133,-4) -> 80000 | S54: =ROUND((S53)*'1.4 Kenmerken'!S133,-4) -> 80000 | T54: =ROUND((T53)*'1.4 Kenmerken'!T133,-4) -> 50000 | U54: =ROUND((U53)*'1.4 Kenmerken'!U133,-4) -> 330000 | V54: =ROUND((V53)*'1.4 Kenmerken'!V133,-4) -> 50000 | W54: =ROUND((W53)*'1.4 Kenmerken'!W133,-4) -> 60000 | X54: =ROUND((X53)*'1.4 Kenmerken'!X133,-4) -> 80000 | Y54: =ROUND((Y53)*'1.4 Kenmerken'!Y133,-4) -> 80000 | Z54: =ROUND((Z53)*'1.4 Kenmerken'!Z133,-4) -> 100000 | AA54: =ROUND((AA53)*'1.4 Kenmerken'!AA133,-4) -> 70000 | AB54: =ROUND((AB53)*'1.4 Kenmerken'!AB133,-4) -> 80000 | AC54: =ROUND((AC53)*'1.4 Kenmerken'!AC133,-4) -> 80000 | AD54: =ROUND((AD53)*'1.4 Kenmerken'!AD133,-4) -> 0 | AE54: =ROUND((AE53)*'1.4 Kenmerken'!AE133,-4) -> 80000 | AF54: =ROUND((AF53)*'1.4 Kenmerken'!AF133,-4) -> 100000 | AG54: =ROUND((AG53)*'1.4 Kenmerken'!AG133,-4) -> 80000
B55: onvoorzien | C55: =ROUND(SUM(C53:C54,C49)*'1.4 Kenmerken'!C134,-4) -> 80000 | D55: =ROUND(SUM(D53:D54,D49)*'1.4 Kenmerken'!D134,-4) -> 80000 | E55: =ROUND(SUM(E53:E54,E49)*'1.4 Kenmerken'!E134,-4) -> 30000 | F55: =ROUND(SUM(F53:F54,F49)*'1.4 Kenmerken'!F134,-4) -> 100000 | G55: =ROUND(SUM(G53:G54,G49)*'1.4 Kenmerken'!G134,-4) -> 50000 | H55: =ROUND(SUM(H53:H54,H49)*'1.4 Kenmerken'!H134,-4) -> 60000 | I55: =ROUND(SUM(I53:I54,I49)*'1.4 Kenmerken'!I134,-4) -> 80000 | J55: =ROUND(SUM(J53:J54,J49)*'1.4 Kenmerken'!J134,-4) -> 50000 | K55: =ROUND(SUM(K53:K54,K49)*'1.4 Kenmerken'!K134,-4) -> 80000 | L55: =ROUND(SUM(L53:L54,L49)*'1.4 Kenmerken'!L134,-4) -> 60000 | M55: =ROUND(SUM(M53:M54,M49)*'1.4 Kenmerken'!M134,-4) -> 80000 | N55: =ROUND(SUM(N53:N54,N49)*'1.4 Kenmerken'!N134,-4) -> 0 | O55: =ROUND(SUM(O53:O54,O49)*'1.4 Kenmerken'!O134,-4) -> 80000 | P55: =ROUND(SUM(P53:P54,P49)*'1.4 Kenmerken'!P134,-4) -> 80000 | Q55: =ROUND(SUM(Q53:Q54,Q49)*'1.4 Kenmerken'!Q134,-4) -> 80000 | R55: =ROUND(SUM(R53:R54,R49)*'1.4 Kenmerken'!R134,-4) -> 80000 | S55: =ROUND(SUM(S53:S54,S49)*'1.4 Kenmerken'!S134,-4) -> 80000 | T55: =ROUND(SUM(T53:T54,T49)*'1.4 Kenmerken'!T134,-4) -> 40000 | U55: =ROUND(SUM(U53:U54,U49)*'1.4 Kenmerken'!U134,-4) -> 320000 | V55: =ROUND(SUM(V53:V54,V49)*'1.4 Kenmerken'!V134,-4) -> 40000 | W55: =ROUND(SUM(W53:W54,W49)*'1.4 Kenmerken'!W134,-4) -> 60000 | X55: =ROUND(SUM(X53:X54,X49)*'1.4 Kenmerken'!X134,-4) -> 80000 | Y55: =ROUND(SUM(Y53:Y54,Y49)*'1.4 Kenmerken'!Y134,-4) -> 80000 | Z55: =ROUND(SUM(Z53:Z54,Z49)*'1.4 Kenmerken'!Z134,-4) -> 80000 | AA55: =ROUND(SUM(AA53:AA54,AA49)*'1.4 Kenmerken'!AA134,-4) -> 80000 | AB55: =ROUND(SUM(AB53:AB54,AB49)*'1.4 Kenmerken'!AB134,-4) -> 80000 | AC55: =ROUND(SUM(AC53:AC54,AC49)*'1.4 Kenmerken'!AC134,-4) -> 80000 | AD55: =ROUND(SUM(AD53:AD54,AD49)*'1.4 Kenmerken'!AD134,-4) -> 0 | AE55: =ROUND(SUM(AE53:AE54,AE49)*'1.4 Kenmerken'!AE134,-4) -> 80000 | AF55: =ROUND(SUM(AF53:AF54,AF49)*'1.4 Kenmerken'!AF134,-4) -> 100000 | AG55: =ROUND(SUM(AG53:AG54,AG49)*'1.4 Kenmerken'!AG134,-4) -> 80000
B56: bijkomende kosten | C56: =ROUND((SUM(C53:C55,C49)*SUM('1.4 Kenmerken'!C135:C139))+(('1.4 Kenmerken'!C96)/0.85*110),-4) -> 90000 | D56: =ROUND((SUM(D53:D55,D49)*SUM('1.4 Kenmerken'!D135:D139))+(('1.4 Kenmerken'!D96)/0.85*110),-4) -> 100000 | E56: =ROUND((SUM(E53:E55,E49)*SUM('1.4 Kenmerken'!E135:E139))+(('1.4 Kenmerken'!E96)/0.85*110),-4) -> 30000 | F56: =ROUND((SUM(F53:F55,F49)*SUM('1.4 Kenmerken'!F135:F139))+(('1.4 Kenmerken'!F96)/0.85*110),-4) -> 110000 | G56: =ROUND((SUM(G53:G55,G49)*SUM('1.4 Kenmerken'!G135:G139))+(('1.4 Kenmerken'!G96)/0.85*110),-4) -> 50000 | H56: =ROUND((SUM(H53:H55,H49)*SUM('1.4 Kenmerken'!H135:H139))+(('1.4 Kenmerken'!H96)/0.85*110),-4) -> 60000 | I56: =ROUND((SUM(I53:I55,I49)*SUM('1.4 Kenmerken'!I135:I139))+(('1.4 Kenmerken'!I96)/0.85*110),-4) -> 90000 | J56: =ROUND((SUM(J53:J55,J49)*SUM('1.4 Kenmerken'!J135:J139))+(('1.4 Kenmerken'!J96)/0.85*110),-4) -> 50000 | K56: =ROUND((SUM(K53:K55,K49)*SUM('1.4 Kenmerken'!K135:K139))+(('1.4 Kenmerken'!K96)/0.85*110),-4) -> 90000 | L56: =ROUND((SUM(L53:L55,L49)*SUM('1.4 Kenmerken'!L135:L139))+(('1.4 Kenmerken'!L96)/0.85*110),-4) -> 60000 | M56: =ROUND((SUM(M53:M55,M49)*SUM('1.4 Kenmerken'!M135:M139))+(('1.4 Kenmerken'!M96)/0.85*110),-4) -> 90000 | N56: =ROUND((SUM(N53:N55,N49)*SUM('1.4 Kenmerken'!N135:N139))+(('1.4 Kenmerken'!N96)/0.85*110),-4) -> 0 | O56: =ROUND((SUM(O53:O55,O49)*SUM('1.4 Kenmerken'!O135:O139))+(('1.4 Kenmerken'!O96)/0.85*110),-4) -> 90000 | P56: =ROUND((SUM(P53:P55,P49)*SUM('1.4 Kenmerken'!P135:P139))+(('1.4 Kenmerken'!P96)/0.85*110),-4) -> 90000 | Q56: =ROUND((SUM(Q53:Q55,Q49)*SUM('1.4 Kenmerken'!Q135:Q139))+(('1.4 Kenmerken'!Q96)/0.85*110),-4) -> 90000 | R56: =ROUND((SUM(R53:R55,R49)*SUM('1.4 Kenmerken'!R135:R139))+(('1.4 Kenmerken'!R96)/0.85*110),-4) -> 90000 | S56: =ROUND((SUM(S53:S55,S49)*SUM('1.4 Kenmerken'!S135:S139))+(('1.4 Kenmerken'!S96)/0.85*110),-4) -> 90000 | T56: =ROUND((SUM(T53:T55,T49)*SUM('1.4 Kenmerken'!T135:T139))+(('1.4 Kenmerken'!T96)/0.85*110),-4) -> 40000 | U56: =ROUND((SUM(U53:U55,U49)*SUM('1.4 Kenmerken'!U135:U139))+(('1.4 Kenmerken'!U96)/0.85*110),-4) -> 360000 | V56: =ROUND((SUM(V53:V55,V49)*SUM('1.4 Kenmerken'!V135:V139))+(('1.4 Kenmerken'!V96)/0.85*110),-4) -> 40000 | W56: =ROUND((SUM(W53:W55,W49)*SUM('1.4 Kenmerken'!W135:W139))+(('1.4 Kenmerken'!W96)/0.85*110),-4) -> 70000 | X56: =ROUND((SUM(X53:X55,X49)*SUM('1.4 Kenmerken'!X135:X139))+(('1.4 Kenmerken'!X96)/0.85*110),-4) -> 90000 | Y56: =ROUND((SUM(Y53:Y55,Y49)*SUM('1.4 Kenmerken'!Y135:Y139))+(('1.4 Kenmerken'!Y96)/0.85*110),-4) -> 90000 | Z56: =ROUND((SUM(Z53:Z55,Z49)*SUM('1.4 Kenmerken'!Z135:Z139))+(('1.4 Kenmerken'!Z96)/0.85*110),-4) -> 90000 | AA56: =ROUND((SUM(AA53:AA55,AA49)*SUM('1.4 Kenmerken'!AA135:AA139))+(('1.4 Kenmerken'!AA96)/0.85*110),-4) -> 90000 | AB56: =ROUND((SUM(AB53:AB55,AB49)*SUM('1.4 Kenmerken'!AB135:AB139))+(('1.4 Kenmerken'!AB96)/0.85*110),-4) -> 90000 | AC56: =ROUND((SUM(AC53:AC55,AC49)*SUM('1.4 Kenmerken'!AC135:AC139))+(('1.4 Kenmerken'!AC96)/0.85*110),-4) -> 90000 | AD56: =ROUND((SUM(AD53:AD55,AD49)*SUM('1.4 Kenmerken'!AD135:AD139))+(('1.4 Kenmerken'!AD96)/0.85*110),-4) -> 0 | AE56: =ROUND((SUM(AE53:AE55,AE49)*SUM('1.4 Kenmerken'!AE135:AE139))+(('1.4 Kenmerken'!AE96)/0.85*110),-4) -> 90000 | AF56: =ROUND((SUM(AF53:AF55,AF49)*SUM('1.4 Kenmerken'!AF135:AF139))+(('1.4 Kenmerken'!AF96)/0.85*110),-4) -> 110000 | AG56: =ROUND((SUM(AG53:AG55,AG49)*SUM('1.4 Kenmerken'!AG135:AG139))+(('1.4 Kenmerken'!AG96)/0.85*110),-4) -> 90000
B57: financiering | C57: =ROUND(SUM(C53:C56,C49)*SUM('1.4 Kenmerken'!C140:C141),-4) -> 20000 | D57: =ROUND(SUM(D53:D56,D49)*SUM('1.4 Kenmerken'!D140:D141),-4) -> 20000 | E57: =ROUND(SUM(E53:E56,E49)*SUM('1.4 Kenmerken'!E140:E141),-4) -> 10000 | F57: =ROUND(SUM(F53:F56,F49)*SUM('1.4 Kenmerken'!F140:F141),-4) -> 30000 | G57: =ROUND(SUM(G53:G56,G49)*SUM('1.4 Kenmerken'!G140:G141),-4) -> 10000 | H57: =ROUND(SUM(H53:H56,H49)*SUM('1.4 Kenmerken'!H140:H141),-4) -> 10000 | I57: =ROUND(SUM(I53:I56,I49)*SUM('1.4 Kenmerken'!I140:I141),-4) -> 20000 | J57: =ROUND(SUM(J53:J56,J49)*SUM('1.4 Kenmerken'!J140:J141),-4) -> 10000 | K57: =ROUND(SUM(K53:K56,K49)*SUM('1.4 Kenmerken'!K140:K141),-4) -> 20000 | L57: =ROUND(SUM(L53:L56,L49)*SUM('1.4 Kenmerken'!L140:L141),-4) -> 10000 | M57: =ROUND(SUM(M53:M56,M49)*SUM('1.4 Kenmerken'!M140:M141),-4) -> 20000 | N57: =ROUND(SUM(N53:N56,N49)*SUM('1.4 Kenmerken'!N140:N141),-4) -> 0 | O57: =ROUND(SUM(O53:O56,O49)*SUM('1.4 Kenmerken'!O140:O141),-4) -> 20000 | P57: =ROUND(SUM(P53:P56,P49)*SUM('1.4 Kenmerken'!P140:P141),-4) -> 20000 | Q57: =ROUND(SUM(Q53:Q56,Q49)*SUM('1.4 Kenmerken'!Q140:Q141),-4) -> 20000 | R57: =ROUND(SUM(R53:R56,R49)*SUM('1.4 Kenmerken'!R140:R141),-4) -> 20000 | S57: =ROUND(SUM(S53:S56,S49)*SUM('1.4 Kenmerken'!S140:S141),-4) -> 20000 | T57: =ROUND(SUM(T53:T56,T49)*SUM('1.4 Kenmerken'!T140:T141),-4) -> 10000 | U57: =ROUND(SUM(U53:U56,U49)*SUM('1.4 Kenmerken'!U140:U141),-4) -> 80000 | V57: =ROUND(SUM(V53:V56,V49)*SUM('1.4 Kenmerken'!V140:V141),-4) -> 10000 | W57: =ROUND(SUM(W53:W56,W49)*SUM('1.4 Kenmerken'!W140:W141),-4) -> 20000 | X57: =ROUND(SUM(X53:X56,X49)*SUM('1.4 Kenmerken'!X140:X141),-4) -> 20000 | Y57: =ROUND(SUM(Y53:Y56,Y49)*SUM('1.4 Kenmerken'!Y140:Y141),-4) -> 20000 | Z57: =ROUND(SUM(Z53:Z56,Z49)*SUM('1.4 Kenmerken'!Z140:Z141),-4) -> 20000 | AA57: =ROUND(SUM(AA53:AA56,AA49)*SUM('1.4 Kenmerken'!AA140:AA141),-4) -> 20000 | AB57: =ROUND(SUM(AB53:AB56,AB49)*SUM('1.4 Kenmerken'!AB140:AB141),-4) -> 20000 | AC57: =ROUND(SUM(AC53:AC56,AC49)*SUM('1.4 Kenmerken'!AC140:AC141),-4) -> 20000 | AD57: =ROUND(SUM(AD53:AD56,AD49)*SUM('1.4 Kenmerken'!AD140:AD141),-4) -> 0 | AE57: =ROUND(SUM(AE53:AE56,AE49)*SUM('1.4 Kenmerken'!AE140:AE141),-4) -> 20000 | AF57: =ROUND(SUM(AF53:AF56,AF49)*SUM('1.4 Kenmerken'!AF140:AF141),-4) -> 30000 | AG57: =ROUND(SUM(AG53:AG56,AG49)*SUM('1.4 Kenmerken'!AG140:AG141),-4) -> 20000
B58: CAPEX Leidingtrace WKO | C58: =ROUND((SUM(C53:C57,C49)),-5) -> 1000000 | D58: 1000000 | E58: 300000 | F58: 1200000 | G58: 600000 | H58: 700000 | I58: 1000000 | J58: 600000 | K58: 1000000 | L58: 700000 | M58: 1000000 | N58: 0 | O58: 1000000 | P58: 1000000 | Q58: 1000000 | R58: 1000000 | S58: 1000000 | T58: 500000 | U58: 3900000 | V58: 500000 | W58: 800000 | X58: 1000000 | Y58: 1000000 | Z58: 1000000 | AA58: 1000000 | AB58: =ROUND((SUM(AB53:AB57,AB49)),-5) -> 1000000 | AC58: =ROUND((SUM(AC53:AC57,AC49)),-5) -> 1000000 | AD58: 0 | AE58: 1000000 | AF58: =ROUND((SUM(AF53:AF57,AF49)),-5) -> 1200000 | AG58: 1000000
C59: =C58/('1.4 Kenmerken'!C29*1000) -> 400 | D59: =D58/('1.4 Kenmerken'!D29*1000) -> 100 | E59: =E58/('1.4 Kenmerken'!E29*1000) -> 600 | F59: =F58/('1.4 Kenmerken'!F29*1000) -> 480 | G59: =G58/('1.4 Kenmerken'!G29*1000) -> 240 | H59: =H58/('1.4 Kenmerken'!H29*1000) -> 280 | I59: =I58/('1.4 Kenmerken'!I29*1000) -> 400 | J59: =J58/('1.4 Kenmerken'!J29*1000) -> 240 | K59: =K58/('1.4 Kenmerken'!K29*1000) -> 400 | L59: =L58/('1.4 Kenmerken'!L29*1000) -> 466.6666667 | M59: =M58/('1.4 Kenmerken'!M29*1000) -> 285.7142857 | N59: =N58/('1.4 Kenmerken'!N29*1000) -> 0 | O59: =O58/('1.4 Kenmerken'!O29*1000) -> 400 | P59: =P58/('1.4 Kenmerken'!P29*1000) -> 400 | Q59: =Q58/('1.4 Kenmerken'!Q29*1000) -> 400 | R59: =R58/('1.4 Kenmerken'!R29*1000) -> 400 | S59: =S58/('1.4 Kenmerken'!S29*1000) -> 400 | T59: =T58/('1.4 Kenmerken'!T29*1000) -> 200 | U59: =U58/('1.4 Kenmerken'!U29*1000) -> 1560 | V59: =V58/('1.4 Kenmerken'!V29*1000) -> 200 | W59: =W58/('1.4 Kenmerken'!W29*1000) -> 320 | X59: =X58/('1.4 Kenmerken'!X29*1000) -> 400 | Y59: =Y58/('1.4 Kenmerken'!Y29*1000) -> 400 | Z59: =Z58/('1.4 Kenmerken'!Z29*1000) -> 400 | AA59: =AA58/('1.4 Kenmerken'!AA29*1000) -> 400 | AB59: =AB58/('1.4 Kenmerken'!AB29*1000) -> 400 | AC59: =AC58/('1.4 Kenmerken'!AC29*1000) -> 400 | AD59: =AD58/('1.4 Kenmerken'!AD29*1000) -> 0 | AE59: =AE58/('1.4 Kenmerken'!AE29*1000) -> 400 | AF59: =AF58/('1.4 Kenmerken'!AF29*1000) -> 240 | AG59: =AG58/('1.4 Kenmerken'!AG29*1000) -> 400
B61: Afschrijvingstermijn | C61: 30 | D61: 30 | E61: 30 | F61: 30 | G61: 30 | H61: 30 | I61: 30 | J61: 30 | K61: 30 | L61: 30 | M61: 30 | N61: 30 | O61: 30 | P61: 30 | Q61: 30 | R61: 30 | S61: 30 | T61: 30 | U61: 30 | V61: 30 | W61: 30 | X61: 30 | Y61: 30 | Z61: 30 | AA61: 30 | AB61: 30 | AC61: 30 | AD61: 30 | AE61: 30 | AF61: 30 | AG61: 30
B62: Afschrijfkosten gemiddeld | C62: =(C58-C57)/C61 -> 32666.66667 | D62: 32666.66667 | E62: 9666.666667 | F62: 39000 | G62: 19666.66667 | H62: 23000 | I62: 32666.66667 | J62: 19666.66667 | K62: 32666.66667 | L62: 23000 | M62: 32666.66667 | N62: 0 | O62: 32666.66667 | P62: 32666.66667 | Q62: 32666.66667 | R62: 32666.66667 | S62: 32666.66667 | T62: 16333.33333 | U62: 127333.3333 | V62: 16333.33333 | W62: 26000 | X62: 32666.66667 | Y62: 32666.66667 | Z62: 32666.66667 | AA62: 32666.66667 | AB62: =(AB58-AB57)/AB61 -> 32666.66667 | AC62: =(AC58-AC57)/AC61 -> 32666.66667 | AD62: 0 | AE62: 32666.66667 | AF62: =(AF58-AF57)/AF61 -> 39000 | AG62: 32666.66667
B64: WP in energiecentrale
B65: CAPEX warmtepomp | C65: =ROUND('1.4 Kenmerken'!C29*1000*'1.4 Kenmerken'!C118,-4) -> 1250000 | D65: =ROUND('1.4 Kenmerken'!D29*1000*'1.4 Kenmerken'!D118,-4) -> 5000000 | E65: =ROUND('1.4 Kenmerken'!E29*1000*'1.4 Kenmerken'!E118,-4) -> 250000 | F65: =ROUND('1.4 Kenmerken'!F29*1000*'1.4 Kenmerken'!F118,-4) -> 1250000 | G65: =ROUND('1.4 Kenmerken'!G29*1000*'1.4 Kenmerken'!G118,-4) -> 1250000 | H65: =ROUND('1.4 Kenmerken'!H29*1000*'1.4 Kenmerken'!H118,-4) -> 1250000 | I65: =ROUND('1.4 Kenmerken'!I29*1000*'1.4 Kenmerken'!I118,-4) -> 1250000 | J65: =ROUND('1.4 Kenmerken'!J29*1000*'1.4 Kenmerken'!J118,-4) -> 1250000 | K65: =ROUND('1.4 Kenmerken'!K29*1000*'1.4 Kenmerken'!K118,-4) -> 1250000 | L65: =ROUND('1.4 Kenmerken'!L29*1000*'1.4 Kenmerken'!L118,-4) -> 750000 | M65: =ROUND('1.4 Kenmerken'!M29*1000*'1.4 Kenmerken'!M118,-4) -> 1750000 | N65: =ROUND('1.4 Kenmerken'!N29*1000*'1.4 Kenmerken'!N118,-4) -> 1250000 | O65: =ROUND('1.4 Kenmerken'!O29*1000*'1.4 Kenmerken'!O118,-4) -> 1250000 | P65: =ROUND('1.4 Kenmerken'!P29*1000*'1.4 Kenmerken'!P118,-4) -> 1250000 | Q65: =ROUND('1.4 Kenmerken'!Q29*1000*'1.4 Kenmerken'!Q118,-4) -> 1250000 | R65: =ROUND('1.4 Kenmerken'!R29*1000*'1.4 Kenmerken'!R118,-4) -> 1250000 | S65: =ROUND('1.4 Kenmerken'!S29*1000*'1.4 Kenmerken'!S118,-4) -> 1250000 | T65: =ROUND('1.4 Kenmerken'!T29*1000*'1.4 Kenmerken'!T118,-4) -> 1250000 | U65: =ROUND('1.4 Kenmerken'!U29*1000*'1.4 Kenmerken'!U118,-4) -> 1250000 | V65: =ROUND('1.4 Kenmerken'!V29*1000*'1.4 Kenmerken'!V118,-4) -> 1250000 | W65: =ROUND('1.4 Kenmerken'!W29*1000*'1.4 Kenmerken'!W118,-4) -> 1250000 | X65: =ROUND('1.4 Kenmerken'!X29*1000*'1.4 Kenmerken'!X118,-4) -> 1250000 | Y65: =ROUND('1.4 Kenmerken'!Y29*1000*'1.4 Kenmerken'!Y118,-4) -> 1250000 | Z65: =ROUND('1.4 Kenmerken'!Z29*1000*'1.4 Kenmerken'!Z118,-4) -> 1250000 | AA65: =ROUND('1.4 Kenmerken'!AA29*1000*'1.4 Kenmerken'!AA118,-4) -> 1250000 | AB65: =ROUND('1.4 Kenmerken'!AB29*1000*'1.4 Kenmerken'!AB118,-4) -> 1250000 | AC65: =ROUND('1.4 Kenmerken'!AC29*1000*'1.4 Kenmerken'!AC118,-4) -> 1250000 | AD65: =ROUND('1.4 Kenmerken'!AD29*1000*'1.4 Kenmerken'!AD118,-4) -> 1250000 | AE65: =ROUND('1.4 Kenmerken'!AE29*1000*'1.4 Kenmerken'!AE118,-4) -> 880000 | AF65: =ROUND('1.4 Kenmerken'!AF29*1000*'1.4 Kenmerken'!AF118,-4) -> 0 | AG65: =ROUND('1.4 Kenmerken'!AG29*1000*'1.4 Kenmerken'!AG118,-4) -> 1250000
B66: CAPEX overige installaties | C66: =C65*0.3 -> 375000 | D66: =D65*0.3 -> 1500000 | E66: 75000 | F66: 375000 | G66: 375000 | H66: 375000 | I66: 375000 | J66: 375000 | K66: 375000 | L66: 225000 | M66: 525000 | N66: 375000 | O66: 375000 | P66: 375000 | Q66: 375000 | R66: 375000 | S66: 375000 | T66: 375000 | U66: 375000 | V66: 375000 | W66: 375000 | X66: 375000 | Y66: 375000 | Z66: 375000 | AA66: 375000 | AB66: 375000 | AC66: 375000 | AD66: =AD65*0.3 -> 375000 | AE66: 264000 | AF66: =AF65*0.3 -> 0 | AG66: =AG65*0.3 -> 375000
B67: CAPEX bouwkundig | C67: ='1.4 Kenmerken'!C45*'1.4 Kenmerken'!C121 -> 293333.3333 | D67: ='1.4 Kenmerken'!D45*'1.4 Kenmerken'!D121 -> 1100000 | E67: ='1.4 Kenmerken'!E45*'1.4 Kenmerken'!E121 -> 110000 | F67: ='1.4 Kenmerken'!F45*'1.4 Kenmerken'!F121 -> 293333.3333 | G67: ='1.4 Kenmerken'!G45*'1.4 Kenmerken'!G121 -> 293333.3333 | H67: ='1.4 Kenmerken'!H45*'1.4 Kenmerken'!H121 -> 293333.3333 | I67: ='1.4 Kenmerken'!I45*'1.4 Kenmerken'!I121 -> 293333.3333 | J67: ='1.4 Kenmerken'!J45*'1.4 Kenmerken'!J121 -> 293333.3333 | K67: ='1.4 Kenmerken'!K45*'1.4 Kenmerken'!K121 -> 293333.3333 | L67: ='1.4 Kenmerken'!L45*'1.4 Kenmerken'!L121 -> 154000 | M67: ='1.4 Kenmerken'!M45*'1.4 Kenmerken'!M121 -> 616000 | N67: ='1.4 Kenmerken'!N45*'1.4 Kenmerken'!N121 -> 256666.6667 | O67: ='1.4 Kenmerken'!O45*'1.4 Kenmerken'!O121 -> 293333.3333 | P67: ='1.4 Kenmerken'!P45*'1.4 Kenmerken'!P121 -> 293333.3333 | Q67: ='1.4 Kenmerken'!Q45*'1.4 Kenmerken'!Q121 -> 293333.3333 | R67: ='1.4 Kenmerken'!R45*'1.4 Kenmerken'!R121 -> 293333.3333 | S67: ='1.4 Kenmerken'!S45*'1.4 Kenmerken'!S121 -> 293333.3333 | T67: ='1.4 Kenmerken'!T45*'1.4 Kenmerken'!T121 -> 293333.3333 | U67: ='1.4 Kenmerken'!U45*'1.4 Kenmerken'!U121 -> 293333.3333 | V67: ='1.4 Kenmerken'!V45*'1.4 Kenmerken'!V121 -> 293333.3333 | W67: ='1.4 Kenmerken'!W45*'1.4 Kenmerken'!W121 -> 293333.3333 | X67: ='1.4 Kenmerken'!X45*'1.4 Kenmerken'!X121 -> 293333.3333 | Y67: ='1.4 Kenmerken'!Y45*'1.4 Kenmerken'!Y121 -> 293333.3333 | Z67: ='1.4 Kenmerken'!Z45*'1.4 Kenmerken'!Z121 -> 293333.3333 | AA67: ='1.4 Kenmerken'!AA45*'1.4 Kenmerken'!AA121 -> 293333.3333 | AB67: ='1.4 Kenmerken'!AB45*'1.4 Kenmerken'!AB121 -> 293333.3333 | AC67: ='1.4 Kenmerken'!AC45*'1.4 Kenmerken'!AC121 -> 293333.3333 | AD67: ='1.4 Kenmerken'!AD45*'1.4 Kenmerken'!AD121 -> 293333.3333 | AE67: ='1.4 Kenmerken'!AE45*'1.4 Kenmerken'!AE121 -> 293333.3333 | AF67: ='1.4 Kenmerken'!AF45*'1.4 Kenmerken'!AF121 -> 73333.33333 | AG67: ='1.4 Kenmerken'!AG45*'1.4 Kenmerken'!AG121 -> 293333.3333
B68: CAPEX elektra aansluiting | C68: =ROUND(('1.4 Kenmerken'!C48/0.85)*'1.4 Kenmerken'!C122,-4) -> 110000 | D68: =ROUND(('1.4 Kenmerken'!D48/0.85)*'1.4 Kenmerken'!D122,-4) -> 430000 | E68: =ROUND(('1.4 Kenmerken'!E48/0.85)*'1.4 Kenmerken'!E122,-4) -> 20000 | F68: =ROUND(('1.4 Kenmerken'!F48/0.85)*'1.4 Kenmerken'!F122,-4) -> 110000 | G68: =ROUND(('1.4 Kenmerken'!G48/0.85)*'1.4 Kenmerken'!G122,-4) -> 110000 | H68: =ROUND(('1.4 Kenmerken'!H48/0.85)*'1.4 Kenmerken'!H122,-4) -> 110000 | I68: =ROUND(('1.4 Kenmerken'!I48/0.85)*'1.4 Kenmerken'!I122,-4) -> 110000 | J68: =ROUND(('1.4 Kenmerken'!J48/0.85)*'1.4 Kenmerken'!J122,-4) -> 110000 | K68: =ROUND(('1.4 Kenmerken'!K48/0.85)*'1.4 Kenmerken'!K122,-4) -> 110000 | L68: =ROUND(('1.4 Kenmerken'!L48/0.85)*'1.4 Kenmerken'!L122,-4) -> 150000 | M68: =ROUND(('1.4 Kenmerken'!M48/0.85)*'1.4 Kenmerken'!M122,-4) -> 60000 | N68: =ROUND(('1.4 Kenmerken'!N48/0.85)*'1.4 Kenmerken'!N122,-4) -> 110000 | O68: =ROUND(('1.4 Kenmerken'!O48/0.85)*'1.4 Kenmerken'!O122,-4) -> 110000 | P68: =ROUND(('1.4 Kenmerken'!P48/0.85)*'1.4 Kenmerken'!P122,-4) -> 110000 | Q68: =ROUND(('1.4 Kenmerken'!Q48/0.85)*'1.4 Kenmerken'!Q122,-4) -> 110000 | R68: =ROUND(('1.4 Kenmerken'!R48/0.85)*'1.4 Kenmerken'!R122,-4) -> 110000 | S68: =ROUND(('1.4 Kenmerken'!S48/0.85)*'1.4 Kenmerken'!S122,-4) -> 110000 | T68: =ROUND(('1.4 Kenmerken'!T48/0.85)*'1.4 Kenmerken'!T122,-4) -> 110000 | U68: =ROUND(('1.4 Kenmerken'!U48/0.85)*'1.4 Kenmerken'!U122,-4) -> 110000 | V68: =ROUND(('1.4 Kenmerken'!V48/0.85)*'1.4 Kenmerken'!V122,-4) -> 110000 | W68: =ROUND(('1.4 Kenmerken'!W48/0.85)*'1.4 Kenmerken'!W122,-4) -> 110000 | X68: =ROUND(('1.4 Kenmerken'!X48/0.85)*'1.4 Kenmerken'!X122,-4) -> 110000 | Y68: =ROUND(('1.4 Kenmerken'!Y48/0.85)*'1.4 Kenmerken'!Y122,-4) -> 110000 | Z68: =ROUND(('1.4 Kenmerken'!Z48/0.85)*'1.4 Kenmerken'!Z122,-4) -> 110000 | AA68: =ROUND(('1.4 Kenmerken'!AA48/0.85)*'1.4 Kenmerken'!AA122,-4) -> 110000 | AB68: =ROUND(('1.4 Kenmerken'!AB48/0.85)*'1.4 Kenmerken'!AB122,-4) -> 110000 | AC68: =ROUND(('1.4 Kenmerken'!AC48/0.85)*'1.4 Kenmerken'!AC122,-4) -> 110000 | AD68: =ROUND(('1.4 Kenmerken'!AD48/0.85)*'1.4 Kenmerken'!AD122,-4) -> 110000 | AE68: =ROUND(('1.4 Kenmerken'!AE48/0.85)*'1.4 Kenmerken'!AE122,-4) -> 60000 | AF68: =ROUND(('1.4 Kenmerken'!AF48/0.85)*'1.4 Kenmerken'!AF122,-4) -> 0 | AG68: =ROUND(('1.4 Kenmerken'!AG48/0.85)*'1.4 Kenmerken'!AG122,-4) -> 110000
B69: CAPEX overige elektra | C69: ='1.4 Kenmerken'!C45*'1.4 Kenmerken'!C123 -> 186666.6667 | D69: ='1.4 Kenmerken'!D45*'1.4 Kenmerken'!D123 -> 700000 | E69: ='1.4 Kenmerken'!E45*'1.4 Kenmerken'!E123 -> 70000 | F69: ='1.4 Kenmerken'!F45*'1.4 Kenmerken'!F123 -> 186666.6667 | G69: ='1.4 Kenmerken'!G45*'1.4 Kenmerken'!G123 -> 186666.6667 | H69: ='1.4 Kenmerken'!H45*'1.4 Kenmerken'!H123 -> 186666.6667 | I69: ='1.4 Kenmerken'!I45*'1.4 Kenmerken'!I123 -> 186666.6667 | J69: ='1.4 Kenmerken'!J45*'1.4 Kenmerken'!J123 -> 186666.6667 | K69: ='1.4 Kenmerken'!K45*'1.4 Kenmerken'!K123 -> 186666.6667 | L69: ='1.4 Kenmerken'!L45*'1.4 Kenmerken'!L123 -> 98000 | M69: ='1.4 Kenmerken'!M45*'1.4 Kenmerken'!M123 -> 392000 | N69: ='1.4 Kenmerken'!N45*'1.4 Kenmerken'!N123 -> 163333.3333 | O69: ='1.4 Kenmerken'!O45*'1.4 Kenmerken'!O123 -> 186666.6667 | P69: ='1.4 Kenmerken'!P45*'1.4 Kenmerken'!P123 -> 186666.6667 | Q69: ='1.4 Kenmerken'!Q45*'1.4 Kenmerken'!Q123 -> 186666.6667 | R69: ='1.4 Kenmerken'!R45*'1.4 Kenmerken'!R123 -> 186666.6667 | S69: ='1.4 Kenmerken'!S45*'1.4 Kenmerken'!S123 -> 186666.6667 | T69: ='1.4 Kenmerken'!T45*'1.4 Kenmerken'!T123 -> 186666.6667 | U69: ='1.4 Kenmerken'!U45*'1.4 Kenmerken'!U123 -> 186666.6667 | V69: ='1.4 Kenmerken'!V45*'1.4 Kenmerken'!V123 -> 186666.6667 | W69: ='1.4 Kenmerken'!W45*'1.4 Kenmerken'!W123 -> 186666.6667 | X69: ='1.4 Kenmerken'!X45*'1.4 Kenmerken'!X123 -> 186666.6667 | Y69: ='1.4 Kenmerken'!Y45*'1.4 Kenmerken'!Y123 -> 186666.6667 | Z69: ='1.4 Kenmerken'!Z45*'1.4 Kenmerken'!Z123 -> 186666.6667 | AA69: ='1.4 Kenmerken'!AA45*'1.4 Kenmerken'!AA123 -> 186666.6667 | AB69: ='1.4 Kenmerken'!AB45*'1.4 Kenmerken'!AB123 -> 186666.6667 | AC69: ='1.4 Kenmerken'!AC45*'1.4 Kenmerken'!AC123 -> 186666.6667 | AD69: ='1.4 Kenmerken'!AD45*'1.4 Kenmerken'!AD123 -> 186666.6667 | AE69: ='1.4 Kenmerken'!AE45*'1.4 Kenmerken'!AE123 -> 186666.6667 | AF69: ='1.4 Kenmerken'!AF45*'1.4 Kenmerken'!AF123 -> 46666.66667 | AG69: ='1.4 Kenmerken'!AG45*'1.4 Kenmerken'!AG123 -> 186666.6667
B70: CAPEX subtotaal | C70: =ROUND((C65+C66+C67+C68+C69),-5) -> 2200000 | D70: =ROUND((D65+D66+D67+D68+D69),-5) -> 8700000 | E70: 500000 | F70: 2200000 | G70: 2200000 | H70: 2200000 | I70: 2200000 | J70: 2200000 | K70: 2200000 | L70: =ROUND((L65+L66+L67+L68+L69),-5) -> 1400000 | M70: 3300000 | N70: =ROUND((N65+N66+N67+N68+N69),-5) -> 2200000 | O70: =ROUND((O65+O66+O67+O68+O69),-5) -> 2200000 | P70: 2200000 | Q70: 2200000 | R70: 2200000 | S70: 2200000 | T70: 2200000 | U70: 2200000 | V70: 2200000 | W70: 2200000 | X70: 2200000 | Y70: 2200000 | Z70: 2200000 | AA70: 2200000 | AB70: =ROUND((AB65+AB66+AB67+AB68+AB69),-5) -> 2200000 | AC70: =ROUND((AC65+AC66+AC67+AC68+AC69),-5) -> 2200000 | AD70: 2200000 | AE70: 1700000 | AF70: =ROUND((AF65+AF66+AF67+AF68+AF69),-5) -> 100000 | AG70: =ROUND((AG65+AG66+AG67+AG68+AG69),-5) -> 2200000
B72: Algemene uitvoeringskosten incl. winst & risico | C72: =ROUND((C70)*'1.4 Kenmerken'!C133,-4) -> 330000 | D72: =ROUND((D70)*'1.4 Kenmerken'!D133,-4) -> 1310000 | E72: =ROUND((E70)*'1.4 Kenmerken'!E133,-4) -> 80000 | F72: =ROUND((F70)*'1.4 Kenmerken'!F133,-4) -> 330000 | G72: =ROUND((G70)*'1.4 Kenmerken'!G133,-4) -> 330000 | H72: =ROUND((H70)*'1.4 Kenmerken'!H133,-4) -> 330000 | I72: =ROUND((I70)*'1.4 Kenmerken'!I133,-4) -> 330000 | J72: =ROUND((J70)*'1.4 Kenmerken'!J133,-4) -> 330000 | K72: =ROUND((K70)*'1.4 Kenmerken'!K133,-4) -> 330000 | L72: =ROUND((L70)*'1.4 Kenmerken'!L133,-4) -> 210000 | M72: =ROUND((M70)*'1.4 Kenmerken'!M133,-4) -> 500000 | N72: =ROUND((N70)*'1.4 Kenmerken'!N133,-4) -> 330000 | O72: =ROUND((O70)*'1.4 Kenmerken'!O133,-4) -> 330000 | P72: =ROUND((P70)*'1.4 Kenmerken'!P133,-4) -> 330000 | Q72: =ROUND((Q70)*'1.4 Kenmerken'!Q133,-4) -> 330000 | R72: =ROUND((R70)*'1.4 Kenmerken'!R133,-4) -> 330000 | S72: =ROUND((S70)*'1.4 Kenmerken'!S133,-4) -> 330000 | T72: =ROUND((T70)*'1.4 Kenmerken'!T133,-4) -> 330000 | U72: =ROUND((U70)*'1.4 Kenmerken'!U133,-4) -> 330000 | V72: =ROUND((V70)*'1.4 Kenmerken'!V133,-4) -> 330000 | W72: =ROUND((W70)*'1.4 Kenmerken'!W133,-4) -> 330000 | X72: =ROUND((X70)*'1.4 Kenmerken'!X133,-4) -> 330000 | Y72: =ROUND((Y70)*'1.4 Kenmerken'!Y133,-4) -> 330000 | Z72: =ROUND((Z70)*'1.4 Kenmerken'!Z133,-4) -> 370000 | AA72: =ROUND((AA70)*'1.4 Kenmerken'!AA133,-4) -> 260000 | AB72: =ROUND((AB70)*'1.4 Kenmerken'!AB133,-4) -> 330000 | AC72: =ROUND((AC70)*'1.4 Kenmerken'!AC133,-4) -> 330000 | AD72: =ROUND((AD70)*'1.4 Kenmerken'!AD133,-4) -> 330000 | AE72: =ROUND((AE70)*'1.4 Kenmerken'!AE133,-4) -> 260000 | AF72: =ROUND((AF70)*'1.4 Kenmerken'!AF133,-4) -> 20000 | AG72: =ROUND((AG70)*'1.4 Kenmerken'!AG133,-4) -> 330000
B73: onvoorzien | C73: =ROUND((C70+C72)*'1.4 Kenmerken'!C134,-4) -> 250000 | D73: =ROUND((D70+D72)*'1.4 Kenmerken'!D134,-4) -> 1000000 | E73: =ROUND((E70+E72)*'1.4 Kenmerken'!E134,-4) -> 60000 | F73: =ROUND((F70+F72)*'1.4 Kenmerken'!F134,-4) -> 250000 | G73: =ROUND((G70+G72)*'1.4 Kenmerken'!G134,-4) -> 250000 | H73: =ROUND((H70+H72)*'1.4 Kenmerken'!H134,-4) -> 250000 | I73: =ROUND((I70+I72)*'1.4 Kenmerken'!I134,-4) -> 250000 | J73: =ROUND((J70+J72)*'1.4 Kenmerken'!J134,-4) -> 250000 | K73: =ROUND((K70+K72)*'1.4 Kenmerken'!K134,-4) -> 250000 | L73: =ROUND((L70+L72)*'1.4 Kenmerken'!L134,-4) -> 160000 | M73: =ROUND((M70+M72)*'1.4 Kenmerken'!M134,-4) -> 380000 | N73: =ROUND((N70+N72)*'1.4 Kenmerken'!N134,-4) -> 250000 | O73: =ROUND((O70+O72)*'1.4 Kenmerken'!O134,-4) -> 250000 | P73: =ROUND((P70+P72)*'1.4 Kenmerken'!P134,-4) -> 250000 | Q73: =ROUND((Q70+Q72)*'1.4 Kenmerken'!Q134,-4) -> 250000 | R73: =ROUND((R70+R72)*'1.4 Kenmerken'!R134,-4) -> 250000 | S73: =ROUND((S70+S72)*'1.4 Kenmerken'!S134,-4) -> 250000 | T73: =ROUND((T70+T72)*'1.4 Kenmerken'!T134,-4) -> 250000 | U73: =ROUND((U70+U72)*'1.4 Kenmerken'!U134,-4) -> 250000 | V73: =ROUND((V70+V72)*'1.4 Kenmerken'!V134,-4) -> 250000 | W73: =ROUND((W70+W72)*'1.4 Kenmerken'!W134,-4) -> 250000 | X73: =ROUND((X70+X72)*'1.4 Kenmerken'!X134,-4) -> 250000 | Y73: =ROUND((Y70+Y72)*'1.4 Kenmerken'!Y134,-4) -> 250000 | Z73: =ROUND((Z70+Z72)*'1.4 Kenmerken'!Z134,-4) -> 260000 | AA73: =ROUND((AA70+AA72)*'1.4 Kenmerken'!AA134,-4) -> 250000 | AB73: =ROUND((AB70+AB72)*'1.4 Kenmerken'!AB134,-4) -> 250000 | AC73: =ROUND((AC70+AC72)*'1.4 Kenmerken'!AC134,-4) -> 250000 | AD73: =ROUND((AD70+AD72)*'1.4 Kenmerken'!AD134,-4) -> 250000 | AE73: =ROUND((AE70+AE72)*'1.4 Kenmerken'!AE134,-4) -> 200000 | AF73: =ROUND((AF70+AF72)*'1.4 Kenmerken'!AF134,-4) -> 10000 | AG73: =ROUND((AG70+AG72)*'1.4 Kenmerken'!AG134,-4) -> 250000
B74: bijkomende kosten | C74: =ROUND((C70+C72+C73)*SUM('1.4 Kenmerken'!C135:C139),-4) -> 280000 | D74: =ROUND((D70+D72+D73)*SUM('1.4 Kenmerken'!D135:D139),-4) -> 1100000 | E74: =ROUND((E70+E72+E73)*SUM('1.4 Kenmerken'!E135:E139),-4) -> 60000 | F74: =ROUND((F70+F72+F73)*SUM('1.4 Kenmerken'!F135:F139),-4) -> 280000 | G74: =ROUND((G70+G72+G73)*SUM('1.4 Kenmerken'!G135:G139),-4) -> 280000 | H74: =ROUND((H70+H72+H73)*SUM('1.4 Kenmerken'!H135:H139),-4) -> 280000 | I74: =ROUND((I70+I72+I73)*SUM('1.4 Kenmerken'!I135:I139),-4) -> 280000 | J74: =ROUND((J70+J72+J73)*SUM('1.4 Kenmerken'!J135:J139),-4) -> 280000 | K74: =ROUND((K70+K72+K73)*SUM('1.4 Kenmerken'!K135:K139),-4) -> 280000 | L74: =ROUND((L70+L72+L73)*SUM('1.4 Kenmerken'!L135:L139),-4) -> 180000 | M74: =ROUND((M70+M72+M73)*SUM('1.4 Kenmerken'!M135:M139),-4) -> 420000 | N74: =ROUND((N70+N72+N73)*SUM('1.4 Kenmerken'!N135:N139),-4) -> 280000 | O74: =ROUND((O70+O72+O73)*SUM('1.4 Kenmerken'!O135:O139),-4) -> 280000 | P74: =ROUND((P70+P72+P73)*SUM('1.4 Kenmerken'!P135:P139),-4) -> 280000 | Q74: =ROUND((Q70+Q72+Q73)*SUM('1.4 Kenmerken'!Q135:Q139),-4) -> 280000 | R74: =ROUND((R70+R72+R73)*SUM('1.4 Kenmerken'!R135:R139),-4) -> 280000 | S74: =ROUND((S70+S72+S73)*SUM('1.4 Kenmerken'!S135:S139),-4) -> 280000 | T74: =ROUND((T70+T72+T73)*SUM('1.4 Kenmerken'!T135:T139),-4) -> 280000 | U74: =ROUND((U70+U72+U73)*SUM('1.4 Kenmerken'!U135:U139),-4) -> 280000 | V74: =ROUND((V70+V72+V73)*SUM('1.4 Kenmerken'!V135:V139),-4) -> 280000 | W74: =ROUND((W70+W72+W73)*SUM('1.4 Kenmerken'!W135:W139),-4) -> 280000 | X74: =ROUND((X70+X72+X73)*SUM('1.4 Kenmerken'!X135:X139),-4) -> 280000 | Y74: =ROUND((Y70+Y72+Y73)*SUM('1.4 Kenmerken'!Y135:Y139),-4) -> 280000 | Z74: =ROUND((Z70+Z72+Z73)*SUM('1.4 Kenmerken'!Z135:Z139),-4) -> 280000 | AA74: =ROUND((AA70+AA72+AA73)*SUM('1.4 Kenmerken'!AA135:AA139),-4) -> 270000 | AB74: =ROUND((AB70+AB72+AB73)*SUM('1.4 Kenmerken'!AB135:AB139),-4) -> 280000 | AC74: =ROUND((AC70+AC72+AC73)*SUM('1.4 Kenmerken'!AC135:AC139),-4) -> 280000 | AD74: =ROUND((AD70+AD72+AD73)*SUM('1.4 Kenmerken'!AD135:AD139),-4) -> 280000 | AE74: =ROUND((AE70+AE72+AE73)*SUM('1.4 Kenmerken'!AE135:AE139),-4) -> 220000 | AF74: =ROUND((AF70+AF72+AF73)*SUM('1.4 Kenmerken'!AF135:AF139),-4) -> 10000 | AG74: =ROUND((AG70+AG72+AG73)*SUM('1.4 Kenmerken'!AG135:AG139),-4) -> 280000
B75: financiering | C75: =ROUND(SUM(C70:C74)*SUM('1.4 Kenmerken'!C140:C141),-4) -> 70000 | D75: =ROUND(SUM(D70:D74)*SUM('1.4 Kenmerken'!D140:D141),-4) -> 270000 | E75: =ROUND(SUM(E70:E74)*SUM('1.4 Kenmerken'!E140:E141),-4) -> 20000 | F75: =ROUND(SUM(F70:F74)*SUM('1.4 Kenmerken'!F140:F141),-4) -> 70000 | G75: =ROUND(SUM(G70:G74)*SUM('1.4 Kenmerken'!G140:G141),-4) -> 70000 | H75: =ROUND(SUM(H70:H74)*SUM('1.4 Kenmerken'!H140:H141),-4) -> 70000 | I75: =ROUND(SUM(I70:I74)*SUM('1.4 Kenmerken'!I140:I141),-4) -> 70000 | J75: =ROUND(SUM(J70:J74)*SUM('1.4 Kenmerken'!J140:J141),-4) -> 70000 | K75: =ROUND(SUM(K70:K74)*SUM('1.4 Kenmerken'!K140:K141),-4) -> 70000 | L75: =ROUND(SUM(L70:L74)*SUM('1.4 Kenmerken'!L140:L141),-4) -> 40000 | M75: =ROUND(SUM(M70:M74)*SUM('1.4 Kenmerken'!M140:M141),-4) -> 100000 | N75: =ROUND(SUM(N70:N74)*SUM('1.4 Kenmerken'!N140:N141),-4) -> 70000 | O75: =ROUND(SUM(O70:O74)*SUM('1.4 Kenmerken'!O140:O141),-4) -> 70000 | P75: =ROUND(SUM(P70:P74)*SUM('1.4 Kenmerken'!P140:P141),-4) -> 70000 | Q75: =ROUND(SUM(Q70:Q74)*SUM('1.4 Kenmerken'!Q140:Q141),-4) -> 70000 | R75: =ROUND(SUM(R70:R74)*SUM('1.4 Kenmerken'!R140:R141),-4) -> 70000 | S75: =ROUND(SUM(S70:S74)*SUM('1.4 Kenmerken'!S140:S141),-4) -> 70000 | T75: =ROUND(SUM(T70:T74)*SUM('1.4 Kenmerken'!T140:T141),-4) -> 70000 | U75: =ROUND(SUM(U70:U74)*SUM('1.4 Kenmerken'!U140:U141),-4) -> 70000 | V75: =ROUND(SUM(V70:V74)*SUM('1.4 Kenmerken'!V140:V141),-4) -> 70000 | W75: =ROUND(SUM(W70:W74)*SUM('1.4 Kenmerken'!W140:W141),-4) -> 70000 | X75: =ROUND(SUM(X70:X74)*SUM('1.4 Kenmerken'!X140:X141),-4) -> 70000 | Y75: =ROUND(SUM(Y70:Y74)*SUM('1.4 Kenmerken'!Y140:Y141),-4) -> 70000 | Z75: =ROUND(SUM(Z70:Z74)*SUM('1.4 Kenmerken'!Z140:Z141),-4) -> 70000 | AA75: =ROUND(SUM(AA70:AA74)*SUM('1.4 Kenmerken'!AA140:AA141),-4) -> 70000 | AB75: =ROUND(SUM(AB70:AB74)*SUM('1.4 Kenmerken'!AB140:AB141),-4) -> 70000 | AC75: =ROUND(SUM(AC70:AC74)*SUM('1.4 Kenmerken'!AC140:AC141),-4) -> 70000 | AD75: =ROUND(SUM(AD70:AD74)*SUM('1.4 Kenmerken'!AD140:AD141),-4) -> 70000 | AE75: =ROUND(SUM(AE70:AE74)*SUM('1.4 Kenmerken'!AE140:AE141),-4) -> 50000 | AF75: =ROUND(SUM(AF70:AF74)*SUM('1.4 Kenmerken'!AF140:AF141),-4) -> 0 | AG75: =ROUND(SUM(AG70:AG74)*SUM('1.4 Kenmerken'!AG140:AG141),-4) -> 70000
B76: CAPEX WP-centrale | C76: =ROUND((SUM(C70:C75)),-5) -> 3100000 | D76: =ROUND((SUM(D70:D75)),-5) -> 12400000 | E76: =ROUND((SUM(E70:E75)),-5) -> 700000 | F76: 3100000 | G76: 3100000 | H76: 3100000 | I76: 3100000 | J76: 3100000 | K76: 3100000 | L76: =ROUND((SUM(L70:L75)),-5) -> 2000000 | M76: 4700000 | N76: =ROUND((SUM(N70:N75)),-5) -> 3100000 | O76: =ROUND((SUM(O70:O75)),-5) -> 3100000 | P76: 3100000 | Q76: 3100000 | R76: 3100000 | S76: 3100000 | T76: 3100000 | U76: 3100000 | V76: 3100000 | W76: 3100000 | X76: 3100000 | Y76: 3100000 | Z76: 3200000 | AA76: 3100000 | AB76: =ROUND((SUM(AB70:AB75)),-5) -> 3100000 | AC76: =ROUND((SUM(AC70:AC75)),-5) -> 3100000 | AD76: 3100000 | AE76: 2400000 | AF76: =ROUND((SUM(AF70:AF75)),-5) -> 100000 | AG76: =ROUND((SUM(AG70:AG75)),-5) -> 3100000
C77: =C76/('1.4 Kenmerken'!C29*1000) -> 1240 | D77: =D76/('1.4 Kenmerken'!D29*1000) -> 1240 | E77: =E76/('1.4 Kenmerken'!E29*1000) -> 1400 | F77: =F76/('1.4 Kenmerken'!F29*1000) -> 1240 | G77: =G76/('1.4 Kenmerken'!G29*1000) -> 1240 | H77: =H76/('1.4 Kenmerken'!H29*1000) -> 1240 | I77: =I76/('1.4 Kenmerken'!I29*1000) -> 1240 | J77: =J76/('1.4 Kenmerken'!J29*1000) -> 1240 | K77: =K76/('1.4 Kenmerken'!K29*1000) -> 1240 | L77: =L76/('1.4 Kenmerken'!L29*1000) -> 1333.333333 | M77: =M76/('1.4 Kenmerken'!M29*1000) -> 1342.857143 | N77: =N76/('1.4 Kenmerken'!N29*1000) -> 1240 | O77: =O76/('1.4 Kenmerken'!O29*1000) -> 1240 | P77: =P76/('1.4 Kenmerken'!P29*1000) -> 1240 | Q77: =Q76/('1.4 Kenmerken'!Q29*1000) -> 1240 | R77: =R76/('1.4 Kenmerken'!R29*1000) -> 1240 | S77: =S76/('1.4 Kenmerken'!S29*1000) -> 1240 | T77: =T76/('1.4 Kenmerken'!T29*1000) -> 1240 | U77: =U76/('1.4 Kenmerken'!U29*1000) -> 1240 | V77: =V76/('1.4 Kenmerken'!V29*1000) -> 1240 | W77: =W76/('1.4 Kenmerken'!W29*1000) -> 1240 | X77: =X76/('1.4 Kenmerken'!X29*1000) -> 1240 | Y77: =Y76/('1.4 Kenmerken'!Y29*1000) -> 1240 | Z77: =Z76/('1.4 Kenmerken'!Z29*1000) -> 1280 | AA77: =AA76/('1.4 Kenmerken'!AA29*1000) -> 1240 | AB77: =AB76/('1.4 Kenmerken'!AB29*1000) -> 1240 | AC77: =AC76/('1.4 Kenmerken'!AC29*1000) -> 1240 | AD77: =AD76/('1.4 Kenmerken'!AD29*1000) -> 1240 | AE77: =AE76/('1.4 Kenmerken'!AE29*1000) -> 960 | AF77: =AF76/('1.4 Kenmerken'!AF29*1000) -> 20 | AG77: =AG76/('1.4 Kenmerken'!AG29*1000) -> 1240
B79: =B43 -> Afschrijvingstermijn | C79: 30 | D79: 30 | E79: 30 | F79: 30 | G79: 30 | H79: 30 | I79: 30 | J79: 30 | K79: 30 | L79: 30 | M79: 30 | N79: 30 | O79: 30 | P79: 30 | Q79: 30 | R79: 30 | S79: 30 | T79: 30 | U79: 30 | V79: 30 | W79: 30 | X79: 30 | Y79: 30 | Z79: 30 | AA79: 30 | AB79: 30 | AC79: 30 | AD79: 30 | AE79: 30 | AF79: 30 | AG79: 30
B80: Herinvestering | C80: 0.7 | D80: 0.7 | E80: 0.7 | F80: 0.7 | G80: 0.7 | H80: 0.7 | I80: 0.7 | J80: 0.7 | K80: 0.7 | L80: 0.7 | M80: 0.7 | N80: 0.7 | O80: 0.7 | P80: 0.7 | Q80: 0.7 | R80: 0.7 | S80: 0.7 | T80: 0.7 | U80: 0.7 | V80: 0.7 | W80: 0.7 | X80: 0.7 | Y80: 0.7 | Z80: 0.7 | AA80: 0.7 | AB80: 0.7 | AC80: 0.7 | AD80: 0.7 | AE80: 0.7 | AF80: 0.7 | AG80: 0.7
B81: Afschrijfkosten gemiddeld | C81: =((C76-C75)/C79+((C76-C75)*'2.6 Business case'!$T$7*C80)/C79)/2 -> 70224.14818 | D81: =((D76-D75)/D79+((D76-D75)*'2.6 Business case'!$T$7*D80)/D79)/2 -> 281128.3556 | E81: =((E76-E75)/E79+((E76-E75)*'2.6 Business case'!$T$7*E80)/E79)/2 -> 15759.87484 | F81: =((F76-F75)/F79+((F76-F75)*'2.6 Business case'!$T$7*F80)/F79)/2 -> 70224.14818 | G81: =((G76-G75)/G79+((G76-G75)*'2.6 Business case'!$T$7*G80)/G79)/2 -> 70224.14818 | H81: =((H76-H75)/H79+((H76-H75)*'2.6 Business case'!$T$7*H80)/H79)/2 -> 70224.14818 | I81: =((I76-I75)/I79+((I76-I75)*'2.6 Business case'!$T$7*I80)/I79)/2 -> 70224.14818 | J81: =((J76-J75)/J79+((J76-J75)*'2.6 Business case'!$T$7*J80)/J79)/2 -> 70224.14818 | K81: =((K76-K75)/K79+((K76-K75)*'2.6 Business case'!$T$7*K80)/K79)/2 -> 70224.14818 | L81: =((L76-L75)/L79+((L76-L75)*'2.6 Business case'!$T$7*L80)/L79)/2 -> 45425.52159 | M81: =((M76-M75)/M79+((M76-M75)*'2.6 Business case'!$T$7*M80)/M79)/2 -> 106610.918 | N81: =((N76-N75)/N79+((N76-N75)*'2.6 Business case'!$T$7*N80)/N79)/2 -> 70224.14818 | O81: =((O76-O75)/O79+((O76-O75)*'2.6 Business case'!$T$7*O80)/O79)/2 -> 70224.14818 | P81: =((P76-P75)/P79+((P76-P75)*'2.6 Business case'!$T$7*P80)/P79)/2 -> 70224.14818 | Q81: =((Q76-Q75)/Q79+((Q76-Q75)*'2.6 Business case'!$T$7*Q80)/Q79)/2 -> 70224.14818 | R81: =((R76-R75)/R79+((R76-R75)*'2.6 Business case'!$T$7*R80)/R79)/2 -> 70224.14818 | S81: =((S76-S75)/S79+((S76-S75)*'2.6 Business case'!$T$7*S80)/S79)/2 -> 70224.14818 | T81: =((T76-T75)/T79+((T76-T75)*'2.6 Business case'!$T$7*T80)/T79)/2 -> 70224.14818 | U81: =((U76-U75)/U79+((U76-U75)*'2.6 Business case'!$T$7*U80)/U79)/2 -> 70224.14818 | V81: =((V76-V75)/V79+((V76-V75)*'2.6 Business case'!$T$7*V80)/V79)/2 -> 70224.14818 | W81: =((W76-W75)/W79+((W76-W75)*'2.6 Business case'!$T$7*W80)/W79)/2 -> 70224.14818 | X81: =((X76-X75)/X79+((X76-X75)*'2.6 Business case'!$T$7*X80)/X79)/2 -> 70224.14818 | Y81: =((Y76-Y75)/Y79+((Y76-Y75)*'2.6 Business case'!$T$7*Y80)/Y79)/2 -> 70224.14818 | Z81: =((Z76-Z75)/Z79+((Z76-Z75)*'2.6 Business case'!$T$7*Z80)/Z79)/2 -> 72541.77683 | AA81: =((AA76-AA75)/AA79+((AA76-AA75)*'2.6 Business case'!$T$7*AA80)/AA79)/2 -> 70224.14818 | AB81: =((AB76-AB75)/AB79+((AB76-AB75)*'2.6 Business case'!$T$7*AB80)/AB79)/2 -> 70224.14818 | AC81: =((AC76-AC75)/AC79+((AC76-AC75)*'2.6 Business case'!$T$7*AC80)/AC79)/2 -> 70224.14818 | AD81: =((AD76-AD75)/AD79+((AD76-AD75)*'2.6 Business case'!$T$7*AD80)/AD79)/2 -> 70224.14818 | AE81: =((AE76-AE75)/AE79+((AE76-AE75)*'2.6 Business case'!$T$7*AE80)/AE79)/2 -> 54464.27334 | AF81: =((AF76-AF75)/AF79+((AF76-AF75)*'2.6 Business case'!$T$7*AF80)/AF79)/2 -> 2317.628653 | AG81: =((AG76-AG75)/AG79+((AG76-AG75)*'2.6 Business case'!$T$7*AG80)/AG79)/2 -> 70224.14818
B83: Aquathermie
B84: CAPEX aquathermie systeem subtotaal | C84: =ROUND('1.4 Kenmerken'!C55*'1.4 Kenmerken'!C116,-4) -> 460000 | D84: =ROUND('1.4 Kenmerken'!D55*'1.4 Kenmerken'!D116,-4) -> 1610000 | E84: =ROUND('1.4 Kenmerken'!E55*'1.4 Kenmerken'!E116,-4) -> 170000 | F84: =ROUND('1.4 Kenmerken'!F55*'1.4 Kenmerken'!F116,-4) -> 740000 | G84: =ROUND('1.4 Kenmerken'!G55*'1.4 Kenmerken'!G116,-4) -> 290000 | H84: =ROUND('1.4 Kenmerken'!H55*'1.4 Kenmerken'!H116,-4) -> 570000 | I84: =ROUND('1.4 Kenmerken'!I55*'1.4 Kenmerken'!I116,-4) -> 660000 | J84: =ROUND('1.4 Kenmerken'!J55*'1.4 Kenmerken'!J116,-4) -> 280000 | K84: =ROUND('1.4 Kenmerken'!K55*'1.4 Kenmerken'!K116,-4) -> 460000 | L84: =ROUND('1.4 Kenmerken'!L55*'1.4 Kenmerken'!L116,-4) -> 360000 | M84: =ROUND('1.4 Kenmerken'!M55*'1.4 Kenmerken'!M116,-4) -> 470000 | N84: =ROUND('1.4 Kenmerken'!N55*'1.4 Kenmerken'!N116,-4) -> 620000 | O84: =ROUND('1.4 Kenmerken'!O55*'1.4 Kenmerken'!O116,-4) -> 460000 | P84: =ROUND('1.4 Kenmerken'!P55*'1.4 Kenmerken'!P116,-4) -> 460000 | Q84: =ROUND('1.4 Kenmerken'!Q55*'1.4 Kenmerken'!Q116,-4) -> 460000 | R84: =ROUND('1.4 Kenmerken'!R55*'1.4 Kenmerken'!R116,-4) -> 460000 | S84: =ROUND('1.4 Kenmerken'!S55*'1.4 Kenmerken'!S116,-4) -> 460000 | T84: =ROUND('1.4 Kenmerken'!T55*'1.4 Kenmerken'!T116,-4) -> 460000 | U84: =ROUND('1.4 Kenmerken'!U55*'1.4 Kenmerken'!U116,-4) -> 460000 | V84: =ROUND('1.4 Kenmerken'!V55*'1.4 Kenmerken'!V116,-4) -> 460000 | W84: =ROUND('1.4 Kenmerken'!W55*'1.4 Kenmerken'!W116,-4) -> 460000 | X84: =ROUND('1.4 Kenmerken'!X55*'1.4 Kenmerken'!X116,-4) -> 460000 | Y84: =ROUND('1.4 Kenmerken'!Y55*'1.4 Kenmerken'!Y116,-4) -> 460000 | Z84: =ROUND('1.4 Kenmerken'!Z55*'1.4 Kenmerken'!Z116,-4) -> 460000 | AA84: =ROUND('1.4 Kenmerken'!AA55*'1.4 Kenmerken'!AA116,-4) -> 460000 | AB84: =ROUND('1.4 Kenmerken'!AB55*'1.4 Kenmerken'!AB116,-4) -> 460000 | AC84: =ROUND('1.4 Kenmerken'!AC55*'1.4 Kenmerken'!AC116,-4) -> 460000 | AD84: =ROUND('1.4 Kenmerken'!AD55*'1.4 Kenmerken'!AD116,-4) -> 460000 | AE84: =ROUND('1.4 Kenmerken'!AE55*'1.4 Kenmerken'!AE116,-4) -> 530000 | AF84: =ROUND('1.4 Kenmerken'!AF55*'1.4 Kenmerken'!AF116,-4) -> 580000 | AG84: =ROUND('1.4 Kenmerken'!AG55*'1.4 Kenmerken'!AG116,-4) -> 460000
B86: Algemene uitvoeringskosten incl. winst & risico | C86: =ROUND((C84)*'1.4 Kenmerken'!C133,-4) -> 70000 | D86: =ROUND((D84)*'1.4 Kenmerken'!D133,-4) -> 240000 | E86: =ROUND((E84)*'1.4 Kenmerken'!E133,-2) -> 25500 | F86: =ROUND((F84)*'1.4 Kenmerken'!F133,-4) -> 110000 | G86: =ROUND((G84)*'1.4 Kenmerken'!G133,-4) -> 40000 | H86: =ROUND((H84)*'1.4 Kenmerken'!H133,-4) -> 90000 | I86: =ROUND((I84)*'1.4 Kenmerken'!I133,-4) -> 100000 | J86: =ROUND((J84)*'1.4 Kenmerken'!J133,-4) -> 40000 | K86: =ROUND((K84)*'1.4 Kenmerken'!K133,-4) -> 70000 | L86: =ROUND((L84)*'1.4 Kenmerken'!L133,-4) -> 50000 | M86: =ROUND((M84)*'1.4 Kenmerken'!M133,-4) -> 70000 | N86: =ROUND((N84)*'1.4 Kenmerken'!N133,-4) -> 90000 | O86: =ROUND((O84)*'1.4 Kenmerken'!O133,-4) -> 70000 | P86: =ROUND((P84)*'1.4 Kenmerken'!P133,-4) -> 70000 | Q86: =ROUND((Q84)*'1.4 Kenmerken'!Q133,-4) -> 70000 | R86: =ROUND((R84)*'1.4 Kenmerken'!R133,-4) -> 70000 | S86: =ROUND((S84)*'1.4 Kenmerken'!S133,-4) -> 70000 | T86: =ROUND((T84)*'1.4 Kenmerken'!T133,-4) -> 70000 | U86: =ROUND((U84)*'1.4 Kenmerken'!U133,-4) -> 70000 | V86: =ROUND((V84)*'1.4 Kenmerken'!V133,-4) -> 70000 | W86: =ROUND((W84)*'1.4 Kenmerken'!W133,-4) -> 70000 | X86: =ROUND((X84)*'1.4 Kenmerken'!X133,-4) -> 70000 | Y86: =ROUND((Y84)*'1.4 Kenmerken'!Y133,-4) -> 70000 | Z86: =ROUND((Z84)*'1.4 Kenmerken'!Z133,-4) -> 80000 | AA86: =ROUND((AA84)*'1.4 Kenmerken'!AA133,-4) -> 60000 | AB86: =ROUND((AB84)*'1.4 Kenmerken'!AB133,-4) -> 70000 | AC86: =ROUND((AC84)*'1.4 Kenmerken'!AC133,-4) -> 70000 | AD86: =ROUND((AD84)*'1.4 Kenmerken'!AD133,-4) -> 70000 | AE86: =ROUND((AE84)*'1.4 Kenmerken'!AE133,-4) -> 80000 | AF86: =ROUND((AF84)*'1.4 Kenmerken'!AF133,-4) -> 90000 | AG86: =ROUND((AG84)*'1.4 Kenmerken'!AG133,-4) -> 70000
B87: onvoorzien | C87: =ROUND((C84+C86)*'1.4 Kenmerken'!C134,-4) -> 50000 | D87: =ROUND((D84+D86)*'1.4 Kenmerken'!D134,-4) -> 190000 | E87: =ROUND((E84+E86)*'1.4 Kenmerken'!E134,-2) -> 19600 | F87: =ROUND((F84+F86)*'1.4 Kenmerken'!F134,-4) -> 90000 | G87: =ROUND((G84+G86)*'1.4 Kenmerken'!G134,-4) -> 30000 | H87: =ROUND((H84+H86)*'1.4 Kenmerken'!H134,-4) -> 70000 | I87: =ROUND((I84+I86)*'1.4 Kenmerken'!I134,-4) -> 80000 | J87: =ROUND((J84+J86)*'1.4 Kenmerken'!J134,-4) -> 30000 | K87: =ROUND((K84+K86)*'1.4 Kenmerken'!K134,-4) -> 50000 | L87: =ROUND((L84+L86)*'1.4 Kenmerken'!L134,-4) -> 40000 | M87: =ROUND((M84+M86)*'1.4 Kenmerken'!M134,-4) -> 50000 | N87: =ROUND((N84+N86)*'1.4 Kenmerken'!N134,-4) -> 70000 | O87: =ROUND((O84+O86)*'1.4 Kenmerken'!O134,-4) -> 50000 | P87: =ROUND((P84+P86)*'1.4 Kenmerken'!P134,-4) -> 50000 | Q87: =ROUND((Q84+Q86)*'1.4 Kenmerken'!Q134,-4) -> 50000 | R87: =ROUND((R84+R86)*'1.4 Kenmerken'!R134,-4) -> 50000 | S87: =ROUND((S84+S86)*'1.4 Kenmerken'!S134,-4) -> 50000 | T87: =ROUND((T84+T86)*'1.4 Kenmerken'!T134,-4) -> 50000 | U87: =ROUND((U84+U86)*'1.4 Kenmerken'!U134,-4) -> 50000 | V87: =ROUND((V84+V86)*'1.4 Kenmerken'!V134,-4) -> 50000 | W87: =ROUND((W84+W86)*'1.4 Kenmerken'!W134,-4) -> 50000 | X87: =ROUND((X84+X86)*'1.4 Kenmerken'!X134,-4) -> 50000 | Y87: =ROUND((Y84+Y86)*'1.4 Kenmerken'!Y134,-4) -> 50000 | Z87: =ROUND((Z84+Z86)*'1.4 Kenmerken'!Z134,-4) -> 50000 | AA87: =ROUND((AA84+AA86)*'1.4 Kenmerken'!AA134,-4) -> 50000 | AB87: =ROUND((AB84+AB86)*'1.4 Kenmerken'!AB134,-4) -> 50000 | AC87: =ROUND((AC84+AC86)*'1.4 Kenmerken'!AC134,-4) -> 50000 | AD87: =ROUND((AD84+AD86)*'1.4 Kenmerken'!AD134,-4) -> 50000 | AE87: =ROUND((AE84+AE86)*'1.4 Kenmerken'!AE134,-4) -> 60000 | AF87: =ROUND((AF84+AF86)*'1.4 Kenmerken'!AF134,-4) -> 70000 | AG87: =ROUND((AG84+AG86)*'1.4 Kenmerken'!AG134,-4) -> 50000
B88: bijkomende kosten | C88: =ROUND((C84+C86+C87)*SUM('1.4 Kenmerken'!C135:C139),-4) -> 60000 | D88: =ROUND((D84+D86+D87)*SUM('1.4 Kenmerken'!D135:D139),-4) -> 200000 | E88: =ROUND((E84+E86+E87)*SUM('1.4 Kenmerken'!E135:E139),-2) -> 21500 | F88: =ROUND((F84+F86+F87)*SUM('1.4 Kenmerken'!F135:F139),-4) -> 90000 | G88: =ROUND((G84+G86+G87)*SUM('1.4 Kenmerken'!G135:G139),-4) -> 40000 | H88: =ROUND((H84+H86+H87)*SUM('1.4 Kenmerken'!H135:H139),-4) -> 70000 | I88: =ROUND((I84+I86+I87)*SUM('1.4 Kenmerken'!I135:I139),-4) -> 80000 | J88: =ROUND((J84+J86+J87)*SUM('1.4 Kenmerken'!J135:J139),-4) -> 40000 | K88: =ROUND((K84+K86+K87)*SUM('1.4 Kenmerken'!K135:K139),-4) -> 60000 | L88: =ROUND((L84+L86+L87)*SUM('1.4 Kenmerken'!L135:L139),-4) -> 50000 | M88: =ROUND((M84+M86+M87)*SUM('1.4 Kenmerken'!M135:M139),-4) -> 60000 | N88: =ROUND((N84+N86+N87)*SUM('1.4 Kenmerken'!N135:N139),-4) -> 80000 | O88: =ROUND((O84+O86+O87)*SUM('1.4 Kenmerken'!O135:O139),-4) -> 60000 | P88: =ROUND((P84+P86+P87)*SUM('1.4 Kenmerken'!P135:P139),-4) -> 60000 | Q88: =ROUND((Q84+Q86+Q87)*SUM('1.4 Kenmerken'!Q135:Q139),-4) -> 60000 | R88: =ROUND((R84+R86+R87)*SUM('1.4 Kenmerken'!R135:R139),-4) -> 60000 | S88: =ROUND((S84+S86+S87)*SUM('1.4 Kenmerken'!S135:S139),-4) -> 60000 | T88: =ROUND((T84+T86+T87)*SUM('1.4 Kenmerken'!T135:T139),-4) -> 60000 | U88: =ROUND((U84+U86+U87)*SUM('1.4 Kenmerken'!U135:U139),-4) -> 60000 | V88: =ROUND((V84+V86+V87)*SUM('1.4 Kenmerken'!V135:V139),-4) -> 60000 | W88: =ROUND((W84+W86+W87)*SUM('1.4 Kenmerken'!W135:W139),-4) -> 60000 | X88: =ROUND((X84+X86+X87)*SUM('1.4 Kenmerken'!X135:X139),-4) -> 60000 | Y88: =ROUND((Y84+Y86+Y87)*SUM('1.4 Kenmerken'!Y135:Y139),-4) -> 60000 | Z88: =ROUND((Z84+Z86+Z87)*SUM('1.4 Kenmerken'!Z135:Z139),-4) -> 60000 | AA88: =ROUND((AA84+AA86+AA87)*SUM('1.4 Kenmerken'!AA135:AA139),-4) -> 60000 | AB88: =ROUND((AB84+AB86+AB87)*SUM('1.4 Kenmerken'!AB135:AB139),-4) -> 60000 | AC88: =ROUND((AC84+AC86+AC87)*SUM('1.4 Kenmerken'!AC135:AC139),-4) -> 60000 | AD88: =ROUND((AD84+AD86+AD87)*SUM('1.4 Kenmerken'!AD135:AD139),-4) -> 60000 | AE88: =ROUND((AE84+AE86+AE87)*SUM('1.4 Kenmerken'!AE135:AE139),-4) -> 70000 | AF88: =ROUND((AF84+AF86+AF87)*SUM('1.4 Kenmerken'!AF135:AF139),-4) -> 70000 | AG88: =ROUND((AG84+AG86+AG87)*SUM('1.4 Kenmerken'!AG135:AG139),-4) -> 60000
B89: financiering | C89: =ROUND(SUM(C84:C88)*SUM('1.4 Kenmerken'!C140:C141),-4) -> 10000 | D89: =ROUND(SUM(D84:D88)*SUM('1.4 Kenmerken'!D140:D141),-4) -> 50000 | E89: =ROUND(SUM(E84:E88)*SUM('1.4 Kenmerken'!E140:E141),-2) -> 5200 | F89: =ROUND(SUM(F84:F88)*SUM('1.4 Kenmerken'!F140:F141),-4) -> 20000 | G89: =ROUND(SUM(G84:G88)*SUM('1.4 Kenmerken'!G140:G141),-4) -> 10000 | H89: =ROUND(SUM(H84:H88)*SUM('1.4 Kenmerken'!H140:H141),-4) -> 20000 | I89: =ROUND(SUM(I84:I88)*SUM('1.4 Kenmerken'!I140:I141),-4) -> 20000 | J89: =ROUND(SUM(J84:J88)*SUM('1.4 Kenmerken'!J140:J141),-4) -> 10000 | K89: =ROUND(SUM(K84:K88)*SUM('1.4 Kenmerken'!K140:K141),-4) -> 10000 | L89: =ROUND(SUM(L84:L88)*SUM('1.4 Kenmerken'!L140:L141),-4) -> 10000 | M89: =ROUND(SUM(M84:M88)*SUM('1.4 Kenmerken'!M140:M141),-4) -> 10000 | N89: =ROUND(SUM(N84:N88)*SUM('1.4 Kenmerken'!N140:N141),-4) -> 20000 | O89: =ROUND(SUM(O84:O88)*SUM('1.4 Kenmerken'!O140:O141),-4) -> 10000 | P89: =ROUND(SUM(P84:P88)*SUM('1.4 Kenmerken'!P140:P141),-4) -> 10000 | Q89: =ROUND(SUM(Q84:Q88)*SUM('1.4 Kenmerken'!Q140:Q141),-4) -> 10000 | R89: =ROUND(SUM(R84:R88)*SUM('1.4 Kenmerken'!R140:R141),-4) -> 10000 | S89: =ROUND(SUM(S84:S88)*SUM('1.4 Kenmerken'!S140:S141),-4) -> 10000 | T89: =ROUND(SUM(T84:T88)*SUM('1.4 Kenmerken'!T140:T141),-4) -> 10000 | U89: =ROUND(SUM(U84:U88)*SUM('1.4 Kenmerken'!U140:U141),-4) -> 10000 | V89: =ROUND(SUM(V84:V88)*SUM('1.4 Kenmerken'!V140:V141),-4) -> 10000 | W89: =ROUND(SUM(W84:W88)*SUM('1.4 Kenmerken'!W140:W141),-4) -> 10000 | X89: =ROUND(SUM(X84:X88)*SUM('1.4 Kenmerken'!X140:X141),-4) -> 10000 | Y89: =ROUND(SUM(Y84:Y88)*SUM('1.4 Kenmerken'!Y140:Y141),-4) -> 10000 | Z89: =ROUND(SUM(Z84:Z88)*SUM('1.4 Kenmerken'!Z140:Z141),-4) -> 10000 | AA89: =ROUND(SUM(AA84:AA88)*SUM('1.4 Kenmerken'!AA140:AA141),-4) -> 10000 | AB89: =ROUND(SUM(AB84:AB88)*SUM('1.4 Kenmerken'!AB140:AB141),-4) -> 10000 | AC89: =ROUND(SUM(AC84:AC88)*SUM('1.4 Kenmerken'!AC140:AC141),-4) -> 10000 | AD89: =ROUND(SUM(AD84:AD88)*SUM('1.4 Kenmerken'!AD140:AD141),-4) -> 10000 | AE89: =ROUND(SUM(AE84:AE88)*SUM('1.4 Kenmerken'!AE140:AE141),-4) -> 20000 | AF89: =ROUND(SUM(AF84:AF88)*SUM('1.4 Kenmerken'!AF140:AF141),-4) -> 20000 | AG89: =ROUND(SUM(AG84:AG88)*SUM('1.4 Kenmerken'!AG140:AG141),-4) -> 10000
B90: CAPEX aquathermie | C90: =ROUND((SUM(C84:C89)),-4) -> 650000 | D90: 2290000 | E90: 240000 | F90: 1050000 | G90: 410000 | H90: 820000 | I90: 940000 | J90: 400000 | K90: 650000 | L90: 510000 | M90: 660000 | N90: 880000 | O90: 650000 | P90: 650000 | Q90: 650000 | R90: 650000 | S90: 650000 | T90: 650000 | U90: 650000 | V90: 650000 | W90: 650000 | X90: 650000 | Y90: 650000 | Z90: 660000 | AA90: 640000 | AB90: 650000 | AC90: 650000 | AD90: 650000 | AE90: 760000 | AF90: 830000 | AG90: =ROUND((SUM(AG84:AG89)),-4) -> 650000
C91: =C90/('1.4 Kenmerken'!C8*1000) -> 130 | D91: =D90/('1.4 Kenmerken'!D8*1000) -> 114.5 | E91: =E90/('1.4 Kenmerken'!E8*1000) -> 240 | F91: =F90/('1.4 Kenmerken'!F8*1000) -> 210 | G91: =G90/('1.4 Kenmerken'!G8*1000) -> 82 | H91: =H90/('1.4 Kenmerken'!H8*1000) -> 164 | I91: =I90/('1.4 Kenmerken'!I8*1000) -> 188 | J91: =J90/('1.4 Kenmerken'!J8*1000) -> 80 | K91: =K90/('1.4 Kenmerken'!K8*1000) -> 130 | L91: =L90/('1.4 Kenmerken'!L8*1000) -> 102 | M91: =M90/('1.4 Kenmerken'!M8*1000) -> 132 | N91: =N90/('1.4 Kenmerken'!N8*1000) -> 176 | O91: =O90/('1.4 Kenmerken'!O8*1000) -> 130 | P91: =P90/('1.4 Kenmerken'!P8*1000) -> 130 | Q91: =Q90/('1.4 Kenmerken'!Q8*1000) -> 130 | R91: =R90/('1.4 Kenmerken'!R8*1000) -> 130 | S91: =S90/('1.4 Kenmerken'!S8*1000) -> 130 | T91: =T90/('1.4 Kenmerken'!T8*1000) -> 130 | U91: =U90/('1.4 Kenmerken'!U8*1000) -> 130 | V91: =V90/('1.4 Kenmerken'!V8*1000) -> 130 | W91: =W90/('1.4 Kenmerken'!W8*1000) -> 130 | X91: =X90/('1.4 Kenmerken'!X8*1000) -> 130 | Y91: =Y90/('1.4 Kenmerken'!Y8*1000) -> 130 | Z91: =Z90/('1.4 Kenmerken'!Z8*1000) -> 132 | AA91: =AA90/('1.4 Kenmerken'!AA8*1000) -> 128 | AB91: =AB90/('1.4 Kenmerken'!AB8*1000) -> 130 | AC91: =AC90/('1.4 Kenmerken'!AC8*1000) -> 130 | AD91: =AD90/('1.4 Kenmerken'!AD8*1000) -> 130 | AE91: =AE90/('1.4 Kenmerken'!AE8*1000) -> 152 | AF91: =AF90/('1.4 Kenmerken'!AF8*1000) -> 166 | AG91: =AG90/('1.4 Kenmerken'!AG8*1000) -> 130
B93: =B57 -> financiering | C93: 30 | D93: 30 | E93: 30 | F93: 30 | G93: 30 | H93: 30 | I93: 30 | J93: 30 | K93: 30 | L93: 30 | M93: 30 | N93: 30 | O93: 30 | P93: 30 | Q93: 30 | R93: 30 | S93: 30 | T93: 30 | U93: 30 | V93: 30 | W93: 30 | X93: 30 | Y93: 30 | Z93: 30 | AA93: 30 | AB93: 30 | AC93: 30 | AD93: 30 | AE93: 30 | AF93: 30 | AG93: 30
B94: Herinvestering | C94: 0.25 | D94: 0.25 | E94: 0.25 | F94: 0.25 | G94: 0.25 | H94: 0.25 | I94: 0.25 | J94: 0.25 | K94: 0.25 | L94: 0.25 | M94: 0.25 | N94: 0.25 | O94: 0.25 | P94: 0.25 | Q94: 0.25 | R94: 0.25 | S94: 0.25 | T94: 0.25 | U94: 0.25 | V94: 0.25 | W94: 0.25 | X94: 0.25 | Y94: 0.25 | Z94: 0.25 | AA94: 0.25 | AB94: 0.25 | AC94: 0.25 | AD94: 0.25 | AE94: 0.25 | AF94: 0.25 | AG94: 0.25
B95: Afschrijfkosten gemiddeld | C95: =((C90-C89)/C93+((C90-C89)*'2.6 Business case'!$T$7*C94)/C93)/2 -> 12154.57978 | D95: =((D90-D89)/D93+((D90-D89)*'2.6 Business case'!$T$7*D94)/D93)/2 -> 42541.02922 | E95: =((E90-E89)/E93+((E90-E89)*'2.6 Business case'!$T$7*E94)/E93)/2 -> 4459.211456 | F95: =((F90-F89)/F93+((F90-F89)*'2.6 Business case'!$T$7*F94)/F93)/2 -> 19561.27683 | G95: =((G90-G89)/G93+((G90-G89)*'2.6 Business case'!$T$7*G94)/G93)/2 -> 7596.612361 | H95: =((H90-H89)/H93+((H90-H89)*'2.6 Business case'!$T$7*H94)/H93)/2 -> 15193.22472 | I95: =((I90-I89)/I93+((I90-I89)*'2.6 Business case'!$T$7*I94)/I93)/2 -> 17472.20843 | J95: =((J90-J89)/J93+((J90-J89)*'2.6 Business case'!$T$7*J94)/J93)/2 -> 7406.697052 | K95: =((K90-K89)/K93+((K90-K89)*'2.6 Business case'!$T$7*K94)/K93)/2 -> 12154.57978 | L95: =((L90-L89)/L93+((L90-L89)*'2.6 Business case'!$T$7*L94)/L93)/2 -> 9495.765451 | M95: =((M90-M89)/M93+((M90-M89)*'2.6 Business case'!$T$7*M94)/M93)/2 -> 12344.49509 | N95: =((N90-N89)/N93+((N90-N89)*'2.6 Business case'!$T$7*N94)/N93)/2 -> 16332.71658 | O95: =((O90-O89)/O93+((O90-O89)*'2.6 Business case'!$T$7*O94)/O93)/2 -> 12154.57978 | P95: =((P90-P89)/P93+((P90-P89)*'2.6 Business case'!$T$7*P94)/P93)/2 -> 12154.57978 | Q95: =((Q90-Q89)/Q93+((Q90-Q89)*'2.6 Business case'!$T$7*Q94)/Q93)/2 -> 12154.57978 | R95: =((R90-R89)/R93+((R90-R89)*'2.6 Business case'!$T$7*R94)/R93)/2 -> 12154.57978 | S95: =((S90-S89)/S93+((S90-S89)*'2.6 Business case'!$T$7*S94)/S93)/2 -> 12154.57978 | T95: =((T90-T89)/T93+((T90-T89)*'2.6 Business case'!$T$7*T94)/T93)/2 -> 12154.57978 | U95: =((U90-U89)/U93+((U90-U89)*'2.6 Business case'!$T$7*U94)/U93)/2 -> 12154.57978 | V95: =((V90-V89)/V93+((V90-V89)*'2.6 Business case'!$T$7*V94)/V93)/2 -> 12154.57978 | W95: =((W90-W89)/W93+((W90-W89)*'2.6 Business case'!$T$7*W94)/W93)/2 -> 12154.57978 | X95: =((X90-X89)/X93+((X90-X89)*'2.6 Business case'!$T$7*X94)/X93)/2 -> 12154.57978 | Y95: =((Y90-Y89)/Y93+((Y90-Y89)*'2.6 Business case'!$T$7*Y94)/Y93)/2 -> 12154.57978 | Z95: =((Z90-Z89)/Z93+((Z90-Z89)*'2.6 Business case'!$T$7*Z94)/Z93)/2 -> 12344.49509 | AA95: =((AA90-AA89)/AA93+((AA90-AA89)*'2.6 Business case'!$T$7*AA94)/AA93)/2 -> 11964.66447 | AB95: =((AB90-AB89)/AB93+((AB90-AB89)*'2.6 Business case'!$T$7*AB94)/AB93)/2 -> 12154.57978 | AC95: =((AC90-AC89)/AC93+((AC90-AC89)*'2.6 Business case'!$T$7*AC94)/AC93)/2 -> 12154.57978 | AD95: =((AD90-AD89)/AD93+((AD90-AD89)*'2.6 Business case'!$T$7*AD94)/AD93)/2 -> 12154.57978 | AE95: =((AE90-AE89)/AE93+((AE90-AE89)*'2.6 Business case'!$T$7*AE94)/AE93)/2 -> 14053.73287 | AF95: =((AF90-AF89)/AF93+((AF90-AF89)*'2.6 Business case'!$T$7*AF94)/AF93)/2 -> 15383.14003 | AG95: =((AG90-AG89)/AG93+((AG90-AG89)*'2.6 Business case'!$T$7*AG94)/AG93)/2 -> 12154.57978
B97: WKO
B98: CAPEX bronnen subtotaal | C98: =ROUND('1.4 Kenmerken'!C119*'1.4 Kenmerken'!C66,-4) -> 750000 | D98: =ROUND('1.4 Kenmerken'!D119*'1.4 Kenmerken'!D66,-4) -> 2750000 | E98: =ROUND('1.4 Kenmerken'!E119*'1.4 Kenmerken'!E66,-4) -> 230000 | F98: =ROUND('1.4 Kenmerken'!F119*'1.4 Kenmerken'!F66,-4) -> 750000 | G98: =ROUND('1.4 Kenmerken'!G119*'1.4 Kenmerken'!G66,-4) -> 750000 | H98: =ROUND('1.4 Kenmerken'!H119*'1.4 Kenmerken'!H66,-4) -> 750000 | I98: =ROUND('1.4 Kenmerken'!I119*'1.4 Kenmerken'!I66,-4) -> 750000 | J98: =ROUND('1.4 Kenmerken'!J119*'1.4 Kenmerken'!J66,-4) -> 750000 | K98: =ROUND('1.4 Kenmerken'!K119*'1.4 Kenmerken'!K66,-4) -> 750000 | L98: =ROUND('1.4 Kenmerken'!L119*'1.4 Kenmerken'!L66,-4) -> 490000 | M98: =ROUND('1.4 Kenmerken'!M119*'1.4 Kenmerken'!M66,-4) -> 1000000 | N98: =ROUND('1.4 Kenmerken'!N119*'1.4 Kenmerken'!N66,-4) -> 0 | O98: =ROUND('1.4 Kenmerken'!O119*'1.4 Kenmerken'!O66,-4) -> 320000 | P98: =ROUND('1.4 Kenmerken'!P119*'1.4 Kenmerken'!P66,-4) -> 1090000 | Q98: =ROUND('1.4 Kenmerken'!Q119*'1.4 Kenmerken'!Q66,-4) -> 860000 | R98: =ROUND('1.4 Kenmerken'!R119*'1.4 Kenmerken'!R66,-4) -> 650000 | S98: =ROUND('1.4 Kenmerken'!S119*'1.4 Kenmerken'!S66,-4) -> 750000 | T98: =ROUND('1.4 Kenmerken'!T119*'1.4 Kenmerken'!T66,-4) -> 750000 | U98: =ROUND('1.4 Kenmerken'!U119*'1.4 Kenmerken'!U66,-4) -> 750000 | V98: =ROUND('1.4 Kenmerken'!V119*'1.4 Kenmerken'!V66,-4) -> 750000 | W98: =ROUND('1.4 Kenmerken'!W119*'1.4 Kenmerken'!W66,-4) -> 750000 | X98: =ROUND('1.4 Kenmerken'!X119*'1.4 Kenmerken'!X66,-4) -> 750000 | Y98: =ROUND('1.4 Kenmerken'!Y119*'1.4 Kenmerken'!Y66,-4) -> 750000 | Z98: =ROUND('1.4 Kenmerken'!Z119*'1.4 Kenmerken'!Z66,-4) -> 750000 | AA98: =ROUND('1.4 Kenmerken'!AA119*'1.4 Kenmerken'!AA66,-4) -> 750000 | AB98: =ROUND('1.4 Kenmerken'!AB119*'1.4 Kenmerken'!AB66,-4) -> 750000 | AC98: =ROUND('1.4 Kenmerken'!AC119*'1.4 Kenmerken'!AC66,-4) -> 750000 | AD98: =ROUND('1.4 Kenmerken'!AD119*'1.4 Kenmerken'!AD66,-4) -> 0 | AE98: =ROUND('1.4 Kenmerken'!AE119*'1.4 Kenmerken'!AE66,-4) -> 900000 | AF98: =ROUND('1.4 Kenmerken'!AF119*'1.4 Kenmerken'!AF66,-4) -> 2240000 | AG98: =ROUND('1.4 Kenmerken'!AG119*'1.4 Kenmerken'!AG66,-4) -> 750000
B100: Algemene uitvoeringskosten incl. winst & risico | C100: =ROUND((C98)*'1.4 Kenmerken'!C133,-4) -> 110000 | D100: =ROUND((D98)*'1.4 Kenmerken'!D133,-4) -> 410000 | E100: =ROUND((E98)*'1.4 Kenmerken'!E133,-4) -> 30000 | F100: =ROUND((F98)*'1.4 Kenmerken'!F133,-4) -> 110000 | G100: =ROUND((G98)*'1.4 Kenmerken'!G133,-4) -> 110000 | H100: =ROUND((H98)*'1.4 Kenmerken'!H133,-4) -> 110000 | I100: =ROUND((I98)*'1.4 Kenmerken'!I133,-4) -> 110000 | J100: =ROUND((J98)*'1.4 Kenmerken'!J133,-4) -> 110000 | K100: =ROUND((K98)*'1.4 Kenmerken'!K133,-4) -> 110000 | L100: =ROUND((L98)*'1.4 Kenmerken'!L133,-4) -> 70000 | M100: =ROUND((M98)*'1.4 Kenmerken'!M133,-4) -> 150000 | N100: =ROUND((N98)*'1.4 Kenmerken'!N133,-4) -> 0 | O100: =ROUND((O98)*'1.4 Kenmerken'!O133,-4) -> 50000 | P100: =ROUND((P98)*'1.4 Kenmerken'!P133,-4) -> 160000 | Q100: =ROUND((Q98)*'1.4 Kenmerken'!Q133,-4) -> 130000 | R100: =ROUND((R98)*'1.4 Kenmerken'!R133,-4) -> 100000 | S100: =ROUND((S98)*'1.4 Kenmerken'!S133,-4) -> 110000 | T100: =ROUND((T98)*'1.4 Kenmerken'!T133,-4) -> 110000 | U100: =ROUND((U98)*'1.4 Kenmerken'!U133,-4) -> 110000 | V100: =ROUND((V98)*'1.4 Kenmerken'!V133,-4) -> 110000 | W100: =ROUND((W98)*'1.4 Kenmerken'!W133,-4) -> 110000 | X100: =ROUND((X98)*'1.4 Kenmerken'!X133,-4) -> 110000 | Y100: =ROUND((Y98)*'1.4 Kenmerken'!Y133,-4) -> 110000 | Z100: =ROUND((Z98)*'1.4 Kenmerken'!Z133,-4) -> 130000 | AA100: =ROUND((AA98)*'1.4 Kenmerken'!AA133,-4) -> 90000 | AB100: =ROUND((AB98)*'1.4 Kenmerken'!AB133,-4) -> 110000 | AC100: =ROUND((AC98)*'1.4 Kenmerken'!AC133,-4) -> 110000 | AD100: =ROUND((AD98)*'1.4 Kenmerken'!AD133,-4) -> 0 | AE100: =ROUND((AE98)*'1.4 Kenmerken'!AE133,-4) -> 140000 | AF100: =ROUND((AF98)*'1.4 Kenmerken'!AF133,-4) -> 340000 | AG100: =ROUND((AG98)*'1.4 Kenmerken'!AG133,-4) -> 110000
B101: onvoorzien | C101: =ROUND((C98+C100)*'1.4 Kenmerken'!C134,-4) -> 90000 | D101: =ROUND((D98+D100)*'1.4 Kenmerken'!D134,-4) -> 320000 | E101: =ROUND((E98+E100)*'1.4 Kenmerken'!E134,-4) -> 30000 | F101: =ROUND((F98+F100)*'1.4 Kenmerken'!F134,-4) -> 90000 | G101: =ROUND((G98+G100)*'1.4 Kenmerken'!G134,-4) -> 90000 | H101: =ROUND((H98+H100)*'1.4 Kenmerken'!H134,-4) -> 90000 | I101: =ROUND((I98+I100)*'1.4 Kenmerken'!I134,-4) -> 90000 | J101: =ROUND((J98+J100)*'1.4 Kenmerken'!J134,-4) -> 90000 | K101: =ROUND((K98+K100)*'1.4 Kenmerken'!K134,-4) -> 90000 | L101: =ROUND((L98+L100)*'1.4 Kenmerken'!L134,-4) -> 60000 | M101: =ROUND((M98+M100)*'1.4 Kenmerken'!M134,-4) -> 120000 | N101: =ROUND((N98+N100)*'1.4 Kenmerken'!N134,-4) -> 0 | O101: =ROUND((O98+O100)*'1.4 Kenmerken'!O134,-4) -> 40000 | P101: =ROUND((P98+P100)*'1.4 Kenmerken'!P134,-4) -> 130000 | Q101: =ROUND((Q98+Q100)*'1.4 Kenmerken'!Q134,-4) -> 100000 | R101: =ROUND((R98+R100)*'1.4 Kenmerken'!R134,-4) -> 80000 | S101: =ROUND((S98+S100)*'1.4 Kenmerken'!S134,-4) -> 90000 | T101: =ROUND((T98+T100)*'1.4 Kenmerken'!T134,-4) -> 90000 | U101: =ROUND((U98+U100)*'1.4 Kenmerken'!U134,-4) -> 90000 | V101: =ROUND((V98+V100)*'1.4 Kenmerken'!V134,-4) -> 90000 | W101: =ROUND((W98+W100)*'1.4 Kenmerken'!W134,-4) -> 90000 | X101: =ROUND((X98+X100)*'1.4 Kenmerken'!X134,-4) -> 90000 | Y101: =ROUND((Y98+Y100)*'1.4 Kenmerken'!Y134,-4) -> 90000 | Z101: =ROUND((Z98+Z100)*'1.4 Kenmerken'!Z134,-4) -> 90000 | AA101: =ROUND((AA98+AA100)*'1.4 Kenmerken'!AA134,-4) -> 80000 | AB101: =ROUND((AB98+AB100)*'1.4 Kenmerken'!AB134,-4) -> 90000 | AC101: =ROUND((AC98+AC100)*'1.4 Kenmerken'!AC134,-4) -> 90000 | AD101: =ROUND((AD98+AD100)*'1.4 Kenmerken'!AD134,-4) -> 0 | AE101: =ROUND((AE98+AE100)*'1.4 Kenmerken'!AE134,-4) -> 100000 | AF101: =ROUND((AF98+AF100)*'1.4 Kenmerken'!AF134,-4) -> 260000 | AG101: =ROUND((AG98+AG100)*'1.4 Kenmerken'!AG134,-4) -> 90000
B102: bijkomende kosten | C102: =ROUND((C98+C100+C101)*SUM('1.4 Kenmerken'!C135:C139),-4) -> 100000 | D102: =ROUND((D98+D100+D101)*SUM('1.4 Kenmerken'!D135:D139),-4) -> 350000 | E102: =ROUND((E98+E100+E101)*SUM('1.4 Kenmerken'!E135:E139),-4) -> 30000 | F102: =ROUND((F98+F100+F101)*SUM('1.4 Kenmerken'!F135:F139),-4) -> 100000 | G102: =ROUND((G98+G100+G101)*SUM('1.4 Kenmerken'!G135:G139),-4) -> 100000 | H102: =ROUND((H98+H100+H101)*SUM('1.4 Kenmerken'!H135:H139),-4) -> 100000 | I102: =ROUND((I98+I100+I101)*SUM('1.4 Kenmerken'!I135:I139),-4) -> 100000 | J102: =ROUND((J98+J100+J101)*SUM('1.4 Kenmerken'!J135:J139),-4) -> 100000 | K102: =ROUND((K98+K100+K101)*SUM('1.4 Kenmerken'!K135:K139),-4) -> 100000 | L102: =ROUND((L98+L100+L101)*SUM('1.4 Kenmerken'!L135:L139),-4) -> 60000 | M102: =ROUND((M98+M100+M101)*SUM('1.4 Kenmerken'!M135:M139),-4) -> 130000 | N102: =ROUND((N98+N100+N101)*SUM('1.4 Kenmerken'!N135:N139),-4) -> 0 | O102: =ROUND((O98+O100+O101)*SUM('1.4 Kenmerken'!O135:O139),-4) -> 40000 | P102: =ROUND((P98+P100+P101)*SUM('1.4 Kenmerken'!P135:P139),-4) -> 140000 | Q102: =ROUND((Q98+Q100+Q101)*SUM('1.4 Kenmerken'!Q135:Q139),-4) -> 110000 | R102: =ROUND((R98+R100+R101)*SUM('1.4 Kenmerken'!R135:R139),-4) -> 80000 | S102: =ROUND((S98+S100+S101)*SUM('1.4 Kenmerken'!S135:S139),-4) -> 100000 | T102: =ROUND((T98+T100+T101)*SUM('1.4 Kenmerken'!T135:T139),-4) -> 100000 | U102: =ROUND((U98+U100+U101)*SUM('1.4 Kenmerken'!U135:U139),-4) -> 100000 | V102: =ROUND((V98+V100+V101)*SUM('1.4 Kenmerken'!V135:V139),-4) -> 100000 | W102: =ROUND((W98+W100+W101)*SUM('1.4 Kenmerken'!W135:W139),-4) -> 100000 | X102: =ROUND((X98+X100+X101)*SUM('1.4 Kenmerken'!X135:X139),-4) -> 100000 | Y102: =ROUND((Y98+Y100+Y101)*SUM('1.4 Kenmerken'!Y135:Y139),-4) -> 100000 | Z102: =ROUND((Z98+Z100+Z101)*SUM('1.4 Kenmerken'!Z135:Z139),-4) -> 100000 | AA102: =ROUND((AA98+AA100+AA101)*SUM('1.4 Kenmerken'!AA135:AA139),-4) -> 90000 | AB102: =ROUND((AB98+AB100+AB101)*SUM('1.4 Kenmerken'!AB135:AB139),-4) -> 100000 | AC102: =ROUND((AC98+AC100+AC101)*SUM('1.4 Kenmerken'!AC135:AC139),-4) -> 100000 | AD102: =ROUND((AD98+AD100+AD101)*SUM('1.4 Kenmerken'!AD135:AD139),-4) -> 0 | AE102: =ROUND((AE98+AE100+AE101)*SUM('1.4 Kenmerken'!AE135:AE139),-4) -> 110000 | AF102: =ROUND((AF98+AF100+AF101)*SUM('1.4 Kenmerken'!AF135:AF139),-4) -> 280000 | AG102: =ROUND((AG98+AG100+AG101)*SUM('1.4 Kenmerken'!AG135:AG139),-4) -> 100000
B103: financiering | C103: =ROUND(SUM(C98:C102)*SUM('1.4 Kenmerken'!C140:C141),-4) -> 20000 | D103: =ROUND(SUM(D98:D102)*SUM('1.4 Kenmerken'!D140:D141),-4) -> 80000 | E103: =ROUND(SUM(E98:E102)*SUM('1.4 Kenmerken'!E140:E141),-4) -> 10000 | F103: =ROUND(SUM(F98:F102)*SUM('1.4 Kenmerken'!F140:F141),-4) -> 20000 | G103: =ROUND(SUM(G98:G102)*SUM('1.4 Kenmerken'!G140:G141),-4) -> 20000 | H103: =ROUND(SUM(H98:H102)*SUM('1.4 Kenmerken'!H140:H141),-4) -> 20000 | I103: =ROUND(SUM(I98:I102)*SUM('1.4 Kenmerken'!I140:I141),-4) -> 20000 | J103: =ROUND(SUM(J98:J102)*SUM('1.4 Kenmerken'!J140:J141),-4) -> 20000 | K103: =ROUND(SUM(K98:K102)*SUM('1.4 Kenmerken'!K140:K141),-4) -> 20000 | L103: =ROUND(SUM(L98:L102)*SUM('1.4 Kenmerken'!L140:L141),-4) -> 10000 | M103: =ROUND(SUM(M98:M102)*SUM('1.4 Kenmerken'!M140:M141),-4) -> 30000 | N103: =ROUND(SUM(N98:N102)*SUM('1.4 Kenmerken'!N140:N141),-4) -> 0 | O103: =ROUND(SUM(O98:O102)*SUM('1.4 Kenmerken'!O140:O141),-4) -> 10000 | P103: =ROUND(SUM(P98:P102)*SUM('1.4 Kenmerken'!P140:P141),-4) -> 30000 | Q103: =ROUND(SUM(Q98:Q102)*SUM('1.4 Kenmerken'!Q140:Q141),-4) -> 30000 | R103: =ROUND(SUM(R98:R102)*SUM('1.4 Kenmerken'!R140:R141),-4) -> 20000 | S103: =ROUND(SUM(S98:S102)*SUM('1.4 Kenmerken'!S140:S141),-4) -> 20000 | T103: =ROUND(SUM(T98:T102)*SUM('1.4 Kenmerken'!T140:T141),-4) -> 20000 | U103: =ROUND(SUM(U98:U102)*SUM('1.4 Kenmerken'!U140:U141),-4) -> 20000 | V103: =ROUND(SUM(V98:V102)*SUM('1.4 Kenmerken'!V140:V141),-4) -> 20000 | W103: =ROUND(SUM(W98:W102)*SUM('1.4 Kenmerken'!W140:W141),-4) -> 20000 | X103: =ROUND(SUM(X98:X102)*SUM('1.4 Kenmerken'!X140:X141),-4) -> 20000 | Y103: =ROUND(SUM(Y98:Y102)*SUM('1.4 Kenmerken'!Y140:Y141),-4) -> 20000 | Z103: =ROUND(SUM(Z98:Z102)*SUM('1.4 Kenmerken'!Z140:Z141),-4) -> 20000 | AA103: =ROUND(SUM(AA98:AA102)*SUM('1.4 Kenmerken'!AA140:AA141),-4) -> 20000 | AB103: =ROUND(SUM(AB98:AB102)*SUM('1.4 Kenmerken'!AB140:AB141),-4) -> 20000 | AC103: =ROUND(SUM(AC98:AC102)*SUM('1.4 Kenmerken'!AC140:AC141),-4) -> 20000 | AD103: =ROUND(SUM(AD98:AD102)*SUM('1.4 Kenmerken'!AD140:AD141),-4) -> 0 | AE103: =ROUND(SUM(AE98:AE102)*SUM('1.4 Kenmerken'!AE140:AE141),-4) -> 30000 | AF103: =ROUND(SUM(AF98:AF102)*SUM('1.4 Kenmerken'!AF140:AF141),-4) -> 70000 | AG103: =ROUND(SUM(AG98:AG102)*SUM('1.4 Kenmerken'!AG140:AG141),-4) -> 20000
B104: CAPEX WKO | C104: =ROUND((SUM(C98:C103)),-5) -> 1100000 | D104: =ROUND((SUM(D98:D103)),-5) -> 3900000 | E104: 300000 | F104: 1100000 | G104: 1100000 | H104: 1100000 | I104: 1100000 | J104: 1100000 | K104: 1100000 | L104: =ROUND((SUM(L98:L103)),-5) -> 700000 | M104: 1400000 | N104: =ROUND((SUM(N98:N103)),-5) -> 0 | O104: =ROUND((SUM(O98:O103)),-5) -> 500000 | P104: 1600000 | Q104: 1200000 | R104: 900000 | S104: 1100000 | T104: 1100000 | U104: 1100000 | V104: 1100000 | W104: 1100000 | X104: 1100000 | Y104: 1100000 | Z104: 1100000 | AA104: 1000000 | AB104: =ROUND((SUM(AB98:AB103)),-5) -> 1100000 | AC104: =ROUND((SUM(AC98:AC103)),-5) -> 1100000 | AD104: 0 | AE104: 1300000 | AF104: =ROUND((SUM(AF98:AF103)),-5) -> 3200000 | AG104: =ROUND((SUM(AG98:AG103)),-5) -> 1100000
C105: =C104/('1.4 Kenmerken'!C8*1000) -> 220 | D105: =D104/('1.4 Kenmerken'!D8*1000) -> 195 | E105: =E104/('1.4 Kenmerken'!E8*1000) -> 300 | F105: =F104/('1.4 Kenmerken'!F8*1000) -> 220 | G105: =G104/('1.4 Kenmerken'!G8*1000) -> 220 | H105: =H104/('1.4 Kenmerken'!H8*1000) -> 220 | I105: =I104/('1.4 Kenmerken'!I8*1000) -> 220 | J105: =J104/('1.4 Kenmerken'!J8*1000) -> 220 | K105: =K104/('1.4 Kenmerken'!K8*1000) -> 220 | L105: =L104/('1.4 Kenmerken'!L8*1000) -> 140 | M105: =M104/('1.4 Kenmerken'!M8*1000) -> 280 | N105: =N104/('1.4 Kenmerken'!N8*1000) -> 0 | O105: =O104/('1.4 Kenmerken'!O8*1000) -> 100 | P105: =P104/('1.4 Kenmerken'!P8*1000) -> 320 | Q105: =Q104/('1.4 Kenmerken'!Q8*1000) -> 240 | R105: =R104/('1.4 Kenmerken'!R8*1000) -> 180 | S105: =S104/('1.4 Kenmerken'!S8*1000) -> 220 | T105: =T104/('1.4 Kenmerken'!T8*1000) -> 220 | U105: =U104/('1.4 Kenmerken'!U8*1000) -> 220 | V105: =V104/('1.4 Kenmerken'!V8*1000) -> 220 | W105: =W104/('1.4 Kenmerken'!W8*1000) -> 220 | X105: =X104/('1.4 Kenmerken'!X8*1000) -> 220 | Y105: =Y104/('1.4 Kenmerken'!Y8*1000) -> 220 | Z105: =Z104/('1.4 Kenmerken'!Z8*1000) -> 220 | AA105: =AA104/('1.4 Kenmerken'!AA8*1000) -> 200 | AB105: =AB104/('1.4 Kenmerken'!AB8*1000) -> 220 | AC105: =AC104/('1.4 Kenmerken'!AC8*1000) -> 220 | AD105: =AD104/('1.4 Kenmerken'!AD8*1000) -> 0 | AE105: =AE104/('1.4 Kenmerken'!AE8*1000) -> 260 | AF105: =AF104/('1.4 Kenmerken'!AF8*1000) -> 640 | AG105: =AG104/('1.4 Kenmerken'!AG8*1000) -> 220
B107: =B43 -> Afschrijvingstermijn | C107: 30 | D107: 30 | E107: 30 | F107: 30 | G107: 30 | H107: 30 | I107: 30 | J107: 30 | K107: 30 | L107: 30 | M107: 30 | N107: 30 | O107: 30 | P107: 30 | Q107: 30 | R107: 30 | S107: 30 | T107: 30 | U107: 30 | V107: 30 | W107: 30 | X107: 30 | Y107: 30 | Z107: 30 | AA107: 30 | AB107: 31 | AC107: 32 | AD107: 33 | AE107: 33 | AF107: 34 | AG107: 30
B108: Afschrijfkosten gemiddeld | C108: =(C104-C103)/C107 -> 36000 | D108: =(D104-D103)/D107 -> 127333.3333 | E108: 9666.666667 | F108: 36000 | G108: 36000 | H108: 36000 | I108: 36000 | J108: 36000 | K108: 36000 | L108: =(L104-L103)/L107 -> 23000 | M108: 45666.66667 | N108: =(N104-N103)/N107 -> 0 | O108: =(O104-O103)/O107 -> 16333.33333 | P108: 52333.33333 | Q108: 39000 | R108: 29333.33333 | S108: 36000 | T108: 36000 | U108: 36000 | V108: 36000 | W108: 36000 | X108: 36000 | Y108: 36000 | Z108: 36000 | AA108: 32666.66667 | AB108: =(AB104-AB103)/AB107 -> 34838.70968 | AC108: =(AC104-AC103)/AC107 -> 33750 | AD108: 0 | AE108: 38484.84848 | AF108: =(AF104-AF103)/AF107 -> 92058.82353 | AG108: =(AG104-AG103)/AG107 -> 36000
B110: E-/gas-ketels in energiecentral
B111: CAPEX E-/gas-ketel | C111: ='1.4 Kenmerken'!C120*'1.4 Kenmerken'!C100*1000 -> 125000 | D111: ='1.4 Kenmerken'!D120*'1.4 Kenmerken'!D100*1000 -> 500000 | E111: ='1.4 Kenmerken'!E120*'1.4 Kenmerken'!E100*1000 -> 25000 | F111: ='1.4 Kenmerken'!F120*'1.4 Kenmerken'!F100*1000 -> 125000 | G111: ='1.4 Kenmerken'!G120*'1.4 Kenmerken'!G100*1000 -> 125000 | H111: ='1.4 Kenmerken'!H120*'1.4 Kenmerken'!H100*1000 -> 125000 | I111: ='1.4 Kenmerken'!I120*'1.4 Kenmerken'!I100*1000 -> 125000 | J111: ='1.4 Kenmerken'!J120*'1.4 Kenmerken'!J100*1000 -> 125000 | K111: ='1.4 Kenmerken'!K120*'1.4 Kenmerken'!K100*1000 -> 125000 | L111: ='1.4 Kenmerken'!L120*'1.4 Kenmerken'!L100*1000 -> 175000 | M111: ='1.4 Kenmerken'!M120*'1.4 Kenmerken'!M100*1000 -> 75000 | N111: ='1.4 Kenmerken'!N120*'1.4 Kenmerken'!N100*1000 -> 125000 | O111: ='1.4 Kenmerken'!O120*'1.4 Kenmerken'!O100*1000 -> 125000 | P111: ='1.4 Kenmerken'!P120*'1.4 Kenmerken'!P100*1000 -> 125000 | Q111: ='1.4 Kenmerken'!Q120*'1.4 Kenmerken'!Q100*1000 -> 125000 | R111: ='1.4 Kenmerken'!R120*'1.4 Kenmerken'!R100*1000 -> 125000 | S111: ='1.4 Kenmerken'!S120*'1.4 Kenmerken'!S100*1000 -> 125000 | T111: ='1.4 Kenmerken'!T120*'1.4 Kenmerken'!T100*1000 -> 125000 | U111: ='1.4 Kenmerken'!U120*'1.4 Kenmerken'!U100*1000 -> 125000 | V111: ='1.4 Kenmerken'!V120*'1.4 Kenmerken'!V100*1000 -> 125000 | W111: ='1.4 Kenmerken'!W120*'1.4 Kenmerken'!W100*1000 -> 125000 | X111: ='1.4 Kenmerken'!X120*'1.4 Kenmerken'!X100*1000 -> 125000 | Y111: ='1.4 Kenmerken'!Y120*'1.4 Kenmerken'!Y100*1000 -> 125000 | Z111: ='1.4 Kenmerken'!Z120*'1.4 Kenmerken'!Z100*1000 -> 125000 | AA111: ='1.4 Kenmerken'!AA120*'1.4 Kenmerken'!AA100*1000 -> 125000 | AB111: ='1.4 Kenmerken'!AB120*'1.4 Kenmerken'!AB100*1000 -> 125000 | AC111: ='1.4 Kenmerken'!AC120*'1.4 Kenmerken'!AC100*1000 -> 125000 | AD111: ='1.4 Kenmerken'!AD120*'1.4 Kenmerken'!AD100*1000 -> 125000 | AE111: ='1.4 Kenmerken'!AE120*'1.4 Kenmerken'!AE100*1000 -> 125000 | AF111: ='1.4 Kenmerken'!AF120*'1.4 Kenmerken'!AF100*1000 -> 0 | AG111: ='1.4 Kenmerken'!AG120*'1.4 Kenmerken'!AG100*1000 -> 125000
B112: CAPEX bouwkundig | C112: ='1.4 Kenmerken'!C103*'1.4 Kenmerken'!C121 -> 146666.6667 | D112: ='1.4 Kenmerken'!D103*'1.4 Kenmerken'!D121 -> 550000 | E112: ='1.4 Kenmerken'!E103*'1.4 Kenmerken'!E121 -> 55000 | F112: ='1.4 Kenmerken'!F103*'1.4 Kenmerken'!F121 -> 146666.6667 | G112: ='1.4 Kenmerken'!G103*'1.4 Kenmerken'!G121 -> 146666.6667 | H112: ='1.4 Kenmerken'!H103*'1.4 Kenmerken'!H121 -> 146666.6667 | I112: ='1.4 Kenmerken'!I103*'1.4 Kenmerken'!I121 -> 146666.6667 | J112: ='1.4 Kenmerken'!J103*'1.4 Kenmerken'!J121 -> 146666.6667 | K112: ='1.4 Kenmerken'!K103*'1.4 Kenmerken'!K121 -> 146666.6667 | L112: ='1.4 Kenmerken'!L103*'1.4 Kenmerken'!L121 -> 231000 | M112: ='1.4 Kenmerken'!M103*'1.4 Kenmerken'!M121 -> 44000 | N112: ='1.4 Kenmerken'!N103*'1.4 Kenmerken'!N121 -> 128333.3333 | O112: ='1.4 Kenmerken'!O103*'1.4 Kenmerken'!O121 -> 146666.6667 | P112: ='1.4 Kenmerken'!P103*'1.4 Kenmerken'!P121 -> 146666.6667 | Q112: ='1.4 Kenmerken'!Q103*'1.4 Kenmerken'!Q121 -> 146666.6667 | R112: ='1.4 Kenmerken'!R103*'1.4 Kenmerken'!R121 -> 146666.6667 | S112: ='1.4 Kenmerken'!S103*'1.4 Kenmerken'!S121 -> 146666.6667 | T112: ='1.4 Kenmerken'!T103*'1.4 Kenmerken'!T121 -> 146666.6667 | U112: ='1.4 Kenmerken'!U103*'1.4 Kenmerken'!U121 -> 146666.6667 | V112: ='1.4 Kenmerken'!V103*'1.4 Kenmerken'!V121 -> 146666.6667 | W112: ='1.4 Kenmerken'!W103*'1.4 Kenmerken'!W121 -> 146666.6667 | X112: ='1.4 Kenmerken'!X103*'1.4 Kenmerken'!X121 -> 146666.6667 | Y112: ='1.4 Kenmerken'!Y103*'1.4 Kenmerken'!Y121 -> 146666.6667 | Z112: ='1.4 Kenmerken'!Z103*'1.4 Kenmerken'!Z121 -> 146666.6667 | AA112: ='1.4 Kenmerken'!AA103*'1.4 Kenmerken'!AA121 -> 146666.6667 | AB112: ='1.4 Kenmerken'!AB103*'1.4 Kenmerken'!AB121 -> 146666.6667 | AC112: ='1.4 Kenmerken'!AC103*'1.4 Kenmerken'!AC121 -> 146666.6667 | AD112: ='1.4 Kenmerken'!AD103*'1.4 Kenmerken'!AD121 -> 146666.6667 | AE112: ='1.4 Kenmerken'!AE103*'1.4 Kenmerken'!AE121 -> 146666.6667 | AF112: ='1.4 Kenmerken'!AF103*'1.4 Kenmerken'!AF121 -> -18333.33333 | AG112: ='1.4 Kenmerken'!AG103*'1.4 Kenmerken'!AG121 -> 146666.6667
B113: CAPEX elektra aansluiting | C113: =ROUND((('1.4 Kenmerken'!C100/0.85)*'1.4 Kenmerken'!C122*1000),-4) -> 320000 | D113: =ROUND((('1.4 Kenmerken'!D100/0.85)*'1.4 Kenmerken'!D122*1000),-4) -> 1290000 | E113: =ROUND((('1.4 Kenmerken'!E100/0.85)*'1.4 Kenmerken'!E122*1000),-4) -> 60000 | F113: =ROUND((('1.4 Kenmerken'!F100/0.85)*'1.4 Kenmerken'!F122*1000),-4) -> 320000 | G113: =ROUND((('1.4 Kenmerken'!G100/0.85)*'1.4 Kenmerken'!G122*1000),-4) -> 320000 | H113: =ROUND((('1.4 Kenmerken'!H100/0.85)*'1.4 Kenmerken'!H122*1000),-4) -> 320000 | I113: =ROUND((('1.4 Kenmerken'!I100/0.85)*'1.4 Kenmerken'!I122*1000),-4) -> 320000 | J113: =ROUND((('1.4 Kenmerken'!J100/0.85)*'1.4 Kenmerken'!J122*1000),-4) -> 320000 | K113: =ROUND((('1.4 Kenmerken'!K100/0.85)*'1.4 Kenmerken'!K122*1000),-4) -> 320000 | L113: =ROUND((('1.4 Kenmerken'!L100/0.85)*'1.4 Kenmerken'!L122*1000),-4) -> 450000 | M113: =ROUND((('1.4 Kenmerken'!M100/0.85)*'1.4 Kenmerken'!M122*1000),-4) -> 190000 | N113: =ROUND((('1.4 Kenmerken'!N100/0.85)*'1.4 Kenmerken'!N122*1000),-4) -> 320000 | O113: =ROUND((('1.4 Kenmerken'!O100/0.85)*'1.4 Kenmerken'!O122*1000),-4) -> 320000 | P113: =ROUND((('1.4 Kenmerken'!P100/0.85)*'1.4 Kenmerken'!P122*1000),-4) -> 320000 | Q113: =ROUND((('1.4 Kenmerken'!Q100/0.85)*'1.4 Kenmerken'!Q122*1000),-4) -> 320000 | R113: =ROUND((('1.4 Kenmerken'!R100/0.85)*'1.4 Kenmerken'!R122*1000),-4) -> 320000 | S113: =ROUND((('1.4 Kenmerken'!S100/0.85)*'1.4 Kenmerken'!S122*1000),-4) -> 320000 | T113: =ROUND((('1.4 Kenmerken'!T100/0.85)*'1.4 Kenmerken'!T122*1000),-4) -> 320000 | U113: =ROUND((('1.4 Kenmerken'!U100/0.85)*'1.4 Kenmerken'!U122*1000),-4) -> 320000 | V113: =ROUND((('1.4 Kenmerken'!V100/0.85)*'1.4 Kenmerken'!V122*1000),-4) -> 320000 | W113: =ROUND((('1.4 Kenmerken'!W100/0.85)*'1.4 Kenmerken'!W122*1000),-4) -> 320000 | X113: =ROUND((('1.4 Kenmerken'!X100/0.85)*'1.4 Kenmerken'!X122*1000),-4) -> 320000 | Y113: =ROUND((('1.4 Kenmerken'!Y100/0.85)*'1.4 Kenmerken'!Y122*1000),-4) -> 320000 | Z113: =ROUND((('1.4 Kenmerken'!Z100/0.85)*'1.4 Kenmerken'!Z122*1000),-4) -> 320000 | AA113: =ROUND((('1.4 Kenmerken'!AA100/0.85)*'1.4 Kenmerken'!AA122*1000),-4) -> 320000 | AB113: =ROUND((('1.4 Kenmerken'!AB100/0.85)*'1.4 Kenmerken'!AB122*1000),-4) -> 320000 | AC113: =ROUND((('1.4 Kenmerken'!AC100/0.85)*'1.4 Kenmerken'!AC122*1000),-4) -> 320000 | AD113: =ROUND((('1.4 Kenmerken'!AD100/0.85)*'1.4 Kenmerken'!AD122*1000),-4) -> 320000 | AE113: =ROUND((('1.4 Kenmerken'!AE100/0.85)*'1.4 Kenmerken'!AE122*1000),-4) -> 320000 | AF113: =ROUND((('1.4 Kenmerken'!AF100/0.85)*'1.4 Kenmerken'!AF122*1000),-4) -> 0 | AG113: =ROUND((('1.4 Kenmerken'!AG100/0.85)*'1.4 Kenmerken'!AG122*1000),-4) -> 320000
B114: CAPEX overige elektra | C114: ='1.4 Kenmerken'!C103*'1.4 Kenmerken'!C123 -> 93333.33333 | D114: ='1.4 Kenmerken'!D103*'1.4 Kenmerken'!D123 -> 350000 | E114: ='1.4 Kenmerken'!E103*'1.4 Kenmerken'!E123 -> 35000 | F114: ='1.4 Kenmerken'!F103*'1.4 Kenmerken'!F123 -> 93333.33333 | G114: ='1.4 Kenmerken'!G103*'1.4 Kenmerken'!G123 -> 93333.33333 | H114: ='1.4 Kenmerken'!H103*'1.4 Kenmerken'!H123 -> 93333.33333 | I114: ='1.4 Kenmerken'!I103*'1.4 Kenmerken'!I123 -> 93333.33333 | J114: ='1.4 Kenmerken'!J103*'1.4 Kenmerken'!J123 -> 93333.33333 | K114: ='1.4 Kenmerken'!K103*'1.4 Kenmerken'!K123 -> 93333.33333 | L114: ='1.4 Kenmerken'!L103*'1.4 Kenmerken'!L123 -> 147000 | M114: ='1.4 Kenmerken'!M103*'1.4 Kenmerken'!M123 -> 28000 | N114: ='1.4 Kenmerken'!N103*'1.4 Kenmerken'!N123 -> 81666.66667 | O114: ='1.4 Kenmerken'!O103*'1.4 Kenmerken'!O123 -> 93333.33333 | P114: ='1.4 Kenmerken'!P103*'1.4 Kenmerken'!P123 -> 93333.33333 | Q114: ='1.4 Kenmerken'!Q103*'1.4 Kenmerken'!Q123 -> 93333.33333 | R114: ='1.4 Kenmerken'!R103*'1.4 Kenmerken'!R123 -> 93333.33333 | S114: ='1.4 Kenmerken'!S103*'1.4 Kenmerken'!S123 -> 93333.33333 | T114: ='1.4 Kenmerken'!T103*'1.4 Kenmerken'!T123 -> 93333.33333 | U114: ='1.4 Kenmerken'!U103*'1.4 Kenmerken'!U123 -> 93333.33333 | V114: ='1.4 Kenmerken'!V103*'1.4 Kenmerken'!V123 -> 93333.33333 | W114: ='1.4 Kenmerken'!W103*'1.4 Kenmerken'!W123 -> 93333.33333 | X114: ='1.4 Kenmerken'!X103*'1.4 Kenmerken'!X123 -> 93333.33333 | Y114: ='1.4 Kenmerken'!Y103*'1.4 Kenmerken'!Y123 -> 93333.33333 | Z114: ='1.4 Kenmerken'!Z103*'1.4 Kenmerken'!Z123 -> 93333.33333 | AA114: ='1.4 Kenmerken'!AA103*'1.4 Kenmerken'!AA123 -> 93333.33333 | AB114: ='1.4 Kenmerken'!AB103*'1.4 Kenmerken'!AB123 -> 93333.33333 | AC114: ='1.4 Kenmerken'!AC103*'1.4 Kenmerken'!AC123 -> 93333.33333 | AD114: ='1.4 Kenmerken'!AD103*'1.4 Kenmerken'!AD123 -> 93333.33333 | AE114: ='1.4 Kenmerken'!AE103*'1.4 Kenmerken'!AE123 -> 93333.33333 | AF114: ='1.4 Kenmerken'!AF103*'1.4 Kenmerken'!AF123 -> -11666.66667 | AG114: ='1.4 Kenmerken'!AG103*'1.4 Kenmerken'!AG123 -> 93333.33333
B115: CAPEX subtotaal | C115: =SUM(C111:C114) -> 685000 | D115: =SUM(D111:D114) -> 2690000 | E115: 175000 | F115: 685000 | G115: 685000 | H115: 685000 | I115: 685000 | J115: 685000 | K115: 685000 | L115: =SUM(L111:L114) -> 1003000 | M115: 337000 | N115: =SUM(N111:N114) -> 655000 | O115: =SUM(O111:O114) -> 685000 | P115: 685000 | Q115: 685000 | R115: 685000 | S115: 685000 | T115: 685000 | U115: 685000 | V115: 685000 | W115: 685000 | X115: 685000 | Y115: 685000 | Z115: 685000 | AA115: 685000 | AB115: =SUM(AB111:AB114) -> 685000 | AC115: =SUM(AC111:AC114) -> 685000 | AD115: 685000 | AE115: 685000 | AF115: =SUM(AF111:AF114) -> -30000 | AG115: =SUM(AG111:AG114) -> 685000
B117: Algemene uitvoeringskosten incl. winst & risico | C117: =ROUND((C115)*'1.4 Kenmerken'!C133,-4) -> 100000 | D117: =ROUND((D115)*'1.4 Kenmerken'!D133,-4) -> 400000 | E117: =ROUND((E115)*'1.4 Kenmerken'!E133,-4) -> 30000 | F117: =ROUND((F115)*'1.4 Kenmerken'!F133,-4) -> 100000 | G117: =ROUND((G115)*'1.4 Kenmerken'!G133,-4) -> 100000 | H117: =ROUND((H115)*'1.4 Kenmerken'!H133,-4) -> 100000 | I117: =ROUND((I115)*'1.4 Kenmerken'!I133,-4) -> 100000 | J117: =ROUND((J115)*'1.4 Kenmerken'!J133,-4) -> 100000 | K117: =ROUND((K115)*'1.4 Kenmerken'!K133,-4) -> 100000 | L117: =ROUND((L115)*'1.4 Kenmerken'!L133,-4) -> 150000 | M117: =ROUND((M115)*'1.4 Kenmerken'!M133,-4) -> 50000 | N117: =ROUND((N115)*'1.4 Kenmerken'!N133,-4) -> 100000 | O117: =ROUND((O115)*'1.4 Kenmerken'!O133,-4) -> 100000 | P117: =ROUND((P115)*'1.4 Kenmerken'!P133,-4) -> 100000 | Q117: =ROUND((Q115)*'1.4 Kenmerken'!Q133,-4) -> 100000 | R117: =ROUND((R115)*'1.4 Kenmerken'!R133,-4) -> 100000 | S117: =ROUND((S115)*'1.4 Kenmerken'!S133,-4) -> 100000 | T117: =ROUND((T115)*'1.4 Kenmerken'!T133,-4) -> 100000 | U117: =ROUND((U115)*'1.4 Kenmerken'!U133,-4) -> 100000 | V117: =ROUND((V115)*'1.4 Kenmerken'!V133,-4) -> 100000 | W117: =ROUND((W115)*'1.4 Kenmerken'!W133,-4) -> 100000 | X117: =ROUND((X115)*'1.4 Kenmerken'!X133,-4) -> 100000 | Y117: =ROUND((Y115)*'1.4 Kenmerken'!Y133,-4) -> 100000 | Z117: =ROUND((Z115)*'1.4 Kenmerken'!Z133,-4) -> 120000 | AA117: =ROUND((AA115)*'1.4 Kenmerken'!AA133,-4) -> 80000 | AB117: =ROUND((AB115)*'1.4 Kenmerken'!AB133,-4) -> 100000 | AC117: =ROUND((AC115)*'1.4 Kenmerken'!AC133,-4) -> 100000 | AD117: =ROUND((AD115)*'1.4 Kenmerken'!AD133,-4) -> 100000 | AE117: =ROUND((AE115)*'1.4 Kenmerken'!AE133,-4) -> 100000 | AF117: =ROUND((AF115)*'1.4 Kenmerken'!AF133,-4) -> 0 | AG117: =ROUND((AG115)*'1.4 Kenmerken'!AG133,-4) -> 100000
B118: onvoorzien | C118: =ROUND((C115+C117)*'1.4 Kenmerken'!C134,-4) -> 80000 | D118: =ROUND((D115+D117)*'1.4 Kenmerken'!D134,-4) -> 310000 | E118: =ROUND((E115+E117)*'1.4 Kenmerken'!E134,-4) -> 20000 | F118: =ROUND((F115+F117)*'1.4 Kenmerken'!F134,-4) -> 80000 | G118: =ROUND((G115+G117)*'1.4 Kenmerken'!G134,-4) -> 80000 | H118: =ROUND((H115+H117)*'1.4 Kenmerken'!H134,-4) -> 80000 | I118: =ROUND((I115+I117)*'1.4 Kenmerken'!I134,-4) -> 80000 | J118: =ROUND((J115+J117)*'1.4 Kenmerken'!J134,-4) -> 80000 | K118: =ROUND((K115+K117)*'1.4 Kenmerken'!K134,-4) -> 80000 | L118: =ROUND((L115+L117)*'1.4 Kenmerken'!L134,-4) -> 120000 | M118: =ROUND((M115+M117)*'1.4 Kenmerken'!M134,-4) -> 40000 | N118: =ROUND((N115+N117)*'1.4 Kenmerken'!N134,-4) -> 80000 | O118: =ROUND((O115+O117)*'1.4 Kenmerken'!O134,-4) -> 80000 | P118: =ROUND((P115+P117)*'1.4 Kenmerken'!P134,-4) -> 80000 | Q118: =ROUND((Q115+Q117)*'1.4 Kenmerken'!Q134,-4) -> 80000 | R118: =ROUND((R115+R117)*'1.4 Kenmerken'!R134,-4) -> 80000 | S118: =ROUND((S115+S117)*'1.4 Kenmerken'!S134,-4) -> 80000 | T118: =ROUND((T115+T117)*'1.4 Kenmerken'!T134,-4) -> 80000 | U118: =ROUND((U115+U117)*'1.4 Kenmerken'!U134,-4) -> 80000 | V118: =ROUND((V115+V117)*'1.4 Kenmerken'!V134,-4) -> 80000 | W118: =ROUND((W115+W117)*'1.4 Kenmerken'!W134,-4) -> 80000 | X118: =ROUND((X115+X117)*'1.4 Kenmerken'!X134,-4) -> 80000 | Y118: =ROUND((Y115+Y117)*'1.4 Kenmerken'!Y134,-4) -> 80000 | Z118: =ROUND((Z115+Z117)*'1.4 Kenmerken'!Z134,-4) -> 80000 | AA118: =ROUND((AA115+AA117)*'1.4 Kenmerken'!AA134,-4) -> 80000 | AB118: =ROUND((AB115+AB117)*'1.4 Kenmerken'!AB134,-4) -> 80000 | AC118: =ROUND((AC115+AC117)*'1.4 Kenmerken'!AC134,-4) -> 80000 | AD118: =ROUND((AD115+AD117)*'1.4 Kenmerken'!AD134,-4) -> 80000 | AE118: =ROUND((AE115+AE117)*'1.4 Kenmerken'!AE134,-4) -> 80000 | AF118: =ROUND((AF115+AF117)*'1.4 Kenmerken'!AF134,-4) -> 0 | AG118: =ROUND((AG115+AG117)*'1.4 Kenmerken'!AG134,-4) -> 80000
B119: bijkomende kosten | C119: =ROUND((C115+C117+C118)*SUM('1.4 Kenmerken'!C135:C139),-4) -> 90000 | D119: =ROUND((D115+D117+D118)*SUM('1.4 Kenmerken'!D135:D139),-4) -> 340000 | E119: =ROUND((E115+E117+E118)*SUM('1.4 Kenmerken'!E135:E139),-4) -> 20000 | F119: =ROUND((F115+F117+F118)*SUM('1.4 Kenmerken'!F135:F139),-4) -> 90000 | G119: =ROUND((G115+G117+G118)*SUM('1.4 Kenmerken'!G135:G139),-4) -> 90000 | H119: =ROUND((H115+H117+H118)*SUM('1.4 Kenmerken'!H135:H139),-4) -> 90000 | I119: =ROUND((I115+I117+I118)*SUM('1.4 Kenmerken'!I135:I139),-4) -> 90000 | J119: =ROUND((J115+J117+J118)*SUM('1.4 Kenmerken'!J135:J139),-4) -> 90000 | K119: =ROUND((K115+K117+K118)*SUM('1.4 Kenmerken'!K135:K139),-4) -> 90000 | L119: =ROUND((L115+L117+L118)*SUM('1.4 Kenmerken'!L135:L139),-4) -> 130000 | M119: =ROUND((M115+M117+M118)*SUM('1.4 Kenmerken'!M135:M139),-4) -> 40000 | N119: =ROUND((N115+N117+N118)*SUM('1.4 Kenmerken'!N135:N139),-4) -> 80000 | O119: =ROUND((O115+O117+O118)*SUM('1.4 Kenmerken'!O135:O139),-4) -> 90000 | P119: =ROUND((P115+P117+P118)*SUM('1.4 Kenmerken'!P135:P139),-4) -> 90000 | Q119: =ROUND((Q115+Q117+Q118)*SUM('1.4 Kenmerken'!Q135:Q139),-4) -> 90000 | R119: =ROUND((R115+R117+R118)*SUM('1.4 Kenmerken'!R135:R139),-4) -> 90000 | S119: =ROUND((S115+S117+S118)*SUM('1.4 Kenmerken'!S135:S139),-4) -> 90000 | T119: =ROUND((T115+T117+T118)*SUM('1.4 Kenmerken'!T135:T139),-4) -> 90000 | U119: =ROUND((U115+U117+U118)*SUM('1.4 Kenmerken'!U135:U139),-4) -> 90000 | V119: =ROUND((V115+V117+V118)*SUM('1.4 Kenmerken'!V135:V139),-4) -> 90000 | W119: =ROUND((W115+W117+W118)*SUM('1.4 Kenmerken'!W135:W139),-4) -> 90000 | X119: =ROUND((X115+X117+X118)*SUM('1.4 Kenmerken'!X135:X139),-4) -> 90000 | Y119: =ROUND((Y115+Y117+Y118)*SUM('1.4 Kenmerken'!Y135:Y139),-4) -> 90000 | Z119: =ROUND((Z115+Z117+Z118)*SUM('1.4 Kenmerken'!Z135:Z139),-4) -> 90000 | AA119: =ROUND((AA115+AA117+AA118)*SUM('1.4 Kenmerken'!AA135:AA139),-4) -> 80000 | AB119: =ROUND((AB115+AB117+AB118)*SUM('1.4 Kenmerken'!AB135:AB139),-4) -> 90000 | AC119: =ROUND((AC115+AC117+AC118)*SUM('1.4 Kenmerken'!AC135:AC139),-4) -> 90000 | AD119: =ROUND((AD115+AD117+AD118)*SUM('1.4 Kenmerken'!AD135:AD139),-4) -> 90000 | AE119: =ROUND((AE115+AE117+AE118)*SUM('1.4 Kenmerken'!AE135:AE139),-4) -> 90000 | AF119: =ROUND((AF115+AF117+AF118)*SUM('1.4 Kenmerken'!AF135:AF139),-4) -> 0 | AG119: =ROUND((AG115+AG117+AG118)*SUM('1.4 Kenmerken'!AG135:AG139),-4) -> 90000
B120: financiering | C120: =ROUND(SUM(C115:C119)*SUM('1.4 Kenmerken'!C140:C141),-4) -> 20000 | D120: =ROUND(SUM(D115:D119)*SUM('1.4 Kenmerken'!D140:D141),-4) -> 80000 | E120: =ROUND(SUM(E115:E119)*SUM('1.4 Kenmerken'!E140:E141),-4) -> 10000 | F120: =ROUND(SUM(F115:F119)*SUM('1.4 Kenmerken'!F140:F141),-4) -> 20000 | G120: =ROUND(SUM(G115:G119)*SUM('1.4 Kenmerken'!G140:G141),-4) -> 20000 | H120: =ROUND(SUM(H115:H119)*SUM('1.4 Kenmerken'!H140:H141),-4) -> 20000 | I120: =ROUND(SUM(I115:I119)*SUM('1.4 Kenmerken'!I140:I141),-4) -> 20000 | J120: =ROUND(SUM(J115:J119)*SUM('1.4 Kenmerken'!J140:J141),-4) -> 20000 | K120: =ROUND(SUM(K115:K119)*SUM('1.4 Kenmerken'!K140:K141),-4) -> 20000 | L120: =ROUND(SUM(L115:L119)*SUM('1.4 Kenmerken'!L140:L141),-4) -> 30000 | M120: =ROUND(SUM(M115:M119)*SUM('1.4 Kenmerken'!M140:M141),-4) -> 10000 | N120: =ROUND(SUM(N115:N119)*SUM('1.4 Kenmerken'!N140:N141),-4) -> 20000 | O120: =ROUND(SUM(O115:O119)*SUM('1.4 Kenmerken'!O140:O141),-4) -> 20000 | P120: =ROUND(SUM(P115:P119)*SUM('1.4 Kenmerken'!P140:P141),-4) -> 20000 | Q120: =ROUND(SUM(Q115:Q119)*SUM('1.4 Kenmerken'!Q140:Q141),-4) -> 20000 | R120: =ROUND(SUM(R115:R119)*SUM('1.4 Kenmerken'!R140:R141),-4) -> 20000 | S120: =ROUND(SUM(S115:S119)*SUM('1.4 Kenmerken'!S140:S141),-4) -> 20000 | T120: =ROUND(SUM(T115:T119)*SUM('1.4 Kenmerken'!T140:T141),-4) -> 20000 | U120: =ROUND(SUM(U115:U119)*SUM('1.4 Kenmerken'!U140:U141),-4) -> 20000 | V120: =ROUND(SUM(V115:V119)*SUM('1.4 Kenmerken'!V140:V141),-4) -> 20000 | W120: =ROUND(SUM(W115:W119)*SUM('1.4 Kenmerken'!W140:W141),-4) -> 20000 | X120: =ROUND(SUM(X115:X119)*SUM('1.4 Kenmerken'!X140:X141),-4) -> 20000 | Y120: =ROUND(SUM(Y115:Y119)*SUM('1.4 Kenmerken'!Y140:Y141),-4) -> 20000 | Z120: =ROUND(SUM(Z115:Z119)*SUM('1.4 Kenmerken'!Z140:Z141),-4) -> 20000 | AA120: =ROUND(SUM(AA115:AA119)*SUM('1.4 Kenmerken'!AA140:AA141),-4) -> 20000 | AB120: =ROUND(SUM(AB115:AB119)*SUM('1.4 Kenmerken'!AB140:AB141),-4) -> 20000 | AC120: =ROUND(SUM(AC115:AC119)*SUM('1.4 Kenmerken'!AC140:AC141),-4) -> 20000 | AD120: =ROUND(SUM(AD115:AD119)*SUM('1.4 Kenmerken'!AD140:AD141),-4) -> 20000 | AE120: =ROUND(SUM(AE115:AE119)*SUM('1.4 Kenmerken'!AE140:AE141),-4) -> 20000 | AF120: =ROUND(SUM(AF115:AF119)*SUM('1.4 Kenmerken'!AF140:AF141),-4) -> 0 | AG120: =ROUND(SUM(AG115:AG119)*SUM('1.4 Kenmerken'!AG140:AG141),-4) -> 20000
B121: CAPEX E-ketels | C121: 0 | D121: 0 | E121: 0 | F121: 0 | G121: 0 | H121: 0 | I121: 0 | J121: 0 | K121: 0 | L121: 0 | M121: 0 | N121: 0 | O121: 0 | P121: 0 | Q121: 0 | R121: 0 | S121: 0 | T121: 0 | U121: 0 | V121: 0 | W121: 0 | X121: 0 | Y121: 0 | Z121: 0 | AA121: 0 | AB121: 0 | AC121: 0 | AD121: 0 | AE121: 0 | AF121: =ROUND((SUM(AF115:AF120)),-5) -> 0 | AG121: 0
C122: =C121/('1.4 Kenmerken'!C8*1000) -> 0 | D122: =D121/('1.4 Kenmerken'!D8*1000) -> 0 | E122: =E121/('1.4 Kenmerken'!E8*1000) -> 0 | F122: =F121/('1.4 Kenmerken'!F8*1000) -> 0 | G122: =G121/('1.4 Kenmerken'!G8*1000) -> 0 | H122: =H121/('1.4 Kenmerken'!H8*1000) -> 0 | I122: =I121/('1.4 Kenmerken'!I8*1000) -> 0 | J122: =J121/('1.4 Kenmerken'!J8*1000) -> 0 | K122: =K121/('1.4 Kenmerken'!K8*1000) -> 0 | L122: =L121/('1.4 Kenmerken'!L8*1000) -> 0 | M122: =M121/('1.4 Kenmerken'!M8*1000) -> 0 | N122: =N121/('1.4 Kenmerken'!N8*1000) -> 0 | O122: =O121/('1.4 Kenmerken'!O8*1000) -> 0 | P122: =P121/('1.4 Kenmerken'!P8*1000) -> 0 | Q122: =Q121/('1.4 Kenmerken'!Q8*1000) -> 0 | R122: =R121/('1.4 Kenmerken'!R8*1000) -> 0 | S122: =S121/('1.4 Kenmerken'!S8*1000) -> 0 | T122: =T121/('1.4 Kenmerken'!T8*1000) -> 0 | U122: =U121/('1.4 Kenmerken'!U8*1000) -> 0 | V122: =V121/('1.4 Kenmerken'!V8*1000) -> 0 | W122: =W121/('1.4 Kenmerken'!W8*1000) -> 0 | X122: =X121/('1.4 Kenmerken'!X8*1000) -> 0 | Y122: =Y121/('1.4 Kenmerken'!Y8*1000) -> 0 | Z122: =Z121/('1.4 Kenmerken'!Z8*1000) -> 0 | AA122: =AA121/('1.4 Kenmerken'!AA8*1000) -> 0 | AB122: =AB121/('1.4 Kenmerken'!AB8*1000) -> 0 | AC122: =AC121/('1.4 Kenmerken'!AC8*1000) -> 0 | AD122: =AD121/('1.4 Kenmerken'!AD8*1000) -> 0 | AE122: =AE121/('1.4 Kenmerken'!AE8*1000) -> 0 | AF122: =AF121/('1.4 Kenmerken'!AF8*1000) -> 0 | AG122: =AG121/('1.4 Kenmerken'!AG8*1000) -> 0
B124: Afschrijvingstermijn | C124: 15 | D124: 15 | E124: 15 | F124: 15 | G124: 15 | H124: 15 | I124: 15 | J124: 15 | K124: 15 | L124: 15 | M124: 15 | N124: 15 | O124: 15 | P124: 15 | Q124: 15 | R124: 15 | S124: 15 | T124: 15 | U124: 15 | V124: 15 | W124: 15 | X124: 15 | Y124: 15 | Z124: 15 | AA124: 15 | AB124: 16 | AC124: 17 | AD124: 18 | AE124: 18 | AF124: 19 | AG124: 15
B125: Herinvestering | C125: 0.7 | D125: 0.7 | E125: 0.7 | F125: 0.7 | G125: 0.7 | H125: 0.7 | I125: 0.7 | J125: 0.7 | K125: 0.7 | L125: 0.7 | M125: 0.7 | N125: 0.7 | O125: 0.7 | P125: 0.7 | Q125: 0.7 | R125: 0.7 | S125: 0.7 | T125: 0.7 | U125: 0.7 | V125: 0.7 | W125: 0.7 | X125: 0.7 | Y125: 0.7 | Z125: 0.7 | AA125: 0.7 | AB125: 0.7 | AC125: 0.7 | AD125: 0.7 | AE125: 0.7 | AF125: 0.7 | AG125: 0.7
B126: Afschrijfkosten gemiddeld | C126: =((C121-C120)/C124+(C121*'2.6 Business case'!$T$7*C125)/C124)/2 -> -666.6666667 | D126: =((D121-D120)/D124+(D121*'2.6 Business case'!$T$7*D125)/D124)/2 -> -2666.666667 | E126: =((E121-E120)/E124+(E121*'2.6 Business case'!$T$7*E125)/E124)/2 -> -333.3333333 | F126: =((F121-F120)/F124+(F121*'2.6 Business case'!$T$7*F125)/F124)/2 -> -666.6666667 | G126: =((G121-G120)/G124+(G121*'2.6 Business case'!$T$7*G125)/G124)/2 -> -666.6666667 | H126: =((H121-H120)/H124+(H121*'2.6 Business case'!$T$7*H125)/H124)/2 -> -666.6666667 | I126: =((I121-I120)/I124+(I121*'2.6 Business case'!$T$7*I125)/I124)/2 -> -666.6666667 | J126: =((J121-J120)/J124+(J121*'2.6 Business case'!$T$7*J125)/J124)/2 -> -666.6666667 | K126: =((K121-K120)/K124+(K121*'2.6 Business case'!$T$7*K125)/K124)/2 -> -666.6666667 | L126: =((L121-L120)/L124+(L121*'2.6 Business case'!$T$7*L125)/L124)/2 -> -1000 | M126: =((M121-M120)/M124+(M121*'2.6 Business case'!$T$7*M125)/M124)/2 -> -333.3333333 | N126: =((N121-N120)/N124+(N121*'2.6 Business case'!$T$7*N125)/N124)/2 -> -666.6666667 | O126: =((O121-O120)/O124+(O121*'2.6 Business case'!$T$7*O125)/O124)/2 -> -666.6666667 | P126: =((P121-P120)/P124+(P121*'2.6 Business case'!$T$7*P125)/P124)/2 -> -666.6666667 | Q126: =((Q121-Q120)/Q124+(Q121*'2.6 Business case'!$T$7*Q125)/Q124)/2 -> -666.6666667 | R126: =((R121-R120)/R124+(R121*'2.6 Business case'!$T$7*R125)/R124)/2 -> -666.6666667 | S126: =((S121-S120)/S124+(S121*'2.6 Business case'!$T$7*S125)/S124)/2 -> -666.6666667 | T126: =((T121-T120)/T124+(T121*'2.6 Business case'!$T$7*T125)/T124)/2 -> -666.6666667 | U126: =((U121-U120)/U124+(U121*'2.6 Business case'!$T$7*U125)/U124)/2 -> -666.6666667 | V126: =((V121-V120)/V124+(V121*'2.6 Business case'!$T$7*V125)/V124)/2 -> -666.6666667 | W126: =((W121-W120)/W124+(W121*'2.6 Business case'!$T$7*W125)/W124)/2 -> -666.6666667 | X126: =((X121-X120)/X124+(X121*'2.6 Business case'!$T$7*X125)/X124)/2 -> -666.6666667 | Y126: =((Y121-Y120)/Y124+(Y121*'2.6 Business case'!$T$7*Y125)/Y124)/2 -> -666.6666667 | Z126: =((Z121-Z120)/Z124+(Z121*'2.6 Business case'!$T$7*Z125)/Z124)/2 -> -666.6666667 | AA126: =((AA121-AA120)/AA124+(AA121*'2.6 Business case'!$T$7*AA125)/AA124)/2 -> -666.6666667 | AB126: =((AB121-AB120)/AB124+(AB121*'2.6 Business case'!$T$7*AB125)/AB124)/2 -> -625 | AC126: =((AC121-AC120)/AC124+(AC121*'2.6 Business case'!$T$7*AC125)/AC124)/2 -> -588.2352941 | AD126: =((AD121-AD120)/AD124+(AD121*'2.6 Business case'!$T$7*AD125)/AD124)/2 -> -555.5555556 | AE126: =((AE121-AE120)/AE124+(AE121*'2.6 Business case'!$T$7*AE125)/AE124)/2 -> -555.5555556 | AF126: =((AF121-AF120)/AF124+(AF121*'2.6 Business case'!$T$7*AF125)/AF124)/2 -> 0 | AG126: =((AG121-AG120)/AG124+(AG121*'2.6 Business case'!$T$7*AG125)/AG124)/2 -> -666.6666667
B128: TOTAAL
B129: met financiering | C129: =ROUND((C40+C76+C104+C121+C90+C58),-5) -> 6900000 | D129: =ROUND((D40+D76+D104+D121+D90+D58),-5) -> 20700000 | E129: 1900000 | F129: 7700000 | G129: 5800000 | H129: 6400000 | I129: 7100000 | J129: 5800000 | K129: 6900000 | L129: 4600000 | M129: 8800000 | N129: =ROUND((N40+N76+N104+N121+N90+N58),-5) -> 5000000 | O129: 6300000 | P129: 7400000 | Q129: 7000000 | R129: 6700000 | S129: 9900000 | T129: 5900000 | U129: 9800000 | V129: 5900000 | W129: 6500000 | X129: 6900000 | Y129: 6900000 | Z129: 7000000 | AA129: 6700000 | AB129: 6900000 | AC129: 6900000 | AD129: =ROUND((AD40+AD76+AD104+AD121+AD90+AD58),-5) -> 4800000 | AE129: 6500000 | AF129: =ROUND((AF40+AF76+AF104+AF121+AF90+AF58),-5) -> 6500000 | AG129: =ROUND((AG40+AG76+AG104+AG121+AG90+AG58),-5) -> 6900000
C130: =ROUND((C129/('1.4 Kenmerken'!C32*1000)),-2) -> 100 | D130: =ROUND((D129/('1.4 Kenmerken'!D32*1000)),-2) -> 100 | E130: =ROUND((E129/('1.4 Kenmerken'!E32*1000)),-2) -> 200 | F130: =ROUND((F129/('1.4 Kenmerken'!F32*1000)),-2) -> 100 | G130: =ROUND((G129/('1.4 Kenmerken'!G32*1000)),-2) -> 200 | H130: =ROUND((H129/('1.4 Kenmerken'!H32*1000)),-2) -> 100 | I130: =ROUND((I129/('1.4 Kenmerken'!I32*1000)),-2) -> 100 | J130: =ROUND((J129/('1.4 Kenmerken'!J32*1000)),-2) -> 100 | K130: =ROUND((K129/('1.4 Kenmerken'!K32*1000)),-2) -> 100 | L130: =ROUND((L129/('1.4 Kenmerken'!L32*1000)),-2) -> 100 | M130: =ROUND((M129/('1.4 Kenmerken'!M32*1000)),-2) -> 100 | N130: =ROUND((N129/('1.4 Kenmerken'!N32*1000)),-2) -> 100 | O130: =ROUND((O129/('1.4 Kenmerken'!O32*1000)),-2) -> 100 | P130: =ROUND((P129/('1.4 Kenmerken'!P32*1000)),-2) -> 100 | Q130: =ROUND((Q129/('1.4 Kenmerken'!Q32*1000)),-2) -> 100 | R130: =ROUND((R129/('1.4 Kenmerken'!R32*1000)),-2) -> 100 | S130: =ROUND((S129/('1.4 Kenmerken'!S32*1000)),-2) -> 200 | T130: =ROUND((T129/('1.4 Kenmerken'!T32*1000)),-2) -> 100 | U130: =ROUND((U129/('1.4 Kenmerken'!U32*1000)),-2) -> 200 | V130: =ROUND((V129/('1.4 Kenmerken'!V32*1000)),-2) -> 100 | W130: =ROUND((W129/('1.4 Kenmerken'!W32*1000)),-2) -> 100 | X130: =ROUND((X129/('1.4 Kenmerken'!X32*1000)),-2) -> 100 | Y130: =ROUND((Y129/('1.4 Kenmerken'!Y32*1000)),-2) -> 100 | Z130: =ROUND((Z129/('1.4 Kenmerken'!Z32*1000)),-2) -> 100 | AA130: =ROUND((AA129/('1.4 Kenmerken'!AA32*1000)),-2) -> 100 | AB130: =ROUND((AB129/('1.4 Kenmerken'!AB32*1000)),-2) -> 100 | AC130: =ROUND((AC129/('1.4 Kenmerken'!AC32*1000)),-2) -> 100 | AD130: =ROUND((AD129/('1.4 Kenmerken'!AD32*1000)),-2) -> 100 | AE130: =ROUND((AE129/('1.4 Kenmerken'!AE32*1000)),-2) -> 100 | AF130: =ROUND((AF129/('1.4 Kenmerken'!AF32*1000)),-2) -> 100 | AG130: =ROUND((AG129/('1.4 Kenmerken'!AG32*1000)),-2) -> 100
B131: Zonder financiering | C131: =C129-C120-C103-C75-C39-C89 -> 6760000 | D131: 20200000 | E131: 1844800 | F131: 7540000 | G131: 5670000 | H131: 6250000 | I131: 6950000 | J131: 5670000 | K131: 6760000 | L131: 4490000 | M131: 8630000 | N131: 4870000 | O131: 6170000 | P131: 7250000 | Q131: 6850000 | R131: 6560000 | S131: 9690000 | T131: 5770000 | U131: 9660000 | V131: 5770000 | W131: 6360000 | X131: 6760000 | Y131: 6760000 | Z131: 6860000 | AA131: 6560000 | AB131: 6760000 | AC131: 6760000 | AD131: =AD129-AD120-AD103-AD75-AD39-AD89 -> 4680000 | AE131: 6360000 | AF131: =AF129-AF120-AF103-AF75-AF39-AF89 -> 6380000 | AG131: 6760000
C132: =ROUND((C131/('1.4 Kenmerken'!C32*1000)),-2) -> 100 | D132: =ROUND((D131/('1.4 Kenmerken'!D32*1000)),-2) -> 100 | E132: =ROUND((E131/('1.4 Kenmerken'!E32*1000)),-2) -> 100 | F132: =ROUND((F131/('1.4 Kenmerken'!F32*1000)),-2) -> 100 | G132: =ROUND((G131/('1.4 Kenmerken'!G32*1000)),-2) -> 200 | H132: =ROUND((H131/('1.4 Kenmerken'!H32*1000)),-2) -> 100 | I132: =ROUND((I131/('1.4 Kenmerken'!I32*1000)),-2) -> 100 | J132: =ROUND((J131/('1.4 Kenmerken'!J32*1000)),-2) -> 100 | K132: =ROUND((K131/('1.4 Kenmerken'!K32*1000)),-2) -> 100 | L132: =ROUND((L131/('1.4 Kenmerken'!L32*1000)),-2) -> 100 | M132: =ROUND((M131/('1.4 Kenmerken'!M32*1000)),-2) -> 100 | N132: =ROUND((N131/('1.4 Kenmerken'!N32*1000)),-2) -> 100 | O132: =ROUND((O131/('1.4 Kenmerken'!O32*1000)),-2) -> 100 | P132: =ROUND((P131/('1.4 Kenmerken'!P32*1000)),-2) -> 100 | Q132: =ROUND((Q131/('1.4 Kenmerken'!Q32*1000)),-2) -> 100 | R132: =ROUND((R131/('1.4 Kenmerken'!R32*1000)),-2) -> 100 | S132: =ROUND((S131/('1.4 Kenmerken'!S32*1000)),-2) -> 200 | T132: =ROUND((T131/('1.4 Kenmerken'!T32*1000)),-2) -> 100 | U132: =ROUND((U131/('1.4 Kenmerken'!U32*1000)),-2) -> 200 | V132: =ROUND((V131/('1.4 Kenmerken'!V32*1000)),-2) -> 100 | W132: =ROUND((W131/('1.4 Kenmerken'!W32*1000)),-2) -> 100 | X132: =ROUND((X131/('1.4 Kenmerken'!X32*1000)),-2) -> 100 | Y132: =ROUND((Y131/('1.4 Kenmerken'!Y32*1000)),-2) -> 100 | Z132: =ROUND((Z131/('1.4 Kenmerken'!Z32*1000)),-2) -> 100 | AA132: =ROUND((AA131/('1.4 Kenmerken'!AA32*1000)),-2) -> 100 | AB132: =ROUND((AB131/('1.4 Kenmerken'!AB32*1000)),-2) -> 100 | AC132: =ROUND((AC131/('1.4 Kenmerken'!AC32*1000)),-2) -> 100 | AD132: =ROUND((AD131/('1.4 Kenmerken'!AD32*1000)),-2) -> 100 | AE132: =ROUND((AE131/('1.4 Kenmerken'!AE32*1000)),-2) -> 100 | AF132: =ROUND((AF131/('1.4 Kenmerken'!AF32*1000)),-2) -> 100 | AG132: =ROUND((AG131/('1.4 Kenmerken'!AG32*1000)),-2) -> 100
B134: Totale afschrijfkosten per jaar | C134: =C126+C108+C81+C44 -> 138224.1482 | D134: 441795.0222 | E134: 38093.20817 | F134: 144557.4815 | G134: 125224.1482 | H134: 128224.1482 | I134: 138224.1482 | J134: 125224.1482 | K134: 138224.1482 | L134: 90092.18826 | M134: 184610.918 | N134: 102224.1482 | O134: 118557.4815 | P134: 154557.4815 | Q134: 141224.1482 | R134: 131557.4815 | S134: 235890.8148 | T134: 121890.8148 | U134: 138224.1482 | V134: 121890.8148 | W134: 131557.4815 | X134: 138224.1482 | Y134: 138224.1482 | Z134: 140541.7768 | AA134: 134890.8148 | AB134: 137104.5245 | AC134: 136052.5795 | AD134: =AD126+AD108+AD81+AD44 -> 102335.2593 | AE134: 125060.2329 | AF134: =AF126+AF108+AF81+AF44 -> 133376.4522 | AG134: 138224.1482
B135: Herinvestering na 15 jaar | C135: =(C76-C75)*C80*(1+'2.6 Business case'!$T$7)+(C121-C120)*C125*(1+'2.6 Business case'!$T$7) -> 3282637.347 | D135: =(D76-D75)*D80*(1+'2.6 Business case'!$T$7)+(D121-D120)*D125*(1+'2.6 Business case'!$T$7) -> 13141455.16 | E135: =(E76-E75)*E80*(1+'2.6 Business case'!$T$7)+(E121-E120)*E125*(1+'2.6 Business case'!$T$7) -> 730686.7184 | F135: =(F76-F75)*F80*(1+'2.6 Business case'!$T$7)+(F121-F120)*F125*(1+'2.6 Business case'!$T$7) -> 3282637.347 | G135: =(G76-G75)*G80*(1+'2.6 Business case'!$T$7)+(G121-G120)*G125*(1+'2.6 Business case'!$T$7) -> 3282637.347 | H135: =(H76-H75)*H80*(1+'2.6 Business case'!$T$7)+(H121-H120)*H125*(1+'2.6 Business case'!$T$7) -> 3282637.347 | I135: =(I76-I75)*I80*(1+'2.6 Business case'!$T$7)+(I121-I120)*I125*(1+'2.6 Business case'!$T$7) -> 3282637.347 | J135: =(J76-J75)*J80*(1+'2.6 Business case'!$T$7)+(J121-J120)*J125*(1+'2.6 Business case'!$T$7) -> 3282637.347 | K135: =(K76-K75)*K80*(1+'2.6 Business case'!$T$7)+(K121-K120)*K125*(1+'2.6 Business case'!$T$7) -> 3282637.347 | L135: =(L76-L75)*L80*(1+'2.6 Business case'!$T$7)+(L121-L120)*L125*(1+'2.6 Business case'!$T$7) -> 2104813.98 | M135: =(M76-M75)*M80*(1+'2.6 Business case'!$T$7)+(M121-M120)*M125*(1+'2.6 Business case'!$T$7) -> 5005749.31 | N135: =(N76-N75)*N80*(1+'2.6 Business case'!$T$7)+(N121-N120)*N125*(1+'2.6 Business case'!$T$7) -> 3282637.347 | O135: =(O76-O75)*O80*(1+'2.6 Business case'!$T$7)+(O121-O120)*O125*(1+'2.6 Business case'!$T$7) -> 3282637.347 | P135: =(P76-P75)*P80*(1+'2.6 Business case'!$T$7)+(P121-P120)*P125*(1+'2.6 Business case'!$T$7) -> 3282637.347 | Q135: =(Q76-Q75)*Q80*(1+'2.6 Business case'!$T$7)+(Q121-Q120)*Q125*(1+'2.6 Business case'!$T$7) -> 3282637.347 | R135: =(R76-R75)*R80*(1+'2.6 Business case'!$T$7)+(R121-R120)*R125*(1+'2.6 Business case'!$T$7) -> 3282637.347 | S135: =(S76-S75)*S80*(1+'2.6 Business case'!$T$7)+(S121-S120)*S125*(1+'2.6 Business case'!$T$7) -> 3282637.347 | T135: =(T76-T75)*T80*(1+'2.6 Business case'!$T$7)+(T121-T120)*T125*(1+'2.6 Business case'!$T$7) -> 3282637.347 | U135: =(U76-U75)*U80*(1+'2.6 Business case'!$T$7)+(U121-U120)*U125*(1+'2.6 Business case'!$T$7) -> 3282637.347 | V135: =(V76-V75)*V80*(1+'2.6 Business case'!$T$7)+(V121-V120)*V125*(1+'2.6 Business case'!$T$7) -> 3282637.347 | W135: =(W76-W75)*W80*(1+'2.6 Business case'!$T$7)+(W121-W120)*W125*(1+'2.6 Business case'!$T$7) -> 3282637.347 | X135: =(X76-X75)*X80*(1+'2.6 Business case'!$T$7)+(X121-X120)*X125*(1+'2.6 Business case'!$T$7) -> 3282637.347 | Y135: =(Y76-Y75)*Y80*(1+'2.6 Business case'!$T$7)+(Y121-Y120)*Y125*(1+'2.6 Business case'!$T$7) -> 3282637.347 | Z135: =(Z76-Z75)*Z80*(1+'2.6 Business case'!$T$7)+(Z121-Z120)*Z125*(1+'2.6 Business case'!$T$7) -> 3391695.066 | AA135: =(AA76-AA75)*AA80*(1+'2.6 Business case'!$T$7)+(AA121-AA120)*AA125*(1+'2.6 Business case'!$T$7) -> 3282637.347 | AB135: =(AB76-AB75)*AB80*(1+'2.6 Business case'!$T$7)+(AB121-AB120)*AB125*(1+'2.6 Business case'!$T$7) -> 3282637.347 | AC135: =(AC76-AC75)*AC80*(1+'2.6 Business case'!$T$7)+(AC121-AC120)*AC125*(1+'2.6 Business case'!$T$7) -> 3282637.347 | AD135: =(AD76-AD75)*AD80*(1+'2.6 Business case'!$T$7)+(AD121-AD120)*AD125*(1+'2.6 Business case'!$T$7) -> 3282637.347 | AE135: =(AE76-AE75)*AE80*(1+'2.6 Business case'!$T$7)+(AE121-AE120)*AE125*(1+'2.6 Business case'!$T$7) -> 2541044.856 | AF135: =(AF76-AF75)*AF80*(1+'2.6 Business case'!$T$7)+(AF121-AF120)*AF125*(1+'2.6 Business case'!$T$7) -> 109057.7192 | AG135: =(AG76-AG75)*AG80*(1+'2.6 Business case'!$T$7)+(AG121-AG120)*AG125*(1+'2.6 Business case'!$T$7) -> 3282637.347
B137: OPEX | C137: Basis berekening | D137: 2 | E137: 3 | F137: 4 | G137: 5 | H137: 6 | I137: 7 | J137: 8 | K137: 9 | L137: 10 | M137: 11 | N137: 12 | O137: 13 | P137: 14 | Q137: 15 | R137: 16 | S137: 17 | T137: 18 | U137: 19 | V137: 20 | W137: 21 | X137: 22 | Y137: 23 | Z137: 24 | AA137: 25 | AB137: 26 | AC137: 27 | AD137: 28 | AE137: 29 | AF137: 30 | AG137: 31
B139: Leidingtrace aquathermie
B140: energiekosten pompenenergie (GKW) | C140: ='1.4 Kenmerken'!C83/'1.4 Kenmerken'!C84*(('1.4 Kenmerken'!C44-1)/'1.4 Kenmerken'!C44)*'1.4 Kenmerken'!C124 + '1.4 Kenmerken'!C33/0.0036/'1.4 Kenmerken'!C97*(('1.4 Kenmerken'!C44-1)/'1.4 Kenmerken'!C44)*'1.4 Kenmerken'!C129 -> 19441.34886 | D140: =ROUND(('1.4 Kenmerken'!D83*'1.4 Kenmerken'!D10*('1.4 Kenmerken'!D125+'1.4 Kenmerken'!D127+'1.4 Kenmerken'!D128)/1000)+'1.4 Kenmerken'!D83*'1.4 Kenmerken'!D124,-3) -> 42000 | E140: =ROUND(('1.4 Kenmerken'!E83*'1.4 Kenmerken'!E10*('1.4 Kenmerken'!E125+'1.4 Kenmerken'!E127+'1.4 Kenmerken'!E128)/1000)+'1.4 Kenmerken'!E83*'1.4 Kenmerken'!E124,-3) -> 3000 | F140: =ROUND(('1.4 Kenmerken'!F83*'1.4 Kenmerken'!F10*('1.4 Kenmerken'!F125+'1.4 Kenmerken'!F127+'1.4 Kenmerken'!F128)/1000)+'1.4 Kenmerken'!F83*'1.4 Kenmerken'!F124,-3) -> 15000 | G140: =ROUND(('1.4 Kenmerken'!G83*'1.4 Kenmerken'!G10*('1.4 Kenmerken'!G125+'1.4 Kenmerken'!G127+'1.4 Kenmerken'!G128)/1000)+'1.4 Kenmerken'!G83*'1.4 Kenmerken'!G124,-3) -> 5000 | H140: =ROUND(('1.4 Kenmerken'!H83*'1.4 Kenmerken'!H10*('1.4 Kenmerken'!H125+'1.4 Kenmerken'!H127+'1.4 Kenmerken'!H128)/1000)+'1.4 Kenmerken'!H83*'1.4 Kenmerken'!H124,-3) -> 10000 | I140: =ROUND(('1.4 Kenmerken'!I83*'1.4 Kenmerken'!I10*('1.4 Kenmerken'!I125+'1.4 Kenmerken'!I127+'1.4 Kenmerken'!I128)/1000)+'1.4 Kenmerken'!I83*'1.4 Kenmerken'!I124,-3) -> 11000 | J140: =ROUND(('1.4 Kenmerken'!J83*'1.4 Kenmerken'!J10*('1.4 Kenmerken'!J125+'1.4 Kenmerken'!J127+'1.4 Kenmerken'!J128)/1000)+'1.4 Kenmerken'!J83*'1.4 Kenmerken'!J124,-3) -> 5000 | K140: =ROUND(('1.4 Kenmerken'!K83*'1.4 Kenmerken'!K10*('1.4 Kenmerken'!K125+'1.4 Kenmerken'!K127+'1.4 Kenmerken'!K128)/1000)+'1.4 Kenmerken'!K83*'1.4 Kenmerken'!K124,-3) -> 8000 | L140: =ROUND(('1.4 Kenmerken'!L83*'1.4 Kenmerken'!L10*('1.4 Kenmerken'!L125+'1.4 Kenmerken'!L127+'1.4 Kenmerken'!L128)/1000)+'1.4 Kenmerken'!L83*'1.4 Kenmerken'!L124,-3) -> 7000 | M140: =ROUND(('1.4 Kenmerken'!M83*'1.4 Kenmerken'!M10*('1.4 Kenmerken'!M125+'1.4 Kenmerken'!M127+'1.4 Kenmerken'!M128)/1000)+'1.4 Kenmerken'!M83*'1.4 Kenmerken'!M124,-3) -> 11000 | N140: =ROUND(('1.4 Kenmerken'!N83*'1.4 Kenmerken'!N10*('1.4 Kenmerken'!N125+'1.4 Kenmerken'!N127+'1.4 Kenmerken'!N128)/1000)+'1.4 Kenmerken'!N83*'1.4 Kenmerken'!N124,-3) -> 11000 | O140: =ROUND(('1.4 Kenmerken'!O83*'1.4 Kenmerken'!O10*('1.4 Kenmerken'!O125+'1.4 Kenmerken'!O127+'1.4 Kenmerken'!O128)/1000)+'1.4 Kenmerken'!O83*'1.4 Kenmerken'!O124,-3) -> 11000 | P140: =ROUND(('1.4 Kenmerken'!P83*'1.4 Kenmerken'!P10*('1.4 Kenmerken'!P125+'1.4 Kenmerken'!P127+'1.4 Kenmerken'!P128)/1000)+'1.4 Kenmerken'!P83*'1.4 Kenmerken'!P124,-3) -> 11000 | Q140: =ROUND(('1.4 Kenmerken'!Q83*'1.4 Kenmerken'!Q10*('1.4 Kenmerken'!Q125+'1.4 Kenmerken'!Q127+'1.4 Kenmerken'!Q128)/1000)+'1.4 Kenmerken'!Q83*'1.4 Kenmerken'!Q124,-3) -> 11000 | R140: =ROUND(('1.4 Kenmerken'!R83*'1.4 Kenmerken'!R10*('1.4 Kenmerken'!R125+'1.4 Kenmerken'!R127+'1.4 Kenmerken'!R128)/1000)+'1.4 Kenmerken'!R83*'1.4 Kenmerken'!R124,-3) -> 11000 | S140: =ROUND(('1.4 Kenmerken'!S83*'1.4 Kenmerken'!S10*('1.4 Kenmerken'!S125+'1.4 Kenmerken'!S127+'1.4 Kenmerken'!S128)/1000)+'1.4 Kenmerken'!S83*'1.4 Kenmerken'!S124,-3) -> 42000 | T140: =ROUND(('1.4 Kenmerken'!T83*'1.4 Kenmerken'!T10*('1.4 Kenmerken'!T125+'1.4 Kenmerken'!T127+'1.4 Kenmerken'!T128)/1000)+'1.4 Kenmerken'!T83*'1.4 Kenmerken'!T124,-3) -> 11000 | U140: =ROUND(('1.4 Kenmerken'!U83*'1.4 Kenmerken'!U10*('1.4 Kenmerken'!U125+'1.4 Kenmerken'!U127+'1.4 Kenmerken'!U128)/1000)+'1.4 Kenmerken'!U83*'1.4 Kenmerken'!U124,-3) -> 11000 | V140: =ROUND(('1.4 Kenmerken'!V83*'1.4 Kenmerken'!V10*('1.4 Kenmerken'!V125+'1.4 Kenmerken'!V127+'1.4 Kenmerken'!V128)/1000)+'1.4 Kenmerken'!V83*'1.4 Kenmerken'!V124,-3) -> 11000 | W140: =ROUND(('1.4 Kenmerken'!W83*'1.4 Kenmerken'!W10*('1.4 Kenmerken'!W125+'1.4 Kenmerken'!W127+'1.4 Kenmerken'!W128)/1000)+'1.4 Kenmerken'!W83*'1.4 Kenmerken'!W124,-3) -> 11000 | X140: =ROUND(('1.4 Kenmerken'!X83*'1.4 Kenmerken'!X10*('1.4 Kenmerken'!X125+'1.4 Kenmerken'!X127+'1.4 Kenmerken'!X128)/1000)+'1.4 Kenmerken'!X83*'1.4 Kenmerken'!X124,-3) -> 12000 | Y140: =ROUND(('1.4 Kenmerken'!Y83*'1.4 Kenmerken'!Y10*('1.4 Kenmerken'!Y125+'1.4 Kenmerken'!Y127+'1.4 Kenmerken'!Y128)/1000)+'1.4 Kenmerken'!Y83*'1.4 Kenmerken'!Y124,-3) -> 10000 | Z140: =ROUND(('1.4 Kenmerken'!Z83*'1.4 Kenmerken'!Z10*('1.4 Kenmerken'!Z125+'1.4 Kenmerken'!Z127+'1.4 Kenmerken'!Z128)/1000)+'1.4 Kenmerken'!Z83*'1.4 Kenmerken'!Z124,-3) -> 11000 | AA140: =ROUND(('1.4 Kenmerken'!AA83*'1.4 Kenmerken'!AA10*('1.4 Kenmerken'!AA125+'1.4 Kenmerken'!AA127+'1.4 Kenmerken'!AA128)/1000)+'1.4 Kenmerken'!AA83*'1.4 Kenmerken'!AA124,-3) -> 11000 | AB140: =ROUND(('1.4 Kenmerken'!AB83*'1.4 Kenmerken'!AB10*('1.4 Kenmerken'!AB125+'1.4 Kenmerken'!AB127+'1.4 Kenmerken'!AB128)/1000)+'1.4 Kenmerken'!AB83*'1.4 Kenmerken'!AB124,-3) -> 11000 | AC140: =ROUND(('1.4 Kenmerken'!AC83*'1.4 Kenmerken'!AC10*('1.4 Kenmerken'!AC125+'1.4 Kenmerken'!AC127+'1.4 Kenmerken'!AC128)/1000)+'1.4 Kenmerken'!AC83*'1.4 Kenmerken'!AC124,-3) -> 11000 | AD140: =ROUND(('1.4 Kenmerken'!AD83*'1.4 Kenmerken'!AD10*('1.4 Kenmerken'!AD125+'1.4 Kenmerken'!AD127+'1.4 Kenmerken'!AD128)/1000)+'1.4 Kenmerken'!AD83*'1.4 Kenmerken'!AD124,-3) -> 11000 | AE140: =ROUND(('1.4 Kenmerken'!AE83*'1.4 Kenmerken'!AE10*('1.4 Kenmerken'!AE125+'1.4 Kenmerken'!AE127+'1.4 Kenmerken'!AE128)/1000)+'1.4 Kenmerken'!AE83*'1.4 Kenmerken'!AE124,-3) -> 13000 | AF140: =ROUND(('1.4 Kenmerken'!AF83*'1.4 Kenmerken'!AF10*('1.4 Kenmerken'!AF125+'1.4 Kenmerken'!AF127+'1.4 Kenmerken'!AF128)/1000)+'1.4 Kenmerken'!AF83*'1.4 Kenmerken'!AF124,-3) -> 13000 | AG140: ='1.4 Kenmerken'!AG83/'1.4 Kenmerken'!AG84*(('1.4 Kenmerken'!AG44-1)/'1.4 Kenmerken'!AG44)*'1.4 Kenmerken'!AG124 + '1.4 Kenmerken'!AG33/0.0036/'1.4 Kenmerken'!AG97*(('1.4 Kenmerken'!AG44-1)/'1.4 Kenmerken'!AG44)*'1.4 Kenmerken'!AG129 -> 41030.87613
B141: onderhoud & beheer | C141: =ROUND(SUM(C35:C36)*SUM('1.4 Kenmerken'!$C$144:$C$146)+C40*'1.4 Kenmerken'!$C$147,-3) -> 22000 | D141: =ROUND(SUM(D35:D36)*SUM('1.4 Kenmerken'!$C$144:$C$146)+D40*'1.4 Kenmerken'!$C$147,-3) -> 24000 | E141: =ROUND(SUM(E35:E36)*SUM('1.4 Kenmerken'!$C$144:$C$146)+E40*'1.4 Kenmerken'!$C$147,-3) -> 6000 | F141: =ROUND(SUM(F35:F36)*SUM('1.4 Kenmerken'!$C$144:$C$146)+F40*'1.4 Kenmerken'!$C$147,-3) -> 26000 | G141: =ROUND(SUM(G35:G36)*SUM('1.4 Kenmerken'!$C$144:$C$146)+G40*'1.4 Kenmerken'!$C$147,-3) -> 10000 | H141: =ROUND(SUM(H35:H36)*SUM('1.4 Kenmerken'!$C$144:$C$146)+H40*'1.4 Kenmerken'!$C$147,-3) -> 15000 | I141: =ROUND(SUM(I35:I36)*SUM('1.4 Kenmerken'!$C$144:$C$146)+I40*'1.4 Kenmerken'!$C$147,-3) -> 22000 | J141: =ROUND(SUM(J35:J36)*SUM('1.4 Kenmerken'!$C$144:$C$146)+J40*'1.4 Kenmerken'!$C$147,-3) -> 10000 | K141: =ROUND(SUM(K35:K36)*SUM('1.4 Kenmerken'!$C$144:$C$146)+K40*'1.4 Kenmerken'!$C$147,-3) -> 22000 | L141: =ROUND(SUM(L35:L36)*SUM('1.4 Kenmerken'!$C$144:$C$146)+L40*'1.4 Kenmerken'!$C$147,-3) -> 14000 | M141: =ROUND(SUM(M35:M36)*SUM('1.4 Kenmerken'!$C$144:$C$146)+M40*'1.4 Kenmerken'!$C$147,-3) -> 22000 | N141: =ROUND(SUM(N35:N36)*SUM('1.4 Kenmerken'!$C$144:$C$146)+N40*'1.4 Kenmerken'!$C$147,-3) -> 22000 | O141: =ROUND(SUM(O35:O36)*SUM('1.4 Kenmerken'!$C$144:$C$146)+O40*'1.4 Kenmerken'!$C$147,-3) -> 22000 | P141: =ROUND(SUM(P35:P36)*SUM('1.4 Kenmerken'!$C$144:$C$146)+P40*'1.4 Kenmerken'!$C$147,-3) -> 22000 | Q141: =ROUND(SUM(Q35:Q36)*SUM('1.4 Kenmerken'!$C$144:$C$146)+Q40*'1.4 Kenmerken'!$C$147,-3) -> 22000 | R141: =ROUND(SUM(R35:R36)*SUM('1.4 Kenmerken'!$C$144:$C$146)+R40*'1.4 Kenmerken'!$C$147,-3) -> 22000 | S141: =ROUND(SUM(S35:S36)*SUM('1.4 Kenmerken'!$C$144:$C$146)+S40*'1.4 Kenmerken'!$C$147,-3) -> 86000 | T141: =ROUND(SUM(T35:T36)*SUM('1.4 Kenmerken'!$C$144:$C$146)+T40*'1.4 Kenmerken'!$C$147,-3) -> 13000 | U141: =ROUND(SUM(U35:U36)*SUM('1.4 Kenmerken'!$C$144:$C$146)+U40*'1.4 Kenmerken'!$C$147,-3) -> 22000 | V141: =ROUND(SUM(V35:V36)*SUM('1.4 Kenmerken'!$C$144:$C$146)+V40*'1.4 Kenmerken'!$C$147,-3) -> 13000 | W141: =ROUND(SUM(W35:W36)*SUM('1.4 Kenmerken'!$C$144:$C$146)+W40*'1.4 Kenmerken'!$C$147,-3) -> 16000 | X141: =ROUND(SUM(X35:X36)*SUM('1.4 Kenmerken'!$C$144:$C$146)+X40*'1.4 Kenmerken'!$C$147,-3) -> 22000 | Y141: =ROUND(SUM(Y35:Y36)*SUM('1.4 Kenmerken'!$C$144:$C$146)+Y40*'1.4 Kenmerken'!$C$147,-3) -> 22000 | Z141: =ROUND(SUM(Z35:Z36)*SUM('1.4 Kenmerken'!$C$144:$C$146)+Z40*'1.4 Kenmerken'!$C$147,-3) -> 22000 | AA141: =ROUND(SUM(AA35:AA36)*SUM('1.4 Kenmerken'!$C$144:$C$146)+AA40*'1.4 Kenmerken'!$C$147,-3) -> 21000 | AB141: =ROUND(SUM(AB35:AB36)*SUM('1.4 Kenmerken'!$C$144:$C$146)+AB40*'1.4 Kenmerken'!$C$147,-3) -> 22000 | AC141: =ROUND(SUM(AC35:AC36)*SUM('1.4 Kenmerken'!$C$144:$C$146)+AC40*'1.4 Kenmerken'!$C$147,-3) -> 22000 | AD141: =ROUND(SUM(AD35:AD36)*SUM('1.4 Kenmerken'!$C$144:$C$146)+AD40*'1.4 Kenmerken'!$C$147,-3) -> 22000 | AE141: =ROUND(SUM(AE35:AE36)*SUM('1.4 Kenmerken'!$C$144:$C$146)+AE40*'1.4 Kenmerken'!$C$147,-3) -> 22000 | AF141: =ROUND(SUM(AF35:AF36)*SUM('1.4 Kenmerken'!$C$144:$C$146)+AF40*'1.4 Kenmerken'!$C$147,-3) -> 26000 | AG141: =ROUND(SUM(AG35:AG36)*SUM('1.4 Kenmerken'!$C$144:$C$146)+AG40*'1.4 Kenmerken'!$C$147,-3) -> 22000
B142: financiering | C142: =ROUND(C40*'1.4 Kenmerken'!$C$141,-3) -> 20000 | D142: =ROUND(D40*'1.4 Kenmerken'!$C$141,-3) -> 22000 | E142: =ROUND(E40*'1.4 Kenmerken'!$C$141,-3) -> 8000 | F142: =ROUND(F40*'1.4 Kenmerken'!$C$141,-3) -> 24000 | G142: =ROUND(G40*'1.4 Kenmerken'!$C$141,-3) -> 12000 | H142: =ROUND(H40*'1.4 Kenmerken'!$C$141,-3) -> 14000 | I142: =ROUND(I40*'1.4 Kenmerken'!$C$141,-3) -> 20000 | J142: =ROUND(J40*'1.4 Kenmerken'!$C$141,-3) -> 12000 | K142: =ROUND(K40*'1.4 Kenmerken'!$C$141,-3) -> 20000 | L142: =ROUND(L40*'1.4 Kenmerken'!$C$141,-3) -> 14000 | M142: =ROUND(M40*'1.4 Kenmerken'!$C$141,-3) -> 20000 | N142: =ROUND(N40*'1.4 Kenmerken'!$C$141,-3) -> 20000 | O142: =ROUND(O40*'1.4 Kenmerken'!$C$141,-3) -> 20000 | P142: =ROUND(P40*'1.4 Kenmerken'!$C$141,-3) -> 20000 | Q142: =ROUND(Q40*'1.4 Kenmerken'!$C$141,-3) -> 20000 | R142: =ROUND(R40*'1.4 Kenmerken'!$C$141,-3) -> 20000 | S142: =ROUND(S40*'1.4 Kenmerken'!$C$141,-3) -> 80000 | T142: =ROUND(T40*'1.4 Kenmerken'!$C$141,-3) -> 10000 | U142: =ROUND(U40*'1.4 Kenmerken'!$C$141,-3) -> 20000 | V142: =ROUND(V40*'1.4 Kenmerken'!$C$141,-3) -> 10000 | W142: =ROUND(W40*'1.4 Kenmerken'!$C$141,-3) -> 16000 | X142: =ROUND(X40*'1.4 Kenmerken'!$C$141,-3) -> 20000 | Y142: =ROUND(Y40*'1.4 Kenmerken'!$C$141,-3) -> 20000 | Z142: =ROUND(Z40*'1.4 Kenmerken'!$C$141,-3) -> 20000 | AA142: =ROUND(AA40*'1.4 Kenmerken'!$C$141,-3) -> 20000 | AB142: =ROUND(AB40*'1.4 Kenmerken'!$C$141,-3) -> 20000 | AC142: =ROUND(AC40*'1.4 Kenmerken'!$C$141,-3) -> 20000 | AD142: =ROUND(AD40*'1.4 Kenmerken'!$C$141,-3) -> 20000 | AE142: =ROUND(AE40*'1.4 Kenmerken'!$C$141,-3) -> 20000 | AF142: =ROUND(AF40*'1.4 Kenmerken'!$C$141,-3) -> 24000 | AG142: =ROUND(AG40*'1.4 Kenmerken'!$C$141,-3) -> 20000
B143: OPEX Leidingtrace aquathermie | C143: =ROUND((SUM(C140:C142)),-4) -> 60000 | D143: 90000 | E143: 20000 | F143: 70000 | G143: 30000 | H143: 40000 | I143: 50000 | J143: 30000 | K143: 50000 | L143: 40000 | M143: 50000 | N143: 50000 | O143: 50000 | P143: 50000 | Q143: 50000 | R143: 50000 | S143: 210000 | T143: 30000 | U143: 50000 | V143: 30000 | W143: 40000 | X143: 50000 | Y143: 50000 | Z143: 50000 | AA143: 50000 | AB143: 50000 | AC143: 50000 | AD143: =ROUND((SUM(AD140:AD142)),-4) -> 50000 | AE143: 60000 | AF143: =ROUND((SUM(AF140:AF142)),-4) -> 60000 | AG143: =ROUND((SUM(AG140:AG142)),-4) -> 80000
C144: =C143/('1.4 Kenmerken'!C8*1000) -> 12 | D144: =D143/('1.4 Kenmerken'!D8*1000) -> 4.5 | E144: =E143/('1.4 Kenmerken'!E8*1000) -> 20 | F144: =F143/('1.4 Kenmerken'!F8*1000) -> 14 | G144: =G143/('1.4 Kenmerken'!G8*1000) -> 6 | H144: =H143/('1.4 Kenmerken'!H8*1000) -> 8 | I144: =I143/('1.4 Kenmerken'!I8*1000) -> 10 | J144: =J143/('1.4 Kenmerken'!J8*1000) -> 6 | K144: =K143/('1.4 Kenmerken'!K8*1000) -> 10 | L144: =L143/('1.4 Kenmerken'!L8*1000) -> 8 | M144: =M143/('1.4 Kenmerken'!M8*1000) -> 10 | N144: =N143/('1.4 Kenmerken'!N8*1000) -> 10 | O144: =O143/('1.4 Kenmerken'!O8*1000) -> 10 | P144: =P143/('1.4 Kenmerken'!P8*1000) -> 10 | Q144: =Q143/('1.4 Kenmerken'!Q8*1000) -> 10 | R144: =R143/('1.4 Kenmerken'!R8*1000) -> 10 | S144: =S143/('1.4 Kenmerken'!S8*1000) -> 42 | T144: =T143/('1.4 Kenmerken'!T8*1000) -> 6 | U144: =U143/('1.4 Kenmerken'!U8*1000) -> 10 | V144: =V143/('1.4 Kenmerken'!V8*1000) -> 6 | W144: =W143/('1.4 Kenmerken'!W8*1000) -> 8 | X144: =X143/('1.4 Kenmerken'!X8*1000) -> 10 | Y144: =Y143/('1.4 Kenmerken'!Y8*1000) -> 10 | Z144: =Z143/('1.4 Kenmerken'!Z8*1000) -> 10 | AA144: =AA143/('1.4 Kenmerken'!AA8*1000) -> 10 | AB144: =AB143/('1.4 Kenmerken'!AB8*1000) -> 10 | AC144: =AC143/('1.4 Kenmerken'!AC8*1000) -> 10 | AD144: =AD143/('1.4 Kenmerken'!AD8*1000) -> 10 | AE144: =AE143/('1.4 Kenmerken'!AE8*1000) -> 12 | AF144: =AF143/('1.4 Kenmerken'!AF8*1000) -> 12 | AG144: =AG143/('1.4 Kenmerken'!AG8*1000) -> 16
B146: Leidingtrace WKO
